Workbook

Sheet 1.Kemzeke-Zuid
B2: PARKEERONDERZOEK | D2: CARPOOLPARKINGS EN P+R PARKINGS
B3: 1 | D3: =B8 & " - "& TEXT(VLOOKUP(B3,Coordinaten!$A$2:$G$95,7,0),"dddd dd mmmm jjjj") -> Carpool parking Kemzeke-Zuid, Stekene - di 10 & do 12 oktober 2023
B4: =VLOOKUP(B3,Coordinaten!$A$2:$G$95,6,0) -> 51.226907, 4.063425
D5: BEZETTING | Q5: OPMERKINGEN
B7: Onderzoeksgebied | D7: Datum | E7: Geregistreerd tussen | F7: Pers | G7: Vracht | H7: Motor | I7: Obstakel / overig | J7: Fout pers | K7: Fout Vracht | L7: Totaal | M7: E-wagen plaats | N7: Invalidenplaats | O7: Gestalde fietsen | U7: =F7 -> Pers | V7: Vracht | W7: Motor | X7: Obstakel / overig | Y7: Fout pers | Z7: Fout Vracht
B8: =VLOOKUP(B3,Coordinaten!$A$2:$G$95,3,0)&", "&VLOOKUP(B3,Coordinaten!$A$2:$G$95,5,0) -> Carpool parking Kemzeke-Zuid, Stekene | D8: =_xlfn.XLOOKUP($B$3,Bezetting_1!$A$2:$A$90,Bezetting_1!C$2:C$90,,0) -> 2023-10-10 | E8: =_xlfn.XLOOKUP($B$3,Bezetting_1!$A$2:$A$90,Bezetting_1!D$2:D$90,,0) -> 09:00 - 16:00u | F8: =_xlfn.XLOOKUP($B$3,Bezetting_1!$A$2:$A$90,Bezetting_1!E$2:E$90,,0) -> 30 | G8: =_xlfn.XLOOKUP($B$3,Bezetting_1!$A$2:$A$90,Bezetting_1!F$2:F$90,,0) -> 1 | H8: =_xlfn.XLOOKUP($B$3,Bezetting_1!$A$2:$A$90,Bezetting_1!G$2:G$90,,0) -> 0 | I8: =_xlfn.XLOOKUP($B$3,Bezetting_1!$A$2:$A$90,Bezetting_1!H$2:H$90,,0) -> 0 | J8: =_xlfn.XLOOKUP($B$3,Bezetting_1!$A$2:$A$90,Bezetting_1!I$2:I$90,,0) -> 20 | K8: =_xlfn.XLOOKUP($B$3,Bezetting_1!$A$2:$A$90,Bezetting_1!J$2:J$90,,0) -> 0 | L8: =_xlfn.XLOOKUP($B$3,Bezetting_1!$A$2:$A$90,Bezetting_1!K$2:K$90,,0) -> 51 | M8: =_xlfn.XLOOKUP($B$3,Bezetting_1!$A$2:$A$90,Bezetting_1!L$2:L$90,,0) -> 0 | N8: =_xlfn.XLOOKUP($B$3,Bezetting_1!$A$2:$A$90,Bezetting_1!M$2:M$90,,0) -> 0 | O8: =_xlfn.XLOOKUP($B$3,Bezetting_1!$A$2:$A$90,Bezetting_1!N$2:N$90,,0) -> 9 | Q8: =_xlfn.XLOOKUP($B$3,Bezetting_1!$A$2:$A$90,Bezetting_1!P$2:P$90,,0) -> 0 | S8: =D8 -> 2023-10-10 | T8: =E8 -> 09:00 - 16:00u | U8: =IF(F8=0,NA(),F8/$L8) -> 0.5882352941 | V8: =IF(G8=0,NA(),G8/$L8) -> 0.01960784314 | W8: =IF(H8=0,NA(),H8/$L8) ->  | Y8: 0.3921568627
B9: ="Nabij kruispunt: "&VLOOKUP(B3,Coordinaten!$A$2:$L$95,4,0) -> Nabij kruispunt: N49 / N403 | F9: =IF(F8=0,"-",F8/$L$8) -> 0.5882352941 | G9: =IF(G8=0,"-",G8/$L$8) -> 0.01960784314 | H9: - | I9: - | J9: 0.3921568627 | K9: - | L9: 1 | Q9: =_xlfn.XLOOKUP($B$3,Bezetting_1!$A$2:$A$90,Bezetting_1!Q$2:Q$90,,0) -> 0 | S9: =D10 -> 2023-10-10 | T9: =E10 -> 19:00 - 02:00u | U9: =IF(F10=0,NA(),F10/$L10) -> 0.6956521739 | V9: =IF(G10=0,NA(),G10/$L10) ->  | Z9: 0.3043478261
D10: =_xlfn.XLOOKUP($B$3,Bezetting_2!$A$2:$A$90,Bezetting_2!C$2:C$90,,0) -> 2023-10-10 | E10: =_xlfn.XLOOKUP($B$3,Bezetting_2!$A$2:$A$90,Bezetting_2!D$2:D$90,,0) -> 19:00 - 02:00u | F10: =_xlfn.XLOOKUP($B$3,Bezetting_2!$A$2:$A$90,Bezetting_2!E$2:E$90,,0) -> 16 | G10: =_xlfn.XLOOKUP($B$3,Bezetting_2!$A$2:$A$90,Bezetting_2!F$2:F$90,,0) -> 0 | H10: =_xlfn.XLOOKUP($B$3,Bezetting_2!$A$2:$A$90,Bezetting_2!G$2:G$90,,0) -> 0 | I10: =_xlfn.XLOOKUP($B$3,Bezetting_2!$A$2:$A$90,Bezetting_2!H$2:H$90,,0) -> 0 | J10: =_xlfn.XLOOKUP($B$3,Bezetting_2!$A$2:$A$90,Bezetting_2!I$2:I$90,,0) -> 0 | K10: =_xlfn.XLOOKUP($B$3,Bezetting_2!$A$2:$A$90,Bezetting_2!J$2:J$90,,0) -> 7 | L10: =_xlfn.XLOOKUP($B$3,Bezetting_2!$A$2:$A$90,Bezetting_2!K$2:K$90,,0) -> 23 | M10: =_xlfn.XLOOKUP($B$3,Bezetting_2!$A$2:$A$90,Bezetting_2!L$2:L$90,,0) -> 0 | N10: =_xlfn.XLOOKUP($B$3,Bezetting_2!$A$2:$A$90,Bezetting_2!M$2:M$90,,0) -> 0 | O10: =_xlfn.XLOOKUP($B$3,Bezetting_2!$A$2:$A$90,Bezetting_2!N$2:N$90,,0) -> 4 | P10: =_xlfn.XLOOKUP($B$3,Bezetting_2!$A$2:$A$90,Bezetting_2!O$2:O$90,,0) -> 0 | Q10: =_xlfn.XLOOKUP($B$3,Bezetting_2!$A$2:$A$90,Bezetting_2!P$2:P$90,,0) -> 0
B11: Meting | F11: =IF(F10=0,"-",F10/$L$10) -> 0.6956521739 | G11: =IF(G10=0,"-",G10/$L$10) -> - | H11: - | I11: - | J11: - | K11: 0.3043478261 | L11: 1 | Q11: =_xlfn.XLOOKUP($B$3,Bezetting_2!$A$2:$A$90,Bezetting_2!Q$2:Q$90,,0) -> 0
B12: ="Meetperiode: "&TEXT(VLOOKUP(B3,Coordinaten!$A:$G,7,0),"dddd dd mmmm jjjj") -> Meetperiode: di 10 & do 12 oktober 2023
B13: Methodiek: Parkeerdrukmeting met waarnemers
B14: In opdracht van: Vlaamse overheid
B15: Uitgevoerd door: Dufec
D16: VERDELING NAAR CATEGORIE
B17: Locatie
B18: =IF(B4="","",HYPERLINK("http://www.googlemaps.com/?q="&B4,"Lat/Long: "&B4)) -> Lat/Long: 51.226907, 4.063425
P20: Legenda
Q21: Personenwagen
Q22: Vracht
Q23: Motor
Q24: Obstakel / overig
Q25: Fout personenwagen
Q26: Fout Vracht
B39: Toelichting
B40: Pers = personenwagens op daarvoor bestemde
B41: openbare plaatsen
B42: Vracht = vrachtwagens op daarvoor bestemde
B43: parkeerplaatsen (middel- en zwaar vrachtverkeer)
B44: Motor = geparkeerde motoren op openbare plaatsen
B45: Obstakel / overig = obstakels of overige voertuigen
B46: geparkeerd op openbare plaatsen
B47: Fout pers = personenwagens die fout geparkeerd staan
B48: Fout vracht = vrachtwagens die fout geparkeerd staan
B49: E-wagen = geparkeerde elektrisch voertuig bij een
B50: elektrisch oplaadpunt
B51: Invalide = personenwagens en motoren op voor
B52: invalide personen bestemde parkeerplaats
B53: Gestalde fietsen = alle gestalde fietsen op de
B54: daarvoor bestemde parkeerplaatsen

Sheet 2.Halle-Dassenveld
B2: PARKEERONDERZOEK | D2: CARPOOLPARKINGS EN P+R PARKINGS
B3: 2 | D3: =B8 & " - "& TEXT(VLOOKUP(B3,Coordinaten!$A$2:$G$95,7,0),"dddd dd mmmm jjjj") -> Carpool parking Halle-Dassenveld, Halle - di 10 & do 12 oktober 2023
B4: =VLOOKUP(B3,Coordinaten!$A$2:$G$95,6,0) -> 50.726346, 4.217220
D5: BEZETTING | Q5: OPMERKINGEN
B7: Onderzoeksgebied | D7: Datum | E7: Geregistreerd tussen | F7: Pers | G7: Vracht | H7: Motor | I7: Obstakel / overig | J7: Fout pers | K7: Fout Vracht | L7: Totaal | M7: E-wagen plaats | N7: Invalidenplaats | O7: Gestalde fietsen | U7: =F7 -> Pers | V7: Vracht | W7: Motor | X7: Obstakel / overig | Y7: Fout pers | Z7: Fout Vracht
B8: =VLOOKUP(B3,Coordinaten!$A$2:$G$95,3,0)&", "&VLOOKUP(B3,Coordinaten!$A$2:$G$95,5,0) -> Carpool parking Halle-Dassenveld, Halle | D8: =_xlfn.XLOOKUP($B$3,Bezetting_1!$A$2:$A$90,Bezetting_1!C$2:C$90,,0) -> 2023-10-12 | E8: =_xlfn.XLOOKUP($B$3,Bezetting_1!$A$2:$A$90,Bezetting_1!D$2:D$90,,0) -> 09:00 - 16:00u | F8: =_xlfn.XLOOKUP($B$3,Bezetting_1!$A$2:$A$90,Bezetting_1!E$2:E$90,,0) -> 21 | G8: =_xlfn.XLOOKUP($B$3,Bezetting_1!$A$2:$A$90,Bezetting_1!F$2:F$90,,0) -> 16 | H8: =_xlfn.XLOOKUP($B$3,Bezetting_1!$A$2:$A$90,Bezetting_1!G$2:G$90,,0) -> 0 | I8: =_xlfn.XLOOKUP($B$3,Bezetting_1!$A$2:$A$90,Bezetting_1!H$2:H$90,,0) -> 0 | J8: =_xlfn.XLOOKUP($B$3,Bezetting_1!$A$2:$A$90,Bezetting_1!I$2:I$90,,0) -> 0 | K8: =_xlfn.XLOOKUP($B$3,Bezetting_1!$A$2:$A$90,Bezetting_1!J$2:J$90,,0) -> 0 | L8: =_xlfn.XLOOKUP($B$3,Bezetting_1!$A$2:$A$90,Bezetting_1!K$2:K$90,,0) -> 37 | M8: =_xlfn.XLOOKUP($B$3,Bezetting_1!$A$2:$A$90,Bezetting_1!L$2:L$90,,0) -> 0 | N8: =_xlfn.XLOOKUP($B$3,Bezetting_1!$A$2:$A$90,Bezetting_1!M$2:M$90,,0) -> 0 | O8: =_xlfn.XLOOKUP($B$3,Bezetting_1!$A$2:$A$90,Bezetting_1!N$2:N$90,,0) -> 0 | Q8: =_xlfn.XLOOKUP($B$3,Bezetting_1!$A$2:$A$90,Bezetting_1!P$2:P$90,,0) -> 0 | S8: =D8 -> 2023-10-12 | T8: =E8 -> 09:00 - 16:00u | U8: =IF(F8=0,NA(),F8/$L8) -> 0.5675675676 | V8: =IF(G8=0,NA(),G8/$L8) -> 0.4324324324 | W8: =IF(H8=0,NA(),H8/$L8) -> 
B9: ="Nabij kruispunt: "&VLOOKUP(B3,Coordinaten!$A$2:$L$95,4,0) -> Nabij kruispunt: N7 / A8 | F9: =IF(F8=0,"-",F8/$L$8) -> 0.5675675676 | G9: =IF(G8=0,"-",G8/$L$8) -> 0.4324324324 | H9: - | I9: - | J9: - | K9: - | L9: 1 | Q9: =_xlfn.XLOOKUP($B$3,Bezetting_1!$A$2:$A$90,Bezetting_1!Q$2:Q$90,,0) -> 0 | S9: =D10 -> 2023-10-12 | T9: =E10 -> 19:00 - 02:00u | U9: =IF(F10=0,NA(),F10/$L10) -> 0.4594594595 | V9: =IF(G10=0,NA(),G10/$L10) -> 0.5405405405
D10: =_xlfn.XLOOKUP($B$3,Bezetting_2!$A$2:$A$90,Bezetting_2!C$2:C$90,,0) -> 2023-10-12 | E10: =_xlfn.XLOOKUP($B$3,Bezetting_2!$A$2:$A$90,Bezetting_2!D$2:D$90,,0) -> 19:00 - 02:00u | F10: =_xlfn.XLOOKUP($B$3,Bezetting_2!$A$2:$A$90,Bezetting_2!E$2:E$90,,0) -> 17 | G10: =_xlfn.XLOOKUP($B$3,Bezetting_2!$A$2:$A$90,Bezetting_2!F$2:F$90,,0) -> 20 | H10: =_xlfn.XLOOKUP($B$3,Bezetting_2!$A$2:$A$90,Bezetting_2!G$2:G$90,,0) -> 0 | I10: =_xlfn.XLOOKUP($B$3,Bezetting_2!$A$2:$A$90,Bezetting_2!H$2:H$90,,0) -> 0 | J10: =_xlfn.XLOOKUP($B$3,Bezetting_2!$A$2:$A$90,Bezetting_2!I$2:I$90,,0) -> 0 | K10: =_xlfn.XLOOKUP($B$3,Bezetting_2!$A$2:$A$90,Bezetting_2!J$2:J$90,,0) -> 0 | L10: =_xlfn.XLOOKUP($B$3,Bezetting_2!$A$2:$A$90,Bezetting_2!K$2:K$90,,0) -> 37 | M10: =_xlfn.XLOOKUP($B$3,Bezetting_2!$A$2:$A$90,Bezetting_2!L$2:L$90,,0) -> 0 | N10: =_xlfn.XLOOKUP($B$3,Bezetting_2!$A$2:$A$90,Bezetting_2!M$2:M$90,,0) -> 0 | O10: =_xlfn.XLOOKUP($B$3,Bezetting_2!$A$2:$A$90,Bezetting_2!N$2:N$90,,0) -> 0 | P10: =_xlfn.XLOOKUP($B$3,Bezetting_2!$A$2:$A$90,Bezetting_2!O$2:O$90,,0) -> 0 | Q10: =_xlfn.XLOOKUP($B$3,Bezetting_2!$A$2:$A$90,Bezetting_2!P$2:P$90,,0) -> 0
B11: Meting | F11: =IF(F10=0,"-",F10/$L$10) -> 0.4594594595 | G11: =IF(G10=0,"-",G10/$L$10) -> 0.5405405405 | H11: - | I11: - | J11: - | K11: - | L11: 1 | Q11: =_xlfn.XLOOKUP($B$3,Bezetting_2!$A$2:$A$90,Bezetting_2!Q$2:Q$90,,0) -> 0
B12: ="Meetperiode: "&TEXT(VLOOKUP(B3,Coordinaten!$A:$G,7,0),"dddd dd mmmm jjjj") -> Meetperiode: di 10 & do 12 oktober 2023
B13: Methodiek: Parkeerdrukmeting met waarnemers
B14: In opdracht van: Vlaamse overheid
B15: Uitgevoerd door: Dufec
D16: VERDELING NAAR CATEGORIE
B17: Locatie
B18: =IF(B4="","",HYPERLINK("http://www.googlemaps.com/?q="&B4,"Lat/Long: "&B4)) -> Lat/Long: 50.726346, 4.217220
P20: Legenda
Q21: Personenwagen
Q22: Vracht
Q23: Motor
Q24: Obstakel / overig
Q25: Fout personenwagen
Q26: Fout Vracht
B39: Toelichting
B40: Pers = personenwagens op daarvoor bestemde
B41: openbare plaatsen
B42: Vracht = vrachtwagens op daarvoor bestemde
B43: parkeerplaatsen (middel- en zwaar vrachtverkeer)
B44: Motor = geparkeerde motoren op openbare plaatsen
B45: Obstakel / overig = obstakels of overige voertuigen
B46: geparkeerd op openbare plaatsen
B47: Fout pers = personenwagens die fout geparkeerd staan
B48: Fout vracht = vrachtwagens die fout geparkeerd staan
B49: E-wagen = geparkeerde elektrisch voertuig bij een
B50: elektrisch oplaadpunt
B51: Invalide = personenwagens en motoren op voor
B52: invalide personen bestemde parkeerplaats
B53: Gestalde fietsen = alle gestalde fietsen op de
B54: daarvoor bestemde parkeerplaatsen

Sheet 3.Winksele
B2: PARKEERONDERZOEK | D2: CARPOOLPARKINGS EN P+R PARKINGS
B3: 3 | D3: =B8 & " - "& TEXT(VLOOKUP(B3,Coordinaten!$A$2:$G$95,7,0),"dddd dd mmmm jjjj") -> Carpool parking Winksele, Herent - di 10 & do 12 oktober 2023
B4: =VLOOKUP(B3,Coordinaten!$A$2:$G$95,6,0) -> 50.885324, 4.672071
D5: BEZETTING | Q5: OPMERKINGEN
B7: Onderzoeksgebied | D7: Datum | E7: Geregistreerd tussen | F7: Pers | G7: Vracht | H7: Motor | I7: Obstakel / overig | J7: Fout pers | K7: Fout Vracht | L7: Totaal | M7: E-wagen plaats | N7: Invalidenplaats | O7: Gestalde fietsen | U7: =F7 -> Pers | V7: Vracht | W7: Motor | X7: Obstakel / overig | Y7: Fout pers | Z7: Fout Vracht
B8: =VLOOKUP(B3,Coordinaten!$A$2:$G$95,3,0)&", "&VLOOKUP(B3,Coordinaten!$A$2:$G$95,5,0) -> Carpool parking Winksele, Herent | D8: =_xlfn.XLOOKUP($B$3,Bezetting_1!$A$2:$A$90,Bezetting_1!C$2:C$90,,0) -> 2023-10-10 | E8: =_xlfn.XLOOKUP($B$3,Bezetting_1!$A$2:$A$90,Bezetting_1!D$2:D$90,,0) -> 09:00 - 16:00u | F8: =_xlfn.XLOOKUP($B$3,Bezetting_1!$A$2:$A$90,Bezetting_1!E$2:E$90,,0) -> 13 | G8: =_xlfn.XLOOKUP($B$3,Bezetting_1!$A$2:$A$90,Bezetting_1!F$2:F$90,,0) -> 0 | H8: =_xlfn.XLOOKUP($B$3,Bezetting_1!$A$2:$A$90,Bezetting_1!G$2:G$90,,0) -> 0 | I8: =_xlfn.XLOOKUP($B$3,Bezetting_1!$A$2:$A$90,Bezetting_1!H$2:H$90,,0) -> 0 | J8: =_xlfn.XLOOKUP($B$3,Bezetting_1!$A$2:$A$90,Bezetting_1!I$2:I$90,,0) -> 0 | K8: =_xlfn.XLOOKUP($B$3,Bezetting_1!$A$2:$A$90,Bezetting_1!J$2:J$90,,0) -> 0 | L8: =_xlfn.XLOOKUP($B$3,Bezetting_1!$A$2:$A$90,Bezetting_1!K$2:K$90,,0) -> 13 | M8: =_xlfn.XLOOKUP($B$3,Bezetting_1!$A$2:$A$90,Bezetting_1!L$2:L$90,,0) -> 0 | N8: =_xlfn.XLOOKUP($B$3,Bezetting_1!$A$2:$A$90,Bezetting_1!M$2:M$90,,0) -> 0 | O8: =_xlfn.XLOOKUP($B$3,Bezetting_1!$A$2:$A$90,Bezetting_1!N$2:N$90,,0) -> 4 | Q8: =_xlfn.XLOOKUP($B$3,Bezetting_1!$A$2:$A$90,Bezetting_1!P$2:P$90,,0) -> 0 | S8: =D8 -> 2023-10-10 | T8: =E8 -> 09:00 - 16:00u | U8: =IF(F8=0,NA(),F8/$L8) -> 1 | V8: =IF(G8=0,NA(),G8/$L8) ->  | W8: =IF(H8=0,NA(),H8/$L8) -> 
B9: ="Nabij kruispunt: "&VLOOKUP(B3,Coordinaten!$A$2:$L$95,4,0) -> Nabij kruispunt: Stuiverstraat / N2 | F9: =IF(F8=0,"-",F8/$L$8) -> 1 | G9: =IF(G8=0,"-",G8/$L$8) -> - | H9: - | I9: - | J9: - | K9: - | L9: 1 | Q9: =_xlfn.XLOOKUP($B$3,Bezetting_1!$A$2:$A$90,Bezetting_1!Q$2:Q$90,,0) -> 0 | S9: =D10 -> 2023-10-10 | T9: =E10 -> 19:00 - 02:00u | U9: =IF(F10=0,NA(),F10/$L10) -> 1 | V9: =IF(G10=0,NA(),G10/$L10) -> 
D10: =_xlfn.XLOOKUP($B$3,Bezetting_2!$A$2:$A$90,Bezetting_2!C$2:C$90,,0) -> 2023-10-10 | E10: =_xlfn.XLOOKUP($B$3,Bezetting_2!$A$2:$A$90,Bezetting_2!D$2:D$90,,0) -> 19:00 - 02:00u | F10: =_xlfn.XLOOKUP($B$3,Bezetting_2!$A$2:$A$90,Bezetting_2!E$2:E$90,,0) -> 10 | G10: =_xlfn.XLOOKUP($B$3,Bezetting_2!$A$2:$A$90,Bezetting_2!F$2:F$90,,0) -> 0 | H10: =_xlfn.XLOOKUP($B$3,Bezetting_2!$A$2:$A$90,Bezetting_2!G$2:G$90,,0) -> 0 | I10: =_xlfn.XLOOKUP($B$3,Bezetting_2!$A$2:$A$90,Bezetting_2!H$2:H$90,,0) -> 0 | J10: =_xlfn.XLOOKUP($B$3,Bezetting_2!$A$2:$A$90,Bezetting_2!I$2:I$90,,0) -> 0 | K10: =_xlfn.XLOOKUP($B$3,Bezetting_2!$A$2:$A$90,Bezetting_2!J$2:J$90,,0) -> 0 | L10: =_xlfn.XLOOKUP($B$3,Bezetting_2!$A$2:$A$90,Bezetting_2!K$2:K$90,,0) -> 10 | M10: =_xlfn.XLOOKUP($B$3,Bezetting_2!$A$2:$A$90,Bezetting_2!L$2:L$90,,0) -> 0 | N10: =_xlfn.XLOOKUP($B$3,Bezetting_2!$A$2:$A$90,Bezetting_2!M$2:M$90,,0) -> 0 | O10: =_xlfn.XLOOKUP($B$3,Bezetting_2!$A$2:$A$90,Bezetting_2!N$2:N$90,,0) -> 5 | P10: =_xlfn.XLOOKUP($B$3,Bezetting_2!$A$2:$A$90,Bezetting_2!O$2:O$90,,0) -> 0 | Q10: =_xlfn.XLOOKUP($B$3,Bezetting_2!$A$2:$A$90,Bezetting_2!P$2:P$90,,0) -> 0
B11: Meting | F11: =IF(F10=0,"-",F10/$L$10) -> 1 | G11: =IF(G10=0,"-",G10/$L$10) -> - | H11: - | I11: - | J11: - | K11: - | L11: 1 | Q11: =_xlfn.XLOOKUP($B$3,Bezetting_2!$A$2:$A$90,Bezetting_2!Q$2:Q$90,,0) -> 0
B12: ="Meetperiode: "&TEXT(VLOOKUP(B3,Coordinaten!$A:$G,7,0),"dddd dd mmmm jjjj") -> Meetperiode: di 10 & do 12 oktober 2023
B13: Methodiek: Parkeerdrukmeting met waarnemers
B14: In opdracht van: Vlaamse overheid
B15: Uitgevoerd door: Dufec
D16: VERDELING NAAR CATEGORIE
B17: Locatie
B18: =IF(B4="","",HYPERLINK("http://www.googlemaps.com/?q="&B4,"Lat/Long: "&B4)) -> Lat/Long: 50.885324, 4.672071
P20: Legenda
Q21: Personenwagen
Q22: Vracht
Q23: Motor
Q24: Obstakel / overig
Q25: Fout personenwagen
Q26: Fout Vracht
B39: Toelichting
B40: Pers = personenwagens op daarvoor bestemde
B41: openbare plaatsen
B42: Vracht = vrachtwagens op daarvoor bestemde
B43: parkeerplaatsen (middel- en zwaar vrachtverkeer)
B44: Motor = geparkeerde motoren op openbare plaatsen
B45: Obstakel / overig = obstakels of overige voertuigen
B46: geparkeerd op openbare plaatsen
B47: Fout pers = personenwagens die fout geparkeerd staan
B48: Fout vracht = vrachtwagens die fout geparkeerd staan
B49: E-wagen = geparkeerde elektrisch voertuig bij een
B50: elektrisch oplaadpunt
B51: Invalide = personenwagens en motoren op voor
B52: invalide personen bestemde parkeerplaats
B53: Gestalde fietsen = alle gestalde fietsen op de
B54: daarvoor bestemde parkeerplaatsen

Sheet 4.Herent
B2: PARKEERONDERZOEK | D2: CARPOOLPARKINGS EN P+R PARKINGS
B3: 4 | D3: =B8 & " - "& TEXT(VLOOKUP(B3,Coordinaten!$A$2:$G$95,7,0),"dddd dd mmmm jjjj") -> Carpool parking Herent, Leuven - di 10 & do 12 oktober 2023
B4: =VLOOKUP(B3,Coordinaten!$A$2:$G$95,6,0) -> 50.893869, 4.689409
D5: BEZETTING | Q5: OPMERKINGEN
B7: Onderzoeksgebied | D7: Datum | E7: Geregistreerd tussen | F7: Pers | G7: Vracht | H7: Motor | I7: Obstakel / overig | J7: Fout pers | K7: Fout Vracht | L7: Totaal | M7: E-wagen plaats | N7: Invalidenplaats | O7: Gestalde fietsen | U7: =F7 -> Pers | V7: Vracht | W7: Motor | X7: Obstakel / overig | Y7: Fout pers | Z7: Fout Vracht
B8: =VLOOKUP(B3,Coordinaten!$A$2:$G$95,3,0)&", "&VLOOKUP(B3,Coordinaten!$A$2:$G$95,5,0) -> Carpool parking Herent, Leuven | D8: =_xlfn.XLOOKUP($B$3,Bezetting_1!$A$2:$A$90,Bezetting_1!C$2:C$90,,0) -> 2023-10-10 | E8: =_xlfn.XLOOKUP($B$3,Bezetting_1!$A$2:$A$90,Bezetting_1!D$2:D$90,,0) -> 09:00 - 16:00u | F8: =_xlfn.XLOOKUP($B$3,Bezetting_1!$A$2:$A$90,Bezetting_1!E$2:E$90,,0) -> 43 | G8: =_xlfn.XLOOKUP($B$3,Bezetting_1!$A$2:$A$90,Bezetting_1!F$2:F$90,,0) -> 0 | H8: =_xlfn.XLOOKUP($B$3,Bezetting_1!$A$2:$A$90,Bezetting_1!G$2:G$90,,0) -> 0 | I8: =_xlfn.XLOOKUP($B$3,Bezetting_1!$A$2:$A$90,Bezetting_1!H$2:H$90,,0) -> 1 | J8: =_xlfn.XLOOKUP($B$3,Bezetting_1!$A$2:$A$90,Bezetting_1!I$2:I$90,,0) -> 0 | K8: =_xlfn.XLOOKUP($B$3,Bezetting_1!$A$2:$A$90,Bezetting_1!J$2:J$90,,0) -> 0 | L8: =_xlfn.XLOOKUP($B$3,Bezetting_1!$A$2:$A$90,Bezetting_1!K$2:K$90,,0) -> 44 | M8: =_xlfn.XLOOKUP($B$3,Bezetting_1!$A$2:$A$90,Bezetting_1!L$2:L$90,,0) -> 0 | N8: =_xlfn.XLOOKUP($B$3,Bezetting_1!$A$2:$A$90,Bezetting_1!M$2:M$90,,0) -> 0 | O8: =_xlfn.XLOOKUP($B$3,Bezetting_1!$A$2:$A$90,Bezetting_1!N$2:N$90,,0) -> 12 | Q8: =_xlfn.XLOOKUP($B$3,Bezetting_1!$A$2:$A$90,Bezetting_1!P$2:P$90,,0) -> Overig: aanhanger | S8: =D8 -> 2023-10-10 | T8: =E8 -> 09:00 - 16:00u | U8: =IF(F8=0,NA(),F8/$L8) -> 0.9772727273 | V8: =IF(G8=0,NA(),G8/$L8) ->  | W8: =IF(H8=0,NA(),H8/$L8) ->  | X8: 0.02272727273
B9: ="Nabij kruispunt: "&VLOOKUP(B3,Coordinaten!$A$2:$L$95,4,0) -> Nabij kruispunt: N26 / A2 | F9: =IF(F8=0,"-",F8/$L$8) -> 0.9772727273 | G9: =IF(G8=0,"-",G8/$L$8) -> - | H9: - | I9: 0.02272727273 | J9: - | K9: - | L9: 1 | Q9: =_xlfn.XLOOKUP($B$3,Bezetting_1!$A$2:$A$90,Bezetting_1!Q$2:Q$90,,0) -> 0 | S9: =D10 -> 2023-10-10 | T9: =E10 -> 19:00 - 02:00u | U9: =IF(F10=0,NA(),F10/$L10) -> 0.9791666667 | V9: =IF(G10=0,NA(),G10/$L10) ->  | X9: 0.02083333333
D10: =_xlfn.XLOOKUP($B$3,Bezetting_2!$A$2:$A$90,Bezetting_2!C$2:C$90,,0) -> 2023-10-10 | E10: =_xlfn.XLOOKUP($B$3,Bezetting_2!$A$2:$A$90,Bezetting_2!D$2:D$90,,0) -> 19:00 - 02:00u | F10: =_xlfn.XLOOKUP($B$3,Bezetting_2!$A$2:$A$90,Bezetting_2!E$2:E$90,,0) -> 47 | G10: =_xlfn.XLOOKUP($B$3,Bezetting_2!$A$2:$A$90,Bezetting_2!F$2:F$90,,0) -> 0 | H10: =_xlfn.XLOOKUP($B$3,Bezetting_2!$A$2:$A$90,Bezetting_2!G$2:G$90,,0) -> 0 | I10: =_xlfn.XLOOKUP($B$3,Bezetting_2!$A$2:$A$90,Bezetting_2!H$2:H$90,,0) -> 1 | J10: =_xlfn.XLOOKUP($B$3,Bezetting_2!$A$2:$A$90,Bezetting_2!I$2:I$90,,0) -> 0 | K10: =_xlfn.XLOOKUP($B$3,Bezetting_2!$A$2:$A$90,Bezetting_2!J$2:J$90,,0) -> 0 | L10: =_xlfn.XLOOKUP($B$3,Bezetting_2!$A$2:$A$90,Bezetting_2!K$2:K$90,,0) -> 48 | M10: =_xlfn.XLOOKUP($B$3,Bezetting_2!$A$2:$A$90,Bezetting_2!L$2:L$90,,0) -> 0 | N10: =_xlfn.XLOOKUP($B$3,Bezetting_2!$A$2:$A$90,Bezetting_2!M$2:M$90,,0) -> 0 | O10: =_xlfn.XLOOKUP($B$3,Bezetting_2!$A$2:$A$90,Bezetting_2!N$2:N$90,,0) -> 9 | P10: =_xlfn.XLOOKUP($B$3,Bezetting_2!$A$2:$A$90,Bezetting_2!O$2:O$90,,0) -> 0 | Q10: =_xlfn.XLOOKUP($B$3,Bezetting_2!$A$2:$A$90,Bezetting_2!P$2:P$90,,0) -> Overig: aanhanger
B11: Meting | F11: =IF(F10=0,"-",F10/$L$10) -> 0.9791666667 | G11: =IF(G10=0,"-",G10/$L$10) -> - | H11: - | I11: 0.02083333333 | J11: - | K11: - | L11: 1 | Q11: =_xlfn.XLOOKUP($B$3,Bezetting_2!$A$2:$A$90,Bezetting_2!Q$2:Q$90,,0) -> Fout: 2 fietsen
B12: ="Meetperiode: "&TEXT(VLOOKUP(B3,Coordinaten!$A:$G,7,0),"dddd dd mmmm jjjj") -> Meetperiode: di 10 & do 12 oktober 2023
B13: Methodiek: Parkeerdrukmeting met waarnemers
B14: In opdracht van: Vlaamse overheid
B15: Uitgevoerd door: Dufec
D16: VERDELING NAAR CATEGORIE
B17: Locatie
B18: =IF(B4="","",HYPERLINK("http://www.googlemaps.com/?q="&B4,"Lat/Long: "&B4)) -> Lat/Long: 50.893869, 4.689409
P20: Legenda
Q21: Personenwagen
Q22: Vracht
Q23: Motor
Q24: Obstakel / overig
Q25: Fout personenwagen
Q26: Fout Vracht
B39: Toelichting
B40: Pers = personenwagens op daarvoor bestemde
B41: openbare plaatsen
B42: Vracht = vrachtwagens op daarvoor bestemde
B43: parkeerplaatsen (middel- en zwaar vrachtverkeer)
B44: Motor = geparkeerde motoren op openbare plaatsen
B45: Obstakel / overig = obstakels of overige voertuigen
B46: geparkeerd op openbare plaatsen
B47: Fout pers = personenwagens die fout geparkeerd staan
B48: Fout vracht = vrachtwagens die fout geparkeerd staan
B49: E-wagen = geparkeerde elektrisch voertuig bij een
B50: elektrisch oplaadpunt
B51: Invalide = personenwagens en motoren op voor
B52: invalide personen bestemde parkeerplaats
B53: Gestalde fietsen = alle gestalde fietsen op de
B54: daarvoor bestemde parkeerplaatsen

Sheet 5.Bekkevoort
B2: PARKEERONDERZOEK | D2: CARPOOLPARKINGS EN P+R PARKINGS
B3: 5 | D3: =B8 & " - "& TEXT(VLOOKUP(B3,Coordinaten!$A$2:$G$95,7,0),"dddd dd mmmm jjjj") -> Carpool parking Bekkevoort, Bekkevoort - di 10 & do 12 oktober 2023
B4: =VLOOKUP(B3,Coordinaten!$A$2:$G$95,6,0) -> 50.952219, 4.998683
D5: BEZETTING | Q5: OPMERKINGEN
B7: Onderzoeksgebied | D7: Datum | E7: Geregistreerd tussen | F7: Pers | G7: Vracht | H7: Motor | I7: Obstakel / overig | J7: Fout pers | K7: Fout Vracht | L7: Totaal | M7: E-wagen plaats | N7: Invalidenplaats | O7: Gestalde fietsen | U7: =F7 -> Pers | V7: Vracht | W7: Motor | X7: Obstakel / overig | Y7: Fout pers | Z7: Fout Vracht
B8: =VLOOKUP(B3,Coordinaten!$A$2:$G$95,3,0)&", "&VLOOKUP(B3,Coordinaten!$A$2:$G$95,5,0) -> Carpool parking Bekkevoort, Bekkevoort | D8: =_xlfn.XLOOKUP($B$3,Bezetting_1!$A$2:$A$90,Bezetting_1!C$2:C$90,,0) -> 2023-10-12 | E8: =_xlfn.XLOOKUP($B$3,Bezetting_1!$A$2:$A$90,Bezetting_1!D$2:D$90,,0) -> 09:00 - 16:00u | F8: =_xlfn.XLOOKUP($B$3,Bezetting_1!$A$2:$A$90,Bezetting_1!E$2:E$90,,0) -> 52 | G8: =_xlfn.XLOOKUP($B$3,Bezetting_1!$A$2:$A$90,Bezetting_1!F$2:F$90,,0) -> 0 | H8: =_xlfn.XLOOKUP($B$3,Bezetting_1!$A$2:$A$90,Bezetting_1!G$2:G$90,,0) -> 1 | I8: =_xlfn.XLOOKUP($B$3,Bezetting_1!$A$2:$A$90,Bezetting_1!H$2:H$90,,0) -> 0 | J8: =_xlfn.XLOOKUP($B$3,Bezetting_1!$A$2:$A$90,Bezetting_1!I$2:I$90,,0) -> 0 | K8: =_xlfn.XLOOKUP($B$3,Bezetting_1!$A$2:$A$90,Bezetting_1!J$2:J$90,,0) -> 0 | L8: =_xlfn.XLOOKUP($B$3,Bezetting_1!$A$2:$A$90,Bezetting_1!K$2:K$90,,0) -> 53 | M8: =_xlfn.XLOOKUP($B$3,Bezetting_1!$A$2:$A$90,Bezetting_1!L$2:L$90,,0) -> 0 | N8: =_xlfn.XLOOKUP($B$3,Bezetting_1!$A$2:$A$90,Bezetting_1!M$2:M$90,,0) -> 0 | O8: =_xlfn.XLOOKUP($B$3,Bezetting_1!$A$2:$A$90,Bezetting_1!N$2:N$90,,0) -> 0 | Q8: =_xlfn.XLOOKUP($B$3,Bezetting_1!$A$2:$A$90,Bezetting_1!P$2:P$90,,0) -> 0 | S8: =D8 -> 2023-10-12 | T8: =E8 -> 09:00 - 16:00u | U8: =IF(F8=0,NA(),F8/$L8) -> 0.9811320755 | V8: =IF(G8=0,NA(),G8/$L8) ->  | W8: =IF(H8=0,NA(),H8/$L8) -> 0.01886792453
B9: ="Nabij kruispunt: "&VLOOKUP(B3,Coordinaten!$A$2:$L$95,4,0) -> Nabij kruispunt: N2 / A2 | F9: =IF(F8=0,"-",F8/$L$8) -> 0.9811320755 | G9: =IF(G8=0,"-",G8/$L$8) -> - | H9: 0.01886792453 | I9: - | J9: - | K9: - | L9: 1 | Q9: =_xlfn.XLOOKUP($B$3,Bezetting_1!$A$2:$A$90,Bezetting_1!Q$2:Q$90,,0) -> 0 | S9: =D10 -> 2023-10-10 | T9: =E10 -> 19:00 - 02:00u | U9: =IF(F10=0,NA(),F10/$L10) -> 1 | V9: =IF(G10=0,NA(),G10/$L10) -> 
D10: =_xlfn.XLOOKUP($B$3,Bezetting_2!$A$2:$A$90,Bezetting_2!C$2:C$90,,0) -> 2023-10-10 | E10: =_xlfn.XLOOKUP($B$3,Bezetting_2!$A$2:$A$90,Bezetting_2!D$2:D$90,,0) -> 19:00 - 02:00u | F10: =_xlfn.XLOOKUP($B$3,Bezetting_2!$A$2:$A$90,Bezetting_2!E$2:E$90,,0) -> 19 | G10: =_xlfn.XLOOKUP($B$3,Bezetting_2!$A$2:$A$90,Bezetting_2!F$2:F$90,,0) -> 0 | H10: =_xlfn.XLOOKUP($B$3,Bezetting_2!$A$2:$A$90,Bezetting_2!G$2:G$90,,0) -> 0 | I10: =_xlfn.XLOOKUP($B$3,Bezetting_2!$A$2:$A$90,Bezetting_2!H$2:H$90,,0) -> 0 | J10: =_xlfn.XLOOKUP($B$3,Bezetting_2!$A$2:$A$90,Bezetting_2!I$2:I$90,,0) -> 0 | K10: =_xlfn.XLOOKUP($B$3,Bezetting_2!$A$2:$A$90,Bezetting_2!J$2:J$90,,0) -> 0 | L10: =_xlfn.XLOOKUP($B$3,Bezetting_2!$A$2:$A$90,Bezetting_2!K$2:K$90,,0) -> 19 | M10: =_xlfn.XLOOKUP($B$3,Bezetting_2!$A$2:$A$90,Bezetting_2!L$2:L$90,,0) -> 0 | N10: =_xlfn.XLOOKUP($B$3,Bezetting_2!$A$2:$A$90,Bezetting_2!M$2:M$90,,0) -> 0 | O10: =_xlfn.XLOOKUP($B$3,Bezetting_2!$A$2:$A$90,Bezetting_2!N$2:N$90,,0) -> 0 | P10: =_xlfn.XLOOKUP($B$3,Bezetting_2!$A$2:$A$90,Bezetting_2!O$2:O$90,,0) -> 0 | Q10: =_xlfn.XLOOKUP($B$3,Bezetting_2!$A$2:$A$90,Bezetting_2!P$2:P$90,,0) -> Oplegger langs de weg
B11: Meting | F11: =IF(F10=0,"-",F10/$L$10) -> 1 | G11: =IF(G10=0,"-",G10/$L$10) -> - | H11: - | I11: - | J11: - | K11: - | L11: 1 | Q11: =_xlfn.XLOOKUP($B$3,Bezetting_2!$A$2:$A$90,Bezetting_2!Q$2:Q$90,,0) -> 0
B12: ="Meetperiode: "&TEXT(VLOOKUP(B3,Coordinaten!$A:$G,7,0),"dddd dd mmmm jjjj") -> Meetperiode: di 10 & do 12 oktober 2023
B13: Methodiek: Parkeerdrukmeting met waarnemers
B14: In opdracht van: Vlaamse overheid
B15: Uitgevoerd door: Dufec
D16: VERDELING NAAR CATEGORIE
B17: Locatie
B18: =IF(B4="","",HYPERLINK("http://www.googlemaps.com/?q="&B4,"Lat/Long: "&B4)) -> Lat/Long: 50.952219, 4.998683
P20: Legenda
Q21: Personenwagen
Q22: Vracht
Q23: Motor
Q24: Obstakel / overig
Q25: Fout personenwagen
Q26: Fout Vracht
B39: Toelichting
B40: Pers = personenwagens op daarvoor bestemde
B41: openbare plaatsen
B42: Vracht = vrachtwagens op daarvoor bestemde
B43: parkeerplaatsen (middel- en zwaar vrachtverkeer)
B44: Motor = geparkeerde motoren op openbare plaatsen
B45: Obstakel / overig = obstakels of overige voertuigen
B46: geparkeerd op openbare plaatsen
B47: Fout pers = personenwagens die fout geparkeerd staan
B48: Fout vracht = vrachtwagens die fout geparkeerd staan
B49: E-wagen = geparkeerde elektrisch voertuig bij een
B50: elektrisch oplaadpunt
B51: Invalide = personenwagens en motoren op voor
B52: invalide personen bestemde parkeerplaats
B53: Gestalde fietsen = alle gestalde fietsen op de
B54: daarvoor bestemde parkeerplaatsen

Sheet 6.Overijse
B2: PARKEERONDERZOEK | D2: CARPOOLPARKINGS EN P+R PARKINGS
B3: 6 | D3: =B8 & " - "& TEXT(VLOOKUP(B3,Coordinaten!$A$2:$G$95,7,0),"dddd dd mmmm jjjj") -> Carpool parking Overijse, Overijse - di 10 & do 12 oktober 2023
B4: =VLOOKUP(B3,Coordinaten!$A$2:$G$95,6,0) -> 50.755140, 4.526412
D5: BEZETTING | Q5: OPMERKINGEN
B7: Onderzoeksgebied | D7: Datum | E7: Geregistreerd tussen | F7: Pers | G7: Vracht | H7: Motor | I7: Obstakel / overig | J7: Fout pers | K7: Fout Vracht | L7: Totaal | M7: E-wagen plaats | N7: Invalidenplaats | O7: Gestalde fietsen | U7: =F7 -> Pers | V7: Vracht | W7: Motor | X7: Obstakel / overig | Y7: Fout pers | Z7: Fout Vracht
B8: =VLOOKUP(B3,Coordinaten!$A$2:$G$95,3,0)&", "&VLOOKUP(B3,Coordinaten!$A$2:$G$95,5,0) -> Carpool parking Overijse, Overijse | D8: =_xlfn.XLOOKUP($B$3,Bezetting_1!$A$2:$A$90,Bezetting_1!C$2:C$90,,0) -> 2023-10-12 | E8: =_xlfn.XLOOKUP($B$3,Bezetting_1!$A$2:$A$90,Bezetting_1!D$2:D$90,,0) -> 09:00 - 16:00u | F8: =_xlfn.XLOOKUP($B$3,Bezetting_1!$A$2:$A$90,Bezetting_1!E$2:E$90,,0) -> 21 | G8: =_xlfn.XLOOKUP($B$3,Bezetting_1!$A$2:$A$90,Bezetting_1!F$2:F$90,,0) -> 0 | H8: =_xlfn.XLOOKUP($B$3,Bezetting_1!$A$2:$A$90,Bezetting_1!G$2:G$90,,0) -> 0 | I8: =_xlfn.XLOOKUP($B$3,Bezetting_1!$A$2:$A$90,Bezetting_1!H$2:H$90,,0) -> 20 | J8: =_xlfn.XLOOKUP($B$3,Bezetting_1!$A$2:$A$90,Bezetting_1!I$2:I$90,,0) -> 0 | K8: =_xlfn.XLOOKUP($B$3,Bezetting_1!$A$2:$A$90,Bezetting_1!J$2:J$90,,0) -> 0 | L8: =_xlfn.XLOOKUP($B$3,Bezetting_1!$A$2:$A$90,Bezetting_1!K$2:K$90,,0) -> 41 | M8: =_xlfn.XLOOKUP($B$3,Bezetting_1!$A$2:$A$90,Bezetting_1!L$2:L$90,,0) -> 0 | N8: =_xlfn.XLOOKUP($B$3,Bezetting_1!$A$2:$A$90,Bezetting_1!M$2:M$90,,0) -> 0 | O8: =_xlfn.XLOOKUP($B$3,Bezetting_1!$A$2:$A$90,Bezetting_1!N$2:N$90,,0) -> 0 | Q8: =_xlfn.XLOOKUP($B$3,Bezetting_1!$A$2:$A$90,Bezetting_1!P$2:P$90,,0) -> Overig: werkzaamheden | S8: =D8 -> 2023-10-12 | T8: =E8 -> 09:00 - 16:00u | U8: =IF(F8=0,NA(),F8/$L8) -> 0.512195122 | V8: =IF(G8=0,NA(),G8/$L8) ->  | W8: =IF(H8=0,NA(),H8/$L8) ->  | X8: 0.487804878
B9: ="Nabij kruispunt: "&VLOOKUP(B3,Coordinaten!$A$2:$L$95,4,0) -> Nabij kruispunt: Kerkeweg / N253 | F9: =IF(F8=0,"-",F8/$L$8) -> 0.512195122 | G9: =IF(G8=0,"-",G8/$L$8) -> - | H9: - | I9: 0.487804878 | J9: - | K9: - | L9: 1 | Q9: =_xlfn.XLOOKUP($B$3,Bezetting_1!$A$2:$A$90,Bezetting_1!Q$2:Q$90,,0) -> 0 | S9: =D10 -> 2023-10-12 | T9: =E10 -> 19:00 - 02:00u | U9: =IF(F10=0,NA(),F10/$L10) -> 0.3636363636 | V9: =IF(G10=0,NA(),G10/$L10) ->  | X9: 0.6060606061 | Y9: 0.0303030303
D10: =_xlfn.XLOOKUP($B$3,Bezetting_2!$A$2:$A$90,Bezetting_2!C$2:C$90,,0) -> 2023-10-12 | E10: =_xlfn.XLOOKUP($B$3,Bezetting_2!$A$2:$A$90,Bezetting_2!D$2:D$90,,0) -> 19:00 - 02:00u | F10: =_xlfn.XLOOKUP($B$3,Bezetting_2!$A$2:$A$90,Bezetting_2!E$2:E$90,,0) -> 12 | G10: =_xlfn.XLOOKUP($B$3,Bezetting_2!$A$2:$A$90,Bezetting_2!F$2:F$90,,0) -> 0 | H10: =_xlfn.XLOOKUP($B$3,Bezetting_2!$A$2:$A$90,Bezetting_2!G$2:G$90,,0) -> 0 | I10: =_xlfn.XLOOKUP($B$3,Bezetting_2!$A$2:$A$90,Bezetting_2!H$2:H$90,,0) -> 20 | J10: =_xlfn.XLOOKUP($B$3,Bezetting_2!$A$2:$A$90,Bezetting_2!I$2:I$90,,0) -> 1 | K10: =_xlfn.XLOOKUP($B$3,Bezetting_2!$A$2:$A$90,Bezetting_2!J$2:J$90,,0) -> 0 | L10: =_xlfn.XLOOKUP($B$3,Bezetting_2!$A$2:$A$90,Bezetting_2!K$2:K$90,,0) -> 33 | M10: =_xlfn.XLOOKUP($B$3,Bezetting_2!$A$2:$A$90,Bezetting_2!L$2:L$90,,0) -> 0 | N10: =_xlfn.XLOOKUP($B$3,Bezetting_2!$A$2:$A$90,Bezetting_2!M$2:M$90,,0) -> 0 | O10: =_xlfn.XLOOKUP($B$3,Bezetting_2!$A$2:$A$90,Bezetting_2!N$2:N$90,,0) -> 0 | P10: =_xlfn.XLOOKUP($B$3,Bezetting_2!$A$2:$A$90,Bezetting_2!O$2:O$90,,0) -> 0 | Q10: =_xlfn.XLOOKUP($B$3,Bezetting_2!$A$2:$A$90,Bezetting_2!P$2:P$90,,0) -> Overig: werkzaamheden
B11: Meting | F11: =IF(F10=0,"-",F10/$L$10) -> 0.3636363636 | G11: =IF(G10=0,"-",G10/$L$10) -> - | H11: - | I11: 0.6060606061 | J11: 0.0303030303 | K11: - | L11: 1 | Q11: =_xlfn.XLOOKUP($B$3,Bezetting_2!$A$2:$A$90,Bezetting_2!Q$2:Q$90,,0) -> 0
B12: ="Meetperiode: "&TEXT(VLOOKUP(B3,Coordinaten!$A:$G,7,0),"dddd dd mmmm jjjj") -> Meetperiode: di 10 & do 12 oktober 2023
B13: Methodiek: Parkeerdrukmeting met waarnemers
B14: In opdracht van: Vlaamse overheid
B15: Uitgevoerd door: Dufec
D16: VERDELING NAAR CATEGORIE
B17: Locatie
B18: =IF(B4="","",HYPERLINK("http://www.googlemaps.com/?q="&B4,"Lat/Long: "&B4)) -> Lat/Long: 50.755140, 4.526412
P20: Legenda
Q21: Personenwagen
Q22: Vracht
Q23: Motor
Q24: Obstakel / overig
Q25: Fout personenwagen
Q26: Fout Vracht
B39: Toelichting
B40: Pers = personenwagens op daarvoor bestemde
B41: openbare plaatsen
B42: Vracht = vrachtwagens op daarvoor bestemde
B43: parkeerplaatsen (middel- en zwaar vrachtverkeer)
B44: Motor = geparkeerde motoren op openbare plaatsen
B45: Obstakel / overig = obstakels of overige voertuigen
B46: geparkeerd op openbare plaatsen
B47: Fout pers = personenwagens die fout geparkeerd staan
B48: Fout vracht = vrachtwagens die fout geparkeerd staan
B49: E-wagen = geparkeerde elektrisch voertuig bij een
B50: elektrisch oplaadpunt
B51: Invalide = personenwagens en motoren op voor
B52: invalide personen bestemde parkeerplaats
B53: Gestalde fietsen = alle gestalde fietsen op de
B54: daarvoor bestemde parkeerplaatsen

Sheet 7.St. Michiels
B2: PARKEERONDERZOEK | D2: CARPOOLPARKINGS EN P+R PARKINGS
B3: 7 | D3: =B8 & " - "& TEXT(VLOOKUP(B3,Coordinaten!$A$2:$G$95,7,0),"dddd dd mmmm jjjj") -> Carpool parking St. Michiels, Brugge - di 10 & do 12 oktober 2023
B4: =VLOOKUP(B3,Coordinaten!$A$2:$G$95,6,0) -> 51.194190, 3.197624
D5: BEZETTING | Q5: OPMERKINGEN
B7: Onderzoeksgebied | D7: Datum | E7: Geregistreerd tussen | F7: Pers | G7: Vracht | H7: Motor | I7: Obstakel / overig | J7: Fout pers | K7: Fout Vracht | L7: Totaal | M7: E-wagen plaats | N7: Invalidenplaats | O7: Gestalde fietsen | U7: =F7 -> Pers | V7: Vracht | W7: Motor | X7: Obstakel / overig | Y7: Fout pers | Z7: Fout Vracht
B8: =VLOOKUP(B3,Coordinaten!$A$2:$G$95,3,0)&", "&VLOOKUP(B3,Coordinaten!$A$2:$G$95,5,0) -> Carpool parking St. Michiels, Brugge | D8: =_xlfn.XLOOKUP($B$3,Bezetting_1!$A$2:$A$90,Bezetting_1!C$2:C$90,,0) -> 2023-10-10 | E8: =_xlfn.XLOOKUP($B$3,Bezetting_1!$A$2:$A$90,Bezetting_1!D$2:D$90,,0) -> 09:00 - 16:00u | F8: =_xlfn.XLOOKUP($B$3,Bezetting_1!$A$2:$A$90,Bezetting_1!E$2:E$90,,0) -> 58 | G8: =_xlfn.XLOOKUP($B$3,Bezetting_1!$A$2:$A$90,Bezetting_1!F$2:F$90,,0) -> 0 | H8: =_xlfn.XLOOKUP($B$3,Bezetting_1!$A$2:$A$90,Bezetting_1!G$2:G$90,,0) -> 0 | I8: =_xlfn.XLOOKUP($B$3,Bezetting_1!$A$2:$A$90,Bezetting_1!H$2:H$90,,0) -> 0 | J8: =_xlfn.XLOOKUP($B$3,Bezetting_1!$A$2:$A$90,Bezetting_1!I$2:I$90,,0) -> 0 | K8: =_xlfn.XLOOKUP($B$3,Bezetting_1!$A$2:$A$90,Bezetting_1!J$2:J$90,,0) -> 0 | L8: =_xlfn.XLOOKUP($B$3,Bezetting_1!$A$2:$A$90,Bezetting_1!K$2:K$90,,0) -> 58 | M8: =_xlfn.XLOOKUP($B$3,Bezetting_1!$A$2:$A$90,Bezetting_1!L$2:L$90,,0) -> 1 | N8: =_xlfn.XLOOKUP($B$3,Bezetting_1!$A$2:$A$90,Bezetting_1!M$2:M$90,,0) -> 0 | O8: =_xlfn.XLOOKUP($B$3,Bezetting_1!$A$2:$A$90,Bezetting_1!N$2:N$90,,0) -> 2 | Q8: =_xlfn.XLOOKUP($B$3,Bezetting_1!$A$2:$A$90,Bezetting_1!P$2:P$90,,0) -> 0 | S8: =D8 -> 2023-10-10 | T8: =E8 -> 09:00 - 16:00u | U8: =IF(F8=0,NA(),F8/$L8) -> 1 | V8: =IF(G8=0,NA(),G8/$L8) ->  | W8: =IF(H8=0,NA(),H8/$L8) -> 
B9: ="Nabij kruispunt: "&VLOOKUP(B3,Coordinaten!$A$2:$L$95,4,0) -> Nabij kruispunt: N31 / N32 | F9: =IF(F8=0,"-",F8/$L$8) -> 1 | G9: =IF(G8=0,"-",G8/$L$8) -> - | H9: - | I9: - | J9: - | K9: - | L9: 1 | Q9: =_xlfn.XLOOKUP($B$3,Bezetting_1!$A$2:$A$90,Bezetting_1!Q$2:Q$90,,0) -> 0 | S9: =D10 -> 2023-10-10 | T9: =E10 -> 19:00 - 02:00u | U9: =IF(F10=0,NA(),F10/$L10) -> 1 | V9: =IF(G10=0,NA(),G10/$L10) -> 
D10: =_xlfn.XLOOKUP($B$3,Bezetting_2!$A$2:$A$90,Bezetting_2!C$2:C$90,,0) -> 2023-10-10 | E10: =_xlfn.XLOOKUP($B$3,Bezetting_2!$A$2:$A$90,Bezetting_2!D$2:D$90,,0) -> 19:00 - 02:00u | F10: =_xlfn.XLOOKUP($B$3,Bezetting_2!$A$2:$A$90,Bezetting_2!E$2:E$90,,0) -> 15 | G10: =_xlfn.XLOOKUP($B$3,Bezetting_2!$A$2:$A$90,Bezetting_2!F$2:F$90,,0) -> 0 | H10: =_xlfn.XLOOKUP($B$3,Bezetting_2!$A$2:$A$90,Bezetting_2!G$2:G$90,,0) -> 0 | I10: =_xlfn.XLOOKUP($B$3,Bezetting_2!$A$2:$A$90,Bezetting_2!H$2:H$90,,0) -> 0 | J10: =_xlfn.XLOOKUP($B$3,Bezetting_2!$A$2:$A$90,Bezetting_2!I$2:I$90,,0) -> 0 | K10: =_xlfn.XLOOKUP($B$3,Bezetting_2!$A$2:$A$90,Bezetting_2!J$2:J$90,,0) -> 0 | L10: =_xlfn.XLOOKUP($B$3,Bezetting_2!$A$2:$A$90,Bezetting_2!K$2:K$90,,0) -> 15 | M10: =_xlfn.XLOOKUP($B$3,Bezetting_2!$A$2:$A$90,Bezetting_2!L$2:L$90,,0) -> 0 | N10: =_xlfn.XLOOKUP($B$3,Bezetting_2!$A$2:$A$90,Bezetting_2!M$2:M$90,,0) -> 0 | O10: =_xlfn.XLOOKUP($B$3,Bezetting_2!$A$2:$A$90,Bezetting_2!N$2:N$90,,0) -> 5 | P10: =_xlfn.XLOOKUP($B$3,Bezetting_2!$A$2:$A$90,Bezetting_2!O$2:O$90,,0) -> 0 | Q10: =_xlfn.XLOOKUP($B$3,Bezetting_2!$A$2:$A$90,Bezetting_2!P$2:P$90,,0) -> 0
B11: Meting | F11: =IF(F10=0,"-",F10/$L$10) -> 1 | G11: =IF(G10=0,"-",G10/$L$10) -> - | H11: - | I11: - | J11: - | K11: - | L11: 1 | Q11: =_xlfn.XLOOKUP($B$3,Bezetting_2!$A$2:$A$90,Bezetting_2!Q$2:Q$90,,0) -> 0
B12: ="Meetperiode: "&TEXT(VLOOKUP(B3,Coordinaten!$A:$G,7,0),"dddd dd mmmm jjjj") -> Meetperiode: di 10 & do 12 oktober 2023
B13: Methodiek: Parkeerdrukmeting met waarnemers
B14: In opdracht van: Vlaamse overheid
B15: Uitgevoerd door: Dufec
D16: VERDELING NAAR CATEGORIE
B17: Locatie
B18: =IF(B4="","",HYPERLINK("http://www.googlemaps.com/?q="&B4,"Lat/Long: "&B4)) -> Lat/Long: 51.194190, 3.197624
P20: Legenda
Q21: Personenwagen
Q22: Vracht
Q23: Motor
Q24: Obstakel / overig
Q25: Fout personenwagen
Q26: Fout Vracht
B39: Toelichting
B40: Pers = personenwagens op daarvoor bestemde
B41: openbare plaatsen
B42: Vracht = vrachtwagens op daarvoor bestemde
B43: parkeerplaatsen (middel- en zwaar vrachtverkeer)
B44: Motor = geparkeerde motoren op openbare plaatsen
B45: Obstakel / overig = obstakels of overige voertuigen
B46: geparkeerd op openbare plaatsen
B47: Fout pers = personenwagens die fout geparkeerd staan
B48: Fout vracht = vrachtwagens die fout geparkeerd staan
B49: E-wagen = geparkeerde elektrisch voertuig bij een
B50: elektrisch oplaadpunt
B51: Invalide = personenwagens en motoren op voor
B52: invalide personen bestemde parkeerplaats
B53: Gestalde fietsen = alle gestalde fietsen op de
B54: daarvoor bestemde parkeerplaatsen

Sheet 9.Torhout
B2: PARKEERONDERZOEK | D2: CARPOOLPARKINGS EN P+R PARKINGS
B3: 9 | D3: =B8 & " - "& TEXT(VLOOKUP(B3,Coordinaten!$A$2:$G$95,7,0),"dddd dd mmmm jjjj") -> Carpool parking Torhout, Torhout - di 10 & do 12 oktober 2023
B4: =VLOOKUP(B3,Coordinaten!$A$2:$G$95,6,0) -> 51.077896, 3.118743
D5: BEZETTING | Q5: OPMERKINGEN
B7: Onderzoeksgebied | D7: Datum | E7: Geregistreerd tussen | F7: Pers | G7: Vracht | H7: Motor | I7: Obstakel / overig | J7: Fout pers | K7: Fout Vracht | L7: Totaal | M7: E-wagen plaats | N7: Invalidenplaats | O7: Gestalde fietsen | U7: =F7 -> Pers | V7: Vracht | W7: Motor | X7: Obstakel / overig | Y7: Fout pers | Z7: Fout Vracht
B8: =VLOOKUP(B3,Coordinaten!$A$2:$G$95,3,0)&", "&VLOOKUP(B3,Coordinaten!$A$2:$G$95,5,0) -> Carpool parking Torhout, Torhout | D8: =_xlfn.XLOOKUP($B$3,Bezetting_1!$A$2:$A$90,Bezetting_1!C$2:C$90,,0) -> 2023-10-12 | E8: =_xlfn.XLOOKUP($B$3,Bezetting_1!$A$2:$A$90,Bezetting_1!D$2:D$90,,0) -> 09:00 - 16:00u | F8: =_xlfn.XLOOKUP($B$3,Bezetting_1!$A$2:$A$90,Bezetting_1!E$2:E$90,,0) -> 19 | G8: =_xlfn.XLOOKUP($B$3,Bezetting_1!$A$2:$A$90,Bezetting_1!F$2:F$90,,0) -> 0 | H8: =_xlfn.XLOOKUP($B$3,Bezetting_1!$A$2:$A$90,Bezetting_1!G$2:G$90,,0) -> 0 | I8: =_xlfn.XLOOKUP($B$3,Bezetting_1!$A$2:$A$90,Bezetting_1!H$2:H$90,,0) -> 0 | J8: =_xlfn.XLOOKUP($B$3,Bezetting_1!$A$2:$A$90,Bezetting_1!I$2:I$90,,0) -> 0 | K8: =_xlfn.XLOOKUP($B$3,Bezetting_1!$A$2:$A$90,Bezetting_1!J$2:J$90,,0) -> 0 | L8: =_xlfn.XLOOKUP($B$3,Bezetting_1!$A$2:$A$90,Bezetting_1!K$2:K$90,,0) -> 19 | M8: =_xlfn.XLOOKUP($B$3,Bezetting_1!$A$2:$A$90,Bezetting_1!L$2:L$90,,0) -> 1 | N8: =_xlfn.XLOOKUP($B$3,Bezetting_1!$A$2:$A$90,Bezetting_1!M$2:M$90,,0) -> 0 | O8: =_xlfn.XLOOKUP($B$3,Bezetting_1!$A$2:$A$90,Bezetting_1!N$2:N$90,,0) -> 1 | Q8: =_xlfn.XLOOKUP($B$3,Bezetting_1!$A$2:$A$90,Bezetting_1!P$2:P$90,,0) -> 0 | S8: =D8 -> 2023-10-12 | T8: =E8 -> 09:00 - 16:00u | U8: =IF(F8=0,NA(),F8/$L8) -> 1 | V8: =IF(G8=0,NA(),G8/$L8) ->  | W8: =IF(H8=0,NA(),H8/$L8) -> 
B9: ="Nabij kruispunt: "&VLOOKUP(B3,Coordinaten!$A$2:$L$95,4,0) -> Nabij kruispunt: R34 / Keibergstraat | F9: =IF(F8=0,"-",F8/$L$8) -> 1 | G9: =IF(G8=0,"-",G8/$L$8) -> - | H9: - | I9: - | J9: - | K9: - | L9: 1 | Q9: =_xlfn.XLOOKUP($B$3,Bezetting_1!$A$2:$A$90,Bezetting_1!Q$2:Q$90,,0) -> 0 | S9: =D10 -> 2023-10-12 | T9: =E10 -> 19:00 - 02:00u | U9: =IF(F10=0,NA(),F10/$L10) -> 1 | V9: =IF(G10=0,NA(),G10/$L10) -> 
D10: =_xlfn.XLOOKUP($B$3,Bezetting_2!$A$2:$A$90,Bezetting_2!C$2:C$90,,0) -> 2023-10-12 | E10: =_xlfn.XLOOKUP($B$3,Bezetting_2!$A$2:$A$90,Bezetting_2!D$2:D$90,,0) -> 19:00 - 02:00u | F10: =_xlfn.XLOOKUP($B$3,Bezetting_2!$A$2:$A$90,Bezetting_2!E$2:E$90,,0) -> 8 | G10: =_xlfn.XLOOKUP($B$3,Bezetting_2!$A$2:$A$90,Bezetting_2!F$2:F$90,,0) -> 0 | H10: =_xlfn.XLOOKUP($B$3,Bezetting_2!$A$2:$A$90,Bezetting_2!G$2:G$90,,0) -> 0 | I10: =_xlfn.XLOOKUP($B$3,Bezetting_2!$A$2:$A$90,Bezetting_2!H$2:H$90,,0) -> 0 | J10: =_xlfn.XLOOKUP($B$3,Bezetting_2!$A$2:$A$90,Bezetting_2!I$2:I$90,,0) -> 0 | K10: =_xlfn.XLOOKUP($B$3,Bezetting_2!$A$2:$A$90,Bezetting_2!J$2:J$90,,0) -> 0 | L10: =_xlfn.XLOOKUP($B$3,Bezetting_2!$A$2:$A$90,Bezetting_2!K$2:K$90,,0) -> 8 | M10: =_xlfn.XLOOKUP($B$3,Bezetting_2!$A$2:$A$90,Bezetting_2!L$2:L$90,,0) -> 0 | N10: =_xlfn.XLOOKUP($B$3,Bezetting_2!$A$2:$A$90,Bezetting_2!M$2:M$90,,0) -> 0 | O10: =_xlfn.XLOOKUP($B$3,Bezetting_2!$A$2:$A$90,Bezetting_2!N$2:N$90,,0) -> 0 | P10: =_xlfn.XLOOKUP($B$3,Bezetting_2!$A$2:$A$90,Bezetting_2!O$2:O$90,,0) -> 0 | Q10: =_xlfn.XLOOKUP($B$3,Bezetting_2!$A$2:$A$90,Bezetting_2!P$2:P$90,,0) -> 0
B11: Meting | F11: =IF(F10=0,"-",F10/$L$10) -> 1 | G11: =IF(G10=0,"-",G10/$L$10) -> - | H11: - | I11: - | J11: - | K11: - | L11: 1 | Q11: =_xlfn.XLOOKUP($B$3,Bezetting_2!$A$2:$A$90,Bezetting_2!Q$2:Q$90,,0) -> 0
B12: ="Meetperiode: "&TEXT(VLOOKUP(B3,Coordinaten!$A:$G,7,0),"dddd dd mmmm jjjj") -> Meetperiode: di 10 & do 12 oktober 2023
B13: Methodiek: Parkeerdrukmeting met waarnemers
B14: In opdracht van: Vlaamse overheid
B15: Uitgevoerd door: Dufec
D16: VERDELING NAAR CATEGORIE
B17: Locatie
B18: =IF(B4="","",HYPERLINK("http://www.googlemaps.com/?q="&B4,"Lat/Long: "&B4)) -> Lat/Long: 51.077896, 3.118743
P20: Legenda
Q21: Personenwagen
Q22: Vracht
Q23: Motor
Q24: Obstakel / overig
Q25: Fout personenwagen
Q26: Fout Vracht
B39: Toelichting
B40: Pers = personenwagens op daarvoor bestemde
B41: openbare plaatsen
B42: Vracht = vrachtwagens op daarvoor bestemde
B43: parkeerplaatsen (middel- en zwaar vrachtverkeer)
B44: Motor = geparkeerde motoren op openbare plaatsen
B45: Obstakel / overig = obstakels of overige voertuigen
B46: geparkeerd op openbare plaatsen
B47: Fout pers = personenwagens die fout geparkeerd staan
B48: Fout vracht = vrachtwagens die fout geparkeerd staan
B49: E-wagen = geparkeerde elektrisch voertuig bij een
B50: elektrisch oplaadpunt
B51: Invalide = personenwagens en motoren op voor
B52: invalide personen bestemde parkeerplaats
B53: Gestalde fietsen = alle gestalde fietsen op de
B54: daarvoor bestemde parkeerplaatsen

Sheet 10.Houthalen
B2: PARKEERONDERZOEK | D2: CARPOOLPARKINGS EN P+R PARKINGS
B3: 10 | D3: =B8 & " - "& TEXT(VLOOKUP(B3,Coordinaten!$A$2:$G$95,7,0),"dddd dd mmmm jjjj") -> Carpool parking Houthalen, Houthalen-Helchteren - di 10 & do 12 oktober 2023
B4: =VLOOKUP(B3,Coordinaten!$A$2:$G$95,6,0) -> 51.015552, 5.371400
D5: BEZETTING | Q5: OPMERKINGEN
B7: Onderzoeksgebied | D7: Datum | E7: Geregistreerd tussen | F7: Pers | G7: Vracht | H7: Motor | I7: Obstakel / overig | J7: Fout pers | K7: Fout Vracht | L7: Totaal | M7: E-wagen plaats | N7: Invalidenplaats | O7: Gestalde fietsen | U7: =F7 -> Pers | V7: Vracht | W7: Motor | X7: Obstakel / overig | Y7: Fout pers | Z7: Fout Vracht
B8: =VLOOKUP(B3,Coordinaten!$A$2:$G$95,3,0)&", "&VLOOKUP(B3,Coordinaten!$A$2:$G$95,5,0) -> Carpool parking Houthalen, Houthalen-Helchteren | D8: =_xlfn.XLOOKUP($B$3,Bezetting_1!$A$2:$A$90,Bezetting_1!C$2:C$90,,0) -> 2023-10-12 | E8: =_xlfn.XLOOKUP($B$3,Bezetting_1!$A$2:$A$90,Bezetting_1!D$2:D$90,,0) -> 09:00 - 16:00u | F8: =_xlfn.XLOOKUP($B$3,Bezetting_1!$A$2:$A$90,Bezetting_1!E$2:E$90,,0) -> 65 | G8: =_xlfn.XLOOKUP($B$3,Bezetting_1!$A$2:$A$90,Bezetting_1!F$2:F$90,,0) -> 0 | H8: =_xlfn.XLOOKUP($B$3,Bezetting_1!$A$2:$A$90,Bezetting_1!G$2:G$90,,0) -> 0 | I8: =_xlfn.XLOOKUP($B$3,Bezetting_1!$A$2:$A$90,Bezetting_1!H$2:H$90,,0) -> 0 | J8: =_xlfn.XLOOKUP($B$3,Bezetting_1!$A$2:$A$90,Bezetting_1!I$2:I$90,,0) -> 0 | K8: =_xlfn.XLOOKUP($B$3,Bezetting_1!$A$2:$A$90,Bezetting_1!J$2:J$90,,0) -> 0 | L8: =_xlfn.XLOOKUP($B$3,Bezetting_1!$A$2:$A$90,Bezetting_1!K$2:K$90,,0) -> 65 | M8: =_xlfn.XLOOKUP($B$3,Bezetting_1!$A$2:$A$90,Bezetting_1!L$2:L$90,,0) -> 0 | N8: =_xlfn.XLOOKUP($B$3,Bezetting_1!$A$2:$A$90,Bezetting_1!M$2:M$90,,0) -> 0 | O8: =_xlfn.XLOOKUP($B$3,Bezetting_1!$A$2:$A$90,Bezetting_1!N$2:N$90,,0) -> 2 | Q8: =_xlfn.XLOOKUP($B$3,Bezetting_1!$A$2:$A$90,Bezetting_1!P$2:P$90,,0) -> 0 | S8: =D8 -> 2023-10-12 | T8: =E8 -> 09:00 - 16:00u | U8: =IF(F8=0,NA(),F8/$L8) -> 1 | V8: =IF(G8=0,NA(),G8/$L8) ->  | W8: =IF(H8=0,NA(),H8/$L8) -> 
B9: ="Nabij kruispunt: "&VLOOKUP(B3,Coordinaten!$A$2:$L$95,4,0) -> Nabij kruispunt: N715 / A2 | F9: =IF(F8=0,"-",F8/$L$8) -> 1 | G9: =IF(G8=0,"-",G8/$L$8) -> - | H9: - | I9: - | J9: - | K9: - | L9: 1 | Q9: =_xlfn.XLOOKUP($B$3,Bezetting_1!$A$2:$A$90,Bezetting_1!Q$2:Q$90,,0) -> 0 | S9: =D10 -> 2023-10-10 | T9: =E10 -> 19:00 - 02:00u | U9: =IF(F10=0,NA(),F10/$L10) -> 1 | V9: =IF(G10=0,NA(),G10/$L10) -> 
D10: =_xlfn.XLOOKUP($B$3,Bezetting_2!$A$2:$A$90,Bezetting_2!C$2:C$90,,0) -> 2023-10-10 | E10: =_xlfn.XLOOKUP($B$3,Bezetting_2!$A$2:$A$90,Bezetting_2!D$2:D$90,,0) -> 19:00 - 02:00u | F10: =_xlfn.XLOOKUP($B$3,Bezetting_2!$A$2:$A$90,Bezetting_2!E$2:E$90,,0) -> 35 | G10: =_xlfn.XLOOKUP($B$3,Bezetting_2!$A$2:$A$90,Bezetting_2!F$2:F$90,,0) -> 0 | H10: =_xlfn.XLOOKUP($B$3,Bezetting_2!$A$2:$A$90,Bezetting_2!G$2:G$90,,0) -> 0 | I10: =_xlfn.XLOOKUP($B$3,Bezetting_2!$A$2:$A$90,Bezetting_2!H$2:H$90,,0) -> 0 | J10: =_xlfn.XLOOKUP($B$3,Bezetting_2!$A$2:$A$90,Bezetting_2!I$2:I$90,,0) -> 0 | K10: =_xlfn.XLOOKUP($B$3,Bezetting_2!$A$2:$A$90,Bezetting_2!J$2:J$90,,0) -> 0 | L10: =_xlfn.XLOOKUP($B$3,Bezetting_2!$A$2:$A$90,Bezetting_2!K$2:K$90,,0) -> 35 | M10: =_xlfn.XLOOKUP($B$3,Bezetting_2!$A$2:$A$90,Bezetting_2!L$2:L$90,,0) -> 0 | N10: =_xlfn.XLOOKUP($B$3,Bezetting_2!$A$2:$A$90,Bezetting_2!M$2:M$90,,0) -> 0 | O10: =_xlfn.XLOOKUP($B$3,Bezetting_2!$A$2:$A$90,Bezetting_2!N$2:N$90,,0) -> 1 | P10: =_xlfn.XLOOKUP($B$3,Bezetting_2!$A$2:$A$90,Bezetting_2!O$2:O$90,,0) -> 0 | Q10: =_xlfn.XLOOKUP($B$3,Bezetting_2!$A$2:$A$90,Bezetting_2!P$2:P$90,,0) -> 0
B11: Meting | F11: =IF(F10=0,"-",F10/$L$10) -> 1 | G11: =IF(G10=0,"-",G10/$L$10) -> - | H11: - | I11: - | J11: - | K11: - | L11: 1 | Q11: =_xlfn.XLOOKUP($B$3,Bezetting_2!$A$2:$A$90,Bezetting_2!Q$2:Q$90,,0) -> 0
B12: ="Meetperiode: "&TEXT(VLOOKUP(B3,Coordinaten!$A:$G,7,0),"dddd dd mmmm jjjj") -> Meetperiode: di 10 & do 12 oktober 2023
B13: Methodiek: Parkeerdrukmeting met waarnemers
B14: In opdracht van: Vlaamse overheid
B15: Uitgevoerd door: Dufec
D16: VERDELING NAAR CATEGORIE
B17: Locatie
B18: =IF(B4="","",HYPERLINK("http://www.googlemaps.com/?q="&B4,"Lat/Long: "&B4)) -> Lat/Long: 51.015552, 5.371400
P20: Legenda
Q21: Personenwagen
Q22: Vracht
Q23: Motor
Q24: Obstakel / overig
Q25: Fout personenwagen
Q26: Fout Vracht
B39: Toelichting
B40: Pers = personenwagens op daarvoor bestemde
B41: openbare plaatsen
B42: Vracht = vrachtwagens op daarvoor bestemde
B43: parkeerplaatsen (middel- en zwaar vrachtverkeer)
B44: Motor = geparkeerde motoren op openbare plaatsen
B45: Obstakel / overig = obstakels of overige voertuigen
B46: geparkeerd op openbare plaatsen
B47: Fout pers = personenwagens die fout geparkeerd staan
B48: Fout vracht = vrachtwagens die fout geparkeerd staan
B49: E-wagen = geparkeerde elektrisch voertuig bij een
B50: elektrisch oplaadpunt
B51: Invalide = personenwagens en motoren op voor
B52: invalide personen bestemde parkeerplaats
B53: Gestalde fietsen = alle gestalde fietsen op de
B54: daarvoor bestemde parkeerplaatsen

Sheet 11.Diepenbeek
B2: PARKEERONDERZOEK | D2: CARPOOLPARKINGS EN P+R PARKINGS
B3: 11 | D3: =B8 & " - "& TEXT(VLOOKUP(B3,Coordinaten!$A$2:$G$95,7,0),"dddd dd mmmm jjjj") -> Carpool parking Diepenbeek, Diepenbeek - di 10 & do 12 oktober 2023
B4: =VLOOKUP(B3,Coordinaten!$A$2:$G$95,6,0) -> 50.894087, 5.417912
D5: BEZETTING | Q5: OPMERKINGEN
B7: Onderzoeksgebied | D7: Datum | E7: Geregistreerd tussen | F7: Pers | G7: Vracht | H7: Motor | I7: Obstakel / overig | J7: Fout pers | K7: Fout Vracht | L7: Totaal | M7: E-wagen plaats | N7: Invalidenplaats | O7: Gestalde fietsen | U7: =F7 -> Pers | V7: Vracht | W7: Motor | X7: Obstakel / overig | Y7: Fout pers | Z7: Fout Vracht
B8: =VLOOKUP(B3,Coordinaten!$A$2:$G$95,3,0)&", "&VLOOKUP(B3,Coordinaten!$A$2:$G$95,5,0) -> Carpool parking Diepenbeek, Diepenbeek | D8: =_xlfn.XLOOKUP($B$3,Bezetting_1!$A$2:$A$90,Bezetting_1!C$2:C$90,,0) -> 2023-10-12 | E8: =_xlfn.XLOOKUP($B$3,Bezetting_1!$A$2:$A$90,Bezetting_1!D$2:D$90,,0) -> 09:00 - 16:00u | F8: =_xlfn.XLOOKUP($B$3,Bezetting_1!$A$2:$A$90,Bezetting_1!E$2:E$90,,0) -> 79 | G8: =_xlfn.XLOOKUP($B$3,Bezetting_1!$A$2:$A$90,Bezetting_1!F$2:F$90,,0) -> 0 | H8: =_xlfn.XLOOKUP($B$3,Bezetting_1!$A$2:$A$90,Bezetting_1!G$2:G$90,,0) -> 0 | I8: =_xlfn.XLOOKUP($B$3,Bezetting_1!$A$2:$A$90,Bezetting_1!H$2:H$90,,0) -> 0 | J8: =_xlfn.XLOOKUP($B$3,Bezetting_1!$A$2:$A$90,Bezetting_1!I$2:I$90,,0) -> 1 | K8: =_xlfn.XLOOKUP($B$3,Bezetting_1!$A$2:$A$90,Bezetting_1!J$2:J$90,,0) -> 0 | L8: =_xlfn.XLOOKUP($B$3,Bezetting_1!$A$2:$A$90,Bezetting_1!K$2:K$90,,0) -> 80 | M8: =_xlfn.XLOOKUP($B$3,Bezetting_1!$A$2:$A$90,Bezetting_1!L$2:L$90,,0) -> 0 | N8: =_xlfn.XLOOKUP($B$3,Bezetting_1!$A$2:$A$90,Bezetting_1!M$2:M$90,,0) -> 0 | O8: =_xlfn.XLOOKUP($B$3,Bezetting_1!$A$2:$A$90,Bezetting_1!N$2:N$90,,0) -> 3 | Q8: =_xlfn.XLOOKUP($B$3,Bezetting_1!$A$2:$A$90,Bezetting_1!P$2:P$90,,0) -> 0 | S8: =D8 -> 2023-10-12 | T8: =E8 -> 09:00 - 16:00u | U8: =IF(F8=0,NA(),F8/$L8) -> 0.9875 | V8: =IF(G8=0,NA(),G8/$L8) ->  | W8: =IF(H8=0,NA(),H8/$L8) ->  | Y8: 0.0125
B9: ="Nabij kruispunt: "&VLOOKUP(B3,Coordinaten!$A$2:$L$95,4,0) -> Nabij kruispunt: N76 / A13 | F9: =IF(F8=0,"-",F8/$L$8) -> 0.9875 | G9: =IF(G8=0,"-",G8/$L$8) -> - | H9: - | I9: - | J9: 0.0125 | K9: - | L9: 1 | Q9: =_xlfn.XLOOKUP($B$3,Bezetting_1!$A$2:$A$90,Bezetting_1!Q$2:Q$90,,0) -> 0 | S9: =D10 -> 2023-10-10 | T9: =E10 -> 19:00 - 02:00u | U9: =IF(F10=0,NA(),F10/$L10) -> 0.9285714286 | V9: =IF(G10=0,NA(),G10/$L10) ->  | Y9: 0.07142857143
D10: =_xlfn.XLOOKUP($B$3,Bezetting_2!$A$2:$A$90,Bezetting_2!C$2:C$90,,0) -> 2023-10-10 | E10: =_xlfn.XLOOKUP($B$3,Bezetting_2!$A$2:$A$90,Bezetting_2!D$2:D$90,,0) -> 19:00 - 02:00u | F10: =_xlfn.XLOOKUP($B$3,Bezetting_2!$A$2:$A$90,Bezetting_2!E$2:E$90,,0) -> 26 | G10: =_xlfn.XLOOKUP($B$3,Bezetting_2!$A$2:$A$90,Bezetting_2!F$2:F$90,,0) -> 0 | H10: =_xlfn.XLOOKUP($B$3,Bezetting_2!$A$2:$A$90,Bezetting_2!G$2:G$90,,0) -> 0 | I10: =_xlfn.XLOOKUP($B$3,Bezetting_2!$A$2:$A$90,Bezetting_2!H$2:H$90,,0) -> 0 | J10: =_xlfn.XLOOKUP($B$3,Bezetting_2!$A$2:$A$90,Bezetting_2!I$2:I$90,,0) -> 2 | K10: =_xlfn.XLOOKUP($B$3,Bezetting_2!$A$2:$A$90,Bezetting_2!J$2:J$90,,0) -> 0 | L10: =_xlfn.XLOOKUP($B$3,Bezetting_2!$A$2:$A$90,Bezetting_2!K$2:K$90,,0) -> 28 | M10: =_xlfn.XLOOKUP($B$3,Bezetting_2!$A$2:$A$90,Bezetting_2!L$2:L$90,,0) -> 0 | N10: =_xlfn.XLOOKUP($B$3,Bezetting_2!$A$2:$A$90,Bezetting_2!M$2:M$90,,0) -> 0 | O10: =_xlfn.XLOOKUP($B$3,Bezetting_2!$A$2:$A$90,Bezetting_2!N$2:N$90,,0) -> 1 | P10: =_xlfn.XLOOKUP($B$3,Bezetting_2!$A$2:$A$90,Bezetting_2!O$2:O$90,,0) -> 0 | Q10: =_xlfn.XLOOKUP($B$3,Bezetting_2!$A$2:$A$90,Bezetting_2!P$2:P$90,,0) -> 0
B11: Meting | F11: =IF(F10=0,"-",F10/$L$10) -> 0.9285714286 | G11: =IF(G10=0,"-",G10/$L$10) -> - | H11: - | I11: - | J11: 0.07142857143 | K11: - | L11: 1 | Q11: =_xlfn.XLOOKUP($B$3,Bezetting_2!$A$2:$A$90,Bezetting_2!Q$2:Q$90,,0) -> 0
B12: ="Meetperiode: "&TEXT(VLOOKUP(B3,Coordinaten!$A:$G,7,0),"dddd dd mmmm jjjj") -> Meetperiode: di 10 & do 12 oktober 2023
B13: Methodiek: Parkeerdrukmeting met waarnemers
B14: In opdracht van: Vlaamse overheid
B15: Uitgevoerd door: Dufec
D16: VERDELING NAAR CATEGORIE
B17: Locatie
B18: =IF(B4="","",HYPERLINK("http://www.googlemaps.com/?q="&B4,"Lat/Long: "&B4)) -> Lat/Long: 50.894087, 5.417912
P20: Legenda
Q21: Personenwagen
Q22: Vracht
Q23: Motor
Q24: Obstakel / overig
Q25: Fout personenwagen
Q26: Fout Vracht
B39: Toelichting
B40: Pers = personenwagens op daarvoor bestemde
B41: openbare plaatsen
B42: Vracht = vrachtwagens op daarvoor bestemde
B43: parkeerplaatsen (middel- en zwaar vrachtverkeer)
B44: Motor = geparkeerde motoren op openbare plaatsen
B45: Obstakel / overig = obstakels of overige voertuigen
B46: geparkeerd op openbare plaatsen
B47: Fout pers = personenwagens die fout geparkeerd staan
B48: Fout vracht = vrachtwagens die fout geparkeerd staan
B49: E-wagen = geparkeerde elektrisch voertuig bij een
B50: elektrisch oplaadpunt
B51: Invalide = personenwagens en motoren op voor
B52: invalide personen bestemde parkeerplaats
B53: Gestalde fietsen = alle gestalde fietsen op de
B54: daarvoor bestemde parkeerplaatsen

Sheet 12.Wommelgem-Zuid
B2: PARKEERONDERZOEK | D2: CARPOOLPARKINGS EN P+R PARKINGS
B3: 12 | D3: =B8 & " - "& TEXT(VLOOKUP(B3,Coordinaten!$A$2:$G$95,7,0),"dddd dd mmmm jjjj") -> P+R parking Wommelgem-Zuid, Wommelgem - di 10 & do 12 oktober 2023
B4: =VLOOKUP(B3,Coordinaten!$A$2:$G$95,6,0) -> 51.210463, 4.493799
D5: BEZETTING | Q5: OPMERKINGEN
B7: Onderzoeksgebied | D7: Datum | E7: Geregistreerd tussen | F7: Pers | G7: Vracht | H7: Motor | I7: Obstakel / overig | J7: Fout pers | K7: Fout Vracht | L7: Totaal | M7: E-wagen plaats | N7: Invalidenplaats | O7: Gestalde fietsen | U7: =F7 -> Pers | V7: Vracht | W7: Motor | X7: Obstakel / overig | Y7: Fout pers | Z7: Fout Vracht
B8: =VLOOKUP(B3,Coordinaten!$A$2:$G$95,3,0)&", "&VLOOKUP(B3,Coordinaten!$A$2:$G$95,5,0) -> P+R parking Wommelgem-Zuid, Wommelgem | D8: =_xlfn.XLOOKUP($B$3,Bezetting_1!$A$2:$A$90,Bezetting_1!C$2:C$90,,0) -> 2023-10-12 | E8: =_xlfn.XLOOKUP($B$3,Bezetting_1!$A$2:$A$90,Bezetting_1!D$2:D$90,,0) -> 09:00 - 16:00u | F8: =_xlfn.XLOOKUP($B$3,Bezetting_1!$A$2:$A$90,Bezetting_1!E$2:E$90,,0) -> 38 | G8: =_xlfn.XLOOKUP($B$3,Bezetting_1!$A$2:$A$90,Bezetting_1!F$2:F$90,,0) -> 0 | H8: =_xlfn.XLOOKUP($B$3,Bezetting_1!$A$2:$A$90,Bezetting_1!G$2:G$90,,0) -> 1 | I8: =_xlfn.XLOOKUP($B$3,Bezetting_1!$A$2:$A$90,Bezetting_1!H$2:H$90,,0) -> 0 | J8: =_xlfn.XLOOKUP($B$3,Bezetting_1!$A$2:$A$90,Bezetting_1!I$2:I$90,,0) -> 1 | K8: =_xlfn.XLOOKUP($B$3,Bezetting_1!$A$2:$A$90,Bezetting_1!J$2:J$90,,0) -> 0 | L8: =_xlfn.XLOOKUP($B$3,Bezetting_1!$A$2:$A$90,Bezetting_1!K$2:K$90,,0) -> 40 | M8: =_xlfn.XLOOKUP($B$3,Bezetting_1!$A$2:$A$90,Bezetting_1!L$2:L$90,,0) -> 0 | N8: =_xlfn.XLOOKUP($B$3,Bezetting_1!$A$2:$A$90,Bezetting_1!M$2:M$90,,0) -> 0 | O8: =_xlfn.XLOOKUP($B$3,Bezetting_1!$A$2:$A$90,Bezetting_1!N$2:N$90,,0) -> 6 | Q8: =_xlfn.XLOOKUP($B$3,Bezetting_1!$A$2:$A$90,Bezetting_1!P$2:P$90,,0) -> 0 | S8: =D8 -> 2023-10-12 | T8: =E8 -> 09:00 - 16:00u | U8: =IF(F8=0,NA(),F8/$L8) -> 0.95 | V8: =IF(G8=0,NA(),G8/$L8) ->  | W8: =IF(H8=0,NA(),H8/$L8) -> 0.025 | Y8: 0.025
B9: ="Nabij kruispunt: "&VLOOKUP(B3,Coordinaten!$A$2:$L$95,4,0) -> Nabij kruispunt: R11 / A13 | F9: =IF(F8=0,"-",F8/$L$8) -> 0.95 | G9: =IF(G8=0,"-",G8/$L$8) -> - | H9: 0.025 | I9: - | J9: 0.025 | K9: - | L9: 1 | Q9: =_xlfn.XLOOKUP($B$3,Bezetting_1!$A$2:$A$90,Bezetting_1!Q$2:Q$90,,0) -> 0 | S9: =D10 -> 2023-10-10 | T9: =E10 -> 19:00 - 02:00u | U9: =IF(F10=0,NA(),F10/$L10) -> 0.9375 | V9: =IF(G10=0,NA(),G10/$L10) ->  | Z9: 0.0625
D10: =_xlfn.XLOOKUP($B$3,Bezetting_2!$A$2:$A$90,Bezetting_2!C$2:C$90,,0) -> 2023-10-10 | E10: =_xlfn.XLOOKUP($B$3,Bezetting_2!$A$2:$A$90,Bezetting_2!D$2:D$90,,0) -> 19:00 - 02:00u | F10: =_xlfn.XLOOKUP($B$3,Bezetting_2!$A$2:$A$90,Bezetting_2!E$2:E$90,,0) -> 15 | G10: =_xlfn.XLOOKUP($B$3,Bezetting_2!$A$2:$A$90,Bezetting_2!F$2:F$90,,0) -> 0 | H10: =_xlfn.XLOOKUP($B$3,Bezetting_2!$A$2:$A$90,Bezetting_2!G$2:G$90,,0) -> 0 | I10: =_xlfn.XLOOKUP($B$3,Bezetting_2!$A$2:$A$90,Bezetting_2!H$2:H$90,,0) -> 0 | J10: =_xlfn.XLOOKUP($B$3,Bezetting_2!$A$2:$A$90,Bezetting_2!I$2:I$90,,0) -> 0 | K10: =_xlfn.XLOOKUP($B$3,Bezetting_2!$A$2:$A$90,Bezetting_2!J$2:J$90,,0) -> 1 | L10: =_xlfn.XLOOKUP($B$3,Bezetting_2!$A$2:$A$90,Bezetting_2!K$2:K$90,,0) -> 16 | M10: =_xlfn.XLOOKUP($B$3,Bezetting_2!$A$2:$A$90,Bezetting_2!L$2:L$90,,0) -> 0 | N10: =_xlfn.XLOOKUP($B$3,Bezetting_2!$A$2:$A$90,Bezetting_2!M$2:M$90,,0) -> 0 | O10: =_xlfn.XLOOKUP($B$3,Bezetting_2!$A$2:$A$90,Bezetting_2!N$2:N$90,,0) -> 1 | P10: =_xlfn.XLOOKUP($B$3,Bezetting_2!$A$2:$A$90,Bezetting_2!O$2:O$90,,0) -> 0 | Q10: =_xlfn.XLOOKUP($B$3,Bezetting_2!$A$2:$A$90,Bezetting_2!P$2:P$90,,0) -> Fout vracht: op 6 plaatsen
B11: Meting | F11: =IF(F10=0,"-",F10/$L$10) -> 0.9375 | G11: =IF(G10=0,"-",G10/$L$10) -> - | H11: - | I11: - | J11: - | K11: 0.0625 | L11: 1 | Q11: =_xlfn.XLOOKUP($B$3,Bezetting_2!$A$2:$A$90,Bezetting_2!Q$2:Q$90,,0) -> 0
B12: ="Meetperiode: "&TEXT(VLOOKUP(B3,Coordinaten!$A:$G,7,0),"dddd dd mmmm jjjj") -> Meetperiode: di 10 & do 12 oktober 2023
B13: Methodiek: Parkeerdrukmeting met waarnemers
B14: In opdracht van: Vlaamse overheid
B15: Uitgevoerd door: Dufec
D16: VERDELING NAAR CATEGORIE
B17: Locatie
B18: =IF(B4="","",HYPERLINK("http://www.googlemaps.com/?q="&B4,"Lat/Long: "&B4)) -> Lat/Long: 51.210463, 4.493799
P20: Legenda
Q21: Personenwagen
Q22: Vracht
Q23: Motor
Q24: Obstakel / overig
Q25: Fout personenwagen
Q26: Fout Vracht
B39: Toelichting
B40: Pers = personenwagens op daarvoor bestemde
B41: openbare plaatsen
B42: Vracht = vrachtwagens op daarvoor bestemde
B43: parkeerplaatsen (middel- en zwaar vrachtverkeer)
B44: Motor = geparkeerde motoren op openbare plaatsen
B45: Obstakel / overig = obstakels of overige voertuigen
B46: geparkeerd op openbare plaatsen
B47: Fout pers = personenwagens die fout geparkeerd staan
B48: Fout vracht = vrachtwagens die fout geparkeerd staan
B49: E-wagen = geparkeerde elektrisch voertuig bij een
B50: elektrisch oplaadpunt
B51: Invalide = personenwagens en motoren op voor
B52: invalide personen bestemde parkeerplaats
B53: Gestalde fietsen = alle gestalde fietsen op de
B54: daarvoor bestemde parkeerplaatsen

Sheet 13.Minitaria
B2: PARKEERONDERZOEK | D2: CARPOOLPARKINGS EN P+R PARKINGS
B3: 13 | D3: =B8 & " - "& TEXT(VLOOKUP(B3,Coordinaten!$A$2:$G$95,7,0),"dddd dd mmmm jjjj") -> Carpool parking Minitaria, Tienen - di 10 & do 12 oktober 2023
B4: =VLOOKUP(B3,Coordinaten!$A$2:$G$95,6,0) -> 50.799170, 4.970858
D5: BEZETTING | Q5: OPMERKINGEN
B7: Onderzoeksgebied | D7: Datum | E7: Geregistreerd tussen | F7: Pers | G7: Vracht | H7: Motor | I7: Obstakel / overig | J7: Fout pers | K7: Fout Vracht | L7: Totaal | M7: E-wagen plaats | N7: Invalidenplaats | O7: Gestalde fietsen | U7: =F7 -> Pers | V7: Vracht | W7: Motor | X7: Obstakel / overig | Y7: Fout pers | Z7: Fout Vracht
B8: =VLOOKUP(B3,Coordinaten!$A$2:$G$95,3,0)&", "&VLOOKUP(B3,Coordinaten!$A$2:$G$95,5,0) -> Carpool parking Minitaria, Tienen | D8: =_xlfn.XLOOKUP($B$3,Bezetting_1!$A$2:$A$90,Bezetting_1!C$2:C$90,,0) -> 2023-10-10 | E8: =_xlfn.XLOOKUP($B$3,Bezetting_1!$A$2:$A$90,Bezetting_1!D$2:D$90,,0) -> 09:00 - 16:00u | F8: =_xlfn.XLOOKUP($B$3,Bezetting_1!$A$2:$A$90,Bezetting_1!E$2:E$90,,0) -> 5 | G8: =_xlfn.XLOOKUP($B$3,Bezetting_1!$A$2:$A$90,Bezetting_1!F$2:F$90,,0) -> 0 | H8: =_xlfn.XLOOKUP($B$3,Bezetting_1!$A$2:$A$90,Bezetting_1!G$2:G$90,,0) -> 0 | I8: =_xlfn.XLOOKUP($B$3,Bezetting_1!$A$2:$A$90,Bezetting_1!H$2:H$90,,0) -> 1 | J8: =_xlfn.XLOOKUP($B$3,Bezetting_1!$A$2:$A$90,Bezetting_1!I$2:I$90,,0) -> 0 | K8: =_xlfn.XLOOKUP($B$3,Bezetting_1!$A$2:$A$90,Bezetting_1!J$2:J$90,,0) -> 0 | L8: =_xlfn.XLOOKUP($B$3,Bezetting_1!$A$2:$A$90,Bezetting_1!K$2:K$90,,0) -> 6 | M8: =_xlfn.XLOOKUP($B$3,Bezetting_1!$A$2:$A$90,Bezetting_1!L$2:L$90,,0) -> 0 | N8: =_xlfn.XLOOKUP($B$3,Bezetting_1!$A$2:$A$90,Bezetting_1!M$2:M$90,,0) -> 1 | O8: =_xlfn.XLOOKUP($B$3,Bezetting_1!$A$2:$A$90,Bezetting_1!N$2:N$90,,0) -> 0 | Q8: =_xlfn.XLOOKUP($B$3,Bezetting_1!$A$2:$A$90,Bezetting_1!P$2:P$90,,0) -> Overig: aanhanger | S8: =D8 -> 2023-10-10 | T8: =E8 -> 09:00 - 16:00u | U8: =IF(F8=0,NA(),F8/$L8) -> 0.8333333333 | V8: =IF(G8=0,NA(),G8/$L8) ->  | W8: =IF(H8=0,NA(),H8/$L8) ->  | X8: 0.1666666667
B9: ="Nabij kruispunt: "&VLOOKUP(B3,Coordinaten!$A$2:$L$95,4,0) -> Nabij kruispunt: N3 / R27 | F9: =IF(F8=0,"-",F8/$L$8) -> 0.8333333333 | G9: =IF(G8=0,"-",G8/$L$8) -> - | H9: - | I9: 0.1666666667 | J9: - | K9: - | L9: 1 | Q9: =_xlfn.XLOOKUP($B$3,Bezetting_1!$A$2:$A$90,Bezetting_1!Q$2:Q$90,,0) -> 0 | S9: =D10 -> 2023-10-10 | T9: =E10 -> 19:00 - 02:00u | U9: =IF(F10=0,NA(),F10/$L10) -> 0.8888888889 | V9: =IF(G10=0,NA(),G10/$L10) ->  | X9: 0.1111111111
D10: =_xlfn.XLOOKUP($B$3,Bezetting_2!$A$2:$A$90,Bezetting_2!C$2:C$90,,0) -> 2023-10-10 | E10: =_xlfn.XLOOKUP($B$3,Bezetting_2!$A$2:$A$90,Bezetting_2!D$2:D$90,,0) -> 19:00 - 02:00u | F10: =_xlfn.XLOOKUP($B$3,Bezetting_2!$A$2:$A$90,Bezetting_2!E$2:E$90,,0) -> 8 | G10: =_xlfn.XLOOKUP($B$3,Bezetting_2!$A$2:$A$90,Bezetting_2!F$2:F$90,,0) -> 0 | H10: =_xlfn.XLOOKUP($B$3,Bezetting_2!$A$2:$A$90,Bezetting_2!G$2:G$90,,0) -> 0 | I10: =_xlfn.XLOOKUP($B$3,Bezetting_2!$A$2:$A$90,Bezetting_2!H$2:H$90,,0) -> 1 | J10: =_xlfn.XLOOKUP($B$3,Bezetting_2!$A$2:$A$90,Bezetting_2!I$2:I$90,,0) -> 0 | K10: =_xlfn.XLOOKUP($B$3,Bezetting_2!$A$2:$A$90,Bezetting_2!J$2:J$90,,0) -> 0 | L10: =_xlfn.XLOOKUP($B$3,Bezetting_2!$A$2:$A$90,Bezetting_2!K$2:K$90,,0) -> 9 | M10: =_xlfn.XLOOKUP($B$3,Bezetting_2!$A$2:$A$90,Bezetting_2!L$2:L$90,,0) -> 0 | N10: =_xlfn.XLOOKUP($B$3,Bezetting_2!$A$2:$A$90,Bezetting_2!M$2:M$90,,0) -> 1 | O10: =_xlfn.XLOOKUP($B$3,Bezetting_2!$A$2:$A$90,Bezetting_2!N$2:N$90,,0) -> 0 | P10: =_xlfn.XLOOKUP($B$3,Bezetting_2!$A$2:$A$90,Bezetting_2!O$2:O$90,,0) -> 0 | Q10: =_xlfn.XLOOKUP($B$3,Bezetting_2!$A$2:$A$90,Bezetting_2!P$2:P$90,,0) -> Overig: aanhanger
B11: Meting | F11: =IF(F10=0,"-",F10/$L$10) -> 0.8888888889 | G11: =IF(G10=0,"-",G10/$L$10) -> - | H11: - | I11: 0.1111111111 | J11: - | K11: - | L11: 1 | Q11: =_xlfn.XLOOKUP($B$3,Bezetting_2!$A$2:$A$90,Bezetting_2!Q$2:Q$90,,0) -> 0
B12: ="Meetperiode: "&TEXT(VLOOKUP(B3,Coordinaten!$A:$G,7,0),"dddd dd mmmm jjjj") -> Meetperiode: di 10 & do 12 oktober 2023
B13: Methodiek: Parkeerdrukmeting met waarnemers
B14: In opdracht van: Vlaamse overheid
B15: Uitgevoerd door: Dufec
D16: VERDELING NAAR CATEGORIE
B17: Locatie
B18: =IF(B4="","",HYPERLINK("http://www.googlemaps.com/?q="&B4,"Lat/Long: "&B4)) -> Lat/Long: 50.799170, 4.970858
P20: Legenda
Q21: Personenwagen
Q22: Vracht
Q23: Motor
Q24: Obstakel / overig
Q25: Fout personenwagen
Q26: Fout Vracht
B39: Toelichting
B40: Pers = personenwagens op daarvoor bestemde
B41: openbare plaatsen
B42: Vracht = vrachtwagens op daarvoor bestemde
B43: parkeerplaatsen (middel- en zwaar vrachtverkeer)
B44: Motor = geparkeerde motoren op openbare plaatsen
B45: Obstakel / overig = obstakels of overige voertuigen
B46: geparkeerd op openbare plaatsen
B47: Fout pers = personenwagens die fout geparkeerd staan
B48: Fout vracht = vrachtwagens die fout geparkeerd staan
B49: E-wagen = geparkeerde elektrisch voertuig bij een
B50: elektrisch oplaadpunt
B51: Invalide = personenwagens en motoren op voor
B52: invalide personen bestemde parkeerplaats
B53: Gestalde fietsen = alle gestalde fietsen op de
B54: daarvoor bestemde parkeerplaatsen

Sheet 14.Hakendover
B2: PARKEERONDERZOEK | D2: CARPOOLPARKINGS EN P+R PARKINGS
B3: 14 | D3: =B8 & " - "& TEXT(VLOOKUP(B3,Coordinaten!$A$2:$G$95,7,0),"dddd dd mmmm jjjj") -> Carpool parking Hakendover, Tienen - di 10 & do 12 oktober 2023
B4: =VLOOKUP(B3,Coordinaten!$A$2:$G$95,6,0) -> 50.798982, 4.973467
D5: BEZETTING | Q5: OPMERKINGEN
B7: Onderzoeksgebied | D7: Datum | E7: Geregistreerd tussen | F7: Pers | G7: Vracht | H7: Motor | I7: Obstakel / overig | J7: Fout pers | K7: Fout Vracht | L7: Totaal | M7: E-wagen plaats | N7: Invalidenplaats | O7: Gestalde fietsen | U7: =F7 -> Pers | V7: Vracht | W7: Motor | X7: Obstakel / overig | Y7: Fout pers | Z7: Fout Vracht
B8: =VLOOKUP(B3,Coordinaten!$A$2:$G$95,3,0)&", "&VLOOKUP(B3,Coordinaten!$A$2:$G$95,5,0) -> Carpool parking Hakendover, Tienen | D8: =_xlfn.XLOOKUP($B$3,Bezetting_1!$A$2:$A$90,Bezetting_1!C$2:C$90,,0) -> 2023-10-10 | E8: =_xlfn.XLOOKUP($B$3,Bezetting_1!$A$2:$A$90,Bezetting_1!D$2:D$90,,0) -> 09:00 - 16:00u | F8: =_xlfn.XLOOKUP($B$3,Bezetting_1!$A$2:$A$90,Bezetting_1!E$2:E$90,,0) -> 4 | G8: =_xlfn.XLOOKUP($B$3,Bezetting_1!$A$2:$A$90,Bezetting_1!F$2:F$90,,0) -> 0 | H8: =_xlfn.XLOOKUP($B$3,Bezetting_1!$A$2:$A$90,Bezetting_1!G$2:G$90,,0) -> 0 | I8: =_xlfn.XLOOKUP($B$3,Bezetting_1!$A$2:$A$90,Bezetting_1!H$2:H$90,,0) -> 0 | J8: =_xlfn.XLOOKUP($B$3,Bezetting_1!$A$2:$A$90,Bezetting_1!I$2:I$90,,0) -> 0 | K8: =_xlfn.XLOOKUP($B$3,Bezetting_1!$A$2:$A$90,Bezetting_1!J$2:J$90,,0) -> 0 | L8: =_xlfn.XLOOKUP($B$3,Bezetting_1!$A$2:$A$90,Bezetting_1!K$2:K$90,,0) -> 4 | M8: =_xlfn.XLOOKUP($B$3,Bezetting_1!$A$2:$A$90,Bezetting_1!L$2:L$90,,0) -> 0 | N8: =_xlfn.XLOOKUP($B$3,Bezetting_1!$A$2:$A$90,Bezetting_1!M$2:M$90,,0) -> 0 | O8: =_xlfn.XLOOKUP($B$3,Bezetting_1!$A$2:$A$90,Bezetting_1!N$2:N$90,,0) -> 0 | Q8: =_xlfn.XLOOKUP($B$3,Bezetting_1!$A$2:$A$90,Bezetting_1!P$2:P$90,,0) -> 0 | S8: =D8 -> 2023-10-10 | T8: =E8 -> 09:00 - 16:00u | U8: =IF(F8=0,NA(),F8/$L8) -> 1 | V8: =IF(G8=0,NA(),G8/$L8) ->  | W8: =IF(H8=0,NA(),H8/$L8) -> 
B9: ="Nabij kruispunt: "&VLOOKUP(B3,Coordinaten!$A$2:$L$95,4,0) -> Nabij kruispunt: N3 / R27 | F9: =IF(F8=0,"-",F8/$L$8) -> 1 | G9: =IF(G8=0,"-",G8/$L$8) -> - | H9: - | I9: - | J9: - | K9: - | L9: 1 | Q9: =_xlfn.XLOOKUP($B$3,Bezetting_1!$A$2:$A$90,Bezetting_1!Q$2:Q$90,,0) -> 0 | S9: =D10 -> 2023-10-10 | T9: =E10 -> 19:00 - 02:00u | U9: =IF(F10=0,NA(),F10/$L10) -> 1 | V9: =IF(G10=0,NA(),G10/$L10) -> 
D10: =_xlfn.XLOOKUP($B$3,Bezetting_2!$A$2:$A$90,Bezetting_2!C$2:C$90,,0) -> 2023-10-10 | E10: =_xlfn.XLOOKUP($B$3,Bezetting_2!$A$2:$A$90,Bezetting_2!D$2:D$90,,0) -> 19:00 - 02:00u | F10: =_xlfn.XLOOKUP($B$3,Bezetting_2!$A$2:$A$90,Bezetting_2!E$2:E$90,,0) -> 2 | G10: =_xlfn.XLOOKUP($B$3,Bezetting_2!$A$2:$A$90,Bezetting_2!F$2:F$90,,0) -> 0 | H10: =_xlfn.XLOOKUP($B$3,Bezetting_2!$A$2:$A$90,Bezetting_2!G$2:G$90,,0) -> 0 | I10: =_xlfn.XLOOKUP($B$3,Bezetting_2!$A$2:$A$90,Bezetting_2!H$2:H$90,,0) -> 0 | J10: =_xlfn.XLOOKUP($B$3,Bezetting_2!$A$2:$A$90,Bezetting_2!I$2:I$90,,0) -> 0 | K10: =_xlfn.XLOOKUP($B$3,Bezetting_2!$A$2:$A$90,Bezetting_2!J$2:J$90,,0) -> 0 | L10: =_xlfn.XLOOKUP($B$3,Bezetting_2!$A$2:$A$90,Bezetting_2!K$2:K$90,,0) -> 2 | M10: =_xlfn.XLOOKUP($B$3,Bezetting_2!$A$2:$A$90,Bezetting_2!L$2:L$90,,0) -> 0 | N10: =_xlfn.XLOOKUP($B$3,Bezetting_2!$A$2:$A$90,Bezetting_2!M$2:M$90,,0) -> 0 | O10: =_xlfn.XLOOKUP($B$3,Bezetting_2!$A$2:$A$90,Bezetting_2!N$2:N$90,,0) -> 0 | P10: =_xlfn.XLOOKUP($B$3,Bezetting_2!$A$2:$A$90,Bezetting_2!O$2:O$90,,0) -> 0 | Q10: =_xlfn.XLOOKUP($B$3,Bezetting_2!$A$2:$A$90,Bezetting_2!P$2:P$90,,0) -> 0
B11: Meting | F11: =IF(F10=0,"-",F10/$L$10) -> 1 | G11: =IF(G10=0,"-",G10/$L$10) -> - | H11: - | I11: - | J11: - | K11: - | L11: 1 | Q11: =_xlfn.XLOOKUP($B$3,Bezetting_2!$A$2:$A$90,Bezetting_2!Q$2:Q$90,,0) -> 0
B12: ="Meetperiode: "&TEXT(VLOOKUP(B3,Coordinaten!$A:$G,7,0),"dddd dd mmmm jjjj") -> Meetperiode: di 10 & do 12 oktober 2023
B13: Methodiek: Parkeerdrukmeting met waarnemers
B14: In opdracht van: Vlaamse overheid
B15: Uitgevoerd door: Dufec
D16: VERDELING NAAR CATEGORIE
B17: Locatie
B18: =IF(B4="","",HYPERLINK("http://www.googlemaps.com/?q="&B4,"Lat/Long: "&B4)) -> Lat/Long: 50.798982, 4.973467
P20: Legenda
Q21: Personenwagen
Q22: Vracht
Q23: Motor
Q24: Obstakel / overig
Q25: Fout personenwagen
Q26: Fout Vracht
B39: Toelichting
B40: Pers = personenwagens op daarvoor bestemde
B41: openbare plaatsen
B42: Vracht = vrachtwagens op daarvoor bestemde
B43: parkeerplaatsen (middel- en zwaar vrachtverkeer)
B44: Motor = geparkeerde motoren op openbare plaatsen
B45: Obstakel / overig = obstakels of overige voertuigen
B46: geparkeerd op openbare plaatsen
B47: Fout pers = personenwagens die fout geparkeerd staan
B48: Fout vracht = vrachtwagens die fout geparkeerd staan
B49: E-wagen = geparkeerde elektrisch voertuig bij een
B50: elektrisch oplaadpunt
B51: Invalide = personenwagens en motoren op voor
B52: invalide personen bestemde parkeerplaats
B53: Gestalde fietsen = alle gestalde fietsen op de
B54: daarvoor bestemde parkeerplaatsen

Sheet 15.Kontich
B2: PARKEERONDERZOEK | D2: CARPOOLPARKINGS EN P+R PARKINGS
B3: 15 | D3: =B8 & " - "& TEXT(VLOOKUP(B3,Coordinaten!$A$2:$G$95,7,0),"dddd dd mmmm jjjj") -> Carpool parking Kontich, Kontich - di 10 & do 12 oktober 2023
B4: =VLOOKUP(B3,Coordinaten!$A$2:$G$95,6,0) -> 51.126274, 4.432122
D5: BEZETTING | Q5: OPMERKINGEN
B7: Onderzoeksgebied | D7: Datum | E7: Geregistreerd tussen | F7: Pers | G7: Vracht | H7: Motor | I7: Obstakel / overig | J7: Fout pers | K7: Fout Vracht | L7: Totaal | M7: E-wagen plaats | N7: Invalidenplaats | O7: Gestalde fietsen | U7: =F7 -> Pers | V7: Vracht | W7: Motor | X7: Obstakel / overig | Y7: Fout pers | Z7: Fout Vracht
B8: =VLOOKUP(B3,Coordinaten!$A$2:$G$95,3,0)&", "&VLOOKUP(B3,Coordinaten!$A$2:$G$95,5,0) -> Carpool parking Kontich, Kontich | D8: =_xlfn.XLOOKUP($B$3,Bezetting_1!$A$2:$A$90,Bezetting_1!C$2:C$90,,0) -> 2023-10-12 | E8: =_xlfn.XLOOKUP($B$3,Bezetting_1!$A$2:$A$90,Bezetting_1!D$2:D$90,,0) -> 09:00 - 16:00u | F8: =_xlfn.XLOOKUP($B$3,Bezetting_1!$A$2:$A$90,Bezetting_1!E$2:E$90,,0) -> 144 | G8: =_xlfn.XLOOKUP($B$3,Bezetting_1!$A$2:$A$90,Bezetting_1!F$2:F$90,,0) -> 0 | H8: =_xlfn.XLOOKUP($B$3,Bezetting_1!$A$2:$A$90,Bezetting_1!G$2:G$90,,0) -> 0 | I8: =_xlfn.XLOOKUP($B$3,Bezetting_1!$A$2:$A$90,Bezetting_1!H$2:H$90,,0) -> 1 | J8: =_xlfn.XLOOKUP($B$3,Bezetting_1!$A$2:$A$90,Bezetting_1!I$2:I$90,,0) -> 0 | K8: =_xlfn.XLOOKUP($B$3,Bezetting_1!$A$2:$A$90,Bezetting_1!J$2:J$90,,0) -> 0 | L8: =_xlfn.XLOOKUP($B$3,Bezetting_1!$A$2:$A$90,Bezetting_1!K$2:K$90,,0) -> 145 | M8: =_xlfn.XLOOKUP($B$3,Bezetting_1!$A$2:$A$90,Bezetting_1!L$2:L$90,,0) -> 1 | N8: =_xlfn.XLOOKUP($B$3,Bezetting_1!$A$2:$A$90,Bezetting_1!M$2:M$90,,0) -> 0 | O8: =_xlfn.XLOOKUP($B$3,Bezetting_1!$A$2:$A$90,Bezetting_1!N$2:N$90,,0) -> 0 | Q8: =_xlfn.XLOOKUP($B$3,Bezetting_1!$A$2:$A$90,Bezetting_1!P$2:P$90,,0) -> Overig: caravan | S8: =D8 -> 2023-10-12 | T8: =E8 -> 09:00 - 16:00u | U8: =IF(F8=0,NA(),F8/$L8) -> 0.9931034483 | V8: =IF(G8=0,NA(),G8/$L8) ->  | W8: =IF(H8=0,NA(),H8/$L8) ->  | X8: 0.006896551724
B9: ="Nabij kruispunt: "&VLOOKUP(B3,Coordinaten!$A$2:$L$95,4,0) -> Nabij kruispunt: N171 / A1 | F9: =IF(F8=0,"-",F8/$L$8) -> 0.9931034483 | G9: =IF(G8=0,"-",G8/$L$8) -> - | H9: - | I9: 0.006896551724 | J9: - | K9: - | L9: 1 | Q9: =_xlfn.XLOOKUP($B$3,Bezetting_1!$A$2:$A$90,Bezetting_1!Q$2:Q$90,,0) -> 0 | S9: =D10 -> 2023-10-12 | T9: =E10 -> 19:00 - 02:00u | U9: =IF(F10=0,NA(),F10/$L10) -> 0.9405940594 | V9: =IF(G10=0,NA(),G10/$L10) ->  | X9: 0.05940594059
D10: =_xlfn.XLOOKUP($B$3,Bezetting_2!$A$2:$A$90,Bezetting_2!C$2:C$90,,0) -> 2023-10-12 | E10: =_xlfn.XLOOKUP($B$3,Bezetting_2!$A$2:$A$90,Bezetting_2!D$2:D$90,,0) -> 19:00 - 02:00u | F10: =_xlfn.XLOOKUP($B$3,Bezetting_2!$A$2:$A$90,Bezetting_2!E$2:E$90,,0) -> 95 | G10: =_xlfn.XLOOKUP($B$3,Bezetting_2!$A$2:$A$90,Bezetting_2!F$2:F$90,,0) -> 0 | H10: =_xlfn.XLOOKUP($B$3,Bezetting_2!$A$2:$A$90,Bezetting_2!G$2:G$90,,0) -> 0 | I10: =_xlfn.XLOOKUP($B$3,Bezetting_2!$A$2:$A$90,Bezetting_2!H$2:H$90,,0) -> 6 | J10: =_xlfn.XLOOKUP($B$3,Bezetting_2!$A$2:$A$90,Bezetting_2!I$2:I$90,,0) -> 0 | K10: =_xlfn.XLOOKUP($B$3,Bezetting_2!$A$2:$A$90,Bezetting_2!J$2:J$90,,0) -> 0 | L10: =_xlfn.XLOOKUP($B$3,Bezetting_2!$A$2:$A$90,Bezetting_2!K$2:K$90,,0) -> 101 | M10: =_xlfn.XLOOKUP($B$3,Bezetting_2!$A$2:$A$90,Bezetting_2!L$2:L$90,,0) -> 0 | N10: =_xlfn.XLOOKUP($B$3,Bezetting_2!$A$2:$A$90,Bezetting_2!M$2:M$90,,0) -> 0 | O10: =_xlfn.XLOOKUP($B$3,Bezetting_2!$A$2:$A$90,Bezetting_2!N$2:N$90,,0) -> 0 | P10: =_xlfn.XLOOKUP($B$3,Bezetting_2!$A$2:$A$90,Bezetting_2!O$2:O$90,,0) -> 0 | Q10: =_xlfn.XLOOKUP($B$3,Bezetting_2!$A$2:$A$90,Bezetting_2!P$2:P$90,,0) -> Overig: 1x trailer, 5x bus
B11: Meting | F11: =IF(F10=0,"-",F10/$L$10) -> 0.9405940594 | G11: =IF(G10=0,"-",G10/$L$10) -> - | H11: - | I11: 0.05940594059 | J11: - | K11: - | L11: 1 | Q11: =_xlfn.XLOOKUP($B$3,Bezetting_2!$A$2:$A$90,Bezetting_2!Q$2:Q$90,,0) -> 0
B12: ="Meetperiode: "&TEXT(VLOOKUP(B3,Coordinaten!$A:$G,7,0),"dddd dd mmmm jjjj") -> Meetperiode: di 10 & do 12 oktober 2023
B13: Methodiek: Parkeerdrukmeting met waarnemers
B14: In opdracht van: Vlaamse overheid
B15: Uitgevoerd door: Dufec
D16: VERDELING NAAR CATEGORIE
B17: Locatie
B18: =IF(B4="","",HYPERLINK("http://www.googlemaps.com/?q="&B4,"Lat/Long: "&B4)) -> Lat/Long: 51.126274, 4.432122
P20: Legenda
Q21: Personenwagen
Q22: Vracht
Q23: Motor
Q24: Obstakel / overig
Q25: Fout personenwagen
Q26: Fout Vracht
B39: Toelichting
B40: Pers = personenwagens op daarvoor bestemde
B41: openbare plaatsen
B42: Vracht = vrachtwagens op daarvoor bestemde
B43: parkeerplaatsen (middel- en zwaar vrachtverkeer)
B44: Motor = geparkeerde motoren op openbare plaatsen
B45: Obstakel / overig = obstakels of overige voertuigen
B46: geparkeerd op openbare plaatsen
B47: Fout pers = personenwagens die fout geparkeerd staan
B48: Fout vracht = vrachtwagens die fout geparkeerd staan
B49: E-wagen = geparkeerde elektrisch voertuig bij een
B50: elektrisch oplaadpunt
B51: Invalide = personenwagens en motoren op voor
B52: invalide personen bestemde parkeerplaats
B53: Gestalde fietsen = alle gestalde fietsen op de
B54: daarvoor bestemde parkeerplaatsen

Sheet 16.Breendonk (Puurs)
B2: PARKEERONDERZOEK | D2: CARPOOLPARKINGS EN P+R PARKINGS
B3: 16 | D3: =B8 & " - "& TEXT(VLOOKUP(B3,Coordinaten!$A$2:$G$95,7,0),"dddd dd mmmm jjjj") -> Carpool parking Breendonk (Puurs), Puurs - di 10 & do 12 oktober 2023
B4: =VLOOKUP(B3,Coordinaten!$A$2:$G$95,6,0) -> 51.060329, 4.334348
D5: BEZETTING | Q5: OPMERKINGEN
B7: Onderzoeksgebied | D7: Datum | E7: Geregistreerd tussen | F7: Pers | G7: Vracht | H7: Motor | I7: Obstakel / overig | J7: Fout pers | K7: Fout Vracht | L7: Totaal | M7: E-wagen plaats | N7: Invalidenplaats | O7: Gestalde fietsen | U7: =F7 -> Pers | V7: Vracht | W7: Motor | X7: Obstakel / overig | Y7: Fout pers | Z7: Fout Vracht
B8: =VLOOKUP(B3,Coordinaten!$A$2:$G$95,3,0)&", "&VLOOKUP(B3,Coordinaten!$A$2:$G$95,5,0) -> Carpool parking Breendonk (Puurs), Puurs | D8: =_xlfn.XLOOKUP($B$3,Bezetting_1!$A$2:$A$90,Bezetting_1!C$2:C$90,,0) -> 2023-10-12 | E8: =_xlfn.XLOOKUP($B$3,Bezetting_1!$A$2:$A$90,Bezetting_1!D$2:D$90,,0) -> 09:00 - 16:00u | F8: =_xlfn.XLOOKUP($B$3,Bezetting_1!$A$2:$A$90,Bezetting_1!E$2:E$90,,0) -> 79 | G8: =_xlfn.XLOOKUP($B$3,Bezetting_1!$A$2:$A$90,Bezetting_1!F$2:F$90,,0) -> 13 | H8: =_xlfn.XLOOKUP($B$3,Bezetting_1!$A$2:$A$90,Bezetting_1!G$2:G$90,,0) -> 0 | I8: =_xlfn.XLOOKUP($B$3,Bezetting_1!$A$2:$A$90,Bezetting_1!H$2:H$90,,0) -> 0 | J8: =_xlfn.XLOOKUP($B$3,Bezetting_1!$A$2:$A$90,Bezetting_1!I$2:I$90,,0) -> 2 | K8: =_xlfn.XLOOKUP($B$3,Bezetting_1!$A$2:$A$90,Bezetting_1!J$2:J$90,,0) -> 4 | L8: =_xlfn.XLOOKUP($B$3,Bezetting_1!$A$2:$A$90,Bezetting_1!K$2:K$90,,0) -> 98 | M8: =_xlfn.XLOOKUP($B$3,Bezetting_1!$A$2:$A$90,Bezetting_1!L$2:L$90,,0) -> 0 | N8: =_xlfn.XLOOKUP($B$3,Bezetting_1!$A$2:$A$90,Bezetting_1!M$2:M$90,,0) -> 0 | O8: =_xlfn.XLOOKUP($B$3,Bezetting_1!$A$2:$A$90,Bezetting_1!N$2:N$90,,0) -> 0 | Q8: =_xlfn.XLOOKUP($B$3,Bezetting_1!$A$2:$A$90,Bezetting_1!P$2:P$90,,0) -> 0 | S8: =D8 -> 2023-10-12 | T8: =E8 -> 09:00 - 16:00u | U8: =IF(F8=0,NA(),F8/$L8) -> 0.806122449 | V8: =IF(G8=0,NA(),G8/$L8) -> 0.1326530612 | W8: =IF(H8=0,NA(),H8/$L8) ->  | Y8: 0.02040816327 | Z8: 0.04081632653
B9: ="Nabij kruispunt: "&VLOOKUP(B3,Coordinaten!$A$2:$L$95,4,0) -> Nabij kruispunt: N16 / N183 | F9: =IF(F8=0,"-",F8/$L$8) -> 0.806122449 | G9: =IF(G8=0,"-",G8/$L$8) -> 0.1326530612 | H9: - | I9: - | J9: 0.02040816327 | K9: 0.04081632653 | L9: 1 | Q9: =_xlfn.XLOOKUP($B$3,Bezetting_1!$A$2:$A$90,Bezetting_1!Q$2:Q$90,,0) -> 0 | S9: =D10 -> 2023-10-12 | T9: =E10 -> 19:00 - 02:00u | U9: =IF(F10=0,NA(),F10/$L10) -> 0.3625 | V9: =IF(G10=0,NA(),G10/$L10) -> 0.2125 | Y9: 0.0125 | Z9: 0.4125
D10: =_xlfn.XLOOKUP($B$3,Bezetting_2!$A$2:$A$90,Bezetting_2!C$2:C$90,,0) -> 2023-10-12 | E10: =_xlfn.XLOOKUP($B$3,Bezetting_2!$A$2:$A$90,Bezetting_2!D$2:D$90,,0) -> 19:00 - 02:00u | F10: =_xlfn.XLOOKUP($B$3,Bezetting_2!$A$2:$A$90,Bezetting_2!E$2:E$90,,0) -> 29 | G10: =_xlfn.XLOOKUP($B$3,Bezetting_2!$A$2:$A$90,Bezetting_2!F$2:F$90,,0) -> 17 | H10: =_xlfn.XLOOKUP($B$3,Bezetting_2!$A$2:$A$90,Bezetting_2!G$2:G$90,,0) -> 0 | I10: =_xlfn.XLOOKUP($B$3,Bezetting_2!$A$2:$A$90,Bezetting_2!H$2:H$90,,0) -> 0 | J10: =_xlfn.XLOOKUP($B$3,Bezetting_2!$A$2:$A$90,Bezetting_2!I$2:I$90,,0) -> 1 | K10: =_xlfn.XLOOKUP($B$3,Bezetting_2!$A$2:$A$90,Bezetting_2!J$2:J$90,,0) -> 33 | L10: =_xlfn.XLOOKUP($B$3,Bezetting_2!$A$2:$A$90,Bezetting_2!K$2:K$90,,0) -> 80 | M10: =_xlfn.XLOOKUP($B$3,Bezetting_2!$A$2:$A$90,Bezetting_2!L$2:L$90,,0) -> 0 | N10: =_xlfn.XLOOKUP($B$3,Bezetting_2!$A$2:$A$90,Bezetting_2!M$2:M$90,,0) -> 0 | O10: =_xlfn.XLOOKUP($B$3,Bezetting_2!$A$2:$A$90,Bezetting_2!N$2:N$90,,0) -> 0 | P10: =_xlfn.XLOOKUP($B$3,Bezetting_2!$A$2:$A$90,Bezetting_2!O$2:O$90,,0) -> 0 | Q10: =_xlfn.XLOOKUP($B$3,Bezetting_2!$A$2:$A$90,Bezetting_2!P$2:P$90,,0) -> 0
B11: Meting | F11: =IF(F10=0,"-",F10/$L$10) -> 0.3625 | G11: =IF(G10=0,"-",G10/$L$10) -> 0.2125 | H11: - | I11: - | J11: 0.0125 | K11: 0.4125 | L11: 1 | Q11: =_xlfn.XLOOKUP($B$3,Bezetting_2!$A$2:$A$90,Bezetting_2!Q$2:Q$90,,0) -> 0
B12: ="Meetperiode: "&TEXT(VLOOKUP(B3,Coordinaten!$A:$G,7,0),"dddd dd mmmm jjjj") -> Meetperiode: di 10 & do 12 oktober 2023
B13: Methodiek: Parkeerdrukmeting met waarnemers
B14: In opdracht van: Vlaamse overheid
B15: Uitgevoerd door: Dufec
D16: VERDELING NAAR CATEGORIE
B17: Locatie
B18: =IF(B4="","",HYPERLINK("http://www.googlemaps.com/?q="&B4,"Lat/Long: "&B4)) -> Lat/Long: 51.060329, 4.334348
P20: Legenda
Q21: Personenwagen
Q22: Vracht
Q23: Motor
Q24: Obstakel / overig
Q25: Fout personenwagen
Q26: Fout Vracht
B39: Toelichting
B40: Pers = personenwagens op daarvoor bestemde
B41: openbare plaatsen
B42: Vracht = vrachtwagens op daarvoor bestemde
B43: parkeerplaatsen (middel- en zwaar vrachtverkeer)
B44: Motor = geparkeerde motoren op openbare plaatsen
B45: Obstakel / overig = obstakels of overige voertuigen
B46: geparkeerd op openbare plaatsen
B47: Fout pers = personenwagens die fout geparkeerd staan
B48: Fout vracht = vrachtwagens die fout geparkeerd staan
B49: E-wagen = geparkeerde elektrisch voertuig bij een
B50: elektrisch oplaadpunt
B51: Invalide = personenwagens en motoren op voor
B52: invalide personen bestemde parkeerplaats
B53: Gestalde fietsen = alle gestalde fietsen op de
B54: daarvoor bestemde parkeerplaatsen

Sheet 17.Hasselt-Zuid
B2: PARKEERONDERZOEK | D2: CARPOOLPARKINGS EN P+R PARKINGS
B3: 17 | D3: =B8 & " - "& TEXT(VLOOKUP(B3,Coordinaten!$A$2:$G$95,7,0),"dddd dd mmmm jjjj") -> Carpool parking Hasselt-Zuid, Hasselt - di 10 & do 12 oktober 2023
B4: =VLOOKUP(B3,Coordinaten!$A$2:$G$95,6,0) -> 50.915675, 5.322639
D5: BEZETTING | Q5: OPMERKINGEN
B7: Onderzoeksgebied | D7: Datum | E7: Geregistreerd tussen | F7: Pers | G7: Vracht | H7: Motor | I7: Obstakel / overig | J7: Fout pers | K7: Fout Vracht | L7: Totaal | M7: E-wagen plaats | N7: Invalidenplaats | O7: Gestalde fietsen | U7: =F7 -> Pers | V7: Vracht | W7: Motor | X7: Obstakel / overig | Y7: Fout pers | Z7: Fout Vracht
B8: =VLOOKUP(B3,Coordinaten!$A$2:$G$95,3,0)&", "&VLOOKUP(B3,Coordinaten!$A$2:$G$95,5,0) -> Carpool parking Hasselt-Zuid, Hasselt | D8: =_xlfn.XLOOKUP($B$3,Bezetting_1!$A$2:$A$90,Bezetting_1!C$2:C$90,,0) -> 2023-10-12 | E8: =_xlfn.XLOOKUP($B$3,Bezetting_1!$A$2:$A$90,Bezetting_1!D$2:D$90,,0) -> 09:00 - 16:00u | F8: =_xlfn.XLOOKUP($B$3,Bezetting_1!$A$2:$A$90,Bezetting_1!E$2:E$90,,0) -> 52 | G8: =_xlfn.XLOOKUP($B$3,Bezetting_1!$A$2:$A$90,Bezetting_1!F$2:F$90,,0) -> 0 | H8: =_xlfn.XLOOKUP($B$3,Bezetting_1!$A$2:$A$90,Bezetting_1!G$2:G$90,,0) -> 0 | I8: =_xlfn.XLOOKUP($B$3,Bezetting_1!$A$2:$A$90,Bezetting_1!H$2:H$90,,0) -> 0 | J8: =_xlfn.XLOOKUP($B$3,Bezetting_1!$A$2:$A$90,Bezetting_1!I$2:I$90,,0) -> 0 | K8: =_xlfn.XLOOKUP($B$3,Bezetting_1!$A$2:$A$90,Bezetting_1!J$2:J$90,,0) -> 0 | L8: =_xlfn.XLOOKUP($B$3,Bezetting_1!$A$2:$A$90,Bezetting_1!K$2:K$90,,0) -> 52 | M8: =_xlfn.XLOOKUP($B$3,Bezetting_1!$A$2:$A$90,Bezetting_1!L$2:L$90,,0) -> 1 | N8: =_xlfn.XLOOKUP($B$3,Bezetting_1!$A$2:$A$90,Bezetting_1!M$2:M$90,,0) -> 0 | O8: =_xlfn.XLOOKUP($B$3,Bezetting_1!$A$2:$A$90,Bezetting_1!N$2:N$90,,0) -> 6 | Q8: =_xlfn.XLOOKUP($B$3,Bezetting_1!$A$2:$A$90,Bezetting_1!P$2:P$90,,0) -> 0 | S8: =D8 -> 2023-10-12 | T8: =E8 -> 09:00 - 16:00u | U8: =IF(F8=0,NA(),F8/$L8) -> 1 | V8: =IF(G8=0,NA(),G8/$L8) ->  | W8: =IF(H8=0,NA(),H8/$L8) -> 
B9: ="Nabij kruispunt: "&VLOOKUP(B3,Coordinaten!$A$2:$L$95,4,0) -> Nabij kruispunt: N80 / A13 | F9: =IF(F8=0,"-",F8/$L$8) -> 1 | G9: =IF(G8=0,"-",G8/$L$8) -> - | H9: - | I9: - | J9: - | K9: - | L9: 1 | Q9: =_xlfn.XLOOKUP($B$3,Bezetting_1!$A$2:$A$90,Bezetting_1!Q$2:Q$90,,0) -> 0 | S9: =D10 -> 2023-10-10 | T9: =E10 -> 19:00 - 02:00u | U9: =IF(F10=0,NA(),F10/$L10) -> 1 | V9: =IF(G10=0,NA(),G10/$L10) -> 
D10: =_xlfn.XLOOKUP($B$3,Bezetting_2!$A$2:$A$90,Bezetting_2!C$2:C$90,,0) -> 2023-10-10 | E10: =_xlfn.XLOOKUP($B$3,Bezetting_2!$A$2:$A$90,Bezetting_2!D$2:D$90,,0) -> 19:00 - 02:00u | F10: =_xlfn.XLOOKUP($B$3,Bezetting_2!$A$2:$A$90,Bezetting_2!E$2:E$90,,0) -> 40 | G10: =_xlfn.XLOOKUP($B$3,Bezetting_2!$A$2:$A$90,Bezetting_2!F$2:F$90,,0) -> 0 | H10: =_xlfn.XLOOKUP($B$3,Bezetting_2!$A$2:$A$90,Bezetting_2!G$2:G$90,,0) -> 0 | I10: =_xlfn.XLOOKUP($B$3,Bezetting_2!$A$2:$A$90,Bezetting_2!H$2:H$90,,0) -> 0 | J10: =_xlfn.XLOOKUP($B$3,Bezetting_2!$A$2:$A$90,Bezetting_2!I$2:I$90,,0) -> 0 | K10: =_xlfn.XLOOKUP($B$3,Bezetting_2!$A$2:$A$90,Bezetting_2!J$2:J$90,,0) -> 0 | L10: =_xlfn.XLOOKUP($B$3,Bezetting_2!$A$2:$A$90,Bezetting_2!K$2:K$90,,0) -> 40 | M10: =_xlfn.XLOOKUP($B$3,Bezetting_2!$A$2:$A$90,Bezetting_2!L$2:L$90,,0) -> 0 | N10: =_xlfn.XLOOKUP($B$3,Bezetting_2!$A$2:$A$90,Bezetting_2!M$2:M$90,,0) -> 0 | O10: =_xlfn.XLOOKUP($B$3,Bezetting_2!$A$2:$A$90,Bezetting_2!N$2:N$90,,0) -> 5 | P10: =_xlfn.XLOOKUP($B$3,Bezetting_2!$A$2:$A$90,Bezetting_2!O$2:O$90,,0) -> 0 | Q10: =_xlfn.XLOOKUP($B$3,Bezetting_2!$A$2:$A$90,Bezetting_2!P$2:P$90,,0) -> 0
B11: Meting | F11: =IF(F10=0,"-",F10/$L$10) -> 1 | G11: =IF(G10=0,"-",G10/$L$10) -> - | H11: - | I11: - | J11: - | K11: - | L11: 1 | Q11: =_xlfn.XLOOKUP($B$3,Bezetting_2!$A$2:$A$90,Bezetting_2!Q$2:Q$90,,0) -> 0
B12: ="Meetperiode: "&TEXT(VLOOKUP(B3,Coordinaten!$A:$G,7,0),"dddd dd mmmm jjjj") -> Meetperiode: di 10 & do 12 oktober 2023
B13: Methodiek: Parkeerdrukmeting met waarnemers
B14: In opdracht van: Vlaamse overheid
B15: Uitgevoerd door: Dufec
D16: VERDELING NAAR CATEGORIE
B17: Locatie
B18: =IF(B4="","",HYPERLINK("http://www.googlemaps.com/?q="&B4,"Lat/Long: "&B4)) -> Lat/Long: 50.915675, 5.322639
P20: Legenda
Q21: Personenwagen
Q22: Vracht
Q23: Motor
Q24: Obstakel / overig
Q25: Fout personenwagen
Q26: Fout Vracht
B39: Toelichting
B40: Pers = personenwagens op daarvoor bestemde
B41: openbare plaatsen
B42: Vracht = vrachtwagens op daarvoor bestemde
B43: parkeerplaatsen (middel- en zwaar vrachtverkeer)
B44: Motor = geparkeerde motoren op openbare plaatsen
B45: Obstakel / overig = obstakels of overige voertuigen
B46: geparkeerd op openbare plaatsen
B47: Fout pers = personenwagens die fout geparkeerd staan
B48: Fout vracht = vrachtwagens die fout geparkeerd staan
B49: E-wagen = geparkeerde elektrisch voertuig bij een
B50: elektrisch oplaadpunt
B51: Invalide = personenwagens en motoren op voor
B52: invalide personen bestemde parkeerplaats
B53: Gestalde fietsen = alle gestalde fietsen op de
B54: daarvoor bestemde parkeerplaatsen

Sheet 18.Herentals-West
B2: PARKEERONDERZOEK | D2: CARPOOLPARKINGS EN P+R PARKINGS
B3: 18 | D3: =B8 & " - "& TEXT(VLOOKUP(B3,Coordinaten!$A$2:$G$95,7,0),"dddd dd mmmm jjjj") -> Carpool parking Herentals-West, Grobbendonk - di 10 & do 12 oktober 2023
B4: =VLOOKUP(B3,Coordinaten!$A$2:$G$95,6,0) -> 51.175093, 4.761781
D5: BEZETTING | Q5: OPMERKINGEN
B7: Onderzoeksgebied | D7: Datum | E7: Geregistreerd tussen | F7: Pers | G7: Vracht | H7: Motor | I7: Obstakel / overig | J7: Fout pers | K7: Fout Vracht | L7: Totaal | M7: E-wagen plaats | N7: Invalidenplaats | O7: Gestalde fietsen | U7: =F7 -> Pers | V7: Vracht | W7: Motor | X7: Obstakel / overig | Y7: Fout pers | Z7: Fout Vracht
B8: =VLOOKUP(B3,Coordinaten!$A$2:$G$95,3,0)&", "&VLOOKUP(B3,Coordinaten!$A$2:$G$95,5,0) -> Carpool parking Herentals-West, Grobbendonk | D8: =_xlfn.XLOOKUP($B$3,Bezetting_1!$A$2:$A$90,Bezetting_1!C$2:C$90,,0) -> 2023-10-12 | E8: =_xlfn.XLOOKUP($B$3,Bezetting_1!$A$2:$A$90,Bezetting_1!D$2:D$90,,0) -> 09:00 - 16:00u | F8: =_xlfn.XLOOKUP($B$3,Bezetting_1!$A$2:$A$90,Bezetting_1!E$2:E$90,,0) -> 51 | G8: =_xlfn.XLOOKUP($B$3,Bezetting_1!$A$2:$A$90,Bezetting_1!F$2:F$90,,0) -> 0 | H8: =_xlfn.XLOOKUP($B$3,Bezetting_1!$A$2:$A$90,Bezetting_1!G$2:G$90,,0) -> 0 | I8: =_xlfn.XLOOKUP($B$3,Bezetting_1!$A$2:$A$90,Bezetting_1!H$2:H$90,,0) -> 0 | J8: =_xlfn.XLOOKUP($B$3,Bezetting_1!$A$2:$A$90,Bezetting_1!I$2:I$90,,0) -> 0 | K8: =_xlfn.XLOOKUP($B$3,Bezetting_1!$A$2:$A$90,Bezetting_1!J$2:J$90,,0) -> 0 | L8: =_xlfn.XLOOKUP($B$3,Bezetting_1!$A$2:$A$90,Bezetting_1!K$2:K$90,,0) -> 51 | M8: =_xlfn.XLOOKUP($B$3,Bezetting_1!$A$2:$A$90,Bezetting_1!L$2:L$90,,0) -> 0 | N8: =_xlfn.XLOOKUP($B$3,Bezetting_1!$A$2:$A$90,Bezetting_1!M$2:M$90,,0) -> 0 | O8: =_xlfn.XLOOKUP($B$3,Bezetting_1!$A$2:$A$90,Bezetting_1!N$2:N$90,,0) -> 2 | Q8: =_xlfn.XLOOKUP($B$3,Bezetting_1!$A$2:$A$90,Bezetting_1!P$2:P$90,,0) -> 0 | S8: =D8 -> 2023-10-12 | T8: =E8 -> 09:00 - 16:00u | U8: =IF(F8=0,NA(),F8/$L8) -> 1 | V8: =IF(G8=0,NA(),G8/$L8) ->  | W8: =IF(H8=0,NA(),H8/$L8) -> 
B9: ="Nabij kruispunt: "&VLOOKUP(B3,Coordinaten!$A$2:$L$95,4,0) -> Nabij kruispunt: N13 / A13 | F9: =IF(F8=0,"-",F8/$L$8) -> 1 | G9: =IF(G8=0,"-",G8/$L$8) -> - | H9: - | I9: - | J9: - | K9: - | L9: 1 | Q9: =_xlfn.XLOOKUP($B$3,Bezetting_1!$A$2:$A$90,Bezetting_1!Q$2:Q$90,,0) -> 0 | S9: =D10 -> 2023-10-10 | T9: =E10 -> 19:00 - 02:00u | U9: =IF(F10=0,NA(),F10/$L10) -> 1 | V9: =IF(G10=0,NA(),G10/$L10) -> 
D10: =_xlfn.XLOOKUP($B$3,Bezetting_2!$A$2:$A$90,Bezetting_2!C$2:C$90,,0) -> 2023-10-10 | E10: =_xlfn.XLOOKUP($B$3,Bezetting_2!$A$2:$A$90,Bezetting_2!D$2:D$90,,0) -> 19:00 - 02:00u | F10: =_xlfn.XLOOKUP($B$3,Bezetting_2!$A$2:$A$90,Bezetting_2!E$2:E$90,,0) -> 13 | G10: =_xlfn.XLOOKUP($B$3,Bezetting_2!$A$2:$A$90,Bezetting_2!F$2:F$90,,0) -> 0 | H10: =_xlfn.XLOOKUP($B$3,Bezetting_2!$A$2:$A$90,Bezetting_2!G$2:G$90,,0) -> 0 | I10: =_xlfn.XLOOKUP($B$3,Bezetting_2!$A$2:$A$90,Bezetting_2!H$2:H$90,,0) -> 0 | J10: =_xlfn.XLOOKUP($B$3,Bezetting_2!$A$2:$A$90,Bezetting_2!I$2:I$90,,0) -> 0 | K10: =_xlfn.XLOOKUP($B$3,Bezetting_2!$A$2:$A$90,Bezetting_2!J$2:J$90,,0) -> 0 | L10: =_xlfn.XLOOKUP($B$3,Bezetting_2!$A$2:$A$90,Bezetting_2!K$2:K$90,,0) -> 13 | M10: =_xlfn.XLOOKUP($B$3,Bezetting_2!$A$2:$A$90,Bezetting_2!L$2:L$90,,0) -> 0 | N10: =_xlfn.XLOOKUP($B$3,Bezetting_2!$A$2:$A$90,Bezetting_2!M$2:M$90,,0) -> 0 | O10: =_xlfn.XLOOKUP($B$3,Bezetting_2!$A$2:$A$90,Bezetting_2!N$2:N$90,,0) -> 1 | P10: =_xlfn.XLOOKUP($B$3,Bezetting_2!$A$2:$A$90,Bezetting_2!O$2:O$90,,0) -> 0 | Q10: =_xlfn.XLOOKUP($B$3,Bezetting_2!$A$2:$A$90,Bezetting_2!P$2:P$90,,0) -> 0
B11: Meting | F11: =IF(F10=0,"-",F10/$L$10) -> 1 | G11: =IF(G10=0,"-",G10/$L$10) -> - | H11: - | I11: - | J11: - | K11: - | L11: 1 | Q11: =_xlfn.XLOOKUP($B$3,Bezetting_2!$A$2:$A$90,Bezetting_2!Q$2:Q$90,,0) -> 0
B12: ="Meetperiode: "&TEXT(VLOOKUP(B3,Coordinaten!$A:$G,7,0),"dddd dd mmmm jjjj") -> Meetperiode: di 10 & do 12 oktober 2023
B13: Methodiek: Parkeerdrukmeting met waarnemers
B14: In opdracht van: Vlaamse overheid
B15: Uitgevoerd door: Dufec
D16: VERDELING NAAR CATEGORIE
B17: Locatie
B18: =IF(B4="","",HYPERLINK("http://www.googlemaps.com/?q="&B4,"Lat/Long: "&B4)) -> Lat/Long: 51.175093, 4.761781
P20: Legenda
Q21: Personenwagen
Q22: Vracht
Q23: Motor
Q24: Obstakel / overig
Q25: Fout personenwagen
Q26: Fout Vracht
B39: Toelichting
B40: Pers = personenwagens op daarvoor bestemde
B41: openbare plaatsen
B42: Vracht = vrachtwagens op daarvoor bestemde
B43: parkeerplaatsen (middel- en zwaar vrachtverkeer)
B44: Motor = geparkeerde motoren op openbare plaatsen
B45: Obstakel / overig = obstakels of overige voertuigen
B46: geparkeerd op openbare plaatsen
B47: Fout pers = personenwagens die fout geparkeerd staan
B48: Fout vracht = vrachtwagens die fout geparkeerd staan
B49: E-wagen = geparkeerde elektrisch voertuig bij een
B50: elektrisch oplaadpunt
B51: Invalide = personenwagens en motoren op voor
B52: invalide personen bestemde parkeerplaats
B53: Gestalde fietsen = alle gestalde fietsen op de
B54: daarvoor bestemde parkeerplaatsen

Sheet 19.Rumst
B2: PARKEERONDERZOEK | D2: CARPOOLPARKINGS EN P+R PARKINGS
B3: 19 | D3: =B8 & " - "& TEXT(VLOOKUP(B3,Coordinaten!$A$2:$G$95,7,0),"dddd dd mmmm jjjj") -> Carpool parking Rumst, Rumst - di 10 & do 12 oktober 2023
B4: =VLOOKUP(B3,Coordinaten!$A$2:$G$95,6,0) -> 51.085447, 4.444751
D5: BEZETTING | Q5: OPMERKINGEN
B7: Onderzoeksgebied | D7: Datum | E7: Geregistreerd tussen | F7: Pers | G7: Vracht | H7: Motor | I7: Obstakel / overig | J7: Fout pers | K7: Fout Vracht | L7: Totaal | M7: E-wagen plaats | N7: Invalidenplaats | O7: Gestalde fietsen | U7: =F7 -> Pers | V7: Vracht | W7: Motor | X7: Obstakel / overig | Y7: Fout pers | Z7: Fout Vracht
B8: =VLOOKUP(B3,Coordinaten!$A$2:$G$95,3,0)&", "&VLOOKUP(B3,Coordinaten!$A$2:$G$95,5,0) -> Carpool parking Rumst, Rumst | D8: =_xlfn.XLOOKUP($B$3,Bezetting_1!$A$2:$A$90,Bezetting_1!C$2:C$90,,0) -> 2023-10-12 | E8: =_xlfn.XLOOKUP($B$3,Bezetting_1!$A$2:$A$90,Bezetting_1!D$2:D$90,,0) -> 09:00 - 16:00u | F8: =_xlfn.XLOOKUP($B$3,Bezetting_1!$A$2:$A$90,Bezetting_1!E$2:E$90,,0) -> 43 | G8: =_xlfn.XLOOKUP($B$3,Bezetting_1!$A$2:$A$90,Bezetting_1!F$2:F$90,,0) -> 0 | H8: =_xlfn.XLOOKUP($B$3,Bezetting_1!$A$2:$A$90,Bezetting_1!G$2:G$90,,0) -> 0 | I8: =_xlfn.XLOOKUP($B$3,Bezetting_1!$A$2:$A$90,Bezetting_1!H$2:H$90,,0) -> 0 | J8: =_xlfn.XLOOKUP($B$3,Bezetting_1!$A$2:$A$90,Bezetting_1!I$2:I$90,,0) -> 0 | K8: =_xlfn.XLOOKUP($B$3,Bezetting_1!$A$2:$A$90,Bezetting_1!J$2:J$90,,0) -> 0 | L8: =_xlfn.XLOOKUP($B$3,Bezetting_1!$A$2:$A$90,Bezetting_1!K$2:K$90,,0) -> 43 | M8: =_xlfn.XLOOKUP($B$3,Bezetting_1!$A$2:$A$90,Bezetting_1!L$2:L$90,,0) -> 1 | N8: =_xlfn.XLOOKUP($B$3,Bezetting_1!$A$2:$A$90,Bezetting_1!M$2:M$90,,0) -> 0 | O8: =_xlfn.XLOOKUP($B$3,Bezetting_1!$A$2:$A$90,Bezetting_1!N$2:N$90,,0) -> 7 | Q8: =_xlfn.XLOOKUP($B$3,Bezetting_1!$A$2:$A$90,Bezetting_1!P$2:P$90,,0) -> 0 | S8: =D8 -> 2023-10-12 | T8: =E8 -> 09:00 - 16:00u | U8: =IF(F8=0,NA(),F8/$L8) -> 1 | V8: =IF(G8=0,NA(),G8/$L8) ->  | W8: =IF(H8=0,NA(),H8/$L8) -> 
B9: ="Nabij kruispunt: "&VLOOKUP(B3,Coordinaten!$A$2:$L$95,4,0) -> Nabij kruispunt: N1c / A1 | F9: =IF(F8=0,"-",F8/$L$8) -> 1 | G9: =IF(G8=0,"-",G8/$L$8) -> - | H9: - | I9: - | J9: - | K9: - | L9: 1 | Q9: =_xlfn.XLOOKUP($B$3,Bezetting_1!$A$2:$A$90,Bezetting_1!Q$2:Q$90,,0) -> 0 | S9: =D10 -> 2023-10-12 | T9: =E10 -> 19:00 - 02:00u | U9: =IF(F10=0,NA(),F10/$L10) -> 0.976744186 | V9: =IF(G10=0,NA(),G10/$L10) ->  | Y9: 0.02325581395
D10: =_xlfn.XLOOKUP($B$3,Bezetting_2!$A$2:$A$90,Bezetting_2!C$2:C$90,,0) -> 2023-10-12 | E10: =_xlfn.XLOOKUP($B$3,Bezetting_2!$A$2:$A$90,Bezetting_2!D$2:D$90,,0) -> 19:00 - 02:00u | F10: =_xlfn.XLOOKUP($B$3,Bezetting_2!$A$2:$A$90,Bezetting_2!E$2:E$90,,0) -> 42 | G10: =_xlfn.XLOOKUP($B$3,Bezetting_2!$A$2:$A$90,Bezetting_2!F$2:F$90,,0) -> 0 | H10: =_xlfn.XLOOKUP($B$3,Bezetting_2!$A$2:$A$90,Bezetting_2!G$2:G$90,,0) -> 0 | I10: =_xlfn.XLOOKUP($B$3,Bezetting_2!$A$2:$A$90,Bezetting_2!H$2:H$90,,0) -> 0 | J10: =_xlfn.XLOOKUP($B$3,Bezetting_2!$A$2:$A$90,Bezetting_2!I$2:I$90,,0) -> 1 | K10: =_xlfn.XLOOKUP($B$3,Bezetting_2!$A$2:$A$90,Bezetting_2!J$2:J$90,,0) -> 0 | L10: =_xlfn.XLOOKUP($B$3,Bezetting_2!$A$2:$A$90,Bezetting_2!K$2:K$90,,0) -> 43 | M10: =_xlfn.XLOOKUP($B$3,Bezetting_2!$A$2:$A$90,Bezetting_2!L$2:L$90,,0) -> 2 | N10: =_xlfn.XLOOKUP($B$3,Bezetting_2!$A$2:$A$90,Bezetting_2!M$2:M$90,,0) -> 0 | O10: =_xlfn.XLOOKUP($B$3,Bezetting_2!$A$2:$A$90,Bezetting_2!N$2:N$90,,0) -> 0 | P10: =_xlfn.XLOOKUP($B$3,Bezetting_2!$A$2:$A$90,Bezetting_2!O$2:O$90,,0) -> 0 | Q10: =_xlfn.XLOOKUP($B$3,Bezetting_2!$A$2:$A$90,Bezetting_2!P$2:P$90,,0) -> 0
B11: Meting | F11: =IF(F10=0,"-",F10/$L$10) -> 0.976744186 | G11: =IF(G10=0,"-",G10/$L$10) -> - | H11: - | I11: - | J11: 0.02325581395 | K11: - | L11: 1 | Q11: =_xlfn.XLOOKUP($B$3,Bezetting_2!$A$2:$A$90,Bezetting_2!Q$2:Q$90,,0) -> 0
B12: ="Meetperiode: "&TEXT(VLOOKUP(B3,Coordinaten!$A:$G,7,0),"dddd dd mmmm jjjj") -> Meetperiode: di 10 & do 12 oktober 2023
B13: Methodiek: Parkeerdrukmeting met waarnemers
B14: In opdracht van: Vlaamse overheid
B15: Uitgevoerd door: Dufec
D16: VERDELING NAAR CATEGORIE
B17: Locatie
B18: =IF(B4="","",HYPERLINK("http://www.googlemaps.com/?q="&B4,"Lat/Long: "&B4)) -> Lat/Long: 51.085447, 4.444751
P20: Legenda
Q21: Personenwagen
Q22: Vracht
Q23: Motor
Q24: Obstakel / overig
Q25: Fout personenwagen
Q26: Fout Vracht
B39: Toelichting
B40: Pers = personenwagens op daarvoor bestemde
B41: openbare plaatsen
B42: Vracht = vrachtwagens op daarvoor bestemde
B43: parkeerplaatsen (middel- en zwaar vrachtverkeer)
B44: Motor = geparkeerde motoren op openbare plaatsen
B45: Obstakel / overig = obstakels of overige voertuigen
B46: geparkeerd op openbare plaatsen
B47: Fout pers = personenwagens die fout geparkeerd staan
B48: Fout vracht = vrachtwagens die fout geparkeerd staan
B49: E-wagen = geparkeerde elektrisch voertuig bij een
B50: elektrisch oplaadpunt
B51: Invalide = personenwagens en motoren op voor
B52: invalide personen bestemde parkeerplaats
B53: Gestalde fietsen = alle gestalde fietsen op de
B54: daarvoor bestemde parkeerplaatsen

Sheet 20.Paal
B2: PARKEERONDERZOEK | D2: CARPOOLPARKINGS EN P+R PARKINGS
B3: 20 | D3: =B8 & " - "& TEXT(VLOOKUP(B3,Coordinaten!$A$2:$G$95,7,0),"dddd dd mmmm jjjj") -> Carpool parking Paal, Beringen - di 10 & do 12 oktober 2023
B4: =VLOOKUP(B3,Coordinaten!$A$2:$G$95,6,0) -> 51.043187, 5.186305
D5: BEZETTING | Q5: OPMERKINGEN
B7: Onderzoeksgebied | D7: Datum | E7: Geregistreerd tussen | F7: Pers | G7: Vracht | H7: Motor | I7: Obstakel / overig | J7: Fout pers | K7: Fout Vracht | L7: Totaal | M7: E-wagen plaats | N7: Invalidenplaats | O7: Gestalde fietsen | U7: =F7 -> Pers | V7: Vracht | W7: Motor | X7: Obstakel / overig | Y7: Fout pers | Z7: Fout Vracht
B8: =VLOOKUP(B3,Coordinaten!$A$2:$G$95,3,0)&", "&VLOOKUP(B3,Coordinaten!$A$2:$G$95,5,0) -> Carpool parking Paal, Beringen | D8: =_xlfn.XLOOKUP($B$3,Bezetting_1!$A$2:$A$90,Bezetting_1!C$2:C$90,,0) -> 2023-10-12 | E8: =_xlfn.XLOOKUP($B$3,Bezetting_1!$A$2:$A$90,Bezetting_1!D$2:D$90,,0) -> 09:00 - 16:00u | F8: =_xlfn.XLOOKUP($B$3,Bezetting_1!$A$2:$A$90,Bezetting_1!E$2:E$90,,0) -> 72 | G8: =_xlfn.XLOOKUP($B$3,Bezetting_1!$A$2:$A$90,Bezetting_1!F$2:F$90,,0) -> 0 | H8: =_xlfn.XLOOKUP($B$3,Bezetting_1!$A$2:$A$90,Bezetting_1!G$2:G$90,,0) -> 0 | I8: =_xlfn.XLOOKUP($B$3,Bezetting_1!$A$2:$A$90,Bezetting_1!H$2:H$90,,0) -> 0 | J8: =_xlfn.XLOOKUP($B$3,Bezetting_1!$A$2:$A$90,Bezetting_1!I$2:I$90,,0) -> 0 | K8: =_xlfn.XLOOKUP($B$3,Bezetting_1!$A$2:$A$90,Bezetting_1!J$2:J$90,,0) -> 0 | L8: =_xlfn.XLOOKUP($B$3,Bezetting_1!$A$2:$A$90,Bezetting_1!K$2:K$90,,0) -> 72 | M8: =_xlfn.XLOOKUP($B$3,Bezetting_1!$A$2:$A$90,Bezetting_1!L$2:L$90,,0) -> 0 | N8: =_xlfn.XLOOKUP($B$3,Bezetting_1!$A$2:$A$90,Bezetting_1!M$2:M$90,,0) -> 0 | O8: =_xlfn.XLOOKUP($B$3,Bezetting_1!$A$2:$A$90,Bezetting_1!N$2:N$90,,0) -> 2 | Q8: =_xlfn.XLOOKUP($B$3,Bezetting_1!$A$2:$A$90,Bezetting_1!P$2:P$90,,0) -> 0 | S8: =D8 -> 2023-10-12 | T8: =E8 -> 09:00 - 16:00u | U8: =IF(F8=0,NA(),F8/$L8) -> 1 | V8: =IF(G8=0,NA(),G8/$L8) ->  | W8: =IF(H8=0,NA(),H8/$L8) -> 
B9: ="Nabij kruispunt: "&VLOOKUP(B3,Coordinaten!$A$2:$L$95,4,0) -> Nabij kruispunt: N29 / A13 | F9: =IF(F8=0,"-",F8/$L$8) -> 1 | G9: =IF(G8=0,"-",G8/$L$8) -> - | H9: - | I9: - | J9: - | K9: - | L9: 1 | Q9: =_xlfn.XLOOKUP($B$3,Bezetting_1!$A$2:$A$90,Bezetting_1!Q$2:Q$90,,0) -> 0 | S9: =D10 -> 2023-10-10 | T9: =E10 -> 19:00 - 02:00u | U9: =IF(F10=0,NA(),F10/$L10) -> 1 | V9: =IF(G10=0,NA(),G10/$L10) -> 
D10: =_xlfn.XLOOKUP($B$3,Bezetting_2!$A$2:$A$90,Bezetting_2!C$2:C$90,,0) -> 2023-10-10 | E10: =_xlfn.XLOOKUP($B$3,Bezetting_2!$A$2:$A$90,Bezetting_2!D$2:D$90,,0) -> 19:00 - 02:00u | F10: =_xlfn.XLOOKUP($B$3,Bezetting_2!$A$2:$A$90,Bezetting_2!E$2:E$90,,0) -> 19 | G10: =_xlfn.XLOOKUP($B$3,Bezetting_2!$A$2:$A$90,Bezetting_2!F$2:F$90,,0) -> 0 | H10: =_xlfn.XLOOKUP($B$3,Bezetting_2!$A$2:$A$90,Bezetting_2!G$2:G$90,,0) -> 0 | I10: =_xlfn.XLOOKUP($B$3,Bezetting_2!$A$2:$A$90,Bezetting_2!H$2:H$90,,0) -> 0 | J10: =_xlfn.XLOOKUP($B$3,Bezetting_2!$A$2:$A$90,Bezetting_2!I$2:I$90,,0) -> 0 | K10: =_xlfn.XLOOKUP($B$3,Bezetting_2!$A$2:$A$90,Bezetting_2!J$2:J$90,,0) -> 0 | L10: =_xlfn.XLOOKUP($B$3,Bezetting_2!$A$2:$A$90,Bezetting_2!K$2:K$90,,0) -> 19 | M10: =_xlfn.XLOOKUP($B$3,Bezetting_2!$A$2:$A$90,Bezetting_2!L$2:L$90,,0) -> 0 | N10: =_xlfn.XLOOKUP($B$3,Bezetting_2!$A$2:$A$90,Bezetting_2!M$2:M$90,,0) -> 0 | O10: =_xlfn.XLOOKUP($B$3,Bezetting_2!$A$2:$A$90,Bezetting_2!N$2:N$90,,0) -> 1 | P10: =_xlfn.XLOOKUP($B$3,Bezetting_2!$A$2:$A$90,Bezetting_2!O$2:O$90,,0) -> 0 | Q10: =_xlfn.XLOOKUP($B$3,Bezetting_2!$A$2:$A$90,Bezetting_2!P$2:P$90,,0) -> 0
B11: Meting | F11: =IF(F10=0,"-",F10/$L$10) -> 1 | G11: =IF(G10=0,"-",G10/$L$10) -> - | H11: - | I11: - | J11: - | K11: - | L11: 1 | Q11: =_xlfn.XLOOKUP($B$3,Bezetting_2!$A$2:$A$90,Bezetting_2!Q$2:Q$90,,0) -> 0
B12: ="Meetperiode: "&TEXT(VLOOKUP(B3,Coordinaten!$A:$G,7,0),"dddd dd mmmm jjjj") -> Meetperiode: di 10 & do 12 oktober 2023
B13: Methodiek: Parkeerdrukmeting met waarnemers
B14: In opdracht van: Vlaamse overheid
B15: Uitgevoerd door: Dufec
D16: VERDELING NAAR CATEGORIE
B17: Locatie
B18: =IF(B4="","",HYPERLINK("http://www.googlemaps.com/?q="&B4,"Lat/Long: "&B4)) -> Lat/Long: 51.043187, 5.186305
P20: Legenda
Q21: Personenwagen
Q22: Vracht
Q23: Motor
Q24: Obstakel / overig
Q25: Fout personenwagen
Q26: Fout Vracht
B39: Toelichting
B40: Pers = personenwagens op daarvoor bestemde
B41: openbare plaatsen
B42: Vracht = vrachtwagens op daarvoor bestemde
B43: parkeerplaatsen (middel- en zwaar vrachtverkeer)
B44: Motor = geparkeerde motoren op openbare plaatsen
B45: Obstakel / overig = obstakels of overige voertuigen
B46: geparkeerd op openbare plaatsen
B47: Fout pers = personenwagens die fout geparkeerd staan
B48: Fout vracht = vrachtwagens die fout geparkeerd staan
B49: E-wagen = geparkeerde elektrisch voertuig bij een
B50: elektrisch oplaadpunt
B51: Invalide = personenwagens en motoren op voor
B52: invalide personen bestemde parkeerplaats
B53: Gestalde fietsen = alle gestalde fietsen op de
B54: daarvoor bestemde parkeerplaatsen

Sheet 21.Lummen
B2: PARKEERONDERZOEK | D2: CARPOOLPARKINGS EN P+R PARKINGS
B3: 21 | D3: =B8 & " - "& TEXT(VLOOKUP(B3,Coordinaten!$A$2:$G$95,7,0),"dddd dd mmmm jjjj") -> Carpool parking Lummen, Lummen - di 10 & do 12 oktober 2023
B4: =VLOOKUP(B3,Coordinaten!$A$2:$G$95,6,0) -> 50.997621, 5.197778
D5: BEZETTING | Q5: OPMERKINGEN
B7: Onderzoeksgebied | D7: Datum | E7: Geregistreerd tussen | F7: Pers | G7: Vracht | H7: Motor | I7: Obstakel / overig | J7: Fout pers | K7: Fout Vracht | L7: Totaal | M7: E-wagen plaats | N7: Invalidenplaats | O7: Gestalde fietsen | U7: =F7 -> Pers | V7: Vracht | W7: Motor | X7: Obstakel / overig | Y7: Fout pers | Z7: Fout Vracht
B8: =VLOOKUP(B3,Coordinaten!$A$2:$G$95,3,0)&", "&VLOOKUP(B3,Coordinaten!$A$2:$G$95,5,0) -> Carpool parking Lummen, Lummen | D8: =_xlfn.XLOOKUP($B$3,Bezetting_1!$A$2:$A$90,Bezetting_1!C$2:C$90,,0) -> 2023-10-12 | E8: =_xlfn.XLOOKUP($B$3,Bezetting_1!$A$2:$A$90,Bezetting_1!D$2:D$90,,0) -> 09:00 - 16:00u | F8: =_xlfn.XLOOKUP($B$3,Bezetting_1!$A$2:$A$90,Bezetting_1!E$2:E$90,,0) -> 269 | G8: =_xlfn.XLOOKUP($B$3,Bezetting_1!$A$2:$A$90,Bezetting_1!F$2:F$90,,0) -> 0 | H8: =_xlfn.XLOOKUP($B$3,Bezetting_1!$A$2:$A$90,Bezetting_1!G$2:G$90,,0) -> 1 | I8: =_xlfn.XLOOKUP($B$3,Bezetting_1!$A$2:$A$90,Bezetting_1!H$2:H$90,,0) -> 0 | J8: =_xlfn.XLOOKUP($B$3,Bezetting_1!$A$2:$A$90,Bezetting_1!I$2:I$90,,0) -> 4 | K8: =_xlfn.XLOOKUP($B$3,Bezetting_1!$A$2:$A$90,Bezetting_1!J$2:J$90,,0) -> 0 | L8: =_xlfn.XLOOKUP($B$3,Bezetting_1!$A$2:$A$90,Bezetting_1!K$2:K$90,,0) -> 274 | M8: =_xlfn.XLOOKUP($B$3,Bezetting_1!$A$2:$A$90,Bezetting_1!L$2:L$90,,0) -> 0 | N8: =_xlfn.XLOOKUP($B$3,Bezetting_1!$A$2:$A$90,Bezetting_1!M$2:M$90,,0) -> 0 | O8: =_xlfn.XLOOKUP($B$3,Bezetting_1!$A$2:$A$90,Bezetting_1!N$2:N$90,,0) -> 4 | Q8: =_xlfn.XLOOKUP($B$3,Bezetting_1!$A$2:$A$90,Bezetting_1!P$2:P$90,,0) -> 0 | S8: =D8 -> 2023-10-12 | T8: =E8 -> 09:00 - 16:00u | U8: =IF(F8=0,NA(),F8/$L8) -> 0.9817518248 | V8: =IF(G8=0,NA(),G8/$L8) ->  | W8: =IF(H8=0,NA(),H8/$L8) -> 0.003649635036 | Y8: 0.01459854015
B9: ="Nabij kruispunt: "&VLOOKUP(B3,Coordinaten!$A$2:$L$95,4,0) -> Nabij kruispunt: N717 / A2 | F9: =IF(F8=0,"-",F8/$L$8) -> 0.9817518248 | G9: =IF(G8=0,"-",G8/$L$8) -> - | H9: 0.003649635036 | I9: - | J9: 0.01459854015 | K9: - | L9: 1 | Q9: =_xlfn.XLOOKUP($B$3,Bezetting_1!$A$2:$A$90,Bezetting_1!Q$2:Q$90,,0) -> 0 | S9: =D10 -> 2023-10-10 | T9: =E10 -> 19:00 - 02:00u | U9: =IF(F10=0,NA(),F10/$L10) -> 1 | V9: =IF(G10=0,NA(),G10/$L10) -> 
D10: =_xlfn.XLOOKUP($B$3,Bezetting_2!$A$2:$A$90,Bezetting_2!C$2:C$90,,0) -> 2023-10-10 | E10: =_xlfn.XLOOKUP($B$3,Bezetting_2!$A$2:$A$90,Bezetting_2!D$2:D$90,,0) -> 19:00 - 02:00u | F10: =_xlfn.XLOOKUP($B$3,Bezetting_2!$A$2:$A$90,Bezetting_2!E$2:E$90,,0) -> 109 | G10: =_xlfn.XLOOKUP($B$3,Bezetting_2!$A$2:$A$90,Bezetting_2!F$2:F$90,,0) -> 0 | H10: =_xlfn.XLOOKUP($B$3,Bezetting_2!$A$2:$A$90,Bezetting_2!G$2:G$90,,0) -> 0 | I10: =_xlfn.XLOOKUP($B$3,Bezetting_2!$A$2:$A$90,Bezetting_2!H$2:H$90,,0) -> 0 | J10: =_xlfn.XLOOKUP($B$3,Bezetting_2!$A$2:$A$90,Bezetting_2!I$2:I$90,,0) -> 0 | K10: =_xlfn.XLOOKUP($B$3,Bezetting_2!$A$2:$A$90,Bezetting_2!J$2:J$90,,0) -> 0 | L10: =_xlfn.XLOOKUP($B$3,Bezetting_2!$A$2:$A$90,Bezetting_2!K$2:K$90,,0) -> 109 | M10: =_xlfn.XLOOKUP($B$3,Bezetting_2!$A$2:$A$90,Bezetting_2!L$2:L$90,,0) -> 0 | N10: =_xlfn.XLOOKUP($B$3,Bezetting_2!$A$2:$A$90,Bezetting_2!M$2:M$90,,0) -> 0 | O10: =_xlfn.XLOOKUP($B$3,Bezetting_2!$A$2:$A$90,Bezetting_2!N$2:N$90,,0) -> 0 | P10: =_xlfn.XLOOKUP($B$3,Bezetting_2!$A$2:$A$90,Bezetting_2!O$2:O$90,,0) -> 0 | Q10: =_xlfn.XLOOKUP($B$3,Bezetting_2!$A$2:$A$90,Bezetting_2!P$2:P$90,,0) -> 0
B11: Meting | F11: =IF(F10=0,"-",F10/$L$10) -> 1 | G11: =IF(G10=0,"-",G10/$L$10) -> - | H11: - | I11: - | J11: - | K11: - | L11: 1 | Q11: =_xlfn.XLOOKUP($B$3,Bezetting_2!$A$2:$A$90,Bezetting_2!Q$2:Q$90,,0) -> 0
B12: ="Meetperiode: "&TEXT(VLOOKUP(B3,Coordinaten!$A:$G,7,0),"dddd dd mmmm jjjj") -> Meetperiode: di 10 & do 12 oktober 2023
B13: Methodiek: Parkeerdrukmeting met waarnemers
B14: In opdracht van: Vlaamse overheid
B15: Uitgevoerd door: Dufec
D16: VERDELING NAAR CATEGORIE
B17: Locatie
B18: =IF(B4="","",HYPERLINK("http://www.googlemaps.com/?q="&B4,"Lat/Long: "&B4)) -> Lat/Long: 50.997621, 5.197778
P20: Legenda
Q21: Personenwagen
Q22: Vracht
Q23: Motor
Q24: Obstakel / overig
Q25: Fout personenwagen
Q26: Fout Vracht
B39: Toelichting
B40: Pers = personenwagens op daarvoor bestemde
B41: openbare plaatsen
B42: Vracht = vrachtwagens op daarvoor bestemde
B43: parkeerplaatsen (middel- en zwaar vrachtverkeer)
B44: Motor = geparkeerde motoren op openbare plaatsen
B45: Obstakel / overig = obstakels of overige voertuigen
B46: geparkeerd op openbare plaatsen
B47: Fout pers = personenwagens die fout geparkeerd staan
B48: Fout vracht = vrachtwagens die fout geparkeerd staan
B49: E-wagen = geparkeerde elektrisch voertuig bij een
B50: elektrisch oplaadpunt
B51: Invalide = personenwagens en motoren op voor
B52: invalide personen bestemde parkeerplaats
B53: Gestalde fietsen = alle gestalde fietsen op de
B54: daarvoor bestemde parkeerplaatsen

Sheet 22.Halen
B2: PARKEERONDERZOEK | D2: CARPOOLPARKINGS EN P+R PARKINGS
B3: 22 | D3: =B8 & " - "& TEXT(VLOOKUP(B3,Coordinaten!$A$2:$G$95,7,0),"dddd dd mmmm jjjj") -> Carpool parking Halen, Halen - di 10 & do 12 oktober 2023
B4: =VLOOKUP(B3,Coordinaten!$A$2:$G$95,6,0) -> 50.962073, 5.083806
D5: BEZETTING | Q5: OPMERKINGEN
B7: Onderzoeksgebied | D7: Datum | E7: Geregistreerd tussen | F7: Pers | G7: Vracht | H7: Motor | I7: Obstakel / overig | J7: Fout pers | K7: Fout Vracht | L7: Totaal | M7: E-wagen plaats | N7: Invalidenplaats | O7: Gestalde fietsen | U7: =F7 -> Pers | V7: Vracht | W7: Motor | X7: Obstakel / overig | Y7: Fout pers | Z7: Fout Vracht
B8: =VLOOKUP(B3,Coordinaten!$A$2:$G$95,3,0)&", "&VLOOKUP(B3,Coordinaten!$A$2:$G$95,5,0) -> Carpool parking Halen, Halen | D8: =_xlfn.XLOOKUP($B$3,Bezetting_1!$A$2:$A$90,Bezetting_1!C$2:C$90,,0) -> 2023-10-12 | E8: =_xlfn.XLOOKUP($B$3,Bezetting_1!$A$2:$A$90,Bezetting_1!D$2:D$90,,0) -> 09:00 - 16:00u | F8: =_xlfn.XLOOKUP($B$3,Bezetting_1!$A$2:$A$90,Bezetting_1!E$2:E$90,,0) -> 49 | G8: =_xlfn.XLOOKUP($B$3,Bezetting_1!$A$2:$A$90,Bezetting_1!F$2:F$90,,0) -> 0 | H8: =_xlfn.XLOOKUP($B$3,Bezetting_1!$A$2:$A$90,Bezetting_1!G$2:G$90,,0) -> 1 | I8: =_xlfn.XLOOKUP($B$3,Bezetting_1!$A$2:$A$90,Bezetting_1!H$2:H$90,,0) -> 2 | J8: =_xlfn.XLOOKUP($B$3,Bezetting_1!$A$2:$A$90,Bezetting_1!I$2:I$90,,0) -> 0 | K8: =_xlfn.XLOOKUP($B$3,Bezetting_1!$A$2:$A$90,Bezetting_1!J$2:J$90,,0) -> 1 | L8: =_xlfn.XLOOKUP($B$3,Bezetting_1!$A$2:$A$90,Bezetting_1!K$2:K$90,,0) -> 53 | M8: =_xlfn.XLOOKUP($B$3,Bezetting_1!$A$2:$A$90,Bezetting_1!L$2:L$90,,0) -> 1 | N8: =_xlfn.XLOOKUP($B$3,Bezetting_1!$A$2:$A$90,Bezetting_1!M$2:M$90,,0) -> 0 | O8: =_xlfn.XLOOKUP($B$3,Bezetting_1!$A$2:$A$90,Bezetting_1!N$2:N$90,,0) -> 1 | Q8: =_xlfn.XLOOKUP($B$3,Bezetting_1!$A$2:$A$90,Bezetting_1!P$2:P$90,,0) -> Overig: 2x aanhanger | S8: =D8 -> 2023-10-12 | T8: =E8 -> 09:00 - 16:00u | U8: =IF(F8=0,NA(),F8/$L8) -> 0.9245283019 | V8: =IF(G8=0,NA(),G8/$L8) ->  | W8: =IF(H8=0,NA(),H8/$L8) -> 0.01886792453 | X8: 0.03773584906 | Z8: 0.01886792453
B9: ="Nabij kruispunt: "&VLOOKUP(B3,Coordinaten!$A$2:$L$95,4,0) -> Nabij kruispunt: N2 / A2 | F9: =IF(F8=0,"-",F8/$L$8) -> 0.9245283019 | G9: =IF(G8=0,"-",G8/$L$8) -> - | H9: 0.01886792453 | I9: 0.03773584906 | J9: - | K9: 0.01886792453 | L9: 1 | Q9: =_xlfn.XLOOKUP($B$3,Bezetting_1!$A$2:$A$90,Bezetting_1!Q$2:Q$90,,0) -> 0 | S9: =D10 -> 2023-10-10 | T9: =E10 -> 19:00 - 02:00u | U9: =IF(F10=0,NA(),F10/$L10) -> 0.9523809524 | V9: =IF(G10=0,NA(),G10/$L10) ->  | X9: 0.04761904762
D10: =_xlfn.XLOOKUP($B$3,Bezetting_2!$A$2:$A$90,Bezetting_2!C$2:C$90,,0) -> 2023-10-10 | E10: =_xlfn.XLOOKUP($B$3,Bezetting_2!$A$2:$A$90,Bezetting_2!D$2:D$90,,0) -> 19:00 - 02:00u | F10: =_xlfn.XLOOKUP($B$3,Bezetting_2!$A$2:$A$90,Bezetting_2!E$2:E$90,,0) -> 20 | G10: =_xlfn.XLOOKUP($B$3,Bezetting_2!$A$2:$A$90,Bezetting_2!F$2:F$90,,0) -> 0 | H10: =_xlfn.XLOOKUP($B$3,Bezetting_2!$A$2:$A$90,Bezetting_2!G$2:G$90,,0) -> 0 | I10: =_xlfn.XLOOKUP($B$3,Bezetting_2!$A$2:$A$90,Bezetting_2!H$2:H$90,,0) -> 1 | J10: =_xlfn.XLOOKUP($B$3,Bezetting_2!$A$2:$A$90,Bezetting_2!I$2:I$90,,0) -> 0 | K10: =_xlfn.XLOOKUP($B$3,Bezetting_2!$A$2:$A$90,Bezetting_2!J$2:J$90,,0) -> 0 | L10: =_xlfn.XLOOKUP($B$3,Bezetting_2!$A$2:$A$90,Bezetting_2!K$2:K$90,,0) -> 21 | M10: =_xlfn.XLOOKUP($B$3,Bezetting_2!$A$2:$A$90,Bezetting_2!L$2:L$90,,0) -> 0 | N10: =_xlfn.XLOOKUP($B$3,Bezetting_2!$A$2:$A$90,Bezetting_2!M$2:M$90,,0) -> 0 | O10: =_xlfn.XLOOKUP($B$3,Bezetting_2!$A$2:$A$90,Bezetting_2!N$2:N$90,,0) -> 0 | P10: =_xlfn.XLOOKUP($B$3,Bezetting_2!$A$2:$A$90,Bezetting_2!O$2:O$90,,0) -> 0 | Q10: =_xlfn.XLOOKUP($B$3,Bezetting_2!$A$2:$A$90,Bezetting_2!P$2:P$90,,0) -> Overig: aanhanger
B11: Meting | F11: =IF(F10=0,"-",F10/$L$10) -> 0.9523809524 | G11: =IF(G10=0,"-",G10/$L$10) -> - | H11: - | I11: 0.04761904762 | J11: - | K11: - | L11: 1 | Q11: =_xlfn.XLOOKUP($B$3,Bezetting_2!$A$2:$A$90,Bezetting_2!Q$2:Q$90,,0) -> 0
B12: ="Meetperiode: "&TEXT(VLOOKUP(B3,Coordinaten!$A:$G,7,0),"dddd dd mmmm jjjj") -> Meetperiode: di 10 & do 12 oktober 2023
B13: Methodiek: Parkeerdrukmeting met waarnemers
B14: In opdracht van: Vlaamse overheid
B15: Uitgevoerd door: Dufec
D16: VERDELING NAAR CATEGORIE
B17: Locatie
B18: =IF(B4="","",HYPERLINK("http://www.googlemaps.com/?q="&B4,"Lat/Long: "&B4)) -> Lat/Long: 50.962073, 5.083806
P20: Legenda
Q21: Personenwagen
Q22: Vracht
Q23: Motor
Q24: Obstakel / overig
Q25: Fout personenwagen
Q26: Fout Vracht
B39: Toelichting
B40: Pers = personenwagens op daarvoor bestemde
B41: openbare plaatsen
B42: Vracht = vrachtwagens op daarvoor bestemde
B43: parkeerplaatsen (middel- en zwaar vrachtverkeer)
B44: Motor = geparkeerde motoren op openbare plaatsen
B45: Obstakel / overig = obstakels of overige voertuigen
B46: geparkeerd op openbare plaatsen
B47: Fout pers = personenwagens die fout geparkeerd staan
B48: Fout vracht = vrachtwagens die fout geparkeerd staan
B49: E-wagen = geparkeerde elektrisch voertuig bij een
B50: elektrisch oplaadpunt
B51: Invalide = personenwagens en motoren op voor
B52: invalide personen bestemde parkeerplaats
B53: Gestalde fietsen = alle gestalde fietsen op de
B54: daarvoor bestemde parkeerplaatsen

Sheet 23.Maasmechelen
B2: PARKEERONDERZOEK | D2: CARPOOLPARKINGS EN P+R PARKINGS
B3: 23 | D3: =B8 & " - "& TEXT(VLOOKUP(B3,Coordinaten!$A$2:$G$95,7,0),"dddd dd mmmm jjjj") -> Carpool parking Maasmechelen, Maasmechelen - di 10 & do 12 oktober 2023
B4: =VLOOKUP(B3,Coordinaten!$A$2:$G$95,6,0) -> 50.954058, 5.694835
D5: BEZETTING | Q5: OPMERKINGEN
B7: Onderzoeksgebied | D7: Datum | E7: Geregistreerd tussen | F7: Pers | G7: Vracht | H7: Motor | I7: Obstakel / overig | J7: Fout pers | K7: Fout Vracht | L7: Totaal | M7: E-wagen plaats | N7: Invalidenplaats | O7: Gestalde fietsen | U7: =F7 -> Pers | V7: Vracht | W7: Motor | X7: Obstakel / overig | Y7: Fout pers | Z7: Fout Vracht
B8: =VLOOKUP(B3,Coordinaten!$A$2:$G$95,3,0)&", "&VLOOKUP(B3,Coordinaten!$A$2:$G$95,5,0) -> Carpool parking Maasmechelen, Maasmechelen | D8: =_xlfn.XLOOKUP($B$3,Bezetting_1!$A$2:$A$90,Bezetting_1!C$2:C$90,,0) -> 2023-10-12 | E8: =_xlfn.XLOOKUP($B$3,Bezetting_1!$A$2:$A$90,Bezetting_1!D$2:D$90,,0) -> 09:00 - 16:00u | F8: =_xlfn.XLOOKUP($B$3,Bezetting_1!$A$2:$A$90,Bezetting_1!E$2:E$90,,0) -> 57 | G8: =_xlfn.XLOOKUP($B$3,Bezetting_1!$A$2:$A$90,Bezetting_1!F$2:F$90,,0) -> 0 | H8: =_xlfn.XLOOKUP($B$3,Bezetting_1!$A$2:$A$90,Bezetting_1!G$2:G$90,,0) -> 0 | I8: =_xlfn.XLOOKUP($B$3,Bezetting_1!$A$2:$A$90,Bezetting_1!H$2:H$90,,0) -> 1 | J8: =_xlfn.XLOOKUP($B$3,Bezetting_1!$A$2:$A$90,Bezetting_1!I$2:I$90,,0) -> 0 | K8: =_xlfn.XLOOKUP($B$3,Bezetting_1!$A$2:$A$90,Bezetting_1!J$2:J$90,,0) -> 0 | L8: =_xlfn.XLOOKUP($B$3,Bezetting_1!$A$2:$A$90,Bezetting_1!K$2:K$90,,0) -> 58 | M8: =_xlfn.XLOOKUP($B$3,Bezetting_1!$A$2:$A$90,Bezetting_1!L$2:L$90,,0) -> 0 | N8: =_xlfn.XLOOKUP($B$3,Bezetting_1!$A$2:$A$90,Bezetting_1!M$2:M$90,,0) -> 0 | O8: =_xlfn.XLOOKUP($B$3,Bezetting_1!$A$2:$A$90,Bezetting_1!N$2:N$90,,0) -> 1 | Q8: =_xlfn.XLOOKUP($B$3,Bezetting_1!$A$2:$A$90,Bezetting_1!P$2:P$90,,0) -> Overig: aanhanger | S8: =D8 -> 2023-10-12 | T8: =E8 -> 09:00 - 16:00u | U8: =IF(F8=0,NA(),F8/$L8) -> 0.9827586207 | V8: =IF(G8=0,NA(),G8/$L8) ->  | W8: =IF(H8=0,NA(),H8/$L8) ->  | X8: 0.01724137931
B9: ="Nabij kruispunt: "&VLOOKUP(B3,Coordinaten!$A$2:$L$95,4,0) -> Nabij kruispunt: N78 / E314 | F9: =IF(F8=0,"-",F8/$L$8) -> 0.9827586207 | G9: =IF(G8=0,"-",G8/$L$8) -> - | H9: - | I9: 0.01724137931 | J9: - | K9: - | L9: 1 | Q9: =_xlfn.XLOOKUP($B$3,Bezetting_1!$A$2:$A$90,Bezetting_1!Q$2:Q$90,,0) -> 0 | S9: =D10 -> 2023-10-10 | T9: =E10 -> 19:00 - 02:00u | U9: =IF(F10=0,NA(),F10/$L10) -> 1 | V9: =IF(G10=0,NA(),G10/$L10) -> 
D10: =_xlfn.XLOOKUP($B$3,Bezetting_2!$A$2:$A$90,Bezetting_2!C$2:C$90,,0) -> 2023-10-10 | E10: =_xlfn.XLOOKUP($B$3,Bezetting_2!$A$2:$A$90,Bezetting_2!D$2:D$90,,0) -> 19:00 - 02:00u | F10: =_xlfn.XLOOKUP($B$3,Bezetting_2!$A$2:$A$90,Bezetting_2!E$2:E$90,,0) -> 49 | G10: =_xlfn.XLOOKUP($B$3,Bezetting_2!$A$2:$A$90,Bezetting_2!F$2:F$90,,0) -> 0 | H10: =_xlfn.XLOOKUP($B$3,Bezetting_2!$A$2:$A$90,Bezetting_2!G$2:G$90,,0) -> 0 | I10: =_xlfn.XLOOKUP($B$3,Bezetting_2!$A$2:$A$90,Bezetting_2!H$2:H$90,,0) -> 0 | J10: =_xlfn.XLOOKUP($B$3,Bezetting_2!$A$2:$A$90,Bezetting_2!I$2:I$90,,0) -> 0 | K10: =_xlfn.XLOOKUP($B$3,Bezetting_2!$A$2:$A$90,Bezetting_2!J$2:J$90,,0) -> 0 | L10: =_xlfn.XLOOKUP($B$3,Bezetting_2!$A$2:$A$90,Bezetting_2!K$2:K$90,,0) -> 49 | M10: =_xlfn.XLOOKUP($B$3,Bezetting_2!$A$2:$A$90,Bezetting_2!L$2:L$90,,0) -> 3 | N10: =_xlfn.XLOOKUP($B$3,Bezetting_2!$A$2:$A$90,Bezetting_2!M$2:M$90,,0) -> 1 | O10: =_xlfn.XLOOKUP($B$3,Bezetting_2!$A$2:$A$90,Bezetting_2!N$2:N$90,,0) -> 1 | P10: =_xlfn.XLOOKUP($B$3,Bezetting_2!$A$2:$A$90,Bezetting_2!O$2:O$90,,0) -> 0 | Q10: =_xlfn.XLOOKUP($B$3,Bezetting_2!$A$2:$A$90,Bezetting_2!P$2:P$90,,0) -> 0
B11: Meting | F11: =IF(F10=0,"-",F10/$L$10) -> 1 | G11: =IF(G10=0,"-",G10/$L$10) -> - | H11: - | I11: - | J11: - | K11: - | L11: 1 | Q11: =_xlfn.XLOOKUP($B$3,Bezetting_2!$A$2:$A$90,Bezetting_2!Q$2:Q$90,,0) -> 0
B12: ="Meetperiode: "&TEXT(VLOOKUP(B3,Coordinaten!$A:$G,7,0),"dddd dd mmmm jjjj") -> Meetperiode: di 10 & do 12 oktober 2023
B13: Methodiek: Parkeerdrukmeting met waarnemers
B14: In opdracht van: Vlaamse overheid
B15: Uitgevoerd door: Dufec
D16: VERDELING NAAR CATEGORIE
B17: Locatie
B18: =IF(B4="","",HYPERLINK("http://www.googlemaps.com/?q="&B4,"Lat/Long: "&B4)) -> Lat/Long: 50.954058, 5.694835
P20: Legenda
Q21: Personenwagen
Q22: Vracht
Q23: Motor
Q24: Obstakel / overig
Q25: Fout personenwagen
Q26: Fout Vracht
B39: Toelichting
B40: Pers = personenwagens op daarvoor bestemde
B41: openbare plaatsen
B42: Vracht = vrachtwagens op daarvoor bestemde
B43: parkeerplaatsen (middel- en zwaar vrachtverkeer)
B44: Motor = geparkeerde motoren op openbare plaatsen
B45: Obstakel / overig = obstakels of overige voertuigen
B46: geparkeerd op openbare plaatsen
B47: Fout pers = personenwagens die fout geparkeerd staan
B48: Fout vracht = vrachtwagens die fout geparkeerd staan
B49: E-wagen = geparkeerde elektrisch voertuig bij een
B50: elektrisch oplaadpunt
B51: Invalide = personenwagens en motoren op voor
B52: invalide personen bestemde parkeerplaats
B53: Gestalde fietsen = alle gestalde fietsen op de
B54: daarvoor bestemde parkeerplaatsen

Sheet 24.Gentbrugge Arsenaal
B2: PARKEERONDERZOEK | D2: CARPOOLPARKINGS EN P+R PARKINGS
B3: 24 | D3: =B8 & " - "& TEXT(VLOOKUP(B3,Coordinaten!$A$2:$G$95,7,0),"dddd dd mmmm jjjj") -> P+R parking Gentbrugge Arsenaal, Gent - di 10 & do 12 oktober 2023
B4: =VLOOKUP(B3,Coordinaten!$A$2:$G$95,6,0) -> 51.032277, 3.758713
D5: BEZETTING | Q5: OPMERKINGEN
B7: Onderzoeksgebied | D7: Datum | E7: Geregistreerd tussen | F7: Pers | G7: Vracht | H7: Motor | I7: Obstakel / overig | J7: Fout pers | K7: Fout Vracht | L7: Totaal | M7: E-wagen plaats | N7: Invalidenplaats | O7: Gestalde fietsen | U7: =F7 -> Pers | V7: Vracht | W7: Motor | X7: Obstakel / overig | Y7: Fout pers | Z7: Fout Vracht
B8: =VLOOKUP(B3,Coordinaten!$A$2:$G$95,3,0)&", "&VLOOKUP(B3,Coordinaten!$A$2:$G$95,5,0) -> P+R parking Gentbrugge Arsenaal, Gent | D8: =_xlfn.XLOOKUP($B$3,Bezetting_1!$A$2:$A$90,Bezetting_1!C$2:C$90,,0) -> 2023-10-12 | E8: =_xlfn.XLOOKUP($B$3,Bezetting_1!$A$2:$A$90,Bezetting_1!D$2:D$90,,0) -> 09:00 - 16:00u | F8: =_xlfn.XLOOKUP($B$3,Bezetting_1!$A$2:$A$90,Bezetting_1!E$2:E$90,,0) -> 248 | G8: =_xlfn.XLOOKUP($B$3,Bezetting_1!$A$2:$A$90,Bezetting_1!F$2:F$90,,0) -> 0 | H8: =_xlfn.XLOOKUP($B$3,Bezetting_1!$A$2:$A$90,Bezetting_1!G$2:G$90,,0) -> 0 | I8: =_xlfn.XLOOKUP($B$3,Bezetting_1!$A$2:$A$90,Bezetting_1!H$2:H$90,,0) -> 2 | J8: =_xlfn.XLOOKUP($B$3,Bezetting_1!$A$2:$A$90,Bezetting_1!I$2:I$90,,0) -> 7 | K8: =_xlfn.XLOOKUP($B$3,Bezetting_1!$A$2:$A$90,Bezetting_1!J$2:J$90,,0) -> 0 | L8: =_xlfn.XLOOKUP($B$3,Bezetting_1!$A$2:$A$90,Bezetting_1!K$2:K$90,,0) -> 257 | M8: =_xlfn.XLOOKUP($B$3,Bezetting_1!$A$2:$A$90,Bezetting_1!L$2:L$90,,0) -> 4 | N8: =_xlfn.XLOOKUP($B$3,Bezetting_1!$A$2:$A$90,Bezetting_1!M$2:M$90,,0) -> 0 | O8: =_xlfn.XLOOKUP($B$3,Bezetting_1!$A$2:$A$90,Bezetting_1!N$2:N$90,,0) -> 33 | Q8: =_xlfn.XLOOKUP($B$3,Bezetting_1!$A$2:$A$90,Bezetting_1!P$2:P$90,,0) -> Overig: 2x aanhanger | S8: =D8 -> 2023-10-12 | T8: =E8 -> 09:00 - 16:00u | U8: =IF(F8=0,NA(),F8/$L8) -> 0.9649805447 | V8: =IF(G8=0,NA(),G8/$L8) ->  | W8: =IF(H8=0,NA(),H8/$L8) ->  | X8: 0.007782101167 | Y8: 0.02723735409
B9: ="Nabij kruispunt: "&VLOOKUP(B3,Coordinaten!$A$2:$L$95,4,0) -> Nabij kruispunt: N9 / Jules de Saint-Genoisstraat | F9: =IF(F8=0,"-",F8/$L$8) -> 0.9649805447 | G9: =IF(G8=0,"-",G8/$L$8) -> - | H9: - | I9: 0.007782101167 | J9: 0.02723735409 | K9: - | L9: 1 | Q9: =_xlfn.XLOOKUP($B$3,Bezetting_1!$A$2:$A$90,Bezetting_1!Q$2:Q$90,,0) -> 0 | S9: =D10 -> 2023-10-12 | T9: =E10 -> 19:00 - 02:00u | U9: =IF(F10=0,NA(),F10/$L10) -> 0.9832635983 | V9: =IF(G10=0,NA(),G10/$L10) ->  | Y9: 0.01673640167
D10: =_xlfn.XLOOKUP($B$3,Bezetting_2!$A$2:$A$90,Bezetting_2!C$2:C$90,,0) -> 2023-10-12 | E10: =_xlfn.XLOOKUP($B$3,Bezetting_2!$A$2:$A$90,Bezetting_2!D$2:D$90,,0) -> 19:00 - 02:00u | F10: =_xlfn.XLOOKUP($B$3,Bezetting_2!$A$2:$A$90,Bezetting_2!E$2:E$90,,0) -> 235 | G10: =_xlfn.XLOOKUP($B$3,Bezetting_2!$A$2:$A$90,Bezetting_2!F$2:F$90,,0) -> 0 | H10: =_xlfn.XLOOKUP($B$3,Bezetting_2!$A$2:$A$90,Bezetting_2!G$2:G$90,,0) -> 0 | I10: =_xlfn.XLOOKUP($B$3,Bezetting_2!$A$2:$A$90,Bezetting_2!H$2:H$90,,0) -> 0 | J10: =_xlfn.XLOOKUP($B$3,Bezetting_2!$A$2:$A$90,Bezetting_2!I$2:I$90,,0) -> 4 | K10: =_xlfn.XLOOKUP($B$3,Bezetting_2!$A$2:$A$90,Bezetting_2!J$2:J$90,,0) -> 0 | L10: =_xlfn.XLOOKUP($B$3,Bezetting_2!$A$2:$A$90,Bezetting_2!K$2:K$90,,0) -> 239 | M10: =_xlfn.XLOOKUP($B$3,Bezetting_2!$A$2:$A$90,Bezetting_2!L$2:L$90,,0) -> 3 | N10: =_xlfn.XLOOKUP($B$3,Bezetting_2!$A$2:$A$90,Bezetting_2!M$2:M$90,,0) -> 1 | O10: =_xlfn.XLOOKUP($B$3,Bezetting_2!$A$2:$A$90,Bezetting_2!N$2:N$90,,0) -> 23 | P10: =_xlfn.XLOOKUP($B$3,Bezetting_2!$A$2:$A$90,Bezetting_2!O$2:O$90,,0) -> 0 | Q10: =_xlfn.XLOOKUP($B$3,Bezetting_2!$A$2:$A$90,Bezetting_2!P$2:P$90,,0) -> 0
B11: Meting | F11: =IF(F10=0,"-",F10/$L$10) -> 0.9832635983 | G11: =IF(G10=0,"-",G10/$L$10) -> - | H11: - | I11: - | J11: 0.01673640167 | K11: - | L11: 1 | Q11: =_xlfn.XLOOKUP($B$3,Bezetting_2!$A$2:$A$90,Bezetting_2!Q$2:Q$90,,0) -> 0
B12: ="Meetperiode: "&TEXT(VLOOKUP(B3,Coordinaten!$A:$G,7,0),"dddd dd mmmm jjjj") -> Meetperiode: di 10 & do 12 oktober 2023
B13: Methodiek: Parkeerdrukmeting met waarnemers
B14: In opdracht van: Vlaamse overheid
B15: Uitgevoerd door: Dufec
D16: VERDELING NAAR CATEGORIE
B17: Locatie
B18: =IF(B4="","",HYPERLINK("http://www.googlemaps.com/?q="&B4,"Lat/Long: "&B4)) -> Lat/Long: 51.032277, 3.758713
P20: Legenda
Q21: Personenwagen
Q22: Vracht
Q23: Motor
Q24: Obstakel / overig
Q25: Fout personenwagen
Q26: Fout Vracht
B39: Toelichting
B40: Pers = personenwagens op daarvoor bestemde
B41: openbare plaatsen
B42: Vracht = vrachtwagens op daarvoor bestemde
B43: parkeerplaatsen (middel- en zwaar vrachtverkeer)
B44: Motor = geparkeerde motoren op openbare plaatsen
B45: Obstakel / overig = obstakels of overige voertuigen
B46: geparkeerd op openbare plaatsen
B47: Fout pers = personenwagens die fout geparkeerd staan
B48: Fout vracht = vrachtwagens die fout geparkeerd staan
B49: E-wagen = geparkeerde elektrisch voertuig bij een
B50: elektrisch oplaadpunt
B51: Invalide = personenwagens en motoren op voor
B52: invalide personen bestemde parkeerplaats
B53: Gestalde fietsen = alle gestalde fietsen op de
B54: daarvoor bestemde parkeerplaatsen

Sheet 25.Aalst-Zuid
B2: PARKEERONDERZOEK | D2: CARPOOLPARKINGS EN P+R PARKINGS
B3: 25 | D3: =B8 & " - "& TEXT(VLOOKUP(B3,Coordinaten!$A$2:$G$95,7,0),"dddd dd mmmm jjjj") -> Carpool parking Aalst-Zuid, Aalst - di 10 & do 12 oktober 2023
B4: =VLOOKUP(B3,Coordinaten!$A$2:$G$95,6,0) -> 50.913372, 4.031872
D5: BEZETTING | Q5: OPMERKINGEN
B7: Onderzoeksgebied | D7: Datum | E7: Geregistreerd tussen | F7: Pers | G7: Vracht | H7: Motor | I7: Obstakel / overig | J7: Fout pers | K7: Fout Vracht | L7: Totaal | M7: E-wagen plaats | N7: Invalidenplaats | O7: Gestalde fietsen | U7: =F7 -> Pers | V7: Vracht | W7: Motor | X7: Obstakel / overig | Y7: Fout pers | Z7: Fout Vracht
B8: =VLOOKUP(B3,Coordinaten!$A$2:$G$95,3,0)&", "&VLOOKUP(B3,Coordinaten!$A$2:$G$95,5,0) -> Carpool parking Aalst-Zuid, Aalst | D8: =_xlfn.XLOOKUP($B$3,Bezetting_1!$A$2:$A$90,Bezetting_1!C$2:C$90,,0) -> 2023-10-12 | E8: =_xlfn.XLOOKUP($B$3,Bezetting_1!$A$2:$A$90,Bezetting_1!D$2:D$90,,0) -> 09:00 - 16:00u | F8: =_xlfn.XLOOKUP($B$3,Bezetting_1!$A$2:$A$90,Bezetting_1!E$2:E$90,,0) -> 22 | G8: =_xlfn.XLOOKUP($B$3,Bezetting_1!$A$2:$A$90,Bezetting_1!F$2:F$90,,0) -> 0 | H8: =_xlfn.XLOOKUP($B$3,Bezetting_1!$A$2:$A$90,Bezetting_1!G$2:G$90,,0) -> 0 | I8: =_xlfn.XLOOKUP($B$3,Bezetting_1!$A$2:$A$90,Bezetting_1!H$2:H$90,,0) -> 0 | J8: =_xlfn.XLOOKUP($B$3,Bezetting_1!$A$2:$A$90,Bezetting_1!I$2:I$90,,0) -> 6 | K8: =_xlfn.XLOOKUP($B$3,Bezetting_1!$A$2:$A$90,Bezetting_1!J$2:J$90,,0) -> 0 | L8: =_xlfn.XLOOKUP($B$3,Bezetting_1!$A$2:$A$90,Bezetting_1!K$2:K$90,,0) -> 28 | M8: =_xlfn.XLOOKUP($B$3,Bezetting_1!$A$2:$A$90,Bezetting_1!L$2:L$90,,0) -> 1 | N8: =_xlfn.XLOOKUP($B$3,Bezetting_1!$A$2:$A$90,Bezetting_1!M$2:M$90,,0) -> 0 | O8: =_xlfn.XLOOKUP($B$3,Bezetting_1!$A$2:$A$90,Bezetting_1!N$2:N$90,,0) -> 0 | Q8: =_xlfn.XLOOKUP($B$3,Bezetting_1!$A$2:$A$90,Bezetting_1!P$2:P$90,,0) -> 0 | S8: =D8 -> 2023-10-12 | T8: =E8 -> 09:00 - 16:00u | U8: =IF(F8=0,NA(),F8/$L8) -> 0.7857142857 | V8: =IF(G8=0,NA(),G8/$L8) ->  | W8: =IF(H8=0,NA(),H8/$L8) ->  | Y8: 0.2142857143
B9: ="Nabij kruispunt: "&VLOOKUP(B3,Coordinaten!$A$2:$L$95,4,0) -> Nabij kruispunt: N45 / N460 | F9: =IF(F8=0,"-",F8/$L$8) -> 0.7857142857 | G9: =IF(G8=0,"-",G8/$L$8) -> - | H9: - | I9: - | J9: 0.2142857143 | K9: - | L9: 1 | Q9: =_xlfn.XLOOKUP($B$3,Bezetting_1!$A$2:$A$90,Bezetting_1!Q$2:Q$90,,0) -> 0 | S9: =D10 -> 2023-10-12 | T9: =E10 -> 19:00 - 02:00u | U9: =IF(F10=0,NA(),F10/$L10) -> 1 | V9: =IF(G10=0,NA(),G10/$L10) -> 
D10: =_xlfn.XLOOKUP($B$3,Bezetting_2!$A$2:$A$90,Bezetting_2!C$2:C$90,,0) -> 2023-10-12 | E10: =_xlfn.XLOOKUP($B$3,Bezetting_2!$A$2:$A$90,Bezetting_2!D$2:D$90,,0) -> 19:00 - 02:00u | F10: =_xlfn.XLOOKUP($B$3,Bezetting_2!$A$2:$A$90,Bezetting_2!E$2:E$90,,0) -> 17 | G10: =_xlfn.XLOOKUP($B$3,Bezetting_2!$A$2:$A$90,Bezetting_2!F$2:F$90,,0) -> 0 | H10: =_xlfn.XLOOKUP($B$3,Bezetting_2!$A$2:$A$90,Bezetting_2!G$2:G$90,,0) -> 0 | I10: =_xlfn.XLOOKUP($B$3,Bezetting_2!$A$2:$A$90,Bezetting_2!H$2:H$90,,0) -> 0 | J10: =_xlfn.XLOOKUP($B$3,Bezetting_2!$A$2:$A$90,Bezetting_2!I$2:I$90,,0) -> 0 | K10: =_xlfn.XLOOKUP($B$3,Bezetting_2!$A$2:$A$90,Bezetting_2!J$2:J$90,,0) -> 0 | L10: =_xlfn.XLOOKUP($B$3,Bezetting_2!$A$2:$A$90,Bezetting_2!K$2:K$90,,0) -> 17 | M10: =_xlfn.XLOOKUP($B$3,Bezetting_2!$A$2:$A$90,Bezetting_2!L$2:L$90,,0) -> 0 | N10: =_xlfn.XLOOKUP($B$3,Bezetting_2!$A$2:$A$90,Bezetting_2!M$2:M$90,,0) -> 0 | O10: =_xlfn.XLOOKUP($B$3,Bezetting_2!$A$2:$A$90,Bezetting_2!N$2:N$90,,0) -> 0 | P10: =_xlfn.XLOOKUP($B$3,Bezetting_2!$A$2:$A$90,Bezetting_2!O$2:O$90,,0) -> 0 | Q10: =_xlfn.XLOOKUP($B$3,Bezetting_2!$A$2:$A$90,Bezetting_2!P$2:P$90,,0) -> 0
B11: Meting | F11: =IF(F10=0,"-",F10/$L$10) -> 1 | G11: =IF(G10=0,"-",G10/$L$10) -> - | H11: - | I11: - | J11: - | K11: - | L11: 1 | Q11: =_xlfn.XLOOKUP($B$3,Bezetting_2!$A$2:$A$90,Bezetting_2!Q$2:Q$90,,0) -> 0
B12: ="Meetperiode: "&TEXT(VLOOKUP(B3,Coordinaten!$A:$G,7,0),"dddd dd mmmm jjjj") -> Meetperiode: di 10 & do 12 oktober 2023
B13: Methodiek: Parkeerdrukmeting met waarnemers
B14: In opdracht van: Vlaamse overheid
B15: Uitgevoerd door: Dufec
D16: VERDELING NAAR CATEGORIE
B17: Locatie
B18: =IF(B4="","",HYPERLINK("http://www.googlemaps.com/?q="&B4,"Lat/Long: "&B4)) -> Lat/Long: 50.913372, 4.031872
P20: Legenda
Q21: Personenwagen
Q22: Vracht
Q23: Motor
Q24: Obstakel / overig
Q25: Fout personenwagen
Q26: Fout Vracht
B39: Toelichting
B40: Pers = personenwagens op daarvoor bestemde
B41: openbare plaatsen
B42: Vracht = vrachtwagens op daarvoor bestemde
B43: parkeerplaatsen (middel- en zwaar vrachtverkeer)
B44: Motor = geparkeerde motoren op openbare plaatsen
B45: Obstakel / overig = obstakels of overige voertuigen
B46: geparkeerd op openbare plaatsen
B47: Fout pers = personenwagens die fout geparkeerd staan
B48: Fout vracht = vrachtwagens die fout geparkeerd staan
B49: E-wagen = geparkeerde elektrisch voertuig bij een
B50: elektrisch oplaadpunt
B51: Invalide = personenwagens en motoren op voor
B52: invalide personen bestemde parkeerplaats
B53: Gestalde fietsen = alle gestalde fietsen op de
B54: daarvoor bestemde parkeerplaatsen

Sheet 26.Waasmunster
B2: PARKEERONDERZOEK | D2: CARPOOLPARKINGS EN P+R PARKINGS
B3: 26 | D3: =B8 & " - "& TEXT(VLOOKUP(B3,Coordinaten!$A$2:$G$95,7,0),"dddd dd mmmm jjjj") -> P+R parking Waasmunster, Waasmunster - di 10 & do 12 oktober 2023
B4: =VLOOKUP(B3,Coordinaten!$A$2:$G$95,6,0) -> 51.127953, 4.079340
D5: BEZETTING | Q5: OPMERKINGEN
B7: Onderzoeksgebied | D7: Datum | E7: Geregistreerd tussen | F7: Pers | G7: Vracht | H7: Motor | I7: Obstakel / overig | J7: Fout pers | K7: Fout Vracht | L7: Totaal | M7: E-wagen plaats | N7: Invalidenplaats | O7: Gestalde fietsen | U7: =F7 -> Pers | V7: Vracht | W7: Motor | X7: Obstakel / overig | Y7: Fout pers | Z7: Fout Vracht
B8: =VLOOKUP(B3,Coordinaten!$A$2:$G$95,3,0)&", "&VLOOKUP(B3,Coordinaten!$A$2:$G$95,5,0) -> P+R parking Waasmunster, Waasmunster | D8: =_xlfn.XLOOKUP($B$3,Bezetting_1!$A$2:$A$90,Bezetting_1!C$2:C$90,,0) -> 2023-10-10 | E8: =_xlfn.XLOOKUP($B$3,Bezetting_1!$A$2:$A$90,Bezetting_1!D$2:D$90,,0) -> 09:00 - 16:00u | F8: =_xlfn.XLOOKUP($B$3,Bezetting_1!$A$2:$A$90,Bezetting_1!E$2:E$90,,0) -> 27 | G8: =_xlfn.XLOOKUP($B$3,Bezetting_1!$A$2:$A$90,Bezetting_1!F$2:F$90,,0) -> 0 | H8: =_xlfn.XLOOKUP($B$3,Bezetting_1!$A$2:$A$90,Bezetting_1!G$2:G$90,,0) -> 0 | I8: =_xlfn.XLOOKUP($B$3,Bezetting_1!$A$2:$A$90,Bezetting_1!H$2:H$90,,0) -> 0 | J8: =_xlfn.XLOOKUP($B$3,Bezetting_1!$A$2:$A$90,Bezetting_1!I$2:I$90,,0) -> 0 | K8: =_xlfn.XLOOKUP($B$3,Bezetting_1!$A$2:$A$90,Bezetting_1!J$2:J$90,,0) -> 0 | L8: =_xlfn.XLOOKUP($B$3,Bezetting_1!$A$2:$A$90,Bezetting_1!K$2:K$90,,0) -> 27 | M8: =_xlfn.XLOOKUP($B$3,Bezetting_1!$A$2:$A$90,Bezetting_1!L$2:L$90,,0) -> 0 | N8: =_xlfn.XLOOKUP($B$3,Bezetting_1!$A$2:$A$90,Bezetting_1!M$2:M$90,,0) -> 0 | O8: =_xlfn.XLOOKUP($B$3,Bezetting_1!$A$2:$A$90,Bezetting_1!N$2:N$90,,0) -> 2 | Q8: =_xlfn.XLOOKUP($B$3,Bezetting_1!$A$2:$A$90,Bezetting_1!P$2:P$90,,0) -> 0 | S8: =D8 -> 2023-10-10 | T8: =E8 -> 09:00 - 16:00u | U8: =IF(F8=0,NA(),F8/$L8) -> 1 | V8: =IF(G8=0,NA(),G8/$L8) ->  | W8: =IF(H8=0,NA(),H8/$L8) -> 
B9: ="Nabij kruispunt: "&VLOOKUP(B3,Coordinaten!$A$2:$L$95,4,0) -> Nabij kruispunt: N446 / A14 | F9: =IF(F8=0,"-",F8/$L$8) -> 1 | G9: =IF(G8=0,"-",G8/$L$8) -> - | H9: - | I9: - | J9: - | K9: - | L9: 1 | Q9: =_xlfn.XLOOKUP($B$3,Bezetting_1!$A$2:$A$90,Bezetting_1!Q$2:Q$90,,0) -> 0 | S9: =D10 -> 2023-10-10 | T9: =E10 -> 19:00 - 02:00u | U9: =IF(F10=0,NA(),F10/$L10) -> 0.875 | V9: =IF(G10=0,NA(),G10/$L10) ->  | X9: 0.125
D10: =_xlfn.XLOOKUP($B$3,Bezetting_2!$A$2:$A$90,Bezetting_2!C$2:C$90,,0) -> 2023-10-10 | E10: =_xlfn.XLOOKUP($B$3,Bezetting_2!$A$2:$A$90,Bezetting_2!D$2:D$90,,0) -> 19:00 - 02:00u | F10: =_xlfn.XLOOKUP($B$3,Bezetting_2!$A$2:$A$90,Bezetting_2!E$2:E$90,,0) -> 21 | G10: =_xlfn.XLOOKUP($B$3,Bezetting_2!$A$2:$A$90,Bezetting_2!F$2:F$90,,0) -> 0 | H10: =_xlfn.XLOOKUP($B$3,Bezetting_2!$A$2:$A$90,Bezetting_2!G$2:G$90,,0) -> 0 | I10: =_xlfn.XLOOKUP($B$3,Bezetting_2!$A$2:$A$90,Bezetting_2!H$2:H$90,,0) -> 3 | J10: =_xlfn.XLOOKUP($B$3,Bezetting_2!$A$2:$A$90,Bezetting_2!I$2:I$90,,0) -> 0 | K10: =_xlfn.XLOOKUP($B$3,Bezetting_2!$A$2:$A$90,Bezetting_2!J$2:J$90,,0) -> 0 | L10: =_xlfn.XLOOKUP($B$3,Bezetting_2!$A$2:$A$90,Bezetting_2!K$2:K$90,,0) -> 24 | M10: =_xlfn.XLOOKUP($B$3,Bezetting_2!$A$2:$A$90,Bezetting_2!L$2:L$90,,0) -> 0 | N10: =_xlfn.XLOOKUP($B$3,Bezetting_2!$A$2:$A$90,Bezetting_2!M$2:M$90,,0) -> 0 | O10: =_xlfn.XLOOKUP($B$3,Bezetting_2!$A$2:$A$90,Bezetting_2!N$2:N$90,,0) -> 0 | P10: =_xlfn.XLOOKUP($B$3,Bezetting_2!$A$2:$A$90,Bezetting_2!O$2:O$90,,0) -> 0 | Q10: =_xlfn.XLOOKUP($B$3,Bezetting_2!$A$2:$A$90,Bezetting_2!P$2:P$90,,0) -> Overig: graafmachine
B11: Meting | F11: =IF(F10=0,"-",F10/$L$10) -> 0.875 | G11: =IF(G10=0,"-",G10/$L$10) -> - | H11: - | I11: 0.125 | J11: - | K11: - | L11: 1 | Q11: =_xlfn.XLOOKUP($B$3,Bezetting_2!$A$2:$A$90,Bezetting_2!Q$2:Q$90,,0) -> 0
B12: ="Meetperiode: "&TEXT(VLOOKUP(B3,Coordinaten!$A:$G,7,0),"dddd dd mmmm jjjj") -> Meetperiode: di 10 & do 12 oktober 2023
B13: Methodiek: Parkeerdrukmeting met waarnemers
B14: In opdracht van: Vlaamse overheid
B15: Uitgevoerd door: Dufec
D16: VERDELING NAAR CATEGORIE
B17: Locatie
B18: =IF(B4="","",HYPERLINK("http://www.googlemaps.com/?q="&B4,"Lat/Long: "&B4)) -> Lat/Long: 51.127953, 4.079340
P20: Legenda
Q21: Personenwagen
Q22: Vracht
Q23: Motor
Q24: Obstakel / overig
Q25: Fout personenwagen
Q26: Fout Vracht
B39: Toelichting
B40: Pers = personenwagens op daarvoor bestemde
B41: openbare plaatsen
B42: Vracht = vrachtwagens op daarvoor bestemde
B43: parkeerplaatsen (middel- en zwaar vrachtverkeer)
B44: Motor = geparkeerde motoren op openbare plaatsen
B45: Obstakel / overig = obstakels of overige voertuigen
B46: geparkeerd op openbare plaatsen
B47: Fout pers = personenwagens die fout geparkeerd staan
B48: Fout vracht = vrachtwagens die fout geparkeerd staan
B49: E-wagen = geparkeerde elektrisch voertuig bij een
B50: elektrisch oplaadpunt
B51: Invalide = personenwagens en motoren op voor
B52: invalide personen bestemde parkeerplaats
B53: Gestalde fietsen = alle gestalde fietsen op de
B54: daarvoor bestemde parkeerplaatsen

Sheet 27.Melsele-Zuid
B2: PARKEERONDERZOEK | D2: CARPOOLPARKINGS EN P+R PARKINGS
B3: 27 | D3: =B8 & " - "& TEXT(VLOOKUP(B3,Coordinaten!$A$2:$G$95,7,0),"dddd dd mmmm jjjj") -> Carpool parking Melsele-Zuid, Beveren - di 10 & do 12 oktober 2023
B4: =VLOOKUP(B3,Coordinaten!$A$2:$G$95,6,0) -> 51.239507, 4.269469
D5: BEZETTING | Q5: OPMERKINGEN
B7: Onderzoeksgebied | D7: Datum | E7: Geregistreerd tussen | F7: Pers | G7: Vracht | H7: Motor | I7: Obstakel / overig | J7: Fout pers | K7: Fout Vracht | L7: Totaal | M7: E-wagen plaats | N7: Invalidenplaats | O7: Gestalde fietsen | U7: =F7 -> Pers | V7: Vracht | W7: Motor | X7: Obstakel / overig | Y7: Fout pers | Z7: Fout Vracht
B8: =VLOOKUP(B3,Coordinaten!$A$2:$G$95,3,0)&", "&VLOOKUP(B3,Coordinaten!$A$2:$G$95,5,0) -> Carpool parking Melsele-Zuid, Beveren | D8: =_xlfn.XLOOKUP($B$3,Bezetting_1!$A$2:$A$90,Bezetting_1!C$2:C$90,,0) -> 2023-10-10 | E8: =_xlfn.XLOOKUP($B$3,Bezetting_1!$A$2:$A$90,Bezetting_1!D$2:D$90,,0) -> 09:00 - 16:00u | F8: =_xlfn.XLOOKUP($B$3,Bezetting_1!$A$2:$A$90,Bezetting_1!E$2:E$90,,0) -> 16 | G8: =_xlfn.XLOOKUP($B$3,Bezetting_1!$A$2:$A$90,Bezetting_1!F$2:F$90,,0) -> 0 | H8: =_xlfn.XLOOKUP($B$3,Bezetting_1!$A$2:$A$90,Bezetting_1!G$2:G$90,,0) -> 0 | I8: =_xlfn.XLOOKUP($B$3,Bezetting_1!$A$2:$A$90,Bezetting_1!H$2:H$90,,0) -> 0 | J8: =_xlfn.XLOOKUP($B$3,Bezetting_1!$A$2:$A$90,Bezetting_1!I$2:I$90,,0) -> 2 | K8: =_xlfn.XLOOKUP($B$3,Bezetting_1!$A$2:$A$90,Bezetting_1!J$2:J$90,,0) -> 1 | L8: =_xlfn.XLOOKUP($B$3,Bezetting_1!$A$2:$A$90,Bezetting_1!K$2:K$90,,0) -> 19 | M8: =_xlfn.XLOOKUP($B$3,Bezetting_1!$A$2:$A$90,Bezetting_1!L$2:L$90,,0) -> 0 | N8: =_xlfn.XLOOKUP($B$3,Bezetting_1!$A$2:$A$90,Bezetting_1!M$2:M$90,,0) -> 0 | O8: =_xlfn.XLOOKUP($B$3,Bezetting_1!$A$2:$A$90,Bezetting_1!N$2:N$90,,0) -> 3 | Q8: =_xlfn.XLOOKUP($B$3,Bezetting_1!$A$2:$A$90,Bezetting_1!P$2:P$90,,0) -> 0 | S8: =D8 -> 2023-10-10 | T8: =E8 -> 09:00 - 16:00u | U8: =IF(F8=0,NA(),F8/$L8) -> 0.8421052632 | V8: =IF(G8=0,NA(),G8/$L8) ->  | W8: =IF(H8=0,NA(),H8/$L8) ->  | Y8: 0.1052631579 | Z8: 0.05263157895
B9: ="Nabij kruispunt: "&VLOOKUP(B3,Coordinaten!$A$2:$L$95,4,0) -> Nabij kruispunt: N450 / A11 | F9: =IF(F8=0,"-",F8/$L$8) -> 0.8421052632 | G9: =IF(G8=0,"-",G8/$L$8) -> - | H9: - | I9: - | J9: 0.1052631579 | K9: 0.05263157895 | L9: 1 | Q9: =_xlfn.XLOOKUP($B$3,Bezetting_1!$A$2:$A$90,Bezetting_1!Q$2:Q$90,,0) -> 0 | S9: =D10 -> 2023-10-10 | T9: =E10 -> 19:00 - 02:00u | U9: =IF(F10=0,NA(),F10/$L10) -> 0.7027027027 | V9: =IF(G10=0,NA(),G10/$L10) ->  | X9: 0.2162162162 | Z9: 0.08108108108
D10: =_xlfn.XLOOKUP($B$3,Bezetting_2!$A$2:$A$90,Bezetting_2!C$2:C$90,,0) -> 2023-10-10 | E10: =_xlfn.XLOOKUP($B$3,Bezetting_2!$A$2:$A$90,Bezetting_2!D$2:D$90,,0) -> 19:00 - 02:00u | F10: =_xlfn.XLOOKUP($B$3,Bezetting_2!$A$2:$A$90,Bezetting_2!E$2:E$90,,0) -> 26 | G10: =_xlfn.XLOOKUP($B$3,Bezetting_2!$A$2:$A$90,Bezetting_2!F$2:F$90,,0) -> 0 | H10: =_xlfn.XLOOKUP($B$3,Bezetting_2!$A$2:$A$90,Bezetting_2!G$2:G$90,,0) -> 0 | I10: =_xlfn.XLOOKUP($B$3,Bezetting_2!$A$2:$A$90,Bezetting_2!H$2:H$90,,0) -> 8 | J10: =_xlfn.XLOOKUP($B$3,Bezetting_2!$A$2:$A$90,Bezetting_2!I$2:I$90,,0) -> 0 | K10: =_xlfn.XLOOKUP($B$3,Bezetting_2!$A$2:$A$90,Bezetting_2!J$2:J$90,,0) -> 3 | L10: =_xlfn.XLOOKUP($B$3,Bezetting_2!$A$2:$A$90,Bezetting_2!K$2:K$90,,0) -> 37 | M10: =_xlfn.XLOOKUP($B$3,Bezetting_2!$A$2:$A$90,Bezetting_2!L$2:L$90,,0) -> 0 | N10: =_xlfn.XLOOKUP($B$3,Bezetting_2!$A$2:$A$90,Bezetting_2!M$2:M$90,,0) -> 0 | O10: =_xlfn.XLOOKUP($B$3,Bezetting_2!$A$2:$A$90,Bezetting_2!N$2:N$90,,0) -> 0 | P10: =_xlfn.XLOOKUP($B$3,Bezetting_2!$A$2:$A$90,Bezetting_2!O$2:O$90,,0) -> 0 | Q10: =_xlfn.XLOOKUP($B$3,Bezetting_2!$A$2:$A$90,Bezetting_2!P$2:P$90,,0) -> Overig: 1 touringcar bezet 8 plaatsen
B11: Meting | F11: =IF(F10=0,"-",F10/$L$10) -> 0.7027027027 | G11: =IF(G10=0,"-",G10/$L$10) -> - | H11: - | I11: 0.2162162162 | J11: - | K11: 0.08108108108 | L11: 1 | Q11: =_xlfn.XLOOKUP($B$3,Bezetting_2!$A$2:$A$90,Bezetting_2!Q$2:Q$90,,0) -> 0
B12: ="Meetperiode: "&TEXT(VLOOKUP(B3,Coordinaten!$A:$G,7,0),"dddd dd mmmm jjjj") -> Meetperiode: di 10 & do 12 oktober 2023
B13: Methodiek: Parkeerdrukmeting met waarnemers
B14: In opdracht van: Vlaamse overheid
B15: Uitgevoerd door: Dufec
D16: VERDELING NAAR CATEGORIE
B17: Locatie
B18: =IF(B4="","",HYPERLINK("http://www.googlemaps.com/?q="&B4,"Lat/Long: "&B4)) -> Lat/Long: 51.239507, 4.269469
P20: Legenda
Q21: Personenwagen
Q22: Vracht
Q23: Motor
Q24: Obstakel / overig
Q25: Fout personenwagen
Q26: Fout Vracht
B39: Toelichting
B40: Pers = personenwagens op daarvoor bestemde
B41: openbare plaatsen
B42: Vracht = vrachtwagens op daarvoor bestemde
B43: parkeerplaatsen (middel- en zwaar vrachtverkeer)
B44: Motor = geparkeerde motoren op openbare plaatsen
B45: Obstakel / overig = obstakels of overige voertuigen
B46: geparkeerd op openbare plaatsen
B47: Fout pers = personenwagens die fout geparkeerd staan
B48: Fout vracht = vrachtwagens die fout geparkeerd staan
B49: E-wagen = geparkeerde elektrisch voertuig bij een
B50: elektrisch oplaadpunt
B51: Invalide = personenwagens en motoren op voor
B52: invalide personen bestemde parkeerplaats
B53: Gestalde fietsen = alle gestalde fietsen op de
B54: daarvoor bestemde parkeerplaatsen

Sheet 28.Meerbeke
B2: PARKEERONDERZOEK | D2: CARPOOLPARKINGS EN P+R PARKINGS
B3: 28 | D3: =B8 & " - "& TEXT(VLOOKUP(B3,Coordinaten!$A$2:$G$95,7,0),"dddd dd mmmm jjjj") -> Carpool parking Meerbeke, Ninove - di 10 & do 12 oktober 2023
B4: =VLOOKUP(B3,Coordinaten!$A$2:$G$95,6,0) -> 50.828223, 4.034914
D5: BEZETTING | Q5: OPMERKINGEN
B7: Onderzoeksgebied | D7: Datum | E7: Geregistreerd tussen | F7: Pers | G7: Vracht | H7: Motor | I7: Obstakel / overig | J7: Fout pers | K7: Fout Vracht | L7: Totaal | M7: E-wagen plaats | N7: Invalidenplaats | O7: Gestalde fietsen | U7: =F7 -> Pers | V7: Vracht | W7: Motor | X7: Obstakel / overig | Y7: Fout pers | Z7: Fout Vracht
B8: =VLOOKUP(B3,Coordinaten!$A$2:$G$95,3,0)&", "&VLOOKUP(B3,Coordinaten!$A$2:$G$95,5,0) -> Carpool parking Meerbeke, Ninove | D8: =_xlfn.XLOOKUP($B$3,Bezetting_1!$A$2:$A$90,Bezetting_1!C$2:C$90,,0) -> 2023-10-12 | E8: =_xlfn.XLOOKUP($B$3,Bezetting_1!$A$2:$A$90,Bezetting_1!D$2:D$90,,0) -> 09:00 - 16:00u | F8: =_xlfn.XLOOKUP($B$3,Bezetting_1!$A$2:$A$90,Bezetting_1!E$2:E$90,,0) -> 22 | G8: =_xlfn.XLOOKUP($B$3,Bezetting_1!$A$2:$A$90,Bezetting_1!F$2:F$90,,0) -> 0 | H8: =_xlfn.XLOOKUP($B$3,Bezetting_1!$A$2:$A$90,Bezetting_1!G$2:G$90,,0) -> 0 | I8: =_xlfn.XLOOKUP($B$3,Bezetting_1!$A$2:$A$90,Bezetting_1!H$2:H$90,,0) -> 0 | J8: =_xlfn.XLOOKUP($B$3,Bezetting_1!$A$2:$A$90,Bezetting_1!I$2:I$90,,0) -> 0 | K8: =_xlfn.XLOOKUP($B$3,Bezetting_1!$A$2:$A$90,Bezetting_1!J$2:J$90,,0) -> 0 | L8: =_xlfn.XLOOKUP($B$3,Bezetting_1!$A$2:$A$90,Bezetting_1!K$2:K$90,,0) -> 22 | M8: =_xlfn.XLOOKUP($B$3,Bezetting_1!$A$2:$A$90,Bezetting_1!L$2:L$90,,0) -> 0 | N8: =_xlfn.XLOOKUP($B$3,Bezetting_1!$A$2:$A$90,Bezetting_1!M$2:M$90,,0) -> 0 | O8: =_xlfn.XLOOKUP($B$3,Bezetting_1!$A$2:$A$90,Bezetting_1!N$2:N$90,,0) -> 0 | Q8: =_xlfn.XLOOKUP($B$3,Bezetting_1!$A$2:$A$90,Bezetting_1!P$2:P$90,,0) -> Fout: 1 fiets | S8: =D8 -> 2023-10-12 | T8: =E8 -> 09:00 - 16:00u | U8: =IF(F8=0,NA(),F8/$L8) -> 1 | V8: =IF(G8=0,NA(),G8/$L8) ->  | W8: =IF(H8=0,NA(),H8/$L8) -> 
B9: ="Nabij kruispunt: "&VLOOKUP(B3,Coordinaten!$A$2:$L$95,4,0) -> Nabij kruispunt: N28 / N8 | F9: =IF(F8=0,"-",F8/$L$8) -> 1 | G9: =IF(G8=0,"-",G8/$L$8) -> - | H9: - | I9: - | J9: - | K9: - | L9: 1 | Q9: =_xlfn.XLOOKUP($B$3,Bezetting_1!$A$2:$A$90,Bezetting_1!Q$2:Q$90,,0) -> 0 | S9: =D10 -> 2023-10-12 | T9: =E10 -> 19:00 - 02:00u | U9: =IF(F10=0,NA(),F10/$L10) -> 1 | V9: =IF(G10=0,NA(),G10/$L10) -> 
D10: =_xlfn.XLOOKUP($B$3,Bezetting_2!$A$2:$A$90,Bezetting_2!C$2:C$90,,0) -> 2023-10-12 | E10: =_xlfn.XLOOKUP($B$3,Bezetting_2!$A$2:$A$90,Bezetting_2!D$2:D$90,,0) -> 19:00 - 02:00u | F10: =_xlfn.XLOOKUP($B$3,Bezetting_2!$A$2:$A$90,Bezetting_2!E$2:E$90,,0) -> 13 | G10: =_xlfn.XLOOKUP($B$3,Bezetting_2!$A$2:$A$90,Bezetting_2!F$2:F$90,,0) -> 0 | H10: =_xlfn.XLOOKUP($B$3,Bezetting_2!$A$2:$A$90,Bezetting_2!G$2:G$90,,0) -> 0 | I10: =_xlfn.XLOOKUP($B$3,Bezetting_2!$A$2:$A$90,Bezetting_2!H$2:H$90,,0) -> 0 | J10: =_xlfn.XLOOKUP($B$3,Bezetting_2!$A$2:$A$90,Bezetting_2!I$2:I$90,,0) -> 0 | K10: =_xlfn.XLOOKUP($B$3,Bezetting_2!$A$2:$A$90,Bezetting_2!J$2:J$90,,0) -> 0 | L10: =_xlfn.XLOOKUP($B$3,Bezetting_2!$A$2:$A$90,Bezetting_2!K$2:K$90,,0) -> 13 | M10: =_xlfn.XLOOKUP($B$3,Bezetting_2!$A$2:$A$90,Bezetting_2!L$2:L$90,,0) -> 0 | N10: =_xlfn.XLOOKUP($B$3,Bezetting_2!$A$2:$A$90,Bezetting_2!M$2:M$90,,0) -> 0 | O10: =_xlfn.XLOOKUP($B$3,Bezetting_2!$A$2:$A$90,Bezetting_2!N$2:N$90,,0) -> 0 | P10: =_xlfn.XLOOKUP($B$3,Bezetting_2!$A$2:$A$90,Bezetting_2!O$2:O$90,,0) -> 0 | Q10: =_xlfn.XLOOKUP($B$3,Bezetting_2!$A$2:$A$90,Bezetting_2!P$2:P$90,,0) -> 0
B11: Meting | F11: =IF(F10=0,"-",F10/$L$10) -> 1 | G11: =IF(G10=0,"-",G10/$L$10) -> - | H11: - | I11: - | J11: - | K11: - | L11: 1 | Q11: =_xlfn.XLOOKUP($B$3,Bezetting_2!$A$2:$A$90,Bezetting_2!Q$2:Q$90,,0) -> 0
B12: ="Meetperiode: "&TEXT(VLOOKUP(B3,Coordinaten!$A:$G,7,0),"dddd dd mmmm jjjj") -> Meetperiode: di 10 & do 12 oktober 2023
B13: Methodiek: Parkeerdrukmeting met waarnemers
B14: In opdracht van: Vlaamse overheid
B15: Uitgevoerd door: Dufec
D16: VERDELING NAAR CATEGORIE
B17: Locatie
B18: =IF(B4="","",HYPERLINK("http://www.googlemaps.com/?q="&B4,"Lat/Long: "&B4)) -> Lat/Long: 50.828223, 4.034914
P20: Legenda
Q21: Personenwagen
Q22: Vracht
Q23: Motor
Q24: Obstakel / overig
Q25: Fout personenwagen
Q26: Fout Vracht
B39: Toelichting
B40: Pers = personenwagens op daarvoor bestemde
B41: openbare plaatsen
B42: Vracht = vrachtwagens op daarvoor bestemde
B43: parkeerplaatsen (middel- en zwaar vrachtverkeer)
B44: Motor = geparkeerde motoren op openbare plaatsen
B45: Obstakel / overig = obstakels of overige voertuigen
B46: geparkeerd op openbare plaatsen
B47: Fout pers = personenwagens die fout geparkeerd staan
B48: Fout vracht = vrachtwagens die fout geparkeerd staan
B49: E-wagen = geparkeerde elektrisch voertuig bij een
B50: elektrisch oplaadpunt
B51: Invalide = personenwagens en motoren op voor
B52: invalide personen bestemde parkeerplaats
B53: Gestalde fietsen = alle gestalde fietsen op de
B54: daarvoor bestemde parkeerplaatsen

Sheet 29.Ninove
B2: PARKEERONDERZOEK | D2: CARPOOLPARKINGS EN P+R PARKINGS
B3: 29 | D3: =B8 & " - "& TEXT(VLOOKUP(B3,Coordinaten!$A$2:$G$95,7,0),"dddd dd mmmm jjjj") -> Carpool parking Ninove, Ninove - di 10 & do 12 oktober 2023
B4: =VLOOKUP(B3,Coordinaten!$A$2:$G$95,6,0) -> 50.827345, 4.025918
D5: BEZETTING | Q5: OPMERKINGEN
B7: Onderzoeksgebied | D7: Datum | E7: Geregistreerd tussen | F7: Pers | G7: Vracht | H7: Motor | I7: Obstakel / overig | J7: Fout pers | K7: Fout Vracht | L7: Totaal | M7: E-wagen plaats | N7: Invalidenplaats | O7: Gestalde fietsen | U7: =F7 -> Pers | V7: Vracht | W7: Motor | X7: Obstakel / overig | Y7: Fout pers | Z7: Fout Vracht
B8: =VLOOKUP(B3,Coordinaten!$A$2:$G$95,3,0)&", "&VLOOKUP(B3,Coordinaten!$A$2:$G$95,5,0) -> Carpool parking Ninove, Ninove | D8: =_xlfn.XLOOKUP($B$3,Bezetting_1!$A$2:$A$90,Bezetting_1!C$2:C$90,,0) -> 2023-10-12 | E8: =_xlfn.XLOOKUP($B$3,Bezetting_1!$A$2:$A$90,Bezetting_1!D$2:D$90,,0) -> 09:00 - 16:00u | F8: =_xlfn.XLOOKUP($B$3,Bezetting_1!$A$2:$A$90,Bezetting_1!E$2:E$90,,0) -> 23 | G8: =_xlfn.XLOOKUP($B$3,Bezetting_1!$A$2:$A$90,Bezetting_1!F$2:F$90,,0) -> 0 | H8: =_xlfn.XLOOKUP($B$3,Bezetting_1!$A$2:$A$90,Bezetting_1!G$2:G$90,,0) -> 0 | I8: =_xlfn.XLOOKUP($B$3,Bezetting_1!$A$2:$A$90,Bezetting_1!H$2:H$90,,0) -> 0 | J8: =_xlfn.XLOOKUP($B$3,Bezetting_1!$A$2:$A$90,Bezetting_1!I$2:I$90,,0) -> 0 | K8: =_xlfn.XLOOKUP($B$3,Bezetting_1!$A$2:$A$90,Bezetting_1!J$2:J$90,,0) -> 0 | L8: =_xlfn.XLOOKUP($B$3,Bezetting_1!$A$2:$A$90,Bezetting_1!K$2:K$90,,0) -> 23 | M8: =_xlfn.XLOOKUP($B$3,Bezetting_1!$A$2:$A$90,Bezetting_1!L$2:L$90,,0) -> 0 | N8: =_xlfn.XLOOKUP($B$3,Bezetting_1!$A$2:$A$90,Bezetting_1!M$2:M$90,,0) -> 0 | O8: =_xlfn.XLOOKUP($B$3,Bezetting_1!$A$2:$A$90,Bezetting_1!N$2:N$90,,0) -> 0 | Q8: =_xlfn.XLOOKUP($B$3,Bezetting_1!$A$2:$A$90,Bezetting_1!P$2:P$90,,0) -> 0 | S8: =D8 -> 2023-10-12 | T8: =E8 -> 09:00 - 16:00u | U8: =IF(F8=0,NA(),F8/$L8) -> 1 | V8: =IF(G8=0,NA(),G8/$L8) ->  | W8: =IF(H8=0,NA(),H8/$L8) -> 
B9: ="Nabij kruispunt: "&VLOOKUP(B3,Coordinaten!$A$2:$L$95,4,0) -> Nabij kruispunt: N255 / N8 | F9: =IF(F8=0,"-",F8/$L$8) -> 1 | G9: =IF(G8=0,"-",G8/$L$8) -> - | H9: - | I9: - | J9: - | K9: - | L9: 1 | Q9: =_xlfn.XLOOKUP($B$3,Bezetting_1!$A$2:$A$90,Bezetting_1!Q$2:Q$90,,0) -> 0 | S9: =D10 -> 2023-10-12 | T9: =E10 -> 19:00 - 02:00u | U9: =IF(F10=0,NA(),F10/$L10) -> 1 | V9: =IF(G10=0,NA(),G10/$L10) -> 
D10: =_xlfn.XLOOKUP($B$3,Bezetting_2!$A$2:$A$90,Bezetting_2!C$2:C$90,,0) -> 2023-10-12 | E10: =_xlfn.XLOOKUP($B$3,Bezetting_2!$A$2:$A$90,Bezetting_2!D$2:D$90,,0) -> 19:00 - 02:00u | F10: =_xlfn.XLOOKUP($B$3,Bezetting_2!$A$2:$A$90,Bezetting_2!E$2:E$90,,0) -> 28 | G10: =_xlfn.XLOOKUP($B$3,Bezetting_2!$A$2:$A$90,Bezetting_2!F$2:F$90,,0) -> 0 | H10: =_xlfn.XLOOKUP($B$3,Bezetting_2!$A$2:$A$90,Bezetting_2!G$2:G$90,,0) -> 0 | I10: =_xlfn.XLOOKUP($B$3,Bezetting_2!$A$2:$A$90,Bezetting_2!H$2:H$90,,0) -> 0 | J10: =_xlfn.XLOOKUP($B$3,Bezetting_2!$A$2:$A$90,Bezetting_2!I$2:I$90,,0) -> 0 | K10: =_xlfn.XLOOKUP($B$3,Bezetting_2!$A$2:$A$90,Bezetting_2!J$2:J$90,,0) -> 0 | L10: =_xlfn.XLOOKUP($B$3,Bezetting_2!$A$2:$A$90,Bezetting_2!K$2:K$90,,0) -> 28 | M10: =_xlfn.XLOOKUP($B$3,Bezetting_2!$A$2:$A$90,Bezetting_2!L$2:L$90,,0) -> 0 | N10: =_xlfn.XLOOKUP($B$3,Bezetting_2!$A$2:$A$90,Bezetting_2!M$2:M$90,,0) -> 0 | O10: =_xlfn.XLOOKUP($B$3,Bezetting_2!$A$2:$A$90,Bezetting_2!N$2:N$90,,0) -> 0 | P10: =_xlfn.XLOOKUP($B$3,Bezetting_2!$A$2:$A$90,Bezetting_2!O$2:O$90,,0) -> 0 | Q10: =_xlfn.XLOOKUP($B$3,Bezetting_2!$A$2:$A$90,Bezetting_2!P$2:P$90,,0) -> 0
B11: Meting | F11: =IF(F10=0,"-",F10/$L$10) -> 1 | G11: =IF(G10=0,"-",G10/$L$10) -> - | H11: - | I11: - | J11: - | K11: - | L11: 1 | Q11: =_xlfn.XLOOKUP($B$3,Bezetting_2!$A$2:$A$90,Bezetting_2!Q$2:Q$90,,0) -> 0
B12: ="Meetperiode: "&TEXT(VLOOKUP(B3,Coordinaten!$A:$G,7,0),"dddd dd mmmm jjjj") -> Meetperiode: di 10 & do 12 oktober 2023
B13: Methodiek: Parkeerdrukmeting met waarnemers
B14: In opdracht van: Vlaamse overheid
B15: Uitgevoerd door: Dufec
D16: VERDELING NAAR CATEGORIE
B17: Locatie
B18: =IF(B4="","",HYPERLINK("http://www.googlemaps.com/?q="&B4,"Lat/Long: "&B4)) -> Lat/Long: 50.827345, 4.025918
P20: Legenda
Q21: Personenwagen
Q22: Vracht
Q23: Motor
Q24: Obstakel / overig
Q25: Fout personenwagen
Q26: Fout Vracht
B39: Toelichting
B40: Pers = personenwagens op daarvoor bestemde
B41: openbare plaatsen
B42: Vracht = vrachtwagens op daarvoor bestemde
B43: parkeerplaatsen (middel- en zwaar vrachtverkeer)
B44: Motor = geparkeerde motoren op openbare plaatsen
B45: Obstakel / overig = obstakels of overige voertuigen
B46: geparkeerd op openbare plaatsen
B47: Fout pers = personenwagens die fout geparkeerd staan
B48: Fout vracht = vrachtwagens die fout geparkeerd staan
B49: E-wagen = geparkeerde elektrisch voertuig bij een
B50: elektrisch oplaadpunt
B51: Invalide = personenwagens en motoren op voor
B52: invalide personen bestemde parkeerplaats
B53: Gestalde fietsen = alle gestalde fietsen op de
B54: daarvoor bestemde parkeerplaatsen

Sheet 30.Kruishoutem
B2: PARKEERONDERZOEK | D2: CARPOOLPARKINGS EN P+R PARKINGS
B3: 30 | D3: =B8 & " - "& TEXT(VLOOKUP(B3,Coordinaten!$A$2:$G$95,7,0),"dddd dd mmmm jjjj") -> Carpool parking Kruishoutem, Kruishoutem - di 10 & do 12 oktober 2023
B4: =VLOOKUP(B3,Coordinaten!$A$2:$G$95,6,0) -> 50.916012, 3.492023
D5: BEZETTING | Q5: OPMERKINGEN
B7: Onderzoeksgebied | D7: Datum | E7: Geregistreerd tussen | F7: Pers | G7: Vracht | H7: Motor | I7: Obstakel / overig | J7: Fout pers | K7: Fout Vracht | L7: Totaal | M7: E-wagen plaats | N7: Invalidenplaats | O7: Gestalde fietsen | U7: =F7 -> Pers | V7: Vracht | W7: Motor | X7: Obstakel / overig | Y7: Fout pers | Z7: Fout Vracht
B8: =VLOOKUP(B3,Coordinaten!$A$2:$G$95,3,0)&", "&VLOOKUP(B3,Coordinaten!$A$2:$G$95,5,0) -> Carpool parking Kruishoutem, Kruishoutem | D8: =_xlfn.XLOOKUP($B$3,Bezetting_1!$A$2:$A$90,Bezetting_1!C$2:C$90,,0) -> 2023-10-12 | E8: =_xlfn.XLOOKUP($B$3,Bezetting_1!$A$2:$A$90,Bezetting_1!D$2:D$90,,0) -> 09:00 - 16:00u | F8: =_xlfn.XLOOKUP($B$3,Bezetting_1!$A$2:$A$90,Bezetting_1!E$2:E$90,,0) -> 36 | G8: =_xlfn.XLOOKUP($B$3,Bezetting_1!$A$2:$A$90,Bezetting_1!F$2:F$90,,0) -> 0 | H8: =_xlfn.XLOOKUP($B$3,Bezetting_1!$A$2:$A$90,Bezetting_1!G$2:G$90,,0) -> 0 | I8: =_xlfn.XLOOKUP($B$3,Bezetting_1!$A$2:$A$90,Bezetting_1!H$2:H$90,,0) -> 0 | J8: =_xlfn.XLOOKUP($B$3,Bezetting_1!$A$2:$A$90,Bezetting_1!I$2:I$90,,0) -> 2 | K8: =_xlfn.XLOOKUP($B$3,Bezetting_1!$A$2:$A$90,Bezetting_1!J$2:J$90,,0) -> 1 | L8: =_xlfn.XLOOKUP($B$3,Bezetting_1!$A$2:$A$90,Bezetting_1!K$2:K$90,,0) -> 39 | M8: =_xlfn.XLOOKUP($B$3,Bezetting_1!$A$2:$A$90,Bezetting_1!L$2:L$90,,0) -> 0 | N8: =_xlfn.XLOOKUP($B$3,Bezetting_1!$A$2:$A$90,Bezetting_1!M$2:M$90,,0) -> 0 | O8: =_xlfn.XLOOKUP($B$3,Bezetting_1!$A$2:$A$90,Bezetting_1!N$2:N$90,,0) -> 0 | Q8: =_xlfn.XLOOKUP($B$3,Bezetting_1!$A$2:$A$90,Bezetting_1!P$2:P$90,,0) -> Fout pers: 2 auto's dubbel geparkeerd | S8: =D8 -> 2023-10-12 | T8: =E8 -> 09:00 - 16:00u | U8: =IF(F8=0,NA(),F8/$L8) -> 0.9230769231 | V8: =IF(G8=0,NA(),G8/$L8) ->  | W8: =IF(H8=0,NA(),H8/$L8) ->  | Y8: 0.05128205128 | Z8: 0.02564102564
B9: ="Nabij kruispunt: "&VLOOKUP(B3,Coordinaten!$A$2:$L$95,4,0) -> Nabij kruispunt: N459 / A14 | F9: =IF(F8=0,"-",F8/$L$8) -> 0.9230769231 | G9: =IF(G8=0,"-",G8/$L$8) -> - | H9: - | I9: - | J9: 0.05128205128 | K9: 0.02564102564 | L9: 1 | Q9: =_xlfn.XLOOKUP($B$3,Bezetting_1!$A$2:$A$90,Bezetting_1!Q$2:Q$90,,0) -> 0 | S9: =D10 -> 2023-10-12 | T9: =E10 -> 19:00 - 02:00u | U9: =IF(F10=0,NA(),F10/$L10) -> 0.8235294118 | V9: =IF(G10=0,NA(),G10/$L10) ->  | Y9: 0.1176470588 | Z9: 0.05882352941
D10: =_xlfn.XLOOKUP($B$3,Bezetting_2!$A$2:$A$90,Bezetting_2!C$2:C$90,,0) -> 2023-10-12 | E10: =_xlfn.XLOOKUP($B$3,Bezetting_2!$A$2:$A$90,Bezetting_2!D$2:D$90,,0) -> 19:00 - 02:00u | F10: =_xlfn.XLOOKUP($B$3,Bezetting_2!$A$2:$A$90,Bezetting_2!E$2:E$90,,0) -> 14 | G10: =_xlfn.XLOOKUP($B$3,Bezetting_2!$A$2:$A$90,Bezetting_2!F$2:F$90,,0) -> 0 | H10: =_xlfn.XLOOKUP($B$3,Bezetting_2!$A$2:$A$90,Bezetting_2!G$2:G$90,,0) -> 0 | I10: =_xlfn.XLOOKUP($B$3,Bezetting_2!$A$2:$A$90,Bezetting_2!H$2:H$90,,0) -> 0 | J10: =_xlfn.XLOOKUP($B$3,Bezetting_2!$A$2:$A$90,Bezetting_2!I$2:I$90,,0) -> 2 | K10: =_xlfn.XLOOKUP($B$3,Bezetting_2!$A$2:$A$90,Bezetting_2!J$2:J$90,,0) -> 1 | L10: =_xlfn.XLOOKUP($B$3,Bezetting_2!$A$2:$A$90,Bezetting_2!K$2:K$90,,0) -> 17 | M10: =_xlfn.XLOOKUP($B$3,Bezetting_2!$A$2:$A$90,Bezetting_2!L$2:L$90,,0) -> 0 | N10: =_xlfn.XLOOKUP($B$3,Bezetting_2!$A$2:$A$90,Bezetting_2!M$2:M$90,,0) -> 1 | O10: =_xlfn.XLOOKUP($B$3,Bezetting_2!$A$2:$A$90,Bezetting_2!N$2:N$90,,0) -> 0 | P10: =_xlfn.XLOOKUP($B$3,Bezetting_2!$A$2:$A$90,Bezetting_2!O$2:O$90,,0) -> 0 | Q10: =_xlfn.XLOOKUP($B$3,Bezetting_2!$A$2:$A$90,Bezetting_2!P$2:P$90,,0) -> 0
B11: Meting | F11: =IF(F10=0,"-",F10/$L$10) -> 0.8235294118 | G11: =IF(G10=0,"-",G10/$L$10) -> - | H11: - | I11: - | J11: 0.1176470588 | K11: 0.05882352941 | L11: 1 | Q11: =_xlfn.XLOOKUP($B$3,Bezetting_2!$A$2:$A$90,Bezetting_2!Q$2:Q$90,,0) -> 0
B12: ="Meetperiode: "&TEXT(VLOOKUP(B3,Coordinaten!$A:$G,7,0),"dddd dd mmmm jjjj") -> Meetperiode: di 10 & do 12 oktober 2023
B13: Methodiek: Parkeerdrukmeting met waarnemers
B14: In opdracht van: Vlaamse overheid
B15: Uitgevoerd door: Dufec
D16: VERDELING NAAR CATEGORIE
B17: Locatie
B18: =IF(B4="","",HYPERLINK("http://www.googlemaps.com/?q="&B4,"Lat/Long: "&B4)) -> Lat/Long: 50.916012, 3.492023
P20: Legenda
Q21: Personenwagen
Q22: Vracht
Q23: Motor
Q24: Obstakel / overig
Q25: Fout personenwagen
Q26: Fout Vracht
B39: Toelichting
B40: Pers = personenwagens op daarvoor bestemde
B41: openbare plaatsen
B42: Vracht = vrachtwagens op daarvoor bestemde
B43: parkeerplaatsen (middel- en zwaar vrachtverkeer)
B44: Motor = geparkeerde motoren op openbare plaatsen
B45: Obstakel / overig = obstakels of overige voertuigen
B46: geparkeerd op openbare plaatsen
B47: Fout pers = personenwagens die fout geparkeerd staan
B48: Fout vracht = vrachtwagens die fout geparkeerd staan
B49: E-wagen = geparkeerde elektrisch voertuig bij een
B50: elektrisch oplaadpunt
B51: Invalide = personenwagens en motoren op voor
B52: invalide personen bestemde parkeerplaats
B53: Gestalde fietsen = alle gestalde fietsen op de
B54: daarvoor bestemde parkeerplaatsen

Sheet 32.Vrasene-Noord
B2: PARKEERONDERZOEK | D2: CARPOOLPARKINGS EN P+R PARKINGS
B3: 32 | D3: =B8 & " - "& TEXT(VLOOKUP(B3,Coordinaten!$A$2:$G$95,7,0),"dddd dd mmmm jjjj") -> Carpool parking Vrasene-Noord, Beveren - di 10 & do 12 oktober 2023
B4: =VLOOKUP(B3,Coordinaten!$A$2:$G$95,6,0) -> 51.240943, 4.189741
D5: BEZETTING | Q5: OPMERKINGEN
B7: Onderzoeksgebied | D7: Datum | E7: Geregistreerd tussen | F7: Pers | G7: Vracht | H7: Motor | I7: Obstakel / overig | J7: Fout pers | K7: Fout Vracht | L7: Totaal | M7: E-wagen plaats | N7: Invalidenplaats | O7: Gestalde fietsen | U7: =F7 -> Pers | V7: Vracht | W7: Motor | X7: Obstakel / overig | Y7: Fout pers | Z7: Fout Vracht
B8: =VLOOKUP(B3,Coordinaten!$A$2:$G$95,3,0)&", "&VLOOKUP(B3,Coordinaten!$A$2:$G$95,5,0) -> Carpool parking Vrasene-Noord, Beveren | D8: =_xlfn.XLOOKUP($B$3,Bezetting_1!$A$2:$A$90,Bezetting_1!C$2:C$90,,0) -> 2023-10-10 | E8: =_xlfn.XLOOKUP($B$3,Bezetting_1!$A$2:$A$90,Bezetting_1!D$2:D$90,,0) -> 09:00 - 16:00u | F8: =_xlfn.XLOOKUP($B$3,Bezetting_1!$A$2:$A$90,Bezetting_1!E$2:E$90,,0) -> 30 | G8: =_xlfn.XLOOKUP($B$3,Bezetting_1!$A$2:$A$90,Bezetting_1!F$2:F$90,,0) -> 0 | H8: =_xlfn.XLOOKUP($B$3,Bezetting_1!$A$2:$A$90,Bezetting_1!G$2:G$90,,0) -> 0 | I8: =_xlfn.XLOOKUP($B$3,Bezetting_1!$A$2:$A$90,Bezetting_1!H$2:H$90,,0) -> 0 | J8: =_xlfn.XLOOKUP($B$3,Bezetting_1!$A$2:$A$90,Bezetting_1!I$2:I$90,,0) -> 0 | K8: =_xlfn.XLOOKUP($B$3,Bezetting_1!$A$2:$A$90,Bezetting_1!J$2:J$90,,0) -> 0 | L8: =_xlfn.XLOOKUP($B$3,Bezetting_1!$A$2:$A$90,Bezetting_1!K$2:K$90,,0) -> 30 | M8: =_xlfn.XLOOKUP($B$3,Bezetting_1!$A$2:$A$90,Bezetting_1!L$2:L$90,,0) -> 0 | N8: =_xlfn.XLOOKUP($B$3,Bezetting_1!$A$2:$A$90,Bezetting_1!M$2:M$90,,0) -> 0 | O8: =_xlfn.XLOOKUP($B$3,Bezetting_1!$A$2:$A$90,Bezetting_1!N$2:N$90,,0) -> 1 | Q8: =_xlfn.XLOOKUP($B$3,Bezetting_1!$A$2:$A$90,Bezetting_1!P$2:P$90,,0) -> 0 | S8: =D8 -> 2023-10-10 | T8: =E8 -> 09:00 - 16:00u | U8: =IF(F8=0,NA(),F8/$L8) -> 1 | V8: =IF(G8=0,NA(),G8/$L8) ->  | W8: =IF(H8=0,NA(),H8/$L8) -> 
B9: ="Nabij kruispunt: "&VLOOKUP(B3,Coordinaten!$A$2:$L$95,4,0) -> Nabij kruispunt: N451 / A11 | F9: =IF(F8=0,"-",F8/$L$8) -> 1 | G9: =IF(G8=0,"-",G8/$L$8) -> - | H9: - | I9: - | J9: - | K9: - | L9: 1 | Q9: =_xlfn.XLOOKUP($B$3,Bezetting_1!$A$2:$A$90,Bezetting_1!Q$2:Q$90,,0) -> 0 | S9: =D10 -> 2023-10-10 | T9: =E10 -> 19:00 - 02:00u | U9: =IF(F10=0,NA(),F10/$L10) -> 0.9473684211 | V9: =IF(G10=0,NA(),G10/$L10) ->  | X9: 0.05263157895
D10: =_xlfn.XLOOKUP($B$3,Bezetting_2!$A$2:$A$90,Bezetting_2!C$2:C$90,,0) -> 2023-10-10 | E10: =_xlfn.XLOOKUP($B$3,Bezetting_2!$A$2:$A$90,Bezetting_2!D$2:D$90,,0) -> 19:00 - 02:00u | F10: =_xlfn.XLOOKUP($B$3,Bezetting_2!$A$2:$A$90,Bezetting_2!E$2:E$90,,0) -> 18 | G10: =_xlfn.XLOOKUP($B$3,Bezetting_2!$A$2:$A$90,Bezetting_2!F$2:F$90,,0) -> 0 | H10: =_xlfn.XLOOKUP($B$3,Bezetting_2!$A$2:$A$90,Bezetting_2!G$2:G$90,,0) -> 0 | I10: =_xlfn.XLOOKUP($B$3,Bezetting_2!$A$2:$A$90,Bezetting_2!H$2:H$90,,0) -> 1 | J10: =_xlfn.XLOOKUP($B$3,Bezetting_2!$A$2:$A$90,Bezetting_2!I$2:I$90,,0) -> 0 | K10: =_xlfn.XLOOKUP($B$3,Bezetting_2!$A$2:$A$90,Bezetting_2!J$2:J$90,,0) -> 0 | L10: =_xlfn.XLOOKUP($B$3,Bezetting_2!$A$2:$A$90,Bezetting_2!K$2:K$90,,0) -> 19 | M10: =_xlfn.XLOOKUP($B$3,Bezetting_2!$A$2:$A$90,Bezetting_2!L$2:L$90,,0) -> 0 | N10: =_xlfn.XLOOKUP($B$3,Bezetting_2!$A$2:$A$90,Bezetting_2!M$2:M$90,,0) -> 0 | O10: =_xlfn.XLOOKUP($B$3,Bezetting_2!$A$2:$A$90,Bezetting_2!N$2:N$90,,0) -> 2 | P10: =_xlfn.XLOOKUP($B$3,Bezetting_2!$A$2:$A$90,Bezetting_2!O$2:O$90,,0) -> 0 | Q10: =_xlfn.XLOOKUP($B$3,Bezetting_2!$A$2:$A$90,Bezetting_2!P$2:P$90,,0) -> Overig: 1x trailer
B11: Meting | F11: =IF(F10=0,"-",F10/$L$10) -> 0.9473684211 | G11: =IF(G10=0,"-",G10/$L$10) -> - | H11: - | I11: 0.05263157895 | J11: - | K11: - | L11: 1 | Q11: =_xlfn.XLOOKUP($B$3,Bezetting_2!$A$2:$A$90,Bezetting_2!Q$2:Q$90,,0) -> 0
B12: ="Meetperiode: "&TEXT(VLOOKUP(B3,Coordinaten!$A:$G,7,0),"dddd dd mmmm jjjj") -> Meetperiode: di 10 & do 12 oktober 2023
B13: Methodiek: Parkeerdrukmeting met waarnemers
B14: In opdracht van: Vlaamse overheid
B15: Uitgevoerd door: Dufec
D16: VERDELING NAAR CATEGORIE
B17: Locatie
B18: =IF(B4="","",HYPERLINK("http://www.googlemaps.com/?q="&B4,"Lat/Long: "&B4)) -> Lat/Long: 51.240943, 4.189741
P20: Legenda
Q21: Personenwagen
Q22: Vracht
Q23: Motor
Q24: Obstakel / overig
Q25: Fout personenwagen
Q26: Fout Vracht
B39: Toelichting
B40: Pers = personenwagens op daarvoor bestemde
B41: openbare plaatsen
B42: Vracht = vrachtwagens op daarvoor bestemde
B43: parkeerplaatsen (middel- en zwaar vrachtverkeer)
B44: Motor = geparkeerde motoren op openbare plaatsen
B45: Obstakel / overig = obstakels of overige voertuigen
B46: geparkeerd op openbare plaatsen
B47: Fout pers = personenwagens die fout geparkeerd staan
B48: Fout vracht = vrachtwagens die fout geparkeerd staan
B49: E-wagen = geparkeerde elektrisch voertuig bij een
B50: elektrisch oplaadpunt
B51: Invalide = personenwagens en motoren op voor
B52: invalide personen bestemde parkeerplaats
B53: Gestalde fietsen = alle gestalde fietsen op de
B54: daarvoor bestemde parkeerplaatsen

Sheet 33.Merelbeke
B2: PARKEERONDERZOEK | D2: CARPOOLPARKINGS EN P+R PARKINGS
B3: 33 | D3: =B8 & " - "& TEXT(VLOOKUP(B3,Coordinaten!$A$2:$G$95,7,0),"dddd dd mmmm jjjj") -> Carpool parking Merelbeke, Merelbeke - di 10 & do 12 oktober 2023
B4: =VLOOKUP(B3,Coordinaten!$A$2:$G$95,6,0) -> 51.003542, 3.763040
D5: BEZETTING | Q5: OPMERKINGEN
B7: Onderzoeksgebied | D7: Datum | E7: Geregistreerd tussen | F7: Pers | G7: Vracht | H7: Motor | I7: Obstakel / overig | J7: Fout pers | K7: Fout Vracht | L7: Totaal | M7: E-wagen plaats | N7: Invalidenplaats | O7: Gestalde fietsen | U7: =F7 -> Pers | V7: Vracht | W7: Motor | X7: Obstakel / overig | Y7: Fout pers | Z7: Fout Vracht
B8: =VLOOKUP(B3,Coordinaten!$A$2:$G$95,3,0)&", "&VLOOKUP(B3,Coordinaten!$A$2:$G$95,5,0) -> Carpool parking Merelbeke, Merelbeke | D8: =_xlfn.XLOOKUP($B$3,Bezetting_1!$A$2:$A$90,Bezetting_1!C$2:C$90,,0) -> 2023-10-12 | E8: =_xlfn.XLOOKUP($B$3,Bezetting_1!$A$2:$A$90,Bezetting_1!D$2:D$90,,0) -> 09:00 - 16:00u | F8: =_xlfn.XLOOKUP($B$3,Bezetting_1!$A$2:$A$90,Bezetting_1!E$2:E$90,,0) -> 88 | G8: =_xlfn.XLOOKUP($B$3,Bezetting_1!$A$2:$A$90,Bezetting_1!F$2:F$90,,0) -> 0 | H8: =_xlfn.XLOOKUP($B$3,Bezetting_1!$A$2:$A$90,Bezetting_1!G$2:G$90,,0) -> 0 | I8: =_xlfn.XLOOKUP($B$3,Bezetting_1!$A$2:$A$90,Bezetting_1!H$2:H$90,,0) -> 0 | J8: =_xlfn.XLOOKUP($B$3,Bezetting_1!$A$2:$A$90,Bezetting_1!I$2:I$90,,0) -> 2 | K8: =_xlfn.XLOOKUP($B$3,Bezetting_1!$A$2:$A$90,Bezetting_1!J$2:J$90,,0) -> 1 | L8: =_xlfn.XLOOKUP($B$3,Bezetting_1!$A$2:$A$90,Bezetting_1!K$2:K$90,,0) -> 91 | M8: =_xlfn.XLOOKUP($B$3,Bezetting_1!$A$2:$A$90,Bezetting_1!L$2:L$90,,0) -> 0 | N8: =_xlfn.XLOOKUP($B$3,Bezetting_1!$A$2:$A$90,Bezetting_1!M$2:M$90,,0) -> 0 | O8: =_xlfn.XLOOKUP($B$3,Bezetting_1!$A$2:$A$90,Bezetting_1!N$2:N$90,,0) -> 8 | Q8: =_xlfn.XLOOKUP($B$3,Bezetting_1!$A$2:$A$90,Bezetting_1!P$2:P$90,,0) -> 0 | S8: =D8 -> 2023-10-12 | T8: =E8 -> 09:00 - 16:00u | U8: =IF(F8=0,NA(),F8/$L8) -> 0.967032967 | V8: =IF(G8=0,NA(),G8/$L8) ->  | W8: =IF(H8=0,NA(),H8/$L8) ->  | Y8: 0.02197802198 | Z8: 0.01098901099
B9: ="Nabij kruispunt: "&VLOOKUP(B3,Coordinaten!$A$2:$L$95,4,0) -> Nabij kruispunt: B403 / R4 | F9: =IF(F8=0,"-",F8/$L$8) -> 0.967032967 | G9: =IF(G8=0,"-",G8/$L$8) -> - | H9: - | I9: - | J9: 0.02197802198 | K9: 0.01098901099 | L9: 1 | Q9: =_xlfn.XLOOKUP($B$3,Bezetting_1!$A$2:$A$90,Bezetting_1!Q$2:Q$90,,0) -> 0 | S9: =D10 -> 2023-10-12 | T9: =E10 -> 19:00 - 02:00u | U9: =IF(F10=0,NA(),F10/$L10) -> 0.9305555556 | V9: =IF(G10=0,NA(),G10/$L10) ->  | W9: 0.01388888889 | X9: 0.05555555556
D10: =_xlfn.XLOOKUP($B$3,Bezetting_2!$A$2:$A$90,Bezetting_2!C$2:C$90,,0) -> 2023-10-12 | E10: =_xlfn.XLOOKUP($B$3,Bezetting_2!$A$2:$A$90,Bezetting_2!D$2:D$90,,0) -> 19:00 - 02:00u | F10: =_xlfn.XLOOKUP($B$3,Bezetting_2!$A$2:$A$90,Bezetting_2!E$2:E$90,,0) -> 67 | G10: =_xlfn.XLOOKUP($B$3,Bezetting_2!$A$2:$A$90,Bezetting_2!F$2:F$90,,0) -> 0 | H10: =_xlfn.XLOOKUP($B$3,Bezetting_2!$A$2:$A$90,Bezetting_2!G$2:G$90,,0) -> 1 | I10: =_xlfn.XLOOKUP($B$3,Bezetting_2!$A$2:$A$90,Bezetting_2!H$2:H$90,,0) -> 4 | J10: =_xlfn.XLOOKUP($B$3,Bezetting_2!$A$2:$A$90,Bezetting_2!I$2:I$90,,0) -> 0 | K10: =_xlfn.XLOOKUP($B$3,Bezetting_2!$A$2:$A$90,Bezetting_2!J$2:J$90,,0) -> 0 | L10: =_xlfn.XLOOKUP($B$3,Bezetting_2!$A$2:$A$90,Bezetting_2!K$2:K$90,,0) -> 72 | M10: =_xlfn.XLOOKUP($B$3,Bezetting_2!$A$2:$A$90,Bezetting_2!L$2:L$90,,0) -> 0 | N10: =_xlfn.XLOOKUP($B$3,Bezetting_2!$A$2:$A$90,Bezetting_2!M$2:M$90,,0) -> 0 | O10: =_xlfn.XLOOKUP($B$3,Bezetting_2!$A$2:$A$90,Bezetting_2!N$2:N$90,,0) -> 17 | P10: =_xlfn.XLOOKUP($B$3,Bezetting_2!$A$2:$A$90,Bezetting_2!O$2:O$90,,0) -> 0 | Q10: =_xlfn.XLOOKUP($B$3,Bezetting_2!$A$2:$A$90,Bezetting_2!P$2:P$90,,0) -> Overig: pallets
B11: Meting | F11: =IF(F10=0,"-",F10/$L$10) -> 0.9305555556 | G11: =IF(G10=0,"-",G10/$L$10) -> - | H11: 0.01388888889 | I11: 0.05555555556 | J11: - | K11: - | L11: 1 | Q11: =_xlfn.XLOOKUP($B$3,Bezetting_2!$A$2:$A$90,Bezetting_2!Q$2:Q$90,,0) -> Fout: 1 fiets
B12: ="Meetperiode: "&TEXT(VLOOKUP(B3,Coordinaten!$A:$G,7,0),"dddd dd mmmm jjjj") -> Meetperiode: di 10 & do 12 oktober 2023
B13: Methodiek: Parkeerdrukmeting met waarnemers
B14: In opdracht van: Vlaamse overheid
B15: Uitgevoerd door: Dufec
D16: VERDELING NAAR CATEGORIE
B17: Locatie
B18: =IF(B4="","",HYPERLINK("http://www.googlemaps.com/?q="&B4,"Lat/Long: "&B4)) -> Lat/Long: 51.003542, 3.763040
P20: Legenda
Q21: Personenwagen
Q22: Vracht
Q23: Motor
Q24: Obstakel / overig
Q25: Fout personenwagen
Q26: Fout Vracht
B39: Toelichting
B40: Pers = personenwagens op daarvoor bestemde
B41: openbare plaatsen
B42: Vracht = vrachtwagens op daarvoor bestemde
B43: parkeerplaatsen (middel- en zwaar vrachtverkeer)
B44: Motor = geparkeerde motoren op openbare plaatsen
B45: Obstakel / overig = obstakels of overige voertuigen
B46: geparkeerd op openbare plaatsen
B47: Fout pers = personenwagens die fout geparkeerd staan
B48: Fout vracht = vrachtwagens die fout geparkeerd staan
B49: E-wagen = geparkeerde elektrisch voertuig bij een
B50: elektrisch oplaadpunt
B51: Invalide = personenwagens en motoren op voor
B52: invalide personen bestemde parkeerplaats
B53: Gestalde fietsen = alle gestalde fietsen op de
B54: daarvoor bestemde parkeerplaatsen

Sheet 34.Vilvoorde
B2: PARKEERONDERZOEK | D2: CARPOOLPARKINGS EN P+R PARKINGS
B3: 34 | D3: =B8 & " - "& TEXT(VLOOKUP(B3,Coordinaten!$A$2:$G$95,7,0),"dddd dd mmmm jjjj") -> Carpool parking Vilvoorde, Machelen - di 10 & do 12 oktober 2023
B4: =VLOOKUP(B3,Coordinaten!$A$2:$G$95,6,0) -> 50.910540, 4.459740
D5: BEZETTING | Q5: OPMERKINGEN
B7: Onderzoeksgebied | D7: Datum | E7: Geregistreerd tussen | F7: Pers | G7: Vracht | H7: Motor | I7: Obstakel / overig | J7: Fout pers | K7: Fout Vracht | L7: Totaal | M7: E-wagen plaats | N7: Invalidenplaats | O7: Gestalde fietsen | U7: =F7 -> Pers | V7: Vracht | W7: Motor | X7: Obstakel / overig | Y7: Fout pers | Z7: Fout Vracht
B8: =VLOOKUP(B3,Coordinaten!$A$2:$G$95,3,0)&", "&VLOOKUP(B3,Coordinaten!$A$2:$G$95,5,0) -> Carpool parking Vilvoorde, Machelen | D8: =_xlfn.XLOOKUP($B$3,Bezetting_1!$A$2:$A$90,Bezetting_1!C$2:C$90,,0) -> 2023-10-12 | E8: =_xlfn.XLOOKUP($B$3,Bezetting_1!$A$2:$A$90,Bezetting_1!D$2:D$90,,0) -> 09:00 - 16:00u | F8: =_xlfn.XLOOKUP($B$3,Bezetting_1!$A$2:$A$90,Bezetting_1!E$2:E$90,,0) -> 26 | G8: =_xlfn.XLOOKUP($B$3,Bezetting_1!$A$2:$A$90,Bezetting_1!F$2:F$90,,0) -> 0 | H8: =_xlfn.XLOOKUP($B$3,Bezetting_1!$A$2:$A$90,Bezetting_1!G$2:G$90,,0) -> 0 | I8: =_xlfn.XLOOKUP($B$3,Bezetting_1!$A$2:$A$90,Bezetting_1!H$2:H$90,,0) -> 0 | J8: =_xlfn.XLOOKUP($B$3,Bezetting_1!$A$2:$A$90,Bezetting_1!I$2:I$90,,0) -> 0 | K8: =_xlfn.XLOOKUP($B$3,Bezetting_1!$A$2:$A$90,Bezetting_1!J$2:J$90,,0) -> 0 | L8: =_xlfn.XLOOKUP($B$3,Bezetting_1!$A$2:$A$90,Bezetting_1!K$2:K$90,,0) -> 26 | M8: =_xlfn.XLOOKUP($B$3,Bezetting_1!$A$2:$A$90,Bezetting_1!L$2:L$90,,0) -> 0 | N8: =_xlfn.XLOOKUP($B$3,Bezetting_1!$A$2:$A$90,Bezetting_1!M$2:M$90,,0) -> 0 | O8: =_xlfn.XLOOKUP($B$3,Bezetting_1!$A$2:$A$90,Bezetting_1!N$2:N$90,,0) -> 0 | Q8: =_xlfn.XLOOKUP($B$3,Bezetting_1!$A$2:$A$90,Bezetting_1!P$2:P$90,,0) -> 0 | S8: =D8 -> 2023-10-12 | T8: =E8 -> 09:00 - 16:00u | U8: =IF(F8=0,NA(),F8/$L8) -> 1 | V8: =IF(G8=0,NA(),G8/$L8) ->  | W8: =IF(H8=0,NA(),H8/$L8) -> 
B9: ="Nabij kruispunt: "&VLOOKUP(B3,Coordinaten!$A$2:$L$95,4,0) -> Nabij kruispunt: N211 / N21 | F9: =IF(F8=0,"-",F8/$L$8) -> 1 | G9: =IF(G8=0,"-",G8/$L$8) -> - | H9: - | I9: - | J9: - | K9: - | L9: 1 | Q9: =_xlfn.XLOOKUP($B$3,Bezetting_1!$A$2:$A$90,Bezetting_1!Q$2:Q$90,,0) -> 0 | S9: =D10 -> 2023-10-12 | T9: =E10 -> 19:00 - 02:00u | U9: =IF(F10=0,NA(),F10/$L10) -> 0.9545454545 | V9: =IF(G10=0,NA(),G10/$L10) ->  | Z9: 0.04545454545
D10: =_xlfn.XLOOKUP($B$3,Bezetting_2!$A$2:$A$90,Bezetting_2!C$2:C$90,,0) -> 2023-10-12 | E10: =_xlfn.XLOOKUP($B$3,Bezetting_2!$A$2:$A$90,Bezetting_2!D$2:D$90,,0) -> 19:00 - 02:00u | F10: =_xlfn.XLOOKUP($B$3,Bezetting_2!$A$2:$A$90,Bezetting_2!E$2:E$90,,0) -> 21 | G10: =_xlfn.XLOOKUP($B$3,Bezetting_2!$A$2:$A$90,Bezetting_2!F$2:F$90,,0) -> 0 | H10: =_xlfn.XLOOKUP($B$3,Bezetting_2!$A$2:$A$90,Bezetting_2!G$2:G$90,,0) -> 0 | I10: =_xlfn.XLOOKUP($B$3,Bezetting_2!$A$2:$A$90,Bezetting_2!H$2:H$90,,0) -> 0 | J10: =_xlfn.XLOOKUP($B$3,Bezetting_2!$A$2:$A$90,Bezetting_2!I$2:I$90,,0) -> 0 | K10: =_xlfn.XLOOKUP($B$3,Bezetting_2!$A$2:$A$90,Bezetting_2!J$2:J$90,,0) -> 1 | L10: =_xlfn.XLOOKUP($B$3,Bezetting_2!$A$2:$A$90,Bezetting_2!K$2:K$90,,0) -> 22 | M10: =_xlfn.XLOOKUP($B$3,Bezetting_2!$A$2:$A$90,Bezetting_2!L$2:L$90,,0) -> 0 | N10: =_xlfn.XLOOKUP($B$3,Bezetting_2!$A$2:$A$90,Bezetting_2!M$2:M$90,,0) -> 2 | O10: =_xlfn.XLOOKUP($B$3,Bezetting_2!$A$2:$A$90,Bezetting_2!N$2:N$90,,0) -> 0 | P10: =_xlfn.XLOOKUP($B$3,Bezetting_2!$A$2:$A$90,Bezetting_2!O$2:O$90,,0) -> 0 | Q10: =_xlfn.XLOOKUP($B$3,Bezetting_2!$A$2:$A$90,Bezetting_2!P$2:P$90,,0) -> 0
B11: Meting | F11: =IF(F10=0,"-",F10/$L$10) -> 0.9545454545 | G11: =IF(G10=0,"-",G10/$L$10) -> - | H11: - | I11: - | J11: - | K11: 0.04545454545 | L11: 1 | Q11: =_xlfn.XLOOKUP($B$3,Bezetting_2!$A$2:$A$90,Bezetting_2!Q$2:Q$90,,0) -> 0
B12: ="Meetperiode: "&TEXT(VLOOKUP(B3,Coordinaten!$A:$G,7,0),"dddd dd mmmm jjjj") -> Meetperiode: di 10 & do 12 oktober 2023
B13: Methodiek: Parkeerdrukmeting met waarnemers
B14: In opdracht van: Vlaamse overheid
B15: Uitgevoerd door: Dufec
D16: VERDELING NAAR CATEGORIE
B17: Locatie
B18: =IF(B4="","",HYPERLINK("http://www.googlemaps.com/?q="&B4,"Lat/Long: "&B4)) -> Lat/Long: 50.910540, 4.459740
P20: Legenda
Q21: Personenwagen
Q22: Vracht
Q23: Motor
Q24: Obstakel / overig
Q25: Fout personenwagen
Q26: Fout Vracht
B39: Toelichting
B40: Pers = personenwagens op daarvoor bestemde
B41: openbare plaatsen
B42: Vracht = vrachtwagens op daarvoor bestemde
B43: parkeerplaatsen (middel- en zwaar vrachtverkeer)
B44: Motor = geparkeerde motoren op openbare plaatsen
B45: Obstakel / overig = obstakels of overige voertuigen
B46: geparkeerd op openbare plaatsen
B47: Fout pers = personenwagens die fout geparkeerd staan
B48: Fout vracht = vrachtwagens die fout geparkeerd staan
B49: E-wagen = geparkeerde elektrisch voertuig bij een
B50: elektrisch oplaadpunt
B51: Invalide = personenwagens en motoren op voor
B52: invalide personen bestemde parkeerplaats
B53: Gestalde fietsen = alle gestalde fietsen op de
B54: daarvoor bestemde parkeerplaatsen

Sheet 35.Holsbeek
B2: PARKEERONDERZOEK | D2: CARPOOLPARKINGS EN P+R PARKINGS
B3: 35 | D3: =B8 & " - "& TEXT(VLOOKUP(B3,Coordinaten!$A$2:$G$95,7,0),"dddd dd mmmm jjjj") -> Carpool parking Holsbeek, Leuven - di 10 & do 12 oktober 2023
B4: =VLOOKUP(B3,Coordinaten!$A$2:$G$95,6,0) -> 50.933565, 4.743369
D5: BEZETTING | Q5: OPMERKINGEN
B7: Onderzoeksgebied | D7: Datum | E7: Geregistreerd tussen | F7: Pers | G7: Vracht | H7: Motor | I7: Obstakel / overig | J7: Fout pers | K7: Fout Vracht | L7: Totaal | M7: E-wagen plaats | N7: Invalidenplaats | O7: Gestalde fietsen | U7: =F7 -> Pers | V7: Vracht | W7: Motor | X7: Obstakel / overig | Y7: Fout pers | Z7: Fout Vracht
B8: =VLOOKUP(B3,Coordinaten!$A$2:$G$95,3,0)&", "&VLOOKUP(B3,Coordinaten!$A$2:$G$95,5,0) -> Carpool parking Holsbeek, Leuven | D8: =_xlfn.XLOOKUP($B$3,Bezetting_1!$A$2:$A$90,Bezetting_1!C$2:C$90,,0) -> 2023-10-10 | E8: =_xlfn.XLOOKUP($B$3,Bezetting_1!$A$2:$A$90,Bezetting_1!D$2:D$90,,0) -> 09:00 - 16:00u | F8: =_xlfn.XLOOKUP($B$3,Bezetting_1!$A$2:$A$90,Bezetting_1!E$2:E$90,,0) -> 16 | G8: =_xlfn.XLOOKUP($B$3,Bezetting_1!$A$2:$A$90,Bezetting_1!F$2:F$90,,0) -> 0 | H8: =_xlfn.XLOOKUP($B$3,Bezetting_1!$A$2:$A$90,Bezetting_1!G$2:G$90,,0) -> 0 | I8: =_xlfn.XLOOKUP($B$3,Bezetting_1!$A$2:$A$90,Bezetting_1!H$2:H$90,,0) -> 0 | J8: =_xlfn.XLOOKUP($B$3,Bezetting_1!$A$2:$A$90,Bezetting_1!I$2:I$90,,0) -> 0 | K8: =_xlfn.XLOOKUP($B$3,Bezetting_1!$A$2:$A$90,Bezetting_1!J$2:J$90,,0) -> 0 | L8: =_xlfn.XLOOKUP($B$3,Bezetting_1!$A$2:$A$90,Bezetting_1!K$2:K$90,,0) -> 16 | M8: =_xlfn.XLOOKUP($B$3,Bezetting_1!$A$2:$A$90,Bezetting_1!L$2:L$90,,0) -> 0 | N8: =_xlfn.XLOOKUP($B$3,Bezetting_1!$A$2:$A$90,Bezetting_1!M$2:M$90,,0) -> 0 | O8: =_xlfn.XLOOKUP($B$3,Bezetting_1!$A$2:$A$90,Bezetting_1!N$2:N$90,,0) -> 0 | Q8: =_xlfn.XLOOKUP($B$3,Bezetting_1!$A$2:$A$90,Bezetting_1!P$2:P$90,,0) -> 0 | S8: =D8 -> 2023-10-10 | T8: =E8 -> 09:00 - 16:00u | U8: =IF(F8=0,NA(),F8/$L8) -> 1 | V8: =IF(G8=0,NA(),G8/$L8) ->  | W8: =IF(H8=0,NA(),H8/$L8) -> 
B9: ="Nabij kruispunt: "&VLOOKUP(B3,Coordinaten!$A$2:$L$95,4,0) -> Nabij kruispunt: N229 / A2 | F9: =IF(F8=0,"-",F8/$L$8) -> 1 | G9: =IF(G8=0,"-",G8/$L$8) -> - | H9: - | I9: - | J9: - | K9: - | L9: 1 | Q9: =_xlfn.XLOOKUP($B$3,Bezetting_1!$A$2:$A$90,Bezetting_1!Q$2:Q$90,,0) -> 0 | S9: =D10 -> 2023-10-10 | T9: =E10 -> 19:00 - 02:00u | U9: =IF(F10=0,NA(),F10/$L10) -> 1 | V9: =IF(G10=0,NA(),G10/$L10) -> 
D10: =_xlfn.XLOOKUP($B$3,Bezetting_2!$A$2:$A$90,Bezetting_2!C$2:C$90,,0) -> 2023-10-10 | E10: =_xlfn.XLOOKUP($B$3,Bezetting_2!$A$2:$A$90,Bezetting_2!D$2:D$90,,0) -> 19:00 - 02:00u | F10: =_xlfn.XLOOKUP($B$3,Bezetting_2!$A$2:$A$90,Bezetting_2!E$2:E$90,,0) -> 9 | G10: =_xlfn.XLOOKUP($B$3,Bezetting_2!$A$2:$A$90,Bezetting_2!F$2:F$90,,0) -> 0 | H10: =_xlfn.XLOOKUP($B$3,Bezetting_2!$A$2:$A$90,Bezetting_2!G$2:G$90,,0) -> 0 | I10: =_xlfn.XLOOKUP($B$3,Bezetting_2!$A$2:$A$90,Bezetting_2!H$2:H$90,,0) -> 0 | J10: =_xlfn.XLOOKUP($B$3,Bezetting_2!$A$2:$A$90,Bezetting_2!I$2:I$90,,0) -> 0 | K10: =_xlfn.XLOOKUP($B$3,Bezetting_2!$A$2:$A$90,Bezetting_2!J$2:J$90,,0) -> 0 | L10: =_xlfn.XLOOKUP($B$3,Bezetting_2!$A$2:$A$90,Bezetting_2!K$2:K$90,,0) -> 9 | M10: =_xlfn.XLOOKUP($B$3,Bezetting_2!$A$2:$A$90,Bezetting_2!L$2:L$90,,0) -> 0 | N10: =_xlfn.XLOOKUP($B$3,Bezetting_2!$A$2:$A$90,Bezetting_2!M$2:M$90,,0) -> 0 | O10: =_xlfn.XLOOKUP($B$3,Bezetting_2!$A$2:$A$90,Bezetting_2!N$2:N$90,,0) -> 1 | P10: =_xlfn.XLOOKUP($B$3,Bezetting_2!$A$2:$A$90,Bezetting_2!O$2:O$90,,0) -> 0 | Q10: =_xlfn.XLOOKUP($B$3,Bezetting_2!$A$2:$A$90,Bezetting_2!P$2:P$90,,0) -> 0
B11: Meting | F11: =IF(F10=0,"-",F10/$L$10) -> 1 | G11: =IF(G10=0,"-",G10/$L$10) -> - | H11: - | I11: - | J11: - | K11: - | L11: 1 | Q11: =_xlfn.XLOOKUP($B$3,Bezetting_2!$A$2:$A$90,Bezetting_2!Q$2:Q$90,,0) -> 0
B12: ="Meetperiode: "&TEXT(VLOOKUP(B3,Coordinaten!$A:$G,7,0),"dddd dd mmmm jjjj") -> Meetperiode: di 10 & do 12 oktober 2023
B13: Methodiek: Parkeerdrukmeting met waarnemers
B14: In opdracht van: Vlaamse overheid
B15: Uitgevoerd door: Dufec
D16: VERDELING NAAR CATEGORIE
B17: Locatie
B18: =IF(B4="","",HYPERLINK("http://www.googlemaps.com/?q="&B4,"Lat/Long: "&B4)) -> Lat/Long: 50.933565, 4.743369
P20: Legenda
Q21: Personenwagen
Q22: Vracht
Q23: Motor
Q24: Obstakel / overig
Q25: Fout personenwagen
Q26: Fout Vracht
B39: Toelichting
B40: Pers = personenwagens op daarvoor bestemde
B41: openbare plaatsen
B42: Vracht = vrachtwagens op daarvoor bestemde
B43: parkeerplaatsen (middel- en zwaar vrachtverkeer)
B44: Motor = geparkeerde motoren op openbare plaatsen
B45: Obstakel / overig = obstakels of overige voertuigen
B46: geparkeerd op openbare plaatsen
B47: Fout pers = personenwagens die fout geparkeerd staan
B48: Fout vracht = vrachtwagens die fout geparkeerd staan
B49: E-wagen = geparkeerde elektrisch voertuig bij een
B50: elektrisch oplaadpunt
B51: Invalide = personenwagens en motoren op voor
B52: invalide personen bestemde parkeerplaats
B53: Gestalde fietsen = alle gestalde fietsen op de
B54: daarvoor bestemde parkeerplaatsen

Sheet 36.Halle-Essenbeek
B2: PARKEERONDERZOEK | D2: CARPOOLPARKINGS EN P+R PARKINGS
B3: 36 | D3: =B8 & " - "& TEXT(VLOOKUP(B3,Coordinaten!$A$2:$G$95,7,0),"dddd dd mmmm jjjj") -> P+R parking Halle-Essenbeek, Halle - di 10 & do 12 oktober 2023
B4: =VLOOKUP(B3,Coordinaten!$A$2:$G$95,6,0) -> 50.721091, 4.250252
D5: BEZETTING | Q5: OPMERKINGEN
B7: Onderzoeksgebied | D7: Datum | E7: Geregistreerd tussen | F7: Pers | G7: Vracht | H7: Motor | I7: Obstakel / overig | J7: Fout pers | K7: Fout Vracht | L7: Totaal | M7: E-wagen plaats | N7: Invalidenplaats | O7: Gestalde fietsen | U7: =F7 -> Pers | V7: Vracht | W7: Motor | X7: Obstakel / overig | Y7: Fout pers | Z7: Fout Vracht
B8: =VLOOKUP(B3,Coordinaten!$A$2:$G$95,3,0)&", "&VLOOKUP(B3,Coordinaten!$A$2:$G$95,5,0) -> P+R parking Halle-Essenbeek, Halle | D8: =_xlfn.XLOOKUP($B$3,Bezetting_1!$A$2:$A$90,Bezetting_1!C$2:C$90,,0) -> 2023-10-12 | E8: =_xlfn.XLOOKUP($B$3,Bezetting_1!$A$2:$A$90,Bezetting_1!D$2:D$90,,0) -> 09:00 - 16:00u | F8: =_xlfn.XLOOKUP($B$3,Bezetting_1!$A$2:$A$90,Bezetting_1!E$2:E$90,,0) -> 17 | G8: =_xlfn.XLOOKUP($B$3,Bezetting_1!$A$2:$A$90,Bezetting_1!F$2:F$90,,0) -> 0 | H8: =_xlfn.XLOOKUP($B$3,Bezetting_1!$A$2:$A$90,Bezetting_1!G$2:G$90,,0) -> 0 | I8: =_xlfn.XLOOKUP($B$3,Bezetting_1!$A$2:$A$90,Bezetting_1!H$2:H$90,,0) -> 0 | J8: =_xlfn.XLOOKUP($B$3,Bezetting_1!$A$2:$A$90,Bezetting_1!I$2:I$90,,0) -> 0 | K8: =_xlfn.XLOOKUP($B$3,Bezetting_1!$A$2:$A$90,Bezetting_1!J$2:J$90,,0) -> 0 | L8: =_xlfn.XLOOKUP($B$3,Bezetting_1!$A$2:$A$90,Bezetting_1!K$2:K$90,,0) -> 17 | M8: =_xlfn.XLOOKUP($B$3,Bezetting_1!$A$2:$A$90,Bezetting_1!L$2:L$90,,0) -> 0 | N8: =_xlfn.XLOOKUP($B$3,Bezetting_1!$A$2:$A$90,Bezetting_1!M$2:M$90,,0) -> 2 | O8: =_xlfn.XLOOKUP($B$3,Bezetting_1!$A$2:$A$90,Bezetting_1!N$2:N$90,,0) -> 1 | Q8: =_xlfn.XLOOKUP($B$3,Bezetting_1!$A$2:$A$90,Bezetting_1!P$2:P$90,,0) -> 0 | S8: =D8 -> 2023-10-12 | T8: =E8 -> 09:00 - 16:00u | U8: =IF(F8=0,NA(),F8/$L8) -> 1 | V8: =IF(G8=0,NA(),G8/$L8) ->  | W8: =IF(H8=0,NA(),H8/$L8) -> 
B9: ="Nabij kruispunt: "&VLOOKUP(B3,Coordinaten!$A$2:$L$95,4,0) -> Nabij kruispunt: N28 / N203a | F9: =IF(F8=0,"-",F8/$L$8) -> 1 | G9: =IF(G8=0,"-",G8/$L$8) -> - | H9: - | I9: - | J9: - | K9: - | L9: 1 | Q9: =_xlfn.XLOOKUP($B$3,Bezetting_1!$A$2:$A$90,Bezetting_1!Q$2:Q$90,,0) -> 0 | S9: =D10 -> 2023-10-12 | T9: =E10 -> 19:00 - 02:00u | U9: =IF(F10=0,NA(),F10/$L10) -> 0.9565217391 | V9: =IF(G10=0,NA(),G10/$L10) ->  | Y9: 0.04347826087
D10: =_xlfn.XLOOKUP($B$3,Bezetting_2!$A$2:$A$90,Bezetting_2!C$2:C$90,,0) -> 2023-10-12 | E10: =_xlfn.XLOOKUP($B$3,Bezetting_2!$A$2:$A$90,Bezetting_2!D$2:D$90,,0) -> 19:00 - 02:00u | F10: =_xlfn.XLOOKUP($B$3,Bezetting_2!$A$2:$A$90,Bezetting_2!E$2:E$90,,0) -> 22 | G10: =_xlfn.XLOOKUP($B$3,Bezetting_2!$A$2:$A$90,Bezetting_2!F$2:F$90,,0) -> 0 | H10: =_xlfn.XLOOKUP($B$3,Bezetting_2!$A$2:$A$90,Bezetting_2!G$2:G$90,,0) -> 0 | I10: =_xlfn.XLOOKUP($B$3,Bezetting_2!$A$2:$A$90,Bezetting_2!H$2:H$90,,0) -> 0 | J10: =_xlfn.XLOOKUP($B$3,Bezetting_2!$A$2:$A$90,Bezetting_2!I$2:I$90,,0) -> 1 | K10: =_xlfn.XLOOKUP($B$3,Bezetting_2!$A$2:$A$90,Bezetting_2!J$2:J$90,,0) -> 0 | L10: =_xlfn.XLOOKUP($B$3,Bezetting_2!$A$2:$A$90,Bezetting_2!K$2:K$90,,0) -> 23 | M10: =_xlfn.XLOOKUP($B$3,Bezetting_2!$A$2:$A$90,Bezetting_2!L$2:L$90,,0) -> 0 | N10: =_xlfn.XLOOKUP($B$3,Bezetting_2!$A$2:$A$90,Bezetting_2!M$2:M$90,,0) -> 0 | O10: =_xlfn.XLOOKUP($B$3,Bezetting_2!$A$2:$A$90,Bezetting_2!N$2:N$90,,0) -> 0 | P10: =_xlfn.XLOOKUP($B$3,Bezetting_2!$A$2:$A$90,Bezetting_2!O$2:O$90,,0) -> 0 | Q10: =_xlfn.XLOOKUP($B$3,Bezetting_2!$A$2:$A$90,Bezetting_2!P$2:P$90,,0) -> 0
B11: Meting | F11: =IF(F10=0,"-",F10/$L$10) -> 0.9565217391 | G11: =IF(G10=0,"-",G10/$L$10) -> - | H11: - | I11: - | J11: 0.04347826087 | K11: - | L11: 1 | Q11: =_xlfn.XLOOKUP($B$3,Bezetting_2!$A$2:$A$90,Bezetting_2!Q$2:Q$90,,0) -> 0
B12: ="Meetperiode: "&TEXT(VLOOKUP(B3,Coordinaten!$A:$G,7,0),"dddd dd mmmm jjjj") -> Meetperiode: di 10 & do 12 oktober 2023
B13: Methodiek: Parkeerdrukmeting met waarnemers
B14: In opdracht van: Vlaamse overheid
B15: Uitgevoerd door: Dufec
D16: VERDELING NAAR CATEGORIE
B17: Locatie
B18: =IF(B4="","",HYPERLINK("http://www.googlemaps.com/?q="&B4,"Lat/Long: "&B4)) -> Lat/Long: 50.721091, 4.250252
P20: Legenda
Q21: Personenwagen
Q22: Vracht
Q23: Motor
Q24: Obstakel / overig
Q25: Fout personenwagen
Q26: Fout Vracht
B39: Toelichting
B40: Pers = personenwagens op daarvoor bestemde
B41: openbare plaatsen
B42: Vracht = vrachtwagens op daarvoor bestemde
B43: parkeerplaatsen (middel- en zwaar vrachtverkeer)
B44: Motor = geparkeerde motoren op openbare plaatsen
B45: Obstakel / overig = obstakels of overige voertuigen
B46: geparkeerd op openbare plaatsen
B47: Fout pers = personenwagens die fout geparkeerd staan
B48: Fout vracht = vrachtwagens die fout geparkeerd staan
B49: E-wagen = geparkeerde elektrisch voertuig bij een
B50: elektrisch oplaadpunt
B51: Invalide = personenwagens en motoren op voor
B52: invalide personen bestemde parkeerplaats
B53: Gestalde fietsen = alle gestalde fietsen op de
B54: daarvoor bestemde parkeerplaatsen

Sheet 37.Halle-Sint Rochus
B2: PARKEERONDERZOEK | D2: CARPOOLPARKINGS EN P+R PARKINGS
B3: 37 | D3: =B8 & " - "& TEXT(VLOOKUP(B3,Coordinaten!$A$2:$G$95,7,0),"dddd dd mmmm jjjj") -> Carpool parking Halle-Sint Rochus, Halle - di 10 & do 12 oktober 2023
B4: =VLOOKUP(B3,Coordinaten!$A$2:$G$95,6,0) -> 50.727008, 4.258883
D5: BEZETTING | Q5: OPMERKINGEN
B7: Onderzoeksgebied | D7: Datum | E7: Geregistreerd tussen | F7: Pers | G7: Vracht | H7: Motor | I7: Obstakel / overig | J7: Fout pers | K7: Fout Vracht | L7: Totaal | M7: E-wagen plaats | N7: Invalidenplaats | O7: Gestalde fietsen | U7: =F7 -> Pers | V7: Vracht | W7: Motor | X7: Obstakel / overig | Y7: Fout pers | Z7: Fout Vracht
B8: =VLOOKUP(B3,Coordinaten!$A$2:$G$95,3,0)&", "&VLOOKUP(B3,Coordinaten!$A$2:$G$95,5,0) -> Carpool parking Halle-Sint Rochus, Halle | D8: =_xlfn.XLOOKUP($B$3,Bezetting_1!$A$2:$A$90,Bezetting_1!C$2:C$90,,0) -> 2023-10-12 | E8: =_xlfn.XLOOKUP($B$3,Bezetting_1!$A$2:$A$90,Bezetting_1!D$2:D$90,,0) -> 09:00 - 16:00u | F8: =_xlfn.XLOOKUP($B$3,Bezetting_1!$A$2:$A$90,Bezetting_1!E$2:E$90,,0) -> 4 | G8: =_xlfn.XLOOKUP($B$3,Bezetting_1!$A$2:$A$90,Bezetting_1!F$2:F$90,,0) -> 0 | H8: =_xlfn.XLOOKUP($B$3,Bezetting_1!$A$2:$A$90,Bezetting_1!G$2:G$90,,0) -> 0 | I8: =_xlfn.XLOOKUP($B$3,Bezetting_1!$A$2:$A$90,Bezetting_1!H$2:H$90,,0) -> 0 | J8: =_xlfn.XLOOKUP($B$3,Bezetting_1!$A$2:$A$90,Bezetting_1!I$2:I$90,,0) -> 0 | K8: =_xlfn.XLOOKUP($B$3,Bezetting_1!$A$2:$A$90,Bezetting_1!J$2:J$90,,0) -> 0 | L8: =_xlfn.XLOOKUP($B$3,Bezetting_1!$A$2:$A$90,Bezetting_1!K$2:K$90,,0) -> 4 | M8: =_xlfn.XLOOKUP($B$3,Bezetting_1!$A$2:$A$90,Bezetting_1!L$2:L$90,,0) -> 0 | N8: =_xlfn.XLOOKUP($B$3,Bezetting_1!$A$2:$A$90,Bezetting_1!M$2:M$90,,0) -> 0 | O8: =_xlfn.XLOOKUP($B$3,Bezetting_1!$A$2:$A$90,Bezetting_1!N$2:N$90,,0) -> 0 | Q8: =_xlfn.XLOOKUP($B$3,Bezetting_1!$A$2:$A$90,Bezetting_1!P$2:P$90,,0) -> 0 | S8: =D8 -> 2023-10-12 | T8: =E8 -> 09:00 - 16:00u | U8: =IF(F8=0,NA(),F8/$L8) -> 1 | V8: =IF(G8=0,NA(),G8/$L8) ->  | W8: =IF(H8=0,NA(),H8/$L8) -> 
B9: ="Nabij kruispunt: "&VLOOKUP(B3,Coordinaten!$A$2:$L$95,4,0) -> Nabij kruispunt: N203 / N203a | F9: =IF(F8=0,"-",F8/$L$8) -> 1 | G9: =IF(G8=0,"-",G8/$L$8) -> - | H9: - | I9: - | J9: - | K9: - | L9: 1 | Q9: =_xlfn.XLOOKUP($B$3,Bezetting_1!$A$2:$A$90,Bezetting_1!Q$2:Q$90,,0) -> 0 | S9: =D10 -> 2023-10-12 | T9: =E10 -> 19:00 - 02:00u | U9: =IF(F10=0,NA(),F10/$L10) ->  | V9: =IF(G10=0,NA(),G10/$L10) -> 
D10: =_xlfn.XLOOKUP($B$3,Bezetting_2!$A$2:$A$90,Bezetting_2!C$2:C$90,,0) -> 2023-10-12 | E10: =_xlfn.XLOOKUP($B$3,Bezetting_2!$A$2:$A$90,Bezetting_2!D$2:D$90,,0) -> 19:00 - 02:00u | F10: =_xlfn.XLOOKUP($B$3,Bezetting_2!$A$2:$A$90,Bezetting_2!E$2:E$90,,0) -> 0 | G10: =_xlfn.XLOOKUP($B$3,Bezetting_2!$A$2:$A$90,Bezetting_2!F$2:F$90,,0) -> 0 | H10: =_xlfn.XLOOKUP($B$3,Bezetting_2!$A$2:$A$90,Bezetting_2!G$2:G$90,,0) -> 0 | I10: =_xlfn.XLOOKUP($B$3,Bezetting_2!$A$2:$A$90,Bezetting_2!H$2:H$90,,0) -> 0 | J10: =_xlfn.XLOOKUP($B$3,Bezetting_2!$A$2:$A$90,Bezetting_2!I$2:I$90,,0) -> 0 | K10: =_xlfn.XLOOKUP($B$3,Bezetting_2!$A$2:$A$90,Bezetting_2!J$2:J$90,,0) -> 0 | L10: =_xlfn.XLOOKUP($B$3,Bezetting_2!$A$2:$A$90,Bezetting_2!K$2:K$90,,0) -> 0 | M10: =_xlfn.XLOOKUP($B$3,Bezetting_2!$A$2:$A$90,Bezetting_2!L$2:L$90,,0) -> 0 | N10: =_xlfn.XLOOKUP($B$3,Bezetting_2!$A$2:$A$90,Bezetting_2!M$2:M$90,,0) -> 0 | O10: =_xlfn.XLOOKUP($B$3,Bezetting_2!$A$2:$A$90,Bezetting_2!N$2:N$90,,0) -> 0 | P10: =_xlfn.XLOOKUP($B$3,Bezetting_2!$A$2:$A$90,Bezetting_2!O$2:O$90,,0) -> 0 | Q10: =_xlfn.XLOOKUP($B$3,Bezetting_2!$A$2:$A$90,Bezetting_2!P$2:P$90,,0) -> 0
B11: Meting | F11: =IF(F10=0,"-",F10/$L$10) -> - | G11: =IF(G10=0,"-",G10/$L$10) -> - | H11: - | I11: - | J11: - | K11: - | L11: - | Q11: =_xlfn.XLOOKUP($B$3,Bezetting_2!$A$2:$A$90,Bezetting_2!Q$2:Q$90,,0) -> 0
B12: ="Meetperiode: "&TEXT(VLOOKUP(B3,Coordinaten!$A:$G,7,0),"dddd dd mmmm jjjj") -> Meetperiode: di 10 & do 12 oktober 2023
B13: Methodiek: Parkeerdrukmeting met waarnemers
B14: In opdracht van: Vlaamse overheid
B15: Uitgevoerd door: Dufec
D16: VERDELING NAAR CATEGORIE
B17: Locatie
B18: =IF(B4="","",HYPERLINK("http://www.googlemaps.com/?q="&B4,"Lat/Long: "&B4)) -> Lat/Long: 50.727008, 4.258883
P20: Legenda
Q21: Personenwagen
Q22: Vracht
Q23: Motor
Q24: Obstakel / overig
Q25: Fout personenwagen
Q26: Fout Vracht
B39: Toelichting
B40: Pers = personenwagens op daarvoor bestemde
B41: openbare plaatsen
B42: Vracht = vrachtwagens op daarvoor bestemde
B43: parkeerplaatsen (middel- en zwaar vrachtverkeer)
B44: Motor = geparkeerde motoren op openbare plaatsen
B45: Obstakel / overig = obstakels of overige voertuigen
B46: geparkeerd op openbare plaatsen
B47: Fout pers = personenwagens die fout geparkeerd staan
B48: Fout vracht = vrachtwagens die fout geparkeerd staan
B49: E-wagen = geparkeerde elektrisch voertuig bij een
B50: elektrisch oplaadpunt
B51: Invalide = personenwagens en motoren op voor
B52: invalide personen bestemde parkeerplaats
B53: Gestalde fietsen = alle gestalde fietsen op de
B54: daarvoor bestemde parkeerplaatsen

Sheet 38.Boutersem
B2: PARKEERONDERZOEK | D2: CARPOOLPARKINGS EN P+R PARKINGS
B3: 38 | D3: =B8 & " - "& TEXT(VLOOKUP(B3,Coordinaten!$A$2:$G$95,7,0),"dddd dd mmmm jjjj") -> Carpool parking Boutersem, Boutersem - di 10 & do 12 oktober 2023
B4: =VLOOKUP(B3,Coordinaten!$A$2:$G$95,6,0) -> 50.825404, 4.814390
D5: BEZETTING | Q5: OPMERKINGEN
B7: Onderzoeksgebied | D7: Datum | E7: Geregistreerd tussen | F7: Pers | G7: Vracht | H7: Motor | I7: Obstakel / overig | J7: Fout pers | K7: Fout Vracht | L7: Totaal | M7: E-wagen plaats | N7: Invalidenplaats | O7: Gestalde fietsen | U7: =F7 -> Pers | V7: Vracht | W7: Motor | X7: Obstakel / overig | Y7: Fout pers | Z7: Fout Vracht
B8: =VLOOKUP(B3,Coordinaten!$A$2:$G$95,3,0)&", "&VLOOKUP(B3,Coordinaten!$A$2:$G$95,5,0) -> Carpool parking Boutersem, Boutersem | D8: =_xlfn.XLOOKUP($B$3,Bezetting_1!$A$2:$A$90,Bezetting_1!C$2:C$90,,0) -> 2023-10-10 | E8: =_xlfn.XLOOKUP($B$3,Bezetting_1!$A$2:$A$90,Bezetting_1!D$2:D$90,,0) -> 09:00 - 16:00u | F8: =_xlfn.XLOOKUP($B$3,Bezetting_1!$A$2:$A$90,Bezetting_1!E$2:E$90,,0) -> 32 | G8: =_xlfn.XLOOKUP($B$3,Bezetting_1!$A$2:$A$90,Bezetting_1!F$2:F$90,,0) -> 0 | H8: =_xlfn.XLOOKUP($B$3,Bezetting_1!$A$2:$A$90,Bezetting_1!G$2:G$90,,0) -> 0 | I8: =_xlfn.XLOOKUP($B$3,Bezetting_1!$A$2:$A$90,Bezetting_1!H$2:H$90,,0) -> 0 | J8: =_xlfn.XLOOKUP($B$3,Bezetting_1!$A$2:$A$90,Bezetting_1!I$2:I$90,,0) -> 0 | K8: =_xlfn.XLOOKUP($B$3,Bezetting_1!$A$2:$A$90,Bezetting_1!J$2:J$90,,0) -> 0 | L8: =_xlfn.XLOOKUP($B$3,Bezetting_1!$A$2:$A$90,Bezetting_1!K$2:K$90,,0) -> 32 | M8: =_xlfn.XLOOKUP($B$3,Bezetting_1!$A$2:$A$90,Bezetting_1!L$2:L$90,,0) -> 0 | N8: =_xlfn.XLOOKUP($B$3,Bezetting_1!$A$2:$A$90,Bezetting_1!M$2:M$90,,0) -> 0 | O8: =_xlfn.XLOOKUP($B$3,Bezetting_1!$A$2:$A$90,Bezetting_1!N$2:N$90,,0) -> 0 | Q8: =_xlfn.XLOOKUP($B$3,Bezetting_1!$A$2:$A$90,Bezetting_1!P$2:P$90,,0) -> 0 | S8: =D8 -> 2023-10-10 | T8: =E8 -> 09:00 - 16:00u | U8: =IF(F8=0,NA(),F8/$L8) -> 1 | V8: =IF(G8=0,NA(),G8/$L8) ->  | W8: =IF(H8=0,NA(),H8/$L8) -> 
B9: ="Nabij kruispunt: "&VLOOKUP(B3,Coordinaten!$A$2:$L$95,4,0) -> Nabij kruispunt: N234 / A3 | F9: =IF(F8=0,"-",F8/$L$8) -> 1 | G9: =IF(G8=0,"-",G8/$L$8) -> - | H9: - | I9: - | J9: - | K9: - | L9: 1 | Q9: =_xlfn.XLOOKUP($B$3,Bezetting_1!$A$2:$A$90,Bezetting_1!Q$2:Q$90,,0) -> 0 | S9: =D10 -> 2023-10-10 | T9: =E10 -> 19:00 - 02:00u | U9: =IF(F10=0,NA(),F10/$L10) -> 0.5555555556 | V9: =IF(G10=0,NA(),G10/$L10) ->  | X9: 0.2222222222 | Z9: 0.2222222222
D10: =_xlfn.XLOOKUP($B$3,Bezetting_2!$A$2:$A$90,Bezetting_2!C$2:C$90,,0) -> 2023-10-10 | E10: =_xlfn.XLOOKUP($B$3,Bezetting_2!$A$2:$A$90,Bezetting_2!D$2:D$90,,0) -> 19:00 - 02:00u | F10: =_xlfn.XLOOKUP($B$3,Bezetting_2!$A$2:$A$90,Bezetting_2!E$2:E$90,,0) -> 5 | G10: =_xlfn.XLOOKUP($B$3,Bezetting_2!$A$2:$A$90,Bezetting_2!F$2:F$90,,0) -> 0 | H10: =_xlfn.XLOOKUP($B$3,Bezetting_2!$A$2:$A$90,Bezetting_2!G$2:G$90,,0) -> 0 | I10: =_xlfn.XLOOKUP($B$3,Bezetting_2!$A$2:$A$90,Bezetting_2!H$2:H$90,,0) -> 2 | J10: =_xlfn.XLOOKUP($B$3,Bezetting_2!$A$2:$A$90,Bezetting_2!I$2:I$90,,0) -> 0 | K10: =_xlfn.XLOOKUP($B$3,Bezetting_2!$A$2:$A$90,Bezetting_2!J$2:J$90,,0) -> 2 | L10: =_xlfn.XLOOKUP($B$3,Bezetting_2!$A$2:$A$90,Bezetting_2!K$2:K$90,,0) -> 9 | M10: =_xlfn.XLOOKUP($B$3,Bezetting_2!$A$2:$A$90,Bezetting_2!L$2:L$90,,0) -> 0 | N10: =_xlfn.XLOOKUP($B$3,Bezetting_2!$A$2:$A$90,Bezetting_2!M$2:M$90,,0) -> 0 | O10: =_xlfn.XLOOKUP($B$3,Bezetting_2!$A$2:$A$90,Bezetting_2!N$2:N$90,,0) -> 0 | P10: =_xlfn.XLOOKUP($B$3,Bezetting_2!$A$2:$A$90,Bezetting_2!O$2:O$90,,0) -> 0 | Q10: =_xlfn.XLOOKUP($B$3,Bezetting_2!$A$2:$A$90,Bezetting_2!P$2:P$90,,0) -> Overig: 2x oplegger
B11: Meting | F11: =IF(F10=0,"-",F10/$L$10) -> 0.5555555556 | G11: =IF(G10=0,"-",G10/$L$10) -> - | H11: - | I11: 0.2222222222 | J11: - | K11: 0.2222222222 | L11: 1 | Q11: =_xlfn.XLOOKUP($B$3,Bezetting_2!$A$2:$A$90,Bezetting_2!Q$2:Q$90,,0) -> 0
B12: ="Meetperiode: "&TEXT(VLOOKUP(B3,Coordinaten!$A:$G,7,0),"dddd dd mmmm jjjj") -> Meetperiode: di 10 & do 12 oktober 2023
B13: Methodiek: Parkeerdrukmeting met waarnemers
B14: In opdracht van: Vlaamse overheid
B15: Uitgevoerd door: Dufec
D16: VERDELING NAAR CATEGORIE
B17: Locatie
B18: =IF(B4="","",HYPERLINK("http://www.googlemaps.com/?q="&B4,"Lat/Long: "&B4)) -> Lat/Long: 50.825404, 4.814390
P20: Legenda
Q21: Personenwagen
Q22: Vracht
Q23: Motor
Q24: Obstakel / overig
Q25: Fout personenwagen
Q26: Fout Vracht
B39: Toelichting
B40: Pers = personenwagens op daarvoor bestemde
B41: openbare plaatsen
B42: Vracht = vrachtwagens op daarvoor bestemde
B43: parkeerplaatsen (middel- en zwaar vrachtverkeer)
B44: Motor = geparkeerde motoren op openbare plaatsen
B45: Obstakel / overig = obstakels of overige voertuigen
B46: geparkeerd op openbare plaatsen
B47: Fout pers = personenwagens die fout geparkeerd staan
B48: Fout vracht = vrachtwagens die fout geparkeerd staan
B49: E-wagen = geparkeerde elektrisch voertuig bij een
B50: elektrisch oplaadpunt
B51: Invalide = personenwagens en motoren op voor
B52: invalide personen bestemde parkeerplaats
B53: Gestalde fietsen = alle gestalde fietsen op de
B54: daarvoor bestemde parkeerplaatsen

Sheet 39.Aarschot
B2: PARKEERONDERZOEK | D2: CARPOOLPARKINGS EN P+R PARKINGS
B3: 39 | D3: =B8 & " - "& TEXT(VLOOKUP(B3,Coordinaten!$A$2:$G$95,7,0),"dddd dd mmmm jjjj") -> Carpool parking Aarschot, Aarschot - di 10 & do 12 oktober 2023
B4: =VLOOKUP(B3,Coordinaten!$A$2:$G$95,6,0) -> 50.963819, 4.836608
D5: BEZETTING | Q5: OPMERKINGEN
B7: Onderzoeksgebied | D7: Datum | E7: Geregistreerd tussen | F7: Pers | G7: Vracht | H7: Motor | I7: Obstakel / overig | J7: Fout pers | K7: Fout Vracht | L7: Totaal | M7: E-wagen plaats | N7: Invalidenplaats | O7: Gestalde fietsen | U7: =F7 -> Pers | V7: Vracht | W7: Motor | X7: Obstakel / overig | Y7: Fout pers | Z7: Fout Vracht
B8: =VLOOKUP(B3,Coordinaten!$A$2:$G$95,3,0)&", "&VLOOKUP(B3,Coordinaten!$A$2:$G$95,5,0) -> Carpool parking Aarschot, Aarschot | D8: =_xlfn.XLOOKUP($B$3,Bezetting_1!$A$2:$A$90,Bezetting_1!C$2:C$90,,0) -> 2023-10-12 | E8: =_xlfn.XLOOKUP($B$3,Bezetting_1!$A$2:$A$90,Bezetting_1!D$2:D$90,,0) -> 09:00 - 16:00u | F8: =_xlfn.XLOOKUP($B$3,Bezetting_1!$A$2:$A$90,Bezetting_1!E$2:E$90,,0) -> 44 | G8: =_xlfn.XLOOKUP($B$3,Bezetting_1!$A$2:$A$90,Bezetting_1!F$2:F$90,,0) -> 0 | H8: =_xlfn.XLOOKUP($B$3,Bezetting_1!$A$2:$A$90,Bezetting_1!G$2:G$90,,0) -> 0 | I8: =_xlfn.XLOOKUP($B$3,Bezetting_1!$A$2:$A$90,Bezetting_1!H$2:H$90,,0) -> 0 | J8: =_xlfn.XLOOKUP($B$3,Bezetting_1!$A$2:$A$90,Bezetting_1!I$2:I$90,,0) -> 0 | K8: =_xlfn.XLOOKUP($B$3,Bezetting_1!$A$2:$A$90,Bezetting_1!J$2:J$90,,0) -> 0 | L8: =_xlfn.XLOOKUP($B$3,Bezetting_1!$A$2:$A$90,Bezetting_1!K$2:K$90,,0) -> 44 | M8: =_xlfn.XLOOKUP($B$3,Bezetting_1!$A$2:$A$90,Bezetting_1!L$2:L$90,,0) -> 0 | N8: =_xlfn.XLOOKUP($B$3,Bezetting_1!$A$2:$A$90,Bezetting_1!M$2:M$90,,0) -> 0 | O8: =_xlfn.XLOOKUP($B$3,Bezetting_1!$A$2:$A$90,Bezetting_1!N$2:N$90,,0) -> 1 | Q8: =_xlfn.XLOOKUP($B$3,Bezetting_1!$A$2:$A$90,Bezetting_1!P$2:P$90,,0) -> 0 | S8: =D8 -> 2023-10-12 | T8: =E8 -> 09:00 - 16:00u | U8: =IF(F8=0,NA(),F8/$L8) -> 1 | V8: =IF(G8=0,NA(),G8/$L8) ->  | W8: =IF(H8=0,NA(),H8/$L8) -> 
B9: ="Nabij kruispunt: "&VLOOKUP(B3,Coordinaten!$A$2:$L$95,4,0) -> Nabij kruispunt: A2 / N233 | F9: =IF(F8=0,"-",F8/$L$8) -> 1 | G9: =IF(G8=0,"-",G8/$L$8) -> - | H9: - | I9: - | J9: - | K9: - | L9: 1 | Q9: =_xlfn.XLOOKUP($B$3,Bezetting_1!$A$2:$A$90,Bezetting_1!Q$2:Q$90,,0) -> 0 | S9: =D10 -> 2023-10-10 | T9: =E10 -> 19:00 - 02:00u | U9: =IF(F10=0,NA(),F10/$L10) -> 1 | V9: =IF(G10=0,NA(),G10/$L10) -> 
D10: =_xlfn.XLOOKUP($B$3,Bezetting_2!$A$2:$A$90,Bezetting_2!C$2:C$90,,0) -> 2023-10-10 | E10: =_xlfn.XLOOKUP($B$3,Bezetting_2!$A$2:$A$90,Bezetting_2!D$2:D$90,,0) -> 19:00 - 02:00u | F10: =_xlfn.XLOOKUP($B$3,Bezetting_2!$A$2:$A$90,Bezetting_2!E$2:E$90,,0) -> 55 | G10: =_xlfn.XLOOKUP($B$3,Bezetting_2!$A$2:$A$90,Bezetting_2!F$2:F$90,,0) -> 0 | H10: =_xlfn.XLOOKUP($B$3,Bezetting_2!$A$2:$A$90,Bezetting_2!G$2:G$90,,0) -> 0 | I10: =_xlfn.XLOOKUP($B$3,Bezetting_2!$A$2:$A$90,Bezetting_2!H$2:H$90,,0) -> 0 | J10: =_xlfn.XLOOKUP($B$3,Bezetting_2!$A$2:$A$90,Bezetting_2!I$2:I$90,,0) -> 0 | K10: =_xlfn.XLOOKUP($B$3,Bezetting_2!$A$2:$A$90,Bezetting_2!J$2:J$90,,0) -> 0 | L10: =_xlfn.XLOOKUP($B$3,Bezetting_2!$A$2:$A$90,Bezetting_2!K$2:K$90,,0) -> 55 | M10: =_xlfn.XLOOKUP($B$3,Bezetting_2!$A$2:$A$90,Bezetting_2!L$2:L$90,,0) -> 0 | N10: =_xlfn.XLOOKUP($B$3,Bezetting_2!$A$2:$A$90,Bezetting_2!M$2:M$90,,0) -> 0 | O10: =_xlfn.XLOOKUP($B$3,Bezetting_2!$A$2:$A$90,Bezetting_2!N$2:N$90,,0) -> 1 | P10: =_xlfn.XLOOKUP($B$3,Bezetting_2!$A$2:$A$90,Bezetting_2!O$2:O$90,,0) -> 0 | Q10: =_xlfn.XLOOKUP($B$3,Bezetting_2!$A$2:$A$90,Bezetting_2!P$2:P$90,,0) -> 0
B11: Meting | F11: =IF(F10=0,"-",F10/$L$10) -> 1 | G11: =IF(G10=0,"-",G10/$L$10) -> - | H11: - | I11: - | J11: - | K11: - | L11: 1 | Q11: =_xlfn.XLOOKUP($B$3,Bezetting_2!$A$2:$A$90,Bezetting_2!Q$2:Q$90,,0) -> 0
B12: ="Meetperiode: "&TEXT(VLOOKUP(B3,Coordinaten!$A:$G,7,0),"dddd dd mmmm jjjj") -> Meetperiode: di 10 & do 12 oktober 2023
B13: Methodiek: Parkeerdrukmeting met waarnemers
B14: In opdracht van: Vlaamse overheid
B15: Uitgevoerd door: Dufec
D16: VERDELING NAAR CATEGORIE
B17: Locatie
B18: =IF(B4="","",HYPERLINK("http://www.googlemaps.com/?q="&B4,"Lat/Long: "&B4)) -> Lat/Long: 50.963819, 4.836608
P20: Legenda
Q21: Personenwagen
Q22: Vracht
Q23: Motor
Q24: Obstakel / overig
Q25: Fout personenwagen
Q26: Fout Vracht
B39: Toelichting
B40: Pers = personenwagens op daarvoor bestemde
B41: openbare plaatsen
B42: Vracht = vrachtwagens op daarvoor bestemde
B43: parkeerplaatsen (middel- en zwaar vrachtverkeer)
B44: Motor = geparkeerde motoren op openbare plaatsen
B45: Obstakel / overig = obstakels of overige voertuigen
B46: geparkeerd op openbare plaatsen
B47: Fout pers = personenwagens die fout geparkeerd staan
B48: Fout vracht = vrachtwagens die fout geparkeerd staan
B49: E-wagen = geparkeerde elektrisch voertuig bij een
B50: elektrisch oplaadpunt
B51: Invalide = personenwagens en motoren op voor
B52: invalide personen bestemde parkeerplaats
B53: Gestalde fietsen = alle gestalde fietsen op de
B54: daarvoor bestemde parkeerplaatsen

Sheet 40.Tielt-Winge
B2: PARKEERONDERZOEK | D2: CARPOOLPARKINGS EN P+R PARKINGS
B3: 40 | D3: =B8 & " - "& TEXT(VLOOKUP(B3,Coordinaten!$A$2:$G$95,7,0),"dddd dd mmmm jjjj") -> Carpool parking Tielt-Winge, Tielt-Winge - di 10 & do 12 oktober 2023
B4: =VLOOKUP(B3,Coordinaten!$A$2:$G$95,6,0) -> 50.959801, 4.930284
D5: BEZETTING | Q5: OPMERKINGEN
B7: Onderzoeksgebied | D7: Datum | E7: Geregistreerd tussen | F7: Pers | G7: Vracht | H7: Motor | I7: Obstakel / overig | J7: Fout pers | K7: Fout Vracht | L7: Totaal | M7: E-wagen plaats | N7: Invalidenplaats | O7: Gestalde fietsen | U7: =F7 -> Pers | V7: Vracht | W7: Motor | X7: Obstakel / overig | Y7: Fout pers | Z7: Fout Vracht
B8: =VLOOKUP(B3,Coordinaten!$A$2:$G$95,3,0)&", "&VLOOKUP(B3,Coordinaten!$A$2:$G$95,5,0) -> Carpool parking Tielt-Winge, Tielt-Winge | D8: =_xlfn.XLOOKUP($B$3,Bezetting_1!$A$2:$A$90,Bezetting_1!C$2:C$90,,0) -> 2023-10-12 | E8: =_xlfn.XLOOKUP($B$3,Bezetting_1!$A$2:$A$90,Bezetting_1!D$2:D$90,,0) -> 09:00 - 16:00u | F8: =_xlfn.XLOOKUP($B$3,Bezetting_1!$A$2:$A$90,Bezetting_1!E$2:E$90,,0) -> 37 | G8: =_xlfn.XLOOKUP($B$3,Bezetting_1!$A$2:$A$90,Bezetting_1!F$2:F$90,,0) -> 0 | H8: =_xlfn.XLOOKUP($B$3,Bezetting_1!$A$2:$A$90,Bezetting_1!G$2:G$90,,0) -> 0 | I8: =_xlfn.XLOOKUP($B$3,Bezetting_1!$A$2:$A$90,Bezetting_1!H$2:H$90,,0) -> 0 | J8: =_xlfn.XLOOKUP($B$3,Bezetting_1!$A$2:$A$90,Bezetting_1!I$2:I$90,,0) -> 0 | K8: =_xlfn.XLOOKUP($B$3,Bezetting_1!$A$2:$A$90,Bezetting_1!J$2:J$90,,0) -> 0 | L8: =_xlfn.XLOOKUP($B$3,Bezetting_1!$A$2:$A$90,Bezetting_1!K$2:K$90,,0) -> 37 | M8: =_xlfn.XLOOKUP($B$3,Bezetting_1!$A$2:$A$90,Bezetting_1!L$2:L$90,,0) -> 0 | N8: =_xlfn.XLOOKUP($B$3,Bezetting_1!$A$2:$A$90,Bezetting_1!M$2:M$90,,0) -> 0 | O8: =_xlfn.XLOOKUP($B$3,Bezetting_1!$A$2:$A$90,Bezetting_1!N$2:N$90,,0) -> 1 | Q8: =_xlfn.XLOOKUP($B$3,Bezetting_1!$A$2:$A$90,Bezetting_1!P$2:P$90,,0) -> 0 | S8: =D8 -> 2023-10-12 | T8: =E8 -> 09:00 - 16:00u | U8: =IF(F8=0,NA(),F8/$L8) -> 1 | V8: =IF(G8=0,NA(),G8/$L8) ->  | W8: =IF(H8=0,NA(),H8/$L8) -> 
B9: ="Nabij kruispunt: "&VLOOKUP(B3,Coordinaten!$A$2:$L$95,4,0) -> Nabij kruispunt: N258 / A2 | F9: =IF(F8=0,"-",F8/$L$8) -> 1 | G9: =IF(G8=0,"-",G8/$L$8) -> - | H9: - | I9: - | J9: - | K9: - | L9: 1 | Q9: =_xlfn.XLOOKUP($B$3,Bezetting_1!$A$2:$A$90,Bezetting_1!Q$2:Q$90,,0) -> 0 | S9: =D10 -> 2023-10-10 | T9: =E10 -> 19:00 - 02:00u | U9: =IF(F10=0,NA(),F10/$L10) -> 1 | V9: =IF(G10=0,NA(),G10/$L10) -> 
D10: =_xlfn.XLOOKUP($B$3,Bezetting_2!$A$2:$A$90,Bezetting_2!C$2:C$90,,0) -> 2023-10-10 | E10: =_xlfn.XLOOKUP($B$3,Bezetting_2!$A$2:$A$90,Bezetting_2!D$2:D$90,,0) -> 19:00 - 02:00u | F10: =_xlfn.XLOOKUP($B$3,Bezetting_2!$A$2:$A$90,Bezetting_2!E$2:E$90,,0) -> 8 | G10: =_xlfn.XLOOKUP($B$3,Bezetting_2!$A$2:$A$90,Bezetting_2!F$2:F$90,,0) -> 0 | H10: =_xlfn.XLOOKUP($B$3,Bezetting_2!$A$2:$A$90,Bezetting_2!G$2:G$90,,0) -> 0 | I10: =_xlfn.XLOOKUP($B$3,Bezetting_2!$A$2:$A$90,Bezetting_2!H$2:H$90,,0) -> 0 | J10: =_xlfn.XLOOKUP($B$3,Bezetting_2!$A$2:$A$90,Bezetting_2!I$2:I$90,,0) -> 0 | K10: =_xlfn.XLOOKUP($B$3,Bezetting_2!$A$2:$A$90,Bezetting_2!J$2:J$90,,0) -> 0 | L10: =_xlfn.XLOOKUP($B$3,Bezetting_2!$A$2:$A$90,Bezetting_2!K$2:K$90,,0) -> 8 | M10: =_xlfn.XLOOKUP($B$3,Bezetting_2!$A$2:$A$90,Bezetting_2!L$2:L$90,,0) -> 0 | N10: =_xlfn.XLOOKUP($B$3,Bezetting_2!$A$2:$A$90,Bezetting_2!M$2:M$90,,0) -> 0 | O10: =_xlfn.XLOOKUP($B$3,Bezetting_2!$A$2:$A$90,Bezetting_2!N$2:N$90,,0) -> 0 | P10: =_xlfn.XLOOKUP($B$3,Bezetting_2!$A$2:$A$90,Bezetting_2!O$2:O$90,,0) -> 0 | Q10: =_xlfn.XLOOKUP($B$3,Bezetting_2!$A$2:$A$90,Bezetting_2!P$2:P$90,,0) -> 0
B11: Meting | F11: =IF(F10=0,"-",F10/$L$10) -> 1 | G11: =IF(G10=0,"-",G10/$L$10) -> - | H11: - | I11: - | J11: - | K11: - | L11: 1 | Q11: =_xlfn.XLOOKUP($B$3,Bezetting_2!$A$2:$A$90,Bezetting_2!Q$2:Q$90,,0) -> 0
B12: ="Meetperiode: "&TEXT(VLOOKUP(B3,Coordinaten!$A:$G,7,0),"dddd dd mmmm jjjj") -> Meetperiode: di 10 & do 12 oktober 2023
B13: Methodiek: Parkeerdrukmeting met waarnemers
B14: In opdracht van: Vlaamse overheid
B15: Uitgevoerd door: Dufec
D16: VERDELING NAAR CATEGORIE
B17: Locatie
B18: =IF(B4="","",HYPERLINK("http://www.googlemaps.com/?q="&B4,"Lat/Long: "&B4)) -> Lat/Long: 50.959801, 4.930284
P20: Legenda
Q21: Personenwagen
Q22: Vracht
Q23: Motor
Q24: Obstakel / overig
Q25: Fout personenwagen
Q26: Fout Vracht
B39: Toelichting
B40: Pers = personenwagens op daarvoor bestemde
B41: openbare plaatsen
B42: Vracht = vrachtwagens op daarvoor bestemde
B43: parkeerplaatsen (middel- en zwaar vrachtverkeer)
B44: Motor = geparkeerde motoren op openbare plaatsen
B45: Obstakel / overig = obstakels of overige voertuigen
B46: geparkeerd op openbare plaatsen
B47: Fout pers = personenwagens die fout geparkeerd staan
B48: Fout vracht = vrachtwagens die fout geparkeerd staan
B49: E-wagen = geparkeerde elektrisch voertuig bij een
B50: elektrisch oplaadpunt
B51: Invalide = personenwagens en motoren op voor
B52: invalide personen bestemde parkeerplaats
B53: Gestalde fietsen = alle gestalde fietsen op de
B54: daarvoor bestemde parkeerplaatsen

Sheet 41.Walshoutem
B2: PARKEERONDERZOEK | D2: CARPOOLPARKINGS EN P+R PARKINGS
B3: 41 | D3: =B8 & " - "& TEXT(VLOOKUP(B3,Coordinaten!$A$2:$G$95,7,0),"dddd dd mmmm jjjj") -> Carpool parking Walshoutem, Landen - di 10 & do 12 oktober 2023
B4: =VLOOKUP(B3,Coordinaten!$A$2:$G$95,6,0) -> 50.713075, 5.081833
D5: BEZETTING | Q5: OPMERKINGEN
B7: Onderzoeksgebied | D7: Datum | E7: Geregistreerd tussen | F7: Pers | G7: Vracht | H7: Motor | I7: Obstakel / overig | J7: Fout pers | K7: Fout Vracht | L7: Totaal | M7: E-wagen plaats | N7: Invalidenplaats | O7: Gestalde fietsen | U7: =F7 -> Pers | V7: Vracht | W7: Motor | X7: Obstakel / overig | Y7: Fout pers | Z7: Fout Vracht
B8: =VLOOKUP(B3,Coordinaten!$A$2:$G$95,3,0)&", "&VLOOKUP(B3,Coordinaten!$A$2:$G$95,5,0) -> Carpool parking Walshoutem, Landen | D8: =_xlfn.XLOOKUP($B$3,Bezetting_1!$A$2:$A$90,Bezetting_1!C$2:C$90,,0) -> 2023-10-10 | E8: =_xlfn.XLOOKUP($B$3,Bezetting_1!$A$2:$A$90,Bezetting_1!D$2:D$90,,0) -> 09:00 - 16:00u | F8: =_xlfn.XLOOKUP($B$3,Bezetting_1!$A$2:$A$90,Bezetting_1!E$2:E$90,,0) -> 29 | G8: =_xlfn.XLOOKUP($B$3,Bezetting_1!$A$2:$A$90,Bezetting_1!F$2:F$90,,0) -> 0 | H8: =_xlfn.XLOOKUP($B$3,Bezetting_1!$A$2:$A$90,Bezetting_1!G$2:G$90,,0) -> 0 | I8: =_xlfn.XLOOKUP($B$3,Bezetting_1!$A$2:$A$90,Bezetting_1!H$2:H$90,,0) -> 0 | J8: =_xlfn.XLOOKUP($B$3,Bezetting_1!$A$2:$A$90,Bezetting_1!I$2:I$90,,0) -> 0 | K8: =_xlfn.XLOOKUP($B$3,Bezetting_1!$A$2:$A$90,Bezetting_1!J$2:J$90,,0) -> 0 | L8: =_xlfn.XLOOKUP($B$3,Bezetting_1!$A$2:$A$90,Bezetting_1!K$2:K$90,,0) -> 29 | M8: =_xlfn.XLOOKUP($B$3,Bezetting_1!$A$2:$A$90,Bezetting_1!L$2:L$90,,0) -> 0 | N8: =_xlfn.XLOOKUP($B$3,Bezetting_1!$A$2:$A$90,Bezetting_1!M$2:M$90,,0) -> 0 | O8: =_xlfn.XLOOKUP($B$3,Bezetting_1!$A$2:$A$90,Bezetting_1!N$2:N$90,,0) -> 0 | Q8: =_xlfn.XLOOKUP($B$3,Bezetting_1!$A$2:$A$90,Bezetting_1!P$2:P$90,,0) -> 0 | S8: =D8 -> 2023-10-10 | T8: =E8 -> 09:00 - 16:00u | U8: =IF(F8=0,NA(),F8/$L8) -> 1 | V8: =IF(G8=0,NA(),G8/$L8) ->  | W8: =IF(H8=0,NA(),H8/$L8) -> 
B9: ="Nabij kruispunt: "&VLOOKUP(B3,Coordinaten!$A$2:$L$95,4,0) -> Nabij kruispunt: N80 / A3 | F9: =IF(F8=0,"-",F8/$L$8) -> 1 | G9: =IF(G8=0,"-",G8/$L$8) -> - | H9: - | I9: - | J9: - | K9: - | L9: 1 | Q9: =_xlfn.XLOOKUP($B$3,Bezetting_1!$A$2:$A$90,Bezetting_1!Q$2:Q$90,,0) -> 0 | S9: =D10 -> 2023-10-10 | T9: =E10 -> 19:00 - 02:00u | U9: =IF(F10=0,NA(),F10/$L10) -> 1 | V9: =IF(G10=0,NA(),G10/$L10) -> 
D10: =_xlfn.XLOOKUP($B$3,Bezetting_2!$A$2:$A$90,Bezetting_2!C$2:C$90,,0) -> 2023-10-10 | E10: =_xlfn.XLOOKUP($B$3,Bezetting_2!$A$2:$A$90,Bezetting_2!D$2:D$90,,0) -> 19:00 - 02:00u | F10: =_xlfn.XLOOKUP($B$3,Bezetting_2!$A$2:$A$90,Bezetting_2!E$2:E$90,,0) -> 10 | G10: =_xlfn.XLOOKUP($B$3,Bezetting_2!$A$2:$A$90,Bezetting_2!F$2:F$90,,0) -> 0 | H10: =_xlfn.XLOOKUP($B$3,Bezetting_2!$A$2:$A$90,Bezetting_2!G$2:G$90,,0) -> 0 | I10: =_xlfn.XLOOKUP($B$3,Bezetting_2!$A$2:$A$90,Bezetting_2!H$2:H$90,,0) -> 0 | J10: =_xlfn.XLOOKUP($B$3,Bezetting_2!$A$2:$A$90,Bezetting_2!I$2:I$90,,0) -> 0 | K10: =_xlfn.XLOOKUP($B$3,Bezetting_2!$A$2:$A$90,Bezetting_2!J$2:J$90,,0) -> 0 | L10: =_xlfn.XLOOKUP($B$3,Bezetting_2!$A$2:$A$90,Bezetting_2!K$2:K$90,,0) -> 10 | M10: =_xlfn.XLOOKUP($B$3,Bezetting_2!$A$2:$A$90,Bezetting_2!L$2:L$90,,0) -> 0 | N10: =_xlfn.XLOOKUP($B$3,Bezetting_2!$A$2:$A$90,Bezetting_2!M$2:M$90,,0) -> 0 | O10: =_xlfn.XLOOKUP($B$3,Bezetting_2!$A$2:$A$90,Bezetting_2!N$2:N$90,,0) -> 0 | P10: =_xlfn.XLOOKUP($B$3,Bezetting_2!$A$2:$A$90,Bezetting_2!O$2:O$90,,0) -> 0 | Q10: =_xlfn.XLOOKUP($B$3,Bezetting_2!$A$2:$A$90,Bezetting_2!P$2:P$90,,0) -> 0
B11: Meting | F11: =IF(F10=0,"-",F10/$L$10) -> 1 | G11: =IF(G10=0,"-",G10/$L$10) -> - | H11: - | I11: - | J11: - | K11: - | L11: 1 | Q11: =_xlfn.XLOOKUP($B$3,Bezetting_2!$A$2:$A$90,Bezetting_2!Q$2:Q$90,,0) -> 0
B12: ="Meetperiode: "&TEXT(VLOOKUP(B3,Coordinaten!$A:$G,7,0),"dddd dd mmmm jjjj") -> Meetperiode: di 10 & do 12 oktober 2023
B13: Methodiek: Parkeerdrukmeting met waarnemers
B14: In opdracht van: Vlaamse overheid
B15: Uitgevoerd door: Dufec
D16: VERDELING NAAR CATEGORIE
B17: Locatie
B18: =IF(B4="","",HYPERLINK("http://www.googlemaps.com/?q="&B4,"Lat/Long: "&B4)) -> Lat/Long: 50.713075, 5.081833
P20: Legenda
Q21: Personenwagen
Q22: Vracht
Q23: Motor
Q24: Obstakel / overig
Q25: Fout personenwagen
Q26: Fout Vracht
B39: Toelichting
B40: Pers = personenwagens op daarvoor bestemde
B41: openbare plaatsen
B42: Vracht = vrachtwagens op daarvoor bestemde
B43: parkeerplaatsen (middel- en zwaar vrachtverkeer)
B44: Motor = geparkeerde motoren op openbare plaatsen
B45: Obstakel / overig = obstakels of overige voertuigen
B46: geparkeerd op openbare plaatsen
B47: Fout pers = personenwagens die fout geparkeerd staan
B48: Fout vracht = vrachtwagens die fout geparkeerd staan
B49: E-wagen = geparkeerde elektrisch voertuig bij een
B50: elektrisch oplaadpunt
B51: Invalide = personenwagens en motoren op voor
B52: invalide personen bestemde parkeerplaats
B53: Gestalde fietsen = alle gestalde fietsen op de
B54: daarvoor bestemde parkeerplaatsen

Sheet 42.Zingem
B2: PARKEERONDERZOEK | D2: CARPOOLPARKINGS EN P+R PARKINGS
B3: 42 | D3: =B8 & " - "& TEXT(VLOOKUP(B3,Coordinaten!$A$2:$G$95,7,0),"dddd dd mmmm jjjj") -> Carpool parking Zingem, Zingem - di 10 & do 12 oktober 2023
B4: =VLOOKUP(B3,Coordinaten!$A$2:$G$95,6,0) -> 50.909427, 3.615886
D5: BEZETTING | Q5: OPMERKINGEN
B7: Onderzoeksgebied | D7: Datum | E7: Geregistreerd tussen | F7: Pers | G7: Vracht | H7: Motor | I7: Obstakel / overig | J7: Fout pers | K7: Fout Vracht | L7: Totaal | M7: E-wagen plaats | N7: Invalidenplaats | O7: Gestalde fietsen | U7: =F7 -> Pers | V7: Vracht | W7: Motor | X7: Obstakel / overig | Y7: Fout pers | Z7: Fout Vracht
B8: =VLOOKUP(B3,Coordinaten!$A$2:$G$95,3,0)&", "&VLOOKUP(B3,Coordinaten!$A$2:$G$95,5,0) -> Carpool parking Zingem, Zingem | D8: =_xlfn.XLOOKUP($B$3,Bezetting_1!$A$2:$A$90,Bezetting_1!C$2:C$90,,0) -> 2023-10-12 | E8: =_xlfn.XLOOKUP($B$3,Bezetting_1!$A$2:$A$90,Bezetting_1!D$2:D$90,,0) -> 09:00 - 16:00u | F8: =_xlfn.XLOOKUP($B$3,Bezetting_1!$A$2:$A$90,Bezetting_1!E$2:E$90,,0) -> 16 | G8: =_xlfn.XLOOKUP($B$3,Bezetting_1!$A$2:$A$90,Bezetting_1!F$2:F$90,,0) -> 0 | H8: =_xlfn.XLOOKUP($B$3,Bezetting_1!$A$2:$A$90,Bezetting_1!G$2:G$90,,0) -> 0 | I8: =_xlfn.XLOOKUP($B$3,Bezetting_1!$A$2:$A$90,Bezetting_1!H$2:H$90,,0) -> 0 | J8: =_xlfn.XLOOKUP($B$3,Bezetting_1!$A$2:$A$90,Bezetting_1!I$2:I$90,,0) -> 0 | K8: =_xlfn.XLOOKUP($B$3,Bezetting_1!$A$2:$A$90,Bezetting_1!J$2:J$90,,0) -> 0 | L8: =_xlfn.XLOOKUP($B$3,Bezetting_1!$A$2:$A$90,Bezetting_1!K$2:K$90,,0) -> 16 | M8: =_xlfn.XLOOKUP($B$3,Bezetting_1!$A$2:$A$90,Bezetting_1!L$2:L$90,,0) -> 0 | N8: =_xlfn.XLOOKUP($B$3,Bezetting_1!$A$2:$A$90,Bezetting_1!M$2:M$90,,0) -> 0 | O8: =_xlfn.XLOOKUP($B$3,Bezetting_1!$A$2:$A$90,Bezetting_1!N$2:N$90,,0) -> 6 | Q8: =_xlfn.XLOOKUP($B$3,Bezetting_1!$A$2:$A$90,Bezetting_1!P$2:P$90,,0) -> 0 | S8: =D8 -> 2023-10-12 | T8: =E8 -> 09:00 - 16:00u | U8: =IF(F8=0,NA(),F8/$L8) -> 1 | V8: =IF(G8=0,NA(),G8/$L8) ->  | W8: =IF(H8=0,NA(),H8/$L8) -> 
B9: ="Nabij kruispunt: "&VLOOKUP(B3,Coordinaten!$A$2:$L$95,4,0) -> Nabij kruispunt: N435 / N60 | F9: =IF(F8=0,"-",F8/$L$8) -> 1 | G9: =IF(G8=0,"-",G8/$L$8) -> - | H9: - | I9: - | J9: - | K9: - | L9: 1 | Q9: =_xlfn.XLOOKUP($B$3,Bezetting_1!$A$2:$A$90,Bezetting_1!Q$2:Q$90,,0) -> 0 | S9: =D10 -> 2023-10-12 | T9: =E10 -> 19:00 - 02:00u | U9: =IF(F10=0,NA(),F10/$L10) -> 1 | V9: =IF(G10=0,NA(),G10/$L10) -> 
D10: =_xlfn.XLOOKUP($B$3,Bezetting_2!$A$2:$A$90,Bezetting_2!C$2:C$90,,0) -> 2023-10-12 | E10: =_xlfn.XLOOKUP($B$3,Bezetting_2!$A$2:$A$90,Bezetting_2!D$2:D$90,,0) -> 19:00 - 02:00u | F10: =_xlfn.XLOOKUP($B$3,Bezetting_2!$A$2:$A$90,Bezetting_2!E$2:E$90,,0) -> 7 | G10: =_xlfn.XLOOKUP($B$3,Bezetting_2!$A$2:$A$90,Bezetting_2!F$2:F$90,,0) -> 0 | H10: =_xlfn.XLOOKUP($B$3,Bezetting_2!$A$2:$A$90,Bezetting_2!G$2:G$90,,0) -> 0 | I10: =_xlfn.XLOOKUP($B$3,Bezetting_2!$A$2:$A$90,Bezetting_2!H$2:H$90,,0) -> 0 | J10: =_xlfn.XLOOKUP($B$3,Bezetting_2!$A$2:$A$90,Bezetting_2!I$2:I$90,,0) -> 0 | K10: =_xlfn.XLOOKUP($B$3,Bezetting_2!$A$2:$A$90,Bezetting_2!J$2:J$90,,0) -> 0 | L10: =_xlfn.XLOOKUP($B$3,Bezetting_2!$A$2:$A$90,Bezetting_2!K$2:K$90,,0) -> 7 | M10: =_xlfn.XLOOKUP($B$3,Bezetting_2!$A$2:$A$90,Bezetting_2!L$2:L$90,,0) -> 0 | N10: =_xlfn.XLOOKUP($B$3,Bezetting_2!$A$2:$A$90,Bezetting_2!M$2:M$90,,0) -> 0 | O10: =_xlfn.XLOOKUP($B$3,Bezetting_2!$A$2:$A$90,Bezetting_2!N$2:N$90,,0) -> 6 | P10: =_xlfn.XLOOKUP($B$3,Bezetting_2!$A$2:$A$90,Bezetting_2!O$2:O$90,,0) -> 0 | Q10: =_xlfn.XLOOKUP($B$3,Bezetting_2!$A$2:$A$90,Bezetting_2!P$2:P$90,,0) -> 0
B11: Meting | F11: =IF(F10=0,"-",F10/$L$10) -> 1 | G11: =IF(G10=0,"-",G10/$L$10) -> - | H11: - | I11: - | J11: - | K11: - | L11: 1 | Q11: =_xlfn.XLOOKUP($B$3,Bezetting_2!$A$2:$A$90,Bezetting_2!Q$2:Q$90,,0) -> 0
B12: ="Meetperiode: "&TEXT(VLOOKUP(B3,Coordinaten!$A:$G,7,0),"dddd dd mmmm jjjj") -> Meetperiode: di 10 & do 12 oktober 2023
B13: Methodiek: Parkeerdrukmeting met waarnemers
B14: In opdracht van: Vlaamse overheid
B15: Uitgevoerd door: Dufec
D16: VERDELING NAAR CATEGORIE
B17: Locatie
B18: =IF(B4="","",HYPERLINK("http://www.googlemaps.com/?q="&B4,"Lat/Long: "&B4)) -> Lat/Long: 50.909427, 3.615886
P20: Legenda
Q21: Personenwagen
Q22: Vracht
Q23: Motor
Q24: Obstakel / overig
Q25: Fout personenwagen
Q26: Fout Vracht
B39: Toelichting
B40: Pers = personenwagens op daarvoor bestemde
B41: openbare plaatsen
B42: Vracht = vrachtwagens op daarvoor bestemde
B43: parkeerplaatsen (middel- en zwaar vrachtverkeer)
B44: Motor = geparkeerde motoren op openbare plaatsen
B45: Obstakel / overig = obstakels of overige voertuigen
B46: geparkeerd op openbare plaatsen
B47: Fout pers = personenwagens die fout geparkeerd staan
B48: Fout vracht = vrachtwagens die fout geparkeerd staan
B49: E-wagen = geparkeerde elektrisch voertuig bij een
B50: elektrisch oplaadpunt
B51: Invalide = personenwagens en motoren op voor
B52: invalide personen bestemde parkeerplaats
B53: Gestalde fietsen = alle gestalde fietsen op de
B54: daarvoor bestemde parkeerplaatsen

Sheet 43.Kemzeke-West
B2: PARKEERONDERZOEK | D2: CARPOOLPARKINGS EN P+R PARKINGS
B3: 43 | D3: =B8 & " - "& TEXT(VLOOKUP(B3,Coordinaten!$A$2:$G$95,7,0),"dddd dd mmmm jjjj") -> Carpool parking Kemzeke-West, Stekene - di 10 & do 12 oktober 2023
B4: =VLOOKUP(B3,Coordinaten!$A$2:$G$95,6,0) -> 51.229594, 4.060439
D5: BEZETTING | Q5: OPMERKINGEN
B7: Onderzoeksgebied | D7: Datum | E7: Geregistreerd tussen | F7: Pers | G7: Vracht | H7: Motor | I7: Obstakel / overig | J7: Fout pers | K7: Fout Vracht | L7: Totaal | M7: E-wagen plaats | N7: Invalidenplaats | O7: Gestalde fietsen | U7: =F7 -> Pers | V7: Vracht | W7: Motor | X7: Obstakel / overig | Y7: Fout pers | Z7: Fout Vracht
B8: =VLOOKUP(B3,Coordinaten!$A$2:$G$95,3,0)&", "&VLOOKUP(B3,Coordinaten!$A$2:$G$95,5,0) -> Carpool parking Kemzeke-West, Stekene | D8: =_xlfn.XLOOKUP($B$3,Bezetting_1!$A$2:$A$90,Bezetting_1!C$2:C$90,,0) -> 2023-10-10 | E8: =_xlfn.XLOOKUP($B$3,Bezetting_1!$A$2:$A$90,Bezetting_1!D$2:D$90,,0) -> 09:00 - 16:00u | F8: =_xlfn.XLOOKUP($B$3,Bezetting_1!$A$2:$A$90,Bezetting_1!E$2:E$90,,0) -> 16 | G8: =_xlfn.XLOOKUP($B$3,Bezetting_1!$A$2:$A$90,Bezetting_1!F$2:F$90,,0) -> 0 | H8: =_xlfn.XLOOKUP($B$3,Bezetting_1!$A$2:$A$90,Bezetting_1!G$2:G$90,,0) -> 0 | I8: =_xlfn.XLOOKUP($B$3,Bezetting_1!$A$2:$A$90,Bezetting_1!H$2:H$90,,0) -> 1 | J8: =_xlfn.XLOOKUP($B$3,Bezetting_1!$A$2:$A$90,Bezetting_1!I$2:I$90,,0) -> 0 | K8: =_xlfn.XLOOKUP($B$3,Bezetting_1!$A$2:$A$90,Bezetting_1!J$2:J$90,,0) -> 0 | L8: =_xlfn.XLOOKUP($B$3,Bezetting_1!$A$2:$A$90,Bezetting_1!K$2:K$90,,0) -> 17 | M8: =_xlfn.XLOOKUP($B$3,Bezetting_1!$A$2:$A$90,Bezetting_1!L$2:L$90,,0) -> 0 | N8: =_xlfn.XLOOKUP($B$3,Bezetting_1!$A$2:$A$90,Bezetting_1!M$2:M$90,,0) -> 0 | O8: =_xlfn.XLOOKUP($B$3,Bezetting_1!$A$2:$A$90,Bezetting_1!N$2:N$90,,0) -> 0 | Q8: =_xlfn.XLOOKUP($B$3,Bezetting_1!$A$2:$A$90,Bezetting_1!P$2:P$90,,0) -> Overig: aanhanger | S8: =D8 -> 2023-10-10 | T8: =E8 -> 09:00 - 16:00u | U8: =IF(F8=0,NA(),F8/$L8) -> 0.9411764706 | V8: =IF(G8=0,NA(),G8/$L8) ->  | W8: =IF(H8=0,NA(),H8/$L8) ->  | X8: 0.05882352941
B9: ="Nabij kruispunt: "&VLOOKUP(B3,Coordinaten!$A$2:$L$95,4,0) -> Nabij kruispunt: N403 / N49 | F9: =IF(F8=0,"-",F8/$L$8) -> 0.9411764706 | G9: =IF(G8=0,"-",G8/$L$8) -> - | H9: - | I9: 0.05882352941 | J9: - | K9: - | L9: 1 | Q9: =_xlfn.XLOOKUP($B$3,Bezetting_1!$A$2:$A$90,Bezetting_1!Q$2:Q$90,,0) -> 0 | S9: =D10 -> 2023-10-10 | T9: =E10 -> 19:00 - 02:00u | U9: =IF(F10=0,NA(),F10/$L10) -> 0.8888888889 | V9: =IF(G10=0,NA(),G10/$L10) ->  | X9: 0.1111111111
D10: =_xlfn.XLOOKUP($B$3,Bezetting_2!$A$2:$A$90,Bezetting_2!C$2:C$90,,0) -> 2023-10-10 | E10: =_xlfn.XLOOKUP($B$3,Bezetting_2!$A$2:$A$90,Bezetting_2!D$2:D$90,,0) -> 19:00 - 02:00u | F10: =_xlfn.XLOOKUP($B$3,Bezetting_2!$A$2:$A$90,Bezetting_2!E$2:E$90,,0) -> 8 | G10: =_xlfn.XLOOKUP($B$3,Bezetting_2!$A$2:$A$90,Bezetting_2!F$2:F$90,,0) -> 0 | H10: =_xlfn.XLOOKUP($B$3,Bezetting_2!$A$2:$A$90,Bezetting_2!G$2:G$90,,0) -> 0 | I10: =_xlfn.XLOOKUP($B$3,Bezetting_2!$A$2:$A$90,Bezetting_2!H$2:H$90,,0) -> 1 | J10: =_xlfn.XLOOKUP($B$3,Bezetting_2!$A$2:$A$90,Bezetting_2!I$2:I$90,,0) -> 0 | K10: =_xlfn.XLOOKUP($B$3,Bezetting_2!$A$2:$A$90,Bezetting_2!J$2:J$90,,0) -> 0 | L10: =_xlfn.XLOOKUP($B$3,Bezetting_2!$A$2:$A$90,Bezetting_2!K$2:K$90,,0) -> 9 | M10: =_xlfn.XLOOKUP($B$3,Bezetting_2!$A$2:$A$90,Bezetting_2!L$2:L$90,,0) -> 0 | N10: =_xlfn.XLOOKUP($B$3,Bezetting_2!$A$2:$A$90,Bezetting_2!M$2:M$90,,0) -> 0 | O10: =_xlfn.XLOOKUP($B$3,Bezetting_2!$A$2:$A$90,Bezetting_2!N$2:N$90,,0) -> 0 | P10: =_xlfn.XLOOKUP($B$3,Bezetting_2!$A$2:$A$90,Bezetting_2!O$2:O$90,,0) -> 0 | Q10: =_xlfn.XLOOKUP($B$3,Bezetting_2!$A$2:$A$90,Bezetting_2!P$2:P$90,,0) -> Overig: aanhanger
B11: Meting | F11: =IF(F10=0,"-",F10/$L$10) -> 0.8888888889 | G11: =IF(G10=0,"-",G10/$L$10) -> - | H11: - | I11: 0.1111111111 | J11: - | K11: - | L11: 1 | Q11: =_xlfn.XLOOKUP($B$3,Bezetting_2!$A$2:$A$90,Bezetting_2!Q$2:Q$90,,0) -> 0
B12: ="Meetperiode: "&TEXT(VLOOKUP(B3,Coordinaten!$A:$G,7,0),"dddd dd mmmm jjjj") -> Meetperiode: di 10 & do 12 oktober 2023
B13: Methodiek: Parkeerdrukmeting met waarnemers
B14: In opdracht van: Vlaamse overheid
B15: Uitgevoerd door: Dufec
D16: VERDELING NAAR CATEGORIE
B17: Locatie
B18: =IF(B4="","",HYPERLINK("http://www.googlemaps.com/?q="&B4,"Lat/Long: "&B4)) -> Lat/Long: 51.229594, 4.060439
P20: Legenda
Q21: Personenwagen
Q22: Vracht
Q23: Motor
Q24: Obstakel / overig
Q25: Fout personenwagen
Q26: Fout Vracht
B39: Toelichting
B40: Pers = personenwagens op daarvoor bestemde
B41: openbare plaatsen
B42: Vracht = vrachtwagens op daarvoor bestemde
B43: parkeerplaatsen (middel- en zwaar vrachtverkeer)
B44: Motor = geparkeerde motoren op openbare plaatsen
B45: Obstakel / overig = obstakels of overige voertuigen
B46: geparkeerd op openbare plaatsen
B47: Fout pers = personenwagens die fout geparkeerd staan
B48: Fout vracht = vrachtwagens die fout geparkeerd staan
B49: E-wagen = geparkeerde elektrisch voertuig bij een
B50: elektrisch oplaadpunt
B51: Invalide = personenwagens en motoren op voor
B52: invalide personen bestemde parkeerplaats
B53: Gestalde fietsen = alle gestalde fietsen op de
B54: daarvoor bestemde parkeerplaatsen

Sheet 44.Kemzeke-Oost
B2: PARKEERONDERZOEK | D2: CARPOOLPARKINGS EN P+R PARKINGS
B3: 44 | D3: =B8 & " - "& TEXT(VLOOKUP(B3,Coordinaten!$A$2:$G$95,7,0),"dddd dd mmmm jjjj") -> Carpool parking Kemzeke-Oost, Stekene - di 10 & do 12 oktober 2023
B4: =VLOOKUP(B3,Coordinaten!$A$2:$G$95,6,0) -> 51.229783, 4.061087
D5: BEZETTING | Q5: OPMERKINGEN
B7: Onderzoeksgebied | D7: Datum | E7: Geregistreerd tussen | F7: Pers | G7: Vracht | H7: Motor | I7: Obstakel / overig | J7: Fout pers | K7: Fout Vracht | L7: Totaal | M7: E-wagen plaats | N7: Invalidenplaats | O7: Gestalde fietsen | U7: =F7 -> Pers | V7: Vracht | W7: Motor | X7: Obstakel / overig | Y7: Fout pers | Z7: Fout Vracht
B8: =VLOOKUP(B3,Coordinaten!$A$2:$G$95,3,0)&", "&VLOOKUP(B3,Coordinaten!$A$2:$G$95,5,0) -> Carpool parking Kemzeke-Oost, Stekene | D8: =_xlfn.XLOOKUP($B$3,Bezetting_1!$A$2:$A$90,Bezetting_1!C$2:C$90,,0) -> 2023-10-10 | E8: =_xlfn.XLOOKUP($B$3,Bezetting_1!$A$2:$A$90,Bezetting_1!D$2:D$90,,0) -> 09:00 - 16:00u | F8: =_xlfn.XLOOKUP($B$3,Bezetting_1!$A$2:$A$90,Bezetting_1!E$2:E$90,,0) -> 2 | G8: =_xlfn.XLOOKUP($B$3,Bezetting_1!$A$2:$A$90,Bezetting_1!F$2:F$90,,0) -> 0 | H8: =_xlfn.XLOOKUP($B$3,Bezetting_1!$A$2:$A$90,Bezetting_1!G$2:G$90,,0) -> 0 | I8: =_xlfn.XLOOKUP($B$3,Bezetting_1!$A$2:$A$90,Bezetting_1!H$2:H$90,,0) -> 0 | J8: =_xlfn.XLOOKUP($B$3,Bezetting_1!$A$2:$A$90,Bezetting_1!I$2:I$90,,0) -> 0 | K8: =_xlfn.XLOOKUP($B$3,Bezetting_1!$A$2:$A$90,Bezetting_1!J$2:J$90,,0) -> 0 | L8: =_xlfn.XLOOKUP($B$3,Bezetting_1!$A$2:$A$90,Bezetting_1!K$2:K$90,,0) -> 2 | M8: =_xlfn.XLOOKUP($B$3,Bezetting_1!$A$2:$A$90,Bezetting_1!L$2:L$90,,0) -> 0 | N8: =_xlfn.XLOOKUP($B$3,Bezetting_1!$A$2:$A$90,Bezetting_1!M$2:M$90,,0) -> 0 | O8: =_xlfn.XLOOKUP($B$3,Bezetting_1!$A$2:$A$90,Bezetting_1!N$2:N$90,,0) -> 0 | Q8: =_xlfn.XLOOKUP($B$3,Bezetting_1!$A$2:$A$90,Bezetting_1!P$2:P$90,,0) -> 0 | S8: =D8 -> 2023-10-10 | T8: =E8 -> 09:00 - 16:00u | U8: =IF(F8=0,NA(),F8/$L8) -> 1 | V8: =IF(G8=0,NA(),G8/$L8) ->  | W8: =IF(H8=0,NA(),H8/$L8) -> 
B9: ="Nabij kruispunt: "&VLOOKUP(B3,Coordinaten!$A$2:$L$95,4,0) -> Nabij kruispunt: N403 / N49 | F9: =IF(F8=0,"-",F8/$L$8) -> 1 | G9: =IF(G8=0,"-",G8/$L$8) -> - | H9: - | I9: - | J9: - | K9: - | L9: 1 | Q9: =_xlfn.XLOOKUP($B$3,Bezetting_1!$A$2:$A$90,Bezetting_1!Q$2:Q$90,,0) -> 0 | S9: =D10 -> 2023-10-10 | T9: =E10 -> 19:00 - 02:00u | U9: =IF(F10=0,NA(),F10/$L10) -> 0.6666666667 | V9: =IF(G10=0,NA(),G10/$L10) ->  | X9: 0.3333333333
D10: =_xlfn.XLOOKUP($B$3,Bezetting_2!$A$2:$A$90,Bezetting_2!C$2:C$90,,0) -> 2023-10-10 | E10: =_xlfn.XLOOKUP($B$3,Bezetting_2!$A$2:$A$90,Bezetting_2!D$2:D$90,,0) -> 19:00 - 02:00u | F10: =_xlfn.XLOOKUP($B$3,Bezetting_2!$A$2:$A$90,Bezetting_2!E$2:E$90,,0) -> 2 | G10: =_xlfn.XLOOKUP($B$3,Bezetting_2!$A$2:$A$90,Bezetting_2!F$2:F$90,,0) -> 0 | H10: =_xlfn.XLOOKUP($B$3,Bezetting_2!$A$2:$A$90,Bezetting_2!G$2:G$90,,0) -> 0 | I10: =_xlfn.XLOOKUP($B$3,Bezetting_2!$A$2:$A$90,Bezetting_2!H$2:H$90,,0) -> 1 | J10: =_xlfn.XLOOKUP($B$3,Bezetting_2!$A$2:$A$90,Bezetting_2!I$2:I$90,,0) -> 0 | K10: =_xlfn.XLOOKUP($B$3,Bezetting_2!$A$2:$A$90,Bezetting_2!J$2:J$90,,0) -> 0 | L10: =_xlfn.XLOOKUP($B$3,Bezetting_2!$A$2:$A$90,Bezetting_2!K$2:K$90,,0) -> 3 | M10: =_xlfn.XLOOKUP($B$3,Bezetting_2!$A$2:$A$90,Bezetting_2!L$2:L$90,,0) -> 0 | N10: =_xlfn.XLOOKUP($B$3,Bezetting_2!$A$2:$A$90,Bezetting_2!M$2:M$90,,0) -> 0 | O10: =_xlfn.XLOOKUP($B$3,Bezetting_2!$A$2:$A$90,Bezetting_2!N$2:N$90,,0) -> 0 | P10: =_xlfn.XLOOKUP($B$3,Bezetting_2!$A$2:$A$90,Bezetting_2!O$2:O$90,,0) -> 0 | Q10: =_xlfn.XLOOKUP($B$3,Bezetting_2!$A$2:$A$90,Bezetting_2!P$2:P$90,,0) -> Overig: touringcar
B11: Meting | F11: =IF(F10=0,"-",F10/$L$10) -> 0.6666666667 | G11: =IF(G10=0,"-",G10/$L$10) -> - | H11: - | I11: 0.3333333333 | J11: - | K11: - | L11: 1 | Q11: =_xlfn.XLOOKUP($B$3,Bezetting_2!$A$2:$A$90,Bezetting_2!Q$2:Q$90,,0) -> 0
B12: ="Meetperiode: "&TEXT(VLOOKUP(B3,Coordinaten!$A:$G,7,0),"dddd dd mmmm jjjj") -> Meetperiode: di 10 & do 12 oktober 2023
B13: Methodiek: Parkeerdrukmeting met waarnemers
B14: In opdracht van: Vlaamse overheid
B15: Uitgevoerd door: Dufec
D16: VERDELING NAAR CATEGORIE
B17: Locatie
B18: =IF(B4="","",HYPERLINK("http://www.googlemaps.com/?q="&B4,"Lat/Long: "&B4)) -> Lat/Long: 51.229783, 4.061087
P20: Legenda
Q21: Personenwagen
Q22: Vracht
Q23: Motor
Q24: Obstakel / overig
Q25: Fout personenwagen
Q26: Fout Vracht
B39: Toelichting
B40: Pers = personenwagens op daarvoor bestemde
B41: openbare plaatsen
B42: Vracht = vrachtwagens op daarvoor bestemde
B43: parkeerplaatsen (middel- en zwaar vrachtverkeer)
B44: Motor = geparkeerde motoren op openbare plaatsen
B45: Obstakel / overig = obstakels of overige voertuigen
B46: geparkeerd op openbare plaatsen
B47: Fout pers = personenwagens die fout geparkeerd staan
B48: Fout vracht = vrachtwagens die fout geparkeerd staan
B49: E-wagen = geparkeerde elektrisch voertuig bij een
B50: elektrisch oplaadpunt
B51: Invalide = personenwagens en motoren op voor
B52: invalide personen bestemde parkeerplaats
B53: Gestalde fietsen = alle gestalde fietsen op de
B54: daarvoor bestemde parkeerplaatsen

Sheet 46.Geel-Oost
B2: PARKEERONDERZOEK | D2: CARPOOLPARKINGS EN P+R PARKINGS
B3: 46 | D3: =B8 & " - "& TEXT(VLOOKUP(B3,Coordinaten!$A$2:$G$95,7,0),"dddd dd mmmm jjjj") -> Carpool parking Geel-Oost, Laakdal - di 10 & do 12 oktober 2023
B4: =VLOOKUP(B3,Coordinaten!$A$2:$G$95,6,0) -> 51.106646, 5.018691
D5: BEZETTING | Q5: OPMERKINGEN
B7: Onderzoeksgebied | D7: Datum | E7: Geregistreerd tussen | F7: Pers | G7: Vracht | H7: Motor | I7: Obstakel / overig | J7: Fout pers | K7: Fout Vracht | L7: Totaal | M7: E-wagen plaats | N7: Invalidenplaats | O7: Gestalde fietsen | U7: =F7 -> Pers | V7: Vracht | W7: Motor | X7: Obstakel / overig | Y7: Fout pers | Z7: Fout Vracht
B8: =VLOOKUP(B3,Coordinaten!$A$2:$G$95,3,0)&", "&VLOOKUP(B3,Coordinaten!$A$2:$G$95,5,0) -> Carpool parking Geel-Oost, Laakdal | D8: =_xlfn.XLOOKUP($B$3,Bezetting_1!$A$2:$A$90,Bezetting_1!C$2:C$90,,0) -> 2023-10-12 | E8: =_xlfn.XLOOKUP($B$3,Bezetting_1!$A$2:$A$90,Bezetting_1!D$2:D$90,,0) -> 09:00 - 16:00u | F8: =_xlfn.XLOOKUP($B$3,Bezetting_1!$A$2:$A$90,Bezetting_1!E$2:E$90,,0) -> 30 | G8: =_xlfn.XLOOKUP($B$3,Bezetting_1!$A$2:$A$90,Bezetting_1!F$2:F$90,,0) -> 0 | H8: =_xlfn.XLOOKUP($B$3,Bezetting_1!$A$2:$A$90,Bezetting_1!G$2:G$90,,0) -> 0 | I8: =_xlfn.XLOOKUP($B$3,Bezetting_1!$A$2:$A$90,Bezetting_1!H$2:H$90,,0) -> 0 | J8: =_xlfn.XLOOKUP($B$3,Bezetting_1!$A$2:$A$90,Bezetting_1!I$2:I$90,,0) -> 0 | K8: =_xlfn.XLOOKUP($B$3,Bezetting_1!$A$2:$A$90,Bezetting_1!J$2:J$90,,0) -> 0 | L8: =_xlfn.XLOOKUP($B$3,Bezetting_1!$A$2:$A$90,Bezetting_1!K$2:K$90,,0) -> 30 | M8: =_xlfn.XLOOKUP($B$3,Bezetting_1!$A$2:$A$90,Bezetting_1!L$2:L$90,,0) -> 0 | N8: =_xlfn.XLOOKUP($B$3,Bezetting_1!$A$2:$A$90,Bezetting_1!M$2:M$90,,0) -> 0 | O8: =_xlfn.XLOOKUP($B$3,Bezetting_1!$A$2:$A$90,Bezetting_1!N$2:N$90,,0) -> 0 | Q8: =_xlfn.XLOOKUP($B$3,Bezetting_1!$A$2:$A$90,Bezetting_1!P$2:P$90,,0) -> Electrische laadpunten in aanbouw | S8: =D8 -> 2023-10-12 | T8: =E8 -> 09:00 - 16:00u | U8: =IF(F8=0,NA(),F8/$L8) -> 1 | V8: =IF(G8=0,NA(),G8/$L8) ->  | W8: =IF(H8=0,NA(),H8/$L8) -> 
B9: ="Nabij kruispunt: "&VLOOKUP(B3,Coordinaten!$A$2:$L$95,4,0) -> Nabij kruispunt: N174 / A13 | F9: =IF(F8=0,"-",F8/$L$8) -> 1 | G9: =IF(G8=0,"-",G8/$L$8) -> - | H9: - | I9: - | J9: - | K9: - | L9: 1 | Q9: =_xlfn.XLOOKUP($B$3,Bezetting_1!$A$2:$A$90,Bezetting_1!Q$2:Q$90,,0) -> 0 | S9: =D10 -> 2023-10-10 | T9: =E10 -> 19:00 - 02:00u | U9: =IF(F10=0,NA(),F10/$L10) -> 0.8333333333 | V9: =IF(G10=0,NA(),G10/$L10) ->  | X9: 0.1666666667
D10: =_xlfn.XLOOKUP($B$3,Bezetting_2!$A$2:$A$90,Bezetting_2!C$2:C$90,,0) -> 2023-10-10 | E10: =_xlfn.XLOOKUP($B$3,Bezetting_2!$A$2:$A$90,Bezetting_2!D$2:D$90,,0) -> 19:00 - 02:00u | F10: =_xlfn.XLOOKUP($B$3,Bezetting_2!$A$2:$A$90,Bezetting_2!E$2:E$90,,0) -> 10 | G10: =_xlfn.XLOOKUP($B$3,Bezetting_2!$A$2:$A$90,Bezetting_2!F$2:F$90,,0) -> 0 | H10: =_xlfn.XLOOKUP($B$3,Bezetting_2!$A$2:$A$90,Bezetting_2!G$2:G$90,,0) -> 0 | I10: =_xlfn.XLOOKUP($B$3,Bezetting_2!$A$2:$A$90,Bezetting_2!H$2:H$90,,0) -> 2 | J10: =_xlfn.XLOOKUP($B$3,Bezetting_2!$A$2:$A$90,Bezetting_2!I$2:I$90,,0) -> 0 | K10: =_xlfn.XLOOKUP($B$3,Bezetting_2!$A$2:$A$90,Bezetting_2!J$2:J$90,,0) -> 0 | L10: =_xlfn.XLOOKUP($B$3,Bezetting_2!$A$2:$A$90,Bezetting_2!K$2:K$90,,0) -> 12 | M10: =_xlfn.XLOOKUP($B$3,Bezetting_2!$A$2:$A$90,Bezetting_2!L$2:L$90,,0) -> 0 | N10: =_xlfn.XLOOKUP($B$3,Bezetting_2!$A$2:$A$90,Bezetting_2!M$2:M$90,,0) -> 0 | O10: =_xlfn.XLOOKUP($B$3,Bezetting_2!$A$2:$A$90,Bezetting_2!N$2:N$90,,0) -> 0 | P10: =_xlfn.XLOOKUP($B$3,Bezetting_2!$A$2:$A$90,Bezetting_2!O$2:O$90,,0) -> 0 | Q10: =_xlfn.XLOOKUP($B$3,Bezetting_2!$A$2:$A$90,Bezetting_2!P$2:P$90,,0) -> Overig: zandhoop
B11: Meting | F11: =IF(F10=0,"-",F10/$L$10) -> 0.8333333333 | G11: =IF(G10=0,"-",G10/$L$10) -> - | H11: - | I11: 0.1666666667 | J11: - | K11: - | L11: 1 | Q11: =_xlfn.XLOOKUP($B$3,Bezetting_2!$A$2:$A$90,Bezetting_2!Q$2:Q$90,,0) -> 0
B12: ="Meetperiode: "&TEXT(VLOOKUP(B3,Coordinaten!$A:$G,7,0),"dddd dd mmmm jjjj") -> Meetperiode: di 10 & do 12 oktober 2023
B13: Methodiek: Parkeerdrukmeting met waarnemers
B14: In opdracht van: Vlaamse overheid
B15: Uitgevoerd door: Dufec
D16: VERDELING NAAR CATEGORIE
B17: Locatie
B18: =IF(B4="","",HYPERLINK("http://www.googlemaps.com/?q="&B4,"Lat/Long: "&B4)) -> Lat/Long: 51.106646, 5.018691
P20: Legenda
Q21: Personenwagen
Q22: Vracht
Q23: Motor
Q24: Obstakel / overig
Q25: Fout personenwagen
Q26: Fout Vracht
B39: Toelichting
B40: Pers = personenwagens op daarvoor bestemde
B41: openbare plaatsen
B42: Vracht = vrachtwagens op daarvoor bestemde
B43: parkeerplaatsen (middel- en zwaar vrachtverkeer)
B44: Motor = geparkeerde motoren op openbare plaatsen
B45: Obstakel / overig = obstakels of overige voertuigen
B46: geparkeerd op openbare plaatsen
B47: Fout pers = personenwagens die fout geparkeerd staan
B48: Fout vracht = vrachtwagens die fout geparkeerd staan
B49: E-wagen = geparkeerde elektrisch voertuig bij een
B50: elektrisch oplaadpunt
B51: Invalide = personenwagens en motoren op voor
B52: invalide personen bestemde parkeerplaats
B53: Gestalde fietsen = alle gestalde fietsen op de
B54: daarvoor bestemde parkeerplaatsen

Sheet 47.Lille
B2: PARKEERONDERZOEK | D2: CARPOOLPARKINGS EN P+R PARKINGS
B3: 47 | D3: =B8 & " - "& TEXT(VLOOKUP(B3,Coordinaten!$A$2:$G$95,7,0),"dddd dd mmmm jjjj") -> Carpool parking Lille, Lille - di 10 & do 12 oktober 2023
B4: =VLOOKUP(B3,Coordinaten!$A$2:$G$95,6,0) -> 51.254780, 4.807767
D5: BEZETTING | Q5: OPMERKINGEN
B7: Onderzoeksgebied | D7: Datum | E7: Geregistreerd tussen | F7: Pers | G7: Vracht | H7: Motor | I7: Obstakel / overig | J7: Fout pers | K7: Fout Vracht | L7: Totaal | M7: E-wagen plaats | N7: Invalidenplaats | O7: Gestalde fietsen | U7: =F7 -> Pers | V7: Vracht | W7: Motor | X7: Obstakel / overig | Y7: Fout pers | Z7: Fout Vracht
B8: =VLOOKUP(B3,Coordinaten!$A$2:$G$95,3,0)&", "&VLOOKUP(B3,Coordinaten!$A$2:$G$95,5,0) -> Carpool parking Lille, Lille | D8: =_xlfn.XLOOKUP($B$3,Bezetting_1!$A$2:$A$90,Bezetting_1!C$2:C$90,,0) -> 2023-10-12 | E8: =_xlfn.XLOOKUP($B$3,Bezetting_1!$A$2:$A$90,Bezetting_1!D$2:D$90,,0) -> 09:00 - 16:00u | F8: =_xlfn.XLOOKUP($B$3,Bezetting_1!$A$2:$A$90,Bezetting_1!E$2:E$90,,0) -> 58 | G8: =_xlfn.XLOOKUP($B$3,Bezetting_1!$A$2:$A$90,Bezetting_1!F$2:F$90,,0) -> 0 | H8: =_xlfn.XLOOKUP($B$3,Bezetting_1!$A$2:$A$90,Bezetting_1!G$2:G$90,,0) -> 0 | I8: =_xlfn.XLOOKUP($B$3,Bezetting_1!$A$2:$A$90,Bezetting_1!H$2:H$90,,0) -> 1 | J8: =_xlfn.XLOOKUP($B$3,Bezetting_1!$A$2:$A$90,Bezetting_1!I$2:I$90,,0) -> 0 | K8: =_xlfn.XLOOKUP($B$3,Bezetting_1!$A$2:$A$90,Bezetting_1!J$2:J$90,,0) -> 0 | L8: =_xlfn.XLOOKUP($B$3,Bezetting_1!$A$2:$A$90,Bezetting_1!K$2:K$90,,0) -> 59 | M8: =_xlfn.XLOOKUP($B$3,Bezetting_1!$A$2:$A$90,Bezetting_1!L$2:L$90,,0) -> 0 | N8: =_xlfn.XLOOKUP($B$3,Bezetting_1!$A$2:$A$90,Bezetting_1!M$2:M$90,,0) -> 0 | O8: =_xlfn.XLOOKUP($B$3,Bezetting_1!$A$2:$A$90,Bezetting_1!N$2:N$90,,0) -> 7 | Q8: =_xlfn.XLOOKUP($B$3,Bezetting_1!$A$2:$A$90,Bezetting_1!P$2:P$90,,0) -> Overig: aanhanger | S8: =D8 -> 2023-10-12 | T8: =E8 -> 09:00 - 16:00u | U8: =IF(F8=0,NA(),F8/$L8) -> 0.9830508475 | V8: =IF(G8=0,NA(),G8/$L8) ->  | W8: =IF(H8=0,NA(),H8/$L8) ->  | X8: 0.01694915254
B9: ="Nabij kruispunt: "&VLOOKUP(B3,Coordinaten!$A$2:$L$95,4,0) -> Nabij kruispunt: N153 / A21 | F9: =IF(F8=0,"-",F8/$L$8) -> 0.9830508475 | G9: =IF(G8=0,"-",G8/$L$8) -> - | H9: - | I9: 0.01694915254 | J9: - | K9: - | L9: 1 | Q9: =_xlfn.XLOOKUP($B$3,Bezetting_1!$A$2:$A$90,Bezetting_1!Q$2:Q$90,,0) -> 0 | S9: =D10 -> 2023-10-10 | T9: =E10 -> 19:00 - 02:00u | U9: =IF(F10=0,NA(),F10/$L10) -> 0.9473684211 | V9: =IF(G10=0,NA(),G10/$L10) ->  | Z9: 0.05263157895
D10: =_xlfn.XLOOKUP($B$3,Bezetting_2!$A$2:$A$90,Bezetting_2!C$2:C$90,,0) -> 2023-10-10 | E10: =_xlfn.XLOOKUP($B$3,Bezetting_2!$A$2:$A$90,Bezetting_2!D$2:D$90,,0) -> 19:00 - 02:00u | F10: =_xlfn.XLOOKUP($B$3,Bezetting_2!$A$2:$A$90,Bezetting_2!E$2:E$90,,0) -> 18 | G10: =_xlfn.XLOOKUP($B$3,Bezetting_2!$A$2:$A$90,Bezetting_2!F$2:F$90,,0) -> 0 | H10: =_xlfn.XLOOKUP($B$3,Bezetting_2!$A$2:$A$90,Bezetting_2!G$2:G$90,,0) -> 0 | I10: =_xlfn.XLOOKUP($B$3,Bezetting_2!$A$2:$A$90,Bezetting_2!H$2:H$90,,0) -> 0 | J10: =_xlfn.XLOOKUP($B$3,Bezetting_2!$A$2:$A$90,Bezetting_2!I$2:I$90,,0) -> 0 | K10: =_xlfn.XLOOKUP($B$3,Bezetting_2!$A$2:$A$90,Bezetting_2!J$2:J$90,,0) -> 1 | L10: =_xlfn.XLOOKUP($B$3,Bezetting_2!$A$2:$A$90,Bezetting_2!K$2:K$90,,0) -> 19 | M10: =_xlfn.XLOOKUP($B$3,Bezetting_2!$A$2:$A$90,Bezetting_2!L$2:L$90,,0) -> 0 | N10: =_xlfn.XLOOKUP($B$3,Bezetting_2!$A$2:$A$90,Bezetting_2!M$2:M$90,,0) -> 0 | O10: =_xlfn.XLOOKUP($B$3,Bezetting_2!$A$2:$A$90,Bezetting_2!N$2:N$90,,0) -> 1 | P10: =_xlfn.XLOOKUP($B$3,Bezetting_2!$A$2:$A$90,Bezetting_2!O$2:O$90,,0) -> 0 | Q10: =_xlfn.XLOOKUP($B$3,Bezetting_2!$A$2:$A$90,Bezetting_2!P$2:P$90,,0) -> Fout vracht: op 8 plaatsen
B11: Meting | F11: =IF(F10=0,"-",F10/$L$10) -> 0.9473684211 | G11: =IF(G10=0,"-",G10/$L$10) -> - | H11: - | I11: - | J11: - | K11: 0.05263157895 | L11: 1 | Q11: =_xlfn.XLOOKUP($B$3,Bezetting_2!$A$2:$A$90,Bezetting_2!Q$2:Q$90,,0) -> 0
B12: ="Meetperiode: "&TEXT(VLOOKUP(B3,Coordinaten!$A:$G,7,0),"dddd dd mmmm jjjj") -> Meetperiode: di 10 & do 12 oktober 2023
B13: Methodiek: Parkeerdrukmeting met waarnemers
B14: In opdracht van: Vlaamse overheid
B15: Uitgevoerd door: Dufec
D16: VERDELING NAAR CATEGORIE
B17: Locatie
B18: =IF(B4="","",HYPERLINK("http://www.googlemaps.com/?q="&B4,"Lat/Long: "&B4)) -> Lat/Long: 51.254780, 4.807767
P20: Legenda
Q21: Personenwagen
Q22: Vracht
Q23: Motor
Q24: Obstakel / overig
Q25: Fout personenwagen
Q26: Fout Vracht
B39: Toelichting
B40: Pers = personenwagens op daarvoor bestemde
B41: openbare plaatsen
B42: Vracht = vrachtwagens op daarvoor bestemde
B43: parkeerplaatsen (middel- en zwaar vrachtverkeer)
B44: Motor = geparkeerde motoren op openbare plaatsen
B45: Obstakel / overig = obstakels of overige voertuigen
B46: geparkeerd op openbare plaatsen
B47: Fout pers = personenwagens die fout geparkeerd staan
B48: Fout vracht = vrachtwagens die fout geparkeerd staan
B49: E-wagen = geparkeerde elektrisch voertuig bij een
B50: elektrisch oplaadpunt
B51: Invalide = personenwagens en motoren op voor
B52: invalide personen bestemde parkeerplaats
B53: Gestalde fietsen = alle gestalde fietsen op de
B54: daarvoor bestemde parkeerplaatsen

Sheet 48.Oelegem-West
B2: PARKEERONDERZOEK | D2: CARPOOLPARKINGS EN P+R PARKINGS
B3: 48 | D3: =B8 & " - "& TEXT(VLOOKUP(B3,Coordinaten!$A$2:$G$95,7,0),"dddd dd mmmm jjjj") -> Carpool parking Oelegem-West, Ranst - di 10 & do 12 oktober 2023
B4: =VLOOKUP(B3,Coordinaten!$A$2:$G$95,6,0) -> 51.212044, 4.623777
D5: BEZETTING | Q5: OPMERKINGEN
B7: Onderzoeksgebied | D7: Datum | E7: Geregistreerd tussen | F7: Pers | G7: Vracht | H7: Motor | I7: Obstakel / overig | J7: Fout pers | K7: Fout Vracht | L7: Totaal | M7: E-wagen plaats | N7: Invalidenplaats | O7: Gestalde fietsen | U7: =F7 -> Pers | V7: Vracht | W7: Motor | X7: Obstakel / overig | Y7: Fout pers | Z7: Fout Vracht
B8: =VLOOKUP(B3,Coordinaten!$A$2:$G$95,3,0)&", "&VLOOKUP(B3,Coordinaten!$A$2:$G$95,5,0) -> Carpool parking Oelegem-West, Ranst | D8: =_xlfn.XLOOKUP($B$3,Bezetting_1!$A$2:$A$90,Bezetting_1!C$2:C$90,,0) -> 2023-10-12 | E8: =_xlfn.XLOOKUP($B$3,Bezetting_1!$A$2:$A$90,Bezetting_1!D$2:D$90,,0) -> 09:00 - 16:00u | F8: =_xlfn.XLOOKUP($B$3,Bezetting_1!$A$2:$A$90,Bezetting_1!E$2:E$90,,0) -> 8 | G8: =_xlfn.XLOOKUP($B$3,Bezetting_1!$A$2:$A$90,Bezetting_1!F$2:F$90,,0) -> 0 | H8: =_xlfn.XLOOKUP($B$3,Bezetting_1!$A$2:$A$90,Bezetting_1!G$2:G$90,,0) -> 0 | I8: =_xlfn.XLOOKUP($B$3,Bezetting_1!$A$2:$A$90,Bezetting_1!H$2:H$90,,0) -> 0 | J8: =_xlfn.XLOOKUP($B$3,Bezetting_1!$A$2:$A$90,Bezetting_1!I$2:I$90,,0) -> 1 | K8: =_xlfn.XLOOKUP($B$3,Bezetting_1!$A$2:$A$90,Bezetting_1!J$2:J$90,,0) -> 0 | L8: =_xlfn.XLOOKUP($B$3,Bezetting_1!$A$2:$A$90,Bezetting_1!K$2:K$90,,0) -> 9 | M8: =_xlfn.XLOOKUP($B$3,Bezetting_1!$A$2:$A$90,Bezetting_1!L$2:L$90,,0) -> 1 | N8: =_xlfn.XLOOKUP($B$3,Bezetting_1!$A$2:$A$90,Bezetting_1!M$2:M$90,,0) -> 0 | O8: =_xlfn.XLOOKUP($B$3,Bezetting_1!$A$2:$A$90,Bezetting_1!N$2:N$90,,0) -> 0 | Q8: =_xlfn.XLOOKUP($B$3,Bezetting_1!$A$2:$A$90,Bezetting_1!P$2:P$90,,0) -> Fout: 2 fietsen | S8: =D8 -> 2023-10-12 | T8: =E8 -> 09:00 - 16:00u | U8: =IF(F8=0,NA(),F8/$L8) -> 0.8888888889 | V8: =IF(G8=0,NA(),G8/$L8) ->  | W8: =IF(H8=0,NA(),H8/$L8) ->  | Y8: 0.1111111111
B9: ="Nabij kruispunt: "&VLOOKUP(B3,Coordinaten!$A$2:$L$95,4,0) -> Nabij kruispunt: A21 / Zandhovensesteenweg | F9: =IF(F8=0,"-",F8/$L$8) -> 0.8888888889 | G9: =IF(G8=0,"-",G8/$L$8) -> - | H9: - | I9: - | J9: 0.1111111111 | K9: - | L9: 1 | Q9: =_xlfn.XLOOKUP($B$3,Bezetting_1!$A$2:$A$90,Bezetting_1!Q$2:Q$90,,0) -> 0 | S9: =D10 -> 2023-10-10 | T9: =E10 -> 19:00 - 02:00u | U9: =IF(F10=0,NA(),F10/$L10) -> 1 | V9: =IF(G10=0,NA(),G10/$L10) -> 
D10: =_xlfn.XLOOKUP($B$3,Bezetting_2!$A$2:$A$90,Bezetting_2!C$2:C$90,,0) -> 2023-10-10 | E10: =_xlfn.XLOOKUP($B$3,Bezetting_2!$A$2:$A$90,Bezetting_2!D$2:D$90,,0) -> 19:00 - 02:00u | F10: =_xlfn.XLOOKUP($B$3,Bezetting_2!$A$2:$A$90,Bezetting_2!E$2:E$90,,0) -> 2 | G10: =_xlfn.XLOOKUP($B$3,Bezetting_2!$A$2:$A$90,Bezetting_2!F$2:F$90,,0) -> 0 | H10: =_xlfn.XLOOKUP($B$3,Bezetting_2!$A$2:$A$90,Bezetting_2!G$2:G$90,,0) -> 0 | I10: =_xlfn.XLOOKUP($B$3,Bezetting_2!$A$2:$A$90,Bezetting_2!H$2:H$90,,0) -> 0 | J10: =_xlfn.XLOOKUP($B$3,Bezetting_2!$A$2:$A$90,Bezetting_2!I$2:I$90,,0) -> 0 | K10: =_xlfn.XLOOKUP($B$3,Bezetting_2!$A$2:$A$90,Bezetting_2!J$2:J$90,,0) -> 0 | L10: =_xlfn.XLOOKUP($B$3,Bezetting_2!$A$2:$A$90,Bezetting_2!K$2:K$90,,0) -> 2 | M10: =_xlfn.XLOOKUP($B$3,Bezetting_2!$A$2:$A$90,Bezetting_2!L$2:L$90,,0) -> 0 | N10: =_xlfn.XLOOKUP($B$3,Bezetting_2!$A$2:$A$90,Bezetting_2!M$2:M$90,,0) -> 0 | O10: =_xlfn.XLOOKUP($B$3,Bezetting_2!$A$2:$A$90,Bezetting_2!N$2:N$90,,0) -> 0 | P10: =_xlfn.XLOOKUP($B$3,Bezetting_2!$A$2:$A$90,Bezetting_2!O$2:O$90,,0) -> 0 | Q10: =_xlfn.XLOOKUP($B$3,Bezetting_2!$A$2:$A$90,Bezetting_2!P$2:P$90,,0) -> 0
B11: Meting | F11: =IF(F10=0,"-",F10/$L$10) -> 1 | G11: =IF(G10=0,"-",G10/$L$10) -> - | H11: - | I11: - | J11: - | K11: - | L11: 1 | Q11: =_xlfn.XLOOKUP($B$3,Bezetting_2!$A$2:$A$90,Bezetting_2!Q$2:Q$90,,0) -> 0
B12: ="Meetperiode: "&TEXT(VLOOKUP(B3,Coordinaten!$A:$G,7,0),"dddd dd mmmm jjjj") -> Meetperiode: di 10 & do 12 oktober 2023
B13: Methodiek: Parkeerdrukmeting met waarnemers
B14: In opdracht van: Vlaamse overheid
B15: Uitgevoerd door: Dufec
D16: VERDELING NAAR CATEGORIE
B17: Locatie
B18: =IF(B4="","",HYPERLINK("http://www.googlemaps.com/?q="&B4,"Lat/Long: "&B4)) -> Lat/Long: 51.212044, 4.623777
P20: Legenda
Q21: Personenwagen
Q22: Vracht
Q23: Motor
Q24: Obstakel / overig
Q25: Fout personenwagen
Q26: Fout Vracht
B39: Toelichting
B40: Pers = personenwagens op daarvoor bestemde
B41: openbare plaatsen
B42: Vracht = vrachtwagens op daarvoor bestemde
B43: parkeerplaatsen (middel- en zwaar vrachtverkeer)
B44: Motor = geparkeerde motoren op openbare plaatsen
B45: Obstakel / overig = obstakels of overige voertuigen
B46: geparkeerd op openbare plaatsen
B47: Fout pers = personenwagens die fout geparkeerd staan
B48: Fout vracht = vrachtwagens die fout geparkeerd staan
B49: E-wagen = geparkeerde elektrisch voertuig bij een
B50: elektrisch oplaadpunt
B51: Invalide = personenwagens en motoren op voor
B52: invalide personen bestemde parkeerplaats
B53: Gestalde fietsen = alle gestalde fietsen op de
B54: daarvoor bestemde parkeerplaatsen

Sheet 49.Oelegem-Oost
B2: PARKEERONDERZOEK | D2: CARPOOLPARKINGS EN P+R PARKINGS
B3: 49 | D3: =B8 & " - "& TEXT(VLOOKUP(B3,Coordinaten!$A$2:$G$95,7,0),"dddd dd mmmm jjjj") -> Carpool parking Oelegem-Oost, Ranst - di 10 & do 12 oktober 2023
B4: =VLOOKUP(B3,Coordinaten!$A$2:$G$95,6,0) -> 51.211693, 4.625380
D5: BEZETTING | Q5: OPMERKINGEN
B7: Onderzoeksgebied | D7: Datum | E7: Geregistreerd tussen | F7: Pers | G7: Vracht | H7: Motor | I7: Obstakel / overig | J7: Fout pers | K7: Fout Vracht | L7: Totaal | M7: E-wagen plaats | N7: Invalidenplaats | O7: Gestalde fietsen | U7: =F7 -> Pers | V7: Vracht | W7: Motor | X7: Obstakel / overig | Y7: Fout pers | Z7: Fout Vracht
B8: =VLOOKUP(B3,Coordinaten!$A$2:$G$95,3,0)&", "&VLOOKUP(B3,Coordinaten!$A$2:$G$95,5,0) -> Carpool parking Oelegem-Oost, Ranst | D8: =_xlfn.XLOOKUP($B$3,Bezetting_1!$A$2:$A$90,Bezetting_1!C$2:C$90,,0) -> 2023-10-12 | E8: =_xlfn.XLOOKUP($B$3,Bezetting_1!$A$2:$A$90,Bezetting_1!D$2:D$90,,0) -> 09:00 - 16:00u | F8: =_xlfn.XLOOKUP($B$3,Bezetting_1!$A$2:$A$90,Bezetting_1!E$2:E$90,,0) -> 20 | G8: =_xlfn.XLOOKUP($B$3,Bezetting_1!$A$2:$A$90,Bezetting_1!F$2:F$90,,0) -> 0 | H8: =_xlfn.XLOOKUP($B$3,Bezetting_1!$A$2:$A$90,Bezetting_1!G$2:G$90,,0) -> 0 | I8: =_xlfn.XLOOKUP($B$3,Bezetting_1!$A$2:$A$90,Bezetting_1!H$2:H$90,,0) -> 0 | J8: =_xlfn.XLOOKUP($B$3,Bezetting_1!$A$2:$A$90,Bezetting_1!I$2:I$90,,0) -> 0 | K8: =_xlfn.XLOOKUP($B$3,Bezetting_1!$A$2:$A$90,Bezetting_1!J$2:J$90,,0) -> 0 | L8: =_xlfn.XLOOKUP($B$3,Bezetting_1!$A$2:$A$90,Bezetting_1!K$2:K$90,,0) -> 20 | M8: =_xlfn.XLOOKUP($B$3,Bezetting_1!$A$2:$A$90,Bezetting_1!L$2:L$90,,0) -> 0 | N8: =_xlfn.XLOOKUP($B$3,Bezetting_1!$A$2:$A$90,Bezetting_1!M$2:M$90,,0) -> 0 | O8: =_xlfn.XLOOKUP($B$3,Bezetting_1!$A$2:$A$90,Bezetting_1!N$2:N$90,,0) -> 0 | Q8: =_xlfn.XLOOKUP($B$3,Bezetting_1!$A$2:$A$90,Bezetting_1!P$2:P$90,,0) -> 0 | S8: =D8 -> 2023-10-12 | T8: =E8 -> 09:00 - 16:00u | U8: =IF(F8=0,NA(),F8/$L8) -> 1 | V8: =IF(G8=0,NA(),G8/$L8) ->  | W8: =IF(H8=0,NA(),H8/$L8) -> 
B9: ="Nabij kruispunt: "&VLOOKUP(B3,Coordinaten!$A$2:$L$95,4,0) -> Nabij kruispunt: A21 / Zandhovensesteenweg | F9: =IF(F8=0,"-",F8/$L$8) -> 1 | G9: =IF(G8=0,"-",G8/$L$8) -> - | H9: - | I9: - | J9: - | K9: - | L9: 1 | Q9: =_xlfn.XLOOKUP($B$3,Bezetting_1!$A$2:$A$90,Bezetting_1!Q$2:Q$90,,0) -> 0 | S9: =D10 -> 2023-10-10 | T9: =E10 -> 19:00 - 02:00u | U9: =IF(F10=0,NA(),F10/$L10) -> 1 | V9: =IF(G10=0,NA(),G10/$L10) -> 
D10: =_xlfn.XLOOKUP($B$3,Bezetting_2!$A$2:$A$90,Bezetting_2!C$2:C$90,,0) -> 2023-10-10 | E10: =_xlfn.XLOOKUP($B$3,Bezetting_2!$A$2:$A$90,Bezetting_2!D$2:D$90,,0) -> 19:00 - 02:00u | F10: =_xlfn.XLOOKUP($B$3,Bezetting_2!$A$2:$A$90,Bezetting_2!E$2:E$90,,0) -> 5 | G10: =_xlfn.XLOOKUP($B$3,Bezetting_2!$A$2:$A$90,Bezetting_2!F$2:F$90,,0) -> 0 | H10: =_xlfn.XLOOKUP($B$3,Bezetting_2!$A$2:$A$90,Bezetting_2!G$2:G$90,,0) -> 0 | I10: =_xlfn.XLOOKUP($B$3,Bezetting_2!$A$2:$A$90,Bezetting_2!H$2:H$90,,0) -> 0 | J10: =_xlfn.XLOOKUP($B$3,Bezetting_2!$A$2:$A$90,Bezetting_2!I$2:I$90,,0) -> 0 | K10: =_xlfn.XLOOKUP($B$3,Bezetting_2!$A$2:$A$90,Bezetting_2!J$2:J$90,,0) -> 0 | L10: =_xlfn.XLOOKUP($B$3,Bezetting_2!$A$2:$A$90,Bezetting_2!K$2:K$90,,0) -> 5 | M10: =_xlfn.XLOOKUP($B$3,Bezetting_2!$A$2:$A$90,Bezetting_2!L$2:L$90,,0) -> 0 | N10: =_xlfn.XLOOKUP($B$3,Bezetting_2!$A$2:$A$90,Bezetting_2!M$2:M$90,,0) -> 0 | O10: =_xlfn.XLOOKUP($B$3,Bezetting_2!$A$2:$A$90,Bezetting_2!N$2:N$90,,0) -> 0 | P10: =_xlfn.XLOOKUP($B$3,Bezetting_2!$A$2:$A$90,Bezetting_2!O$2:O$90,,0) -> 0 | Q10: =_xlfn.XLOOKUP($B$3,Bezetting_2!$A$2:$A$90,Bezetting_2!P$2:P$90,,0) -> 0
B11: Meting | F11: =IF(F10=0,"-",F10/$L$10) -> 1 | G11: =IF(G10=0,"-",G10/$L$10) -> - | H11: - | I11: - | J11: - | K11: - | L11: 1 | Q11: =_xlfn.XLOOKUP($B$3,Bezetting_2!$A$2:$A$90,Bezetting_2!Q$2:Q$90,,0) -> 0
B12: ="Meetperiode: "&TEXT(VLOOKUP(B3,Coordinaten!$A:$G,7,0),"dddd dd mmmm jjjj") -> Meetperiode: di 10 & do 12 oktober 2023
B13: Methodiek: Parkeerdrukmeting met waarnemers
B14: In opdracht van: Vlaamse overheid
B15: Uitgevoerd door: Dufec
D16: VERDELING NAAR CATEGORIE
B17: Locatie
B18: =IF(B4="","",HYPERLINK("http://www.googlemaps.com/?q="&B4,"Lat/Long: "&B4)) -> Lat/Long: 51.211693, 4.625380
P20: Legenda
Q21: Personenwagen
Q22: Vracht
Q23: Motor
Q24: Obstakel / overig
Q25: Fout personenwagen
Q26: Fout Vracht
B39: Toelichting
B40: Pers = personenwagens op daarvoor bestemde
B41: openbare plaatsen
B42: Vracht = vrachtwagens op daarvoor bestemde
B43: parkeerplaatsen (middel- en zwaar vrachtverkeer)
B44: Motor = geparkeerde motoren op openbare plaatsen
B45: Obstakel / overig = obstakels of overige voertuigen
B46: geparkeerd op openbare plaatsen
B47: Fout pers = personenwagens die fout geparkeerd staan
B48: Fout vracht = vrachtwagens die fout geparkeerd staan
B49: E-wagen = geparkeerde elektrisch voertuig bij een
B50: elektrisch oplaadpunt
B51: Invalide = personenwagens en motoren op voor
B52: invalide personen bestemde parkeerplaats
B53: Gestalde fietsen = alle gestalde fietsen op de
B54: daarvoor bestemde parkeerplaatsen

Sheet 50.Sint Job in 't Goor
B2: PARKEERONDERZOEK | D2: CARPOOLPARKINGS EN P+R PARKINGS
B3: 50 | D3: =B8 & " - "& TEXT(VLOOKUP(B3,Coordinaten!$A$2:$G$95,7,0),"dddd dd mmmm jjjj") -> P+R parking Sint Job in 't Goor, Brasschaat - di 10 & do 12 oktober 2023
B4: =VLOOKUP(B3,Coordinaten!$A$2:$G$95,6,0) -> 51.309564, 4.555137
D5: BEZETTING | Q5: OPMERKINGEN
B7: Onderzoeksgebied | D7: Datum | E7: Geregistreerd tussen | F7: Pers | G7: Vracht | H7: Motor | I7: Obstakel / overig | J7: Fout pers | K7: Fout Vracht | L7: Totaal | M7: E-wagen plaats | N7: Invalidenplaats | O7: Gestalde fietsen | U7: =F7 -> Pers | V7: Vracht | W7: Motor | X7: Obstakel / overig | Y7: Fout pers | Z7: Fout Vracht
B8: =VLOOKUP(B3,Coordinaten!$A$2:$G$95,3,0)&", "&VLOOKUP(B3,Coordinaten!$A$2:$G$95,5,0) -> P+R parking Sint Job in 't Goor, Brasschaat | D8: =_xlfn.XLOOKUP($B$3,Bezetting_1!$A$2:$A$90,Bezetting_1!C$2:C$90,,0) -> 2023-10-10 | E8: =_xlfn.XLOOKUP($B$3,Bezetting_1!$A$2:$A$90,Bezetting_1!D$2:D$90,,0) -> 09:00 - 16:00u | F8: =_xlfn.XLOOKUP($B$3,Bezetting_1!$A$2:$A$90,Bezetting_1!E$2:E$90,,0) -> 60 | G8: =_xlfn.XLOOKUP($B$3,Bezetting_1!$A$2:$A$90,Bezetting_1!F$2:F$90,,0) -> 4 | H8: =_xlfn.XLOOKUP($B$3,Bezetting_1!$A$2:$A$90,Bezetting_1!G$2:G$90,,0) -> 1 | I8: =_xlfn.XLOOKUP($B$3,Bezetting_1!$A$2:$A$90,Bezetting_1!H$2:H$90,,0) -> 4 | J8: =_xlfn.XLOOKUP($B$3,Bezetting_1!$A$2:$A$90,Bezetting_1!I$2:I$90,,0) -> 0 | K8: =_xlfn.XLOOKUP($B$3,Bezetting_1!$A$2:$A$90,Bezetting_1!J$2:J$90,,0) -> 3 | L8: =_xlfn.XLOOKUP($B$3,Bezetting_1!$A$2:$A$90,Bezetting_1!K$2:K$90,,0) -> 72 | M8: =_xlfn.XLOOKUP($B$3,Bezetting_1!$A$2:$A$90,Bezetting_1!L$2:L$90,,0) -> 0 | N8: =_xlfn.XLOOKUP($B$3,Bezetting_1!$A$2:$A$90,Bezetting_1!M$2:M$90,,0) -> 0 | O8: =_xlfn.XLOOKUP($B$3,Bezetting_1!$A$2:$A$90,Bezetting_1!N$2:N$90,,0) -> 15 | Q8: =_xlfn.XLOOKUP($B$3,Bezetting_1!$A$2:$A$90,Bezetting_1!P$2:P$90,,0) -> Overig: 4x trailer | S8: =D8 -> 2023-10-10 | T8: =E8 -> 09:00 - 16:00u | U8: =IF(F8=0,NA(),F8/$L8) -> 0.8333333333 | V8: =IF(G8=0,NA(),G8/$L8) -> 0.05555555556 | W8: =IF(H8=0,NA(),H8/$L8) -> 0.01388888889 | X8: 0.05555555556 | Z8: 0.04166666667
B9: ="Nabij kruispunt: "&VLOOKUP(B3,Coordinaten!$A$2:$L$95,4,0) -> Nabij kruispunt: N117 / A1 | F9: =IF(F8=0,"-",F8/$L$8) -> 0.8333333333 | G9: =IF(G8=0,"-",G8/$L$8) -> 0.05555555556 | H9: 0.01388888889 | I9: 0.05555555556 | J9: - | K9: 0.04166666667 | L9: 1 | Q9: =_xlfn.XLOOKUP($B$3,Bezetting_1!$A$2:$A$90,Bezetting_1!Q$2:Q$90,,0) -> Fout: 2 fietsen | S9: =D10 -> 2023-10-10 | T9: =E10 -> 19:00 - 02:00u | U9: =IF(F10=0,NA(),F10/$L10) -> 0.7222222222 | V9: =IF(G10=0,NA(),G10/$L10) -> 0.2222222222 | X9: 0.01851851852 | Z9: 0.03703703704
D10: =_xlfn.XLOOKUP($B$3,Bezetting_2!$A$2:$A$90,Bezetting_2!C$2:C$90,,0) -> 2023-10-10 | E10: =_xlfn.XLOOKUP($B$3,Bezetting_2!$A$2:$A$90,Bezetting_2!D$2:D$90,,0) -> 19:00 - 02:00u | F10: =_xlfn.XLOOKUP($B$3,Bezetting_2!$A$2:$A$90,Bezetting_2!E$2:E$90,,0) -> 39 | G10: =_xlfn.XLOOKUP($B$3,Bezetting_2!$A$2:$A$90,Bezetting_2!F$2:F$90,,0) -> 12 | H10: =_xlfn.XLOOKUP($B$3,Bezetting_2!$A$2:$A$90,Bezetting_2!G$2:G$90,,0) -> 0 | I10: =_xlfn.XLOOKUP($B$3,Bezetting_2!$A$2:$A$90,Bezetting_2!H$2:H$90,,0) -> 1 | J10: =_xlfn.XLOOKUP($B$3,Bezetting_2!$A$2:$A$90,Bezetting_2!I$2:I$90,,0) -> 0 | K10: =_xlfn.XLOOKUP($B$3,Bezetting_2!$A$2:$A$90,Bezetting_2!J$2:J$90,,0) -> 2 | L10: =_xlfn.XLOOKUP($B$3,Bezetting_2!$A$2:$A$90,Bezetting_2!K$2:K$90,,0) -> 54 | M10: =_xlfn.XLOOKUP($B$3,Bezetting_2!$A$2:$A$90,Bezetting_2!L$2:L$90,,0) -> 0 | N10: =_xlfn.XLOOKUP($B$3,Bezetting_2!$A$2:$A$90,Bezetting_2!M$2:M$90,,0) -> 0 | O10: =_xlfn.XLOOKUP($B$3,Bezetting_2!$A$2:$A$90,Bezetting_2!N$2:N$90,,0) -> 0 | P10: =_xlfn.XLOOKUP($B$3,Bezetting_2!$A$2:$A$90,Bezetting_2!O$2:O$90,,0) -> 0 | Q10: =_xlfn.XLOOKUP($B$3,Bezetting_2!$A$2:$A$90,Bezetting_2!P$2:P$90,,0) -> Overig: trailer
B11: Meting | F11: =IF(F10=0,"-",F10/$L$10) -> 0.7222222222 | G11: =IF(G10=0,"-",G10/$L$10) -> 0.2222222222 | H11: - | I11: 0.01851851852 | J11: - | K11: 0.03703703704 | L11: 1 | Q11: =_xlfn.XLOOKUP($B$3,Bezetting_2!$A$2:$A$90,Bezetting_2!Q$2:Q$90,,0) -> 0
B12: ="Meetperiode: "&TEXT(VLOOKUP(B3,Coordinaten!$A:$G,7,0),"dddd dd mmmm jjjj") -> Meetperiode: di 10 & do 12 oktober 2023
B13: Methodiek: Parkeerdrukmeting met waarnemers
B14: In opdracht van: Vlaamse overheid
B15: Uitgevoerd door: Dufec
D16: VERDELING NAAR CATEGORIE
B17: Locatie
B18: =IF(B4="","",HYPERLINK("http://www.googlemaps.com/?q="&B4,"Lat/Long: "&B4)) -> Lat/Long: 51.309564, 4.555137
P20: Legenda
Q21: Personenwagen
Q22: Vracht
Q23: Motor
Q24: Obstakel / overig
Q25: Fout personenwagen
Q26: Fout Vracht
B39: Toelichting
B40: Pers = personenwagens op daarvoor bestemde
B41: openbare plaatsen
B42: Vracht = vrachtwagens op daarvoor bestemde
B43: parkeerplaatsen (middel- en zwaar vrachtverkeer)
B44: Motor = geparkeerde motoren op openbare plaatsen
B45: Obstakel / overig = obstakels of overige voertuigen
B46: geparkeerd op openbare plaatsen
B47: Fout pers = personenwagens die fout geparkeerd staan
B48: Fout vracht = vrachtwagens die fout geparkeerd staan
B49: E-wagen = geparkeerde elektrisch voertuig bij een
B50: elektrisch oplaadpunt
B51: Invalide = personenwagens en motoren op voor
B52: invalide personen bestemde parkeerplaats
B53: Gestalde fietsen = alle gestalde fietsen op de
B54: daarvoor bestemde parkeerplaatsen

Sheet 51.Menen
B2: PARKEERONDERZOEK | D2: CARPOOLPARKINGS EN P+R PARKINGS
B3: 51 | D3: =B8 & " - "& TEXT(VLOOKUP(B3,Coordinaten!$A$2:$G$95,7,0),"dddd dd mmmm jjjj") -> Carpool parking Menen, Menen - di 10 & do 12 oktober 2023
B4: =VLOOKUP(B3,Coordinaten!$A$2:$G$95,6,0) -> 50.817106, 3.125718
D5: BEZETTING | Q5: OPMERKINGEN
B7: Onderzoeksgebied | D7: Datum | E7: Geregistreerd tussen | F7: Pers | G7: Vracht | H7: Motor | I7: Obstakel / overig | J7: Fout pers | K7: Fout Vracht | L7: Totaal | M7: E-wagen plaats | N7: Invalidenplaats | O7: Gestalde fietsen | U7: =F7 -> Pers | V7: Vracht | W7: Motor | X7: Obstakel / overig | Y7: Fout pers | Z7: Fout Vracht
B8: =VLOOKUP(B3,Coordinaten!$A$2:$G$95,3,0)&", "&VLOOKUP(B3,Coordinaten!$A$2:$G$95,5,0) -> Carpool parking Menen, Menen | D8: =_xlfn.XLOOKUP($B$3,Bezetting_1!$A$2:$A$90,Bezetting_1!C$2:C$90,,0) -> 2023-10-12 | E8: =_xlfn.XLOOKUP($B$3,Bezetting_1!$A$2:$A$90,Bezetting_1!D$2:D$90,,0) -> 09:00 - 16:00u | F8: =_xlfn.XLOOKUP($B$3,Bezetting_1!$A$2:$A$90,Bezetting_1!E$2:E$90,,0) -> 38 | G8: =_xlfn.XLOOKUP($B$3,Bezetting_1!$A$2:$A$90,Bezetting_1!F$2:F$90,,0) -> 0 | H8: =_xlfn.XLOOKUP($B$3,Bezetting_1!$A$2:$A$90,Bezetting_1!G$2:G$90,,0) -> 0 | I8: =_xlfn.XLOOKUP($B$3,Bezetting_1!$A$2:$A$90,Bezetting_1!H$2:H$90,,0) -> 0 | J8: =_xlfn.XLOOKUP($B$3,Bezetting_1!$A$2:$A$90,Bezetting_1!I$2:I$90,,0) -> 0 | K8: =_xlfn.XLOOKUP($B$3,Bezetting_1!$A$2:$A$90,Bezetting_1!J$2:J$90,,0) -> 0 | L8: =_xlfn.XLOOKUP($B$3,Bezetting_1!$A$2:$A$90,Bezetting_1!K$2:K$90,,0) -> 38 | M8: =_xlfn.XLOOKUP($B$3,Bezetting_1!$A$2:$A$90,Bezetting_1!L$2:L$90,,0) -> 0 | N8: =_xlfn.XLOOKUP($B$3,Bezetting_1!$A$2:$A$90,Bezetting_1!M$2:M$90,,0) -> 0 | O8: =_xlfn.XLOOKUP($B$3,Bezetting_1!$A$2:$A$90,Bezetting_1!N$2:N$90,,0) -> 6 | Q8: =_xlfn.XLOOKUP($B$3,Bezetting_1!$A$2:$A$90,Bezetting_1!P$2:P$90,,0) -> 0 | S8: =D8 -> 2023-10-12 | T8: =E8 -> 09:00 - 16:00u | U8: =IF(F8=0,NA(),F8/$L8) -> 1 | V8: =IF(G8=0,NA(),G8/$L8) ->  | W8: =IF(H8=0,NA(),H8/$L8) -> 
B9: ="Nabij kruispunt: "&VLOOKUP(B3,Coordinaten!$A$2:$L$95,4,0) -> Nabij kruispunt: A19 / N32 | F9: =IF(F8=0,"-",F8/$L$8) -> 1 | G9: =IF(G8=0,"-",G8/$L$8) -> - | H9: - | I9: - | J9: - | K9: - | L9: 1 | Q9: =_xlfn.XLOOKUP($B$3,Bezetting_1!$A$2:$A$90,Bezetting_1!Q$2:Q$90,,0) -> 0 | S9: =D10 -> 2023-10-12 | T9: =E10 -> 19:00 - 02:00u | U9: =IF(F10=0,NA(),F10/$L10) -> 1 | V9: =IF(G10=0,NA(),G10/$L10) -> 
D10: =_xlfn.XLOOKUP($B$3,Bezetting_2!$A$2:$A$90,Bezetting_2!C$2:C$90,,0) -> 2023-10-12 | E10: =_xlfn.XLOOKUP($B$3,Bezetting_2!$A$2:$A$90,Bezetting_2!D$2:D$90,,0) -> 19:00 - 02:00u | F10: =_xlfn.XLOOKUP($B$3,Bezetting_2!$A$2:$A$90,Bezetting_2!E$2:E$90,,0) -> 20 | G10: =_xlfn.XLOOKUP($B$3,Bezetting_2!$A$2:$A$90,Bezetting_2!F$2:F$90,,0) -> 0 | H10: =_xlfn.XLOOKUP($B$3,Bezetting_2!$A$2:$A$90,Bezetting_2!G$2:G$90,,0) -> 0 | I10: =_xlfn.XLOOKUP($B$3,Bezetting_2!$A$2:$A$90,Bezetting_2!H$2:H$90,,0) -> 0 | J10: =_xlfn.XLOOKUP($B$3,Bezetting_2!$A$2:$A$90,Bezetting_2!I$2:I$90,,0) -> 0 | K10: =_xlfn.XLOOKUP($B$3,Bezetting_2!$A$2:$A$90,Bezetting_2!J$2:J$90,,0) -> 0 | L10: =_xlfn.XLOOKUP($B$3,Bezetting_2!$A$2:$A$90,Bezetting_2!K$2:K$90,,0) -> 20 | M10: =_xlfn.XLOOKUP($B$3,Bezetting_2!$A$2:$A$90,Bezetting_2!L$2:L$90,,0) -> 0 | N10: =_xlfn.XLOOKUP($B$3,Bezetting_2!$A$2:$A$90,Bezetting_2!M$2:M$90,,0) -> 0 | O10: =_xlfn.XLOOKUP($B$3,Bezetting_2!$A$2:$A$90,Bezetting_2!N$2:N$90,,0) -> 1 | P10: =_xlfn.XLOOKUP($B$3,Bezetting_2!$A$2:$A$90,Bezetting_2!O$2:O$90,,0) -> 0 | Q10: =_xlfn.XLOOKUP($B$3,Bezetting_2!$A$2:$A$90,Bezetting_2!P$2:P$90,,0) -> 0
B11: Meting | F11: =IF(F10=0,"-",F10/$L$10) -> 1 | G11: =IF(G10=0,"-",G10/$L$10) -> - | H11: - | I11: - | J11: - | K11: - | L11: 1 | Q11: =_xlfn.XLOOKUP($B$3,Bezetting_2!$A$2:$A$90,Bezetting_2!Q$2:Q$90,,0) -> 0
B12: ="Meetperiode: "&TEXT(VLOOKUP(B3,Coordinaten!$A:$G,7,0),"dddd dd mmmm jjjj") -> Meetperiode: di 10 & do 12 oktober 2023
B13: Methodiek: Parkeerdrukmeting met waarnemers
B14: In opdracht van: Vlaamse overheid
B15: Uitgevoerd door: Dufec
D16: VERDELING NAAR CATEGORIE
B17: Locatie
B18: =IF(B4="","",HYPERLINK("http://www.googlemaps.com/?q="&B4,"Lat/Long: "&B4)) -> Lat/Long: 50.817106, 3.125718
P20: Legenda
Q21: Personenwagen
Q22: Vracht
Q23: Motor
Q24: Obstakel / overig
Q25: Fout personenwagen
Q26: Fout Vracht
B39: Toelichting
B40: Pers = personenwagens op daarvoor bestemde
B41: openbare plaatsen
B42: Vracht = vrachtwagens op daarvoor bestemde
B43: parkeerplaatsen (middel- en zwaar vrachtverkeer)
B44: Motor = geparkeerde motoren op openbare plaatsen
B45: Obstakel / overig = obstakels of overige voertuigen
B46: geparkeerd op openbare plaatsen
B47: Fout pers = personenwagens die fout geparkeerd staan
B48: Fout vracht = vrachtwagens die fout geparkeerd staan
B49: E-wagen = geparkeerde elektrisch voertuig bij een
B50: elektrisch oplaadpunt
B51: Invalide = personenwagens en motoren op voor
B52: invalide personen bestemde parkeerplaats
B53: Gestalde fietsen = alle gestalde fietsen op de
B54: daarvoor bestemde parkeerplaatsen

Sheet 52.Deerlijk
B2: PARKEERONDERZOEK | D2: CARPOOLPARKINGS EN P+R PARKINGS
B3: 52 | D3: =B8 & " - "& TEXT(VLOOKUP(B3,Coordinaten!$A$2:$G$95,7,0),"dddd dd mmmm jjjj") -> Carpool parking Deerlijk, Deerlijk - di 10 & do 12 oktober 2023
B4: =VLOOKUP(B3,Coordinaten!$A$2:$G$95,6,0) -> 50.850190, 3.368235
D5: BEZETTING | Q5: OPMERKINGEN
B7: Onderzoeksgebied | D7: Datum | E7: Geregistreerd tussen | F7: Pers | G7: Vracht | H7: Motor | I7: Obstakel / overig | J7: Fout pers | K7: Fout Vracht | L7: Totaal | M7: E-wagen plaats | N7: Invalidenplaats | O7: Gestalde fietsen | U7: =F7 -> Pers | V7: Vracht | W7: Motor | X7: Obstakel / overig | Y7: Fout pers | Z7: Fout Vracht
B8: =VLOOKUP(B3,Coordinaten!$A$2:$G$95,3,0)&", "&VLOOKUP(B3,Coordinaten!$A$2:$G$95,5,0) -> Carpool parking Deerlijk, Deerlijk | D8: =_xlfn.XLOOKUP($B$3,Bezetting_1!$A$2:$A$90,Bezetting_1!C$2:C$90,,0) -> 2023-10-12 | E8: =_xlfn.XLOOKUP($B$3,Bezetting_1!$A$2:$A$90,Bezetting_1!D$2:D$90,,0) -> 09:00 - 16:00u | F8: =_xlfn.XLOOKUP($B$3,Bezetting_1!$A$2:$A$90,Bezetting_1!E$2:E$90,,0) -> 47 | G8: =_xlfn.XLOOKUP($B$3,Bezetting_1!$A$2:$A$90,Bezetting_1!F$2:F$90,,0) -> 0 | H8: =_xlfn.XLOOKUP($B$3,Bezetting_1!$A$2:$A$90,Bezetting_1!G$2:G$90,,0) -> 0 | I8: =_xlfn.XLOOKUP($B$3,Bezetting_1!$A$2:$A$90,Bezetting_1!H$2:H$90,,0) -> 0 | J8: =_xlfn.XLOOKUP($B$3,Bezetting_1!$A$2:$A$90,Bezetting_1!I$2:I$90,,0) -> 6 | K8: =_xlfn.XLOOKUP($B$3,Bezetting_1!$A$2:$A$90,Bezetting_1!J$2:J$90,,0) -> 0 | L8: =_xlfn.XLOOKUP($B$3,Bezetting_1!$A$2:$A$90,Bezetting_1!K$2:K$90,,0) -> 53 | M8: =_xlfn.XLOOKUP($B$3,Bezetting_1!$A$2:$A$90,Bezetting_1!L$2:L$90,,0) -> 0 | N8: =_xlfn.XLOOKUP($B$3,Bezetting_1!$A$2:$A$90,Bezetting_1!M$2:M$90,,0) -> 0 | O8: =_xlfn.XLOOKUP($B$3,Bezetting_1!$A$2:$A$90,Bezetting_1!N$2:N$90,,0) -> 7 | Q8: =_xlfn.XLOOKUP($B$3,Bezetting_1!$A$2:$A$90,Bezetting_1!P$2:P$90,,0) -> 0 | S8: =D8 -> 2023-10-12 | T8: =E8 -> 09:00 - 16:00u | U8: =IF(F8=0,NA(),F8/$L8) -> 0.8867924528 | V8: =IF(G8=0,NA(),G8/$L8) ->  | W8: =IF(H8=0,NA(),H8/$L8) ->  | Y8: 0.1132075472
B9: ="Nabij kruispunt: "&VLOOKUP(B3,Coordinaten!$A$2:$L$95,4,0) -> Nabij kruispunt: N36 / Vichtesteenweg | F9: =IF(F8=0,"-",F8/$L$8) -> 0.8867924528 | G9: =IF(G8=0,"-",G8/$L$8) -> - | H9: - | I9: - | J9: 0.1132075472 | K9: - | L9: 1 | Q9: =_xlfn.XLOOKUP($B$3,Bezetting_1!$A$2:$A$90,Bezetting_1!Q$2:Q$90,,0) -> 0 | S9: =D10 -> 2023-10-12 | T9: =E10 -> 19:00 - 02:00u | U9: =IF(F10=0,NA(),F10/$L10) -> 1 | V9: =IF(G10=0,NA(),G10/$L10) -> 
D10: =_xlfn.XLOOKUP($B$3,Bezetting_2!$A$2:$A$90,Bezetting_2!C$2:C$90,,0) -> 2023-10-12 | E10: =_xlfn.XLOOKUP($B$3,Bezetting_2!$A$2:$A$90,Bezetting_2!D$2:D$90,,0) -> 19:00 - 02:00u | F10: =_xlfn.XLOOKUP($B$3,Bezetting_2!$A$2:$A$90,Bezetting_2!E$2:E$90,,0) -> 25 | G10: =_xlfn.XLOOKUP($B$3,Bezetting_2!$A$2:$A$90,Bezetting_2!F$2:F$90,,0) -> 0 | H10: =_xlfn.XLOOKUP($B$3,Bezetting_2!$A$2:$A$90,Bezetting_2!G$2:G$90,,0) -> 0 | I10: =_xlfn.XLOOKUP($B$3,Bezetting_2!$A$2:$A$90,Bezetting_2!H$2:H$90,,0) -> 0 | J10: =_xlfn.XLOOKUP($B$3,Bezetting_2!$A$2:$A$90,Bezetting_2!I$2:I$90,,0) -> 0 | K10: =_xlfn.XLOOKUP($B$3,Bezetting_2!$A$2:$A$90,Bezetting_2!J$2:J$90,,0) -> 0 | L10: =_xlfn.XLOOKUP($B$3,Bezetting_2!$A$2:$A$90,Bezetting_2!K$2:K$90,,0) -> 25 | M10: =_xlfn.XLOOKUP($B$3,Bezetting_2!$A$2:$A$90,Bezetting_2!L$2:L$90,,0) -> 0 | N10: =_xlfn.XLOOKUP($B$3,Bezetting_2!$A$2:$A$90,Bezetting_2!M$2:M$90,,0) -> 0 | O10: =_xlfn.XLOOKUP($B$3,Bezetting_2!$A$2:$A$90,Bezetting_2!N$2:N$90,,0) -> 0 | P10: =_xlfn.XLOOKUP($B$3,Bezetting_2!$A$2:$A$90,Bezetting_2!O$2:O$90,,0) -> 0 | Q10: =_xlfn.XLOOKUP($B$3,Bezetting_2!$A$2:$A$90,Bezetting_2!P$2:P$90,,0) -> 0
B11: Meting | F11: =IF(F10=0,"-",F10/$L$10) -> 1 | G11: =IF(G10=0,"-",G10/$L$10) -> - | H11: - | I11: - | J11: - | K11: - | L11: 1 | Q11: =_xlfn.XLOOKUP($B$3,Bezetting_2!$A$2:$A$90,Bezetting_2!Q$2:Q$90,,0) -> 0
B12: ="Meetperiode: "&TEXT(VLOOKUP(B3,Coordinaten!$A:$G,7,0),"dddd dd mmmm jjjj") -> Meetperiode: di 10 & do 12 oktober 2023
B13: Methodiek: Parkeerdrukmeting met waarnemers
B14: In opdracht van: Vlaamse overheid
B15: Uitgevoerd door: Dufec
D16: VERDELING NAAR CATEGORIE
B17: Locatie
B18: =IF(B4="","",HYPERLINK("http://www.googlemaps.com/?q="&B4,"Lat/Long: "&B4)) -> Lat/Long: 50.850190, 3.368235
P20: Legenda
Q21: Personenwagen
Q22: Vracht
Q23: Motor
Q24: Obstakel / overig
Q25: Fout personenwagen
Q26: Fout Vracht
B39: Toelichting
B40: Pers = personenwagens op daarvoor bestemde
B41: openbare plaatsen
B42: Vracht = vrachtwagens op daarvoor bestemde
B43: parkeerplaatsen (middel- en zwaar vrachtverkeer)
B44: Motor = geparkeerde motoren op openbare plaatsen
B45: Obstakel / overig = obstakels of overige voertuigen
B46: geparkeerd op openbare plaatsen
B47: Fout pers = personenwagens die fout geparkeerd staan
B48: Fout vracht = vrachtwagens die fout geparkeerd staan
B49: E-wagen = geparkeerde elektrisch voertuig bij een
B50: elektrisch oplaadpunt
B51: Invalide = personenwagens en motoren op voor
B52: invalide personen bestemde parkeerplaats
B53: Gestalde fietsen = alle gestalde fietsen op de
B54: daarvoor bestemde parkeerplaatsen

Sheet 54.E17 Deinze
B2: PARKEERONDERZOEK | D2: CARPOOLPARKINGS EN P+R PARKINGS
B3: 54 | D3: =B8 & " - "& TEXT(VLOOKUP(B3,Coordinaten!$A$2:$G$95,7,0),"dddd dd mmmm jjjj") -> Carpool parking E17 Deinze, Nazareth - di 10 & do 12 oktober 2023
B4: =VLOOKUP(B3,Coordinaten!$A$2:$G$95,6,0) -> 50.952738, 3.569722
D5: BEZETTING | Q5: OPMERKINGEN
B7: Onderzoeksgebied | D7: Datum | E7: Geregistreerd tussen | F7: Pers | G7: Vracht | H7: Motor | I7: Obstakel / overig | J7: Fout pers | K7: Fout Vracht | L7: Totaal | M7: E-wagen plaats | N7: Invalidenplaats | O7: Gestalde fietsen | U7: =F7 -> Pers | V7: Vracht | W7: Motor | X7: Obstakel / overig | Y7: Fout pers | Z7: Fout Vracht
B8: =VLOOKUP(B3,Coordinaten!$A$2:$G$95,3,0)&", "&VLOOKUP(B3,Coordinaten!$A$2:$G$95,5,0) -> Carpool parking E17 Deinze, Nazareth | D8: =_xlfn.XLOOKUP($B$3,Bezetting_1!$A$2:$A$90,Bezetting_1!C$2:C$90,,0) -> 2023-10-12 | E8: =_xlfn.XLOOKUP($B$3,Bezetting_1!$A$2:$A$90,Bezetting_1!D$2:D$90,,0) -> 09:00 - 16:00u | F8: =_xlfn.XLOOKUP($B$3,Bezetting_1!$A$2:$A$90,Bezetting_1!E$2:E$90,,0) -> 33 | G8: =_xlfn.XLOOKUP($B$3,Bezetting_1!$A$2:$A$90,Bezetting_1!F$2:F$90,,0) -> 0 | H8: =_xlfn.XLOOKUP($B$3,Bezetting_1!$A$2:$A$90,Bezetting_1!G$2:G$90,,0) -> 0 | I8: =_xlfn.XLOOKUP($B$3,Bezetting_1!$A$2:$A$90,Bezetting_1!H$2:H$90,,0) -> 0 | J8: =_xlfn.XLOOKUP($B$3,Bezetting_1!$A$2:$A$90,Bezetting_1!I$2:I$90,,0) -> 0 | K8: =_xlfn.XLOOKUP($B$3,Bezetting_1!$A$2:$A$90,Bezetting_1!J$2:J$90,,0) -> 0 | L8: =_xlfn.XLOOKUP($B$3,Bezetting_1!$A$2:$A$90,Bezetting_1!K$2:K$90,,0) -> 33 | M8: =_xlfn.XLOOKUP($B$3,Bezetting_1!$A$2:$A$90,Bezetting_1!L$2:L$90,,0) -> 0 | N8: =_xlfn.XLOOKUP($B$3,Bezetting_1!$A$2:$A$90,Bezetting_1!M$2:M$90,,0) -> 0 | O8: =_xlfn.XLOOKUP($B$3,Bezetting_1!$A$2:$A$90,Bezetting_1!N$2:N$90,,0) -> 0 | Q8: =_xlfn.XLOOKUP($B$3,Bezetting_1!$A$2:$A$90,Bezetting_1!P$2:P$90,,0) -> 0 | S8: =D8 -> 2023-10-12 | T8: =E8 -> 09:00 - 16:00u | U8: =IF(F8=0,NA(),F8/$L8) -> 1 | V8: =IF(G8=0,NA(),G8/$L8) ->  | W8: =IF(H8=0,NA(),H8/$L8) -> 
B9: ="Nabij kruispunt: "&VLOOKUP(B3,Coordinaten!$A$2:$L$95,4,0) -> Nabij kruispunt: N35 / N17 | F9: =IF(F8=0,"-",F8/$L$8) -> 1 | G9: =IF(G8=0,"-",G8/$L$8) -> - | H9: - | I9: - | J9: - | K9: - | L9: 1 | Q9: =_xlfn.XLOOKUP($B$3,Bezetting_1!$A$2:$A$90,Bezetting_1!Q$2:Q$90,,0) -> 0 | S9: =D10 -> 2023-10-12 | T9: =E10 -> 19:00 - 02:00u | U9: =IF(F10=0,NA(),F10/$L10) -> 1 | V9: =IF(G10=0,NA(),G10/$L10) -> 
D10: =_xlfn.XLOOKUP($B$3,Bezetting_2!$A$2:$A$90,Bezetting_2!C$2:C$90,,0) -> 2023-10-12 | E10: =_xlfn.XLOOKUP($B$3,Bezetting_2!$A$2:$A$90,Bezetting_2!D$2:D$90,,0) -> 19:00 - 02:00u | F10: =_xlfn.XLOOKUP($B$3,Bezetting_2!$A$2:$A$90,Bezetting_2!E$2:E$90,,0) -> 30 | G10: =_xlfn.XLOOKUP($B$3,Bezetting_2!$A$2:$A$90,Bezetting_2!F$2:F$90,,0) -> 0 | H10: =_xlfn.XLOOKUP($B$3,Bezetting_2!$A$2:$A$90,Bezetting_2!G$2:G$90,,0) -> 0 | I10: =_xlfn.XLOOKUP($B$3,Bezetting_2!$A$2:$A$90,Bezetting_2!H$2:H$90,,0) -> 0 | J10: =_xlfn.XLOOKUP($B$3,Bezetting_2!$A$2:$A$90,Bezetting_2!I$2:I$90,,0) -> 0 | K10: =_xlfn.XLOOKUP($B$3,Bezetting_2!$A$2:$A$90,Bezetting_2!J$2:J$90,,0) -> 0 | L10: =_xlfn.XLOOKUP($B$3,Bezetting_2!$A$2:$A$90,Bezetting_2!K$2:K$90,,0) -> 30 | M10: =_xlfn.XLOOKUP($B$3,Bezetting_2!$A$2:$A$90,Bezetting_2!L$2:L$90,,0) -> 0 | N10: =_xlfn.XLOOKUP($B$3,Bezetting_2!$A$2:$A$90,Bezetting_2!M$2:M$90,,0) -> 0 | O10: =_xlfn.XLOOKUP($B$3,Bezetting_2!$A$2:$A$90,Bezetting_2!N$2:N$90,,0) -> 3 | P10: =_xlfn.XLOOKUP($B$3,Bezetting_2!$A$2:$A$90,Bezetting_2!O$2:O$90,,0) -> 0 | Q10: =_xlfn.XLOOKUP($B$3,Bezetting_2!$A$2:$A$90,Bezetting_2!P$2:P$90,,0) -> 0
B11: Meting | F11: =IF(F10=0,"-",F10/$L$10) -> 1 | G11: =IF(G10=0,"-",G10/$L$10) -> - | H11: - | I11: - | J11: - | K11: - | L11: 1 | Q11: =_xlfn.XLOOKUP($B$3,Bezetting_2!$A$2:$A$90,Bezetting_2!Q$2:Q$90,,0) -> 0
B12: ="Meetperiode: "&TEXT(VLOOKUP(B3,Coordinaten!$A:$G,7,0),"dddd dd mmmm jjjj") -> Meetperiode: di 10 & do 12 oktober 2023
B13: Methodiek: Parkeerdrukmeting met waarnemers
B14: In opdracht van: Vlaamse overheid
B15: Uitgevoerd door: Dufec
D16: VERDELING NAAR CATEGORIE
B17: Locatie
B18: =IF(B4="","",HYPERLINK("http://www.googlemaps.com/?q="&B4,"Lat/Long: "&B4)) -> Lat/Long: 50.952738, 3.569722
P20: Legenda
Q21: Personenwagen
Q22: Vracht
Q23: Motor
Q24: Obstakel / overig
Q25: Fout personenwagen
Q26: Fout Vracht
B39: Toelichting
B40: Pers = personenwagens op daarvoor bestemde
B41: openbare plaatsen
B42: Vracht = vrachtwagens op daarvoor bestemde
B43: parkeerplaatsen (middel- en zwaar vrachtverkeer)
B44: Motor = geparkeerde motoren op openbare plaatsen
B45: Obstakel / overig = obstakels of overige voertuigen
B46: geparkeerd op openbare plaatsen
B47: Fout pers = personenwagens die fout geparkeerd staan
B48: Fout vracht = vrachtwagens die fout geparkeerd staan
B49: E-wagen = geparkeerde elektrisch voertuig bij een
B50: elektrisch oplaadpunt
B51: Invalide = personenwagens en motoren op voor
B52: invalide personen bestemde parkeerplaats
B53: Gestalde fietsen = alle gestalde fietsen op de
B54: daarvoor bestemde parkeerplaatsen

Sheet 55.Erpe-Mere
B2: PARKEERONDERZOEK | D2: CARPOOLPARKINGS EN P+R PARKINGS
B3: 55 | D3: =B8 & " - "& TEXT(VLOOKUP(B3,Coordinaten!$A$2:$G$95,7,0),"dddd dd mmmm jjjj") -> Carpool parking Erpe-Mere, Erpe-Mere - di 10 & do 12 oktober 2023
B4: =VLOOKUP(B3,Coordinaten!$A$2:$G$95,6,0) -> 50.927985, 3.958209
D5: BEZETTING | Q5: OPMERKINGEN
B7: Onderzoeksgebied | D7: Datum | E7: Geregistreerd tussen | F7: Pers | G7: Vracht | H7: Motor | I7: Obstakel / overig | J7: Fout pers | K7: Fout Vracht | L7: Totaal | M7: E-wagen plaats | N7: Invalidenplaats | O7: Gestalde fietsen | U7: =F7 -> Pers | V7: Vracht | W7: Motor | X7: Obstakel / overig | Y7: Fout pers | Z7: Fout Vracht
B8: =VLOOKUP(B3,Coordinaten!$A$2:$G$95,3,0)&", "&VLOOKUP(B3,Coordinaten!$A$2:$G$95,5,0) -> Carpool parking Erpe-Mere, Erpe-Mere | D8: =_xlfn.XLOOKUP($B$3,Bezetting_1!$A$2:$A$90,Bezetting_1!C$2:C$90,,0) -> 2023-10-12 | E8: =_xlfn.XLOOKUP($B$3,Bezetting_1!$A$2:$A$90,Bezetting_1!D$2:D$90,,0) -> 09:00 - 16:00u | F8: =_xlfn.XLOOKUP($B$3,Bezetting_1!$A$2:$A$90,Bezetting_1!E$2:E$90,,0) -> 94 | G8: =_xlfn.XLOOKUP($B$3,Bezetting_1!$A$2:$A$90,Bezetting_1!F$2:F$90,,0) -> 0 | H8: =_xlfn.XLOOKUP($B$3,Bezetting_1!$A$2:$A$90,Bezetting_1!G$2:G$90,,0) -> 0 | I8: =_xlfn.XLOOKUP($B$3,Bezetting_1!$A$2:$A$90,Bezetting_1!H$2:H$90,,0) -> 0 | J8: =_xlfn.XLOOKUP($B$3,Bezetting_1!$A$2:$A$90,Bezetting_1!I$2:I$90,,0) -> 0 | K8: =_xlfn.XLOOKUP($B$3,Bezetting_1!$A$2:$A$90,Bezetting_1!J$2:J$90,,0) -> 0 | L8: =_xlfn.XLOOKUP($B$3,Bezetting_1!$A$2:$A$90,Bezetting_1!K$2:K$90,,0) -> 94 | M8: =_xlfn.XLOOKUP($B$3,Bezetting_1!$A$2:$A$90,Bezetting_1!L$2:L$90,,0) -> 4 | N8: =_xlfn.XLOOKUP($B$3,Bezetting_1!$A$2:$A$90,Bezetting_1!M$2:M$90,,0) -> 0 | O8: =_xlfn.XLOOKUP($B$3,Bezetting_1!$A$2:$A$90,Bezetting_1!N$2:N$90,,0) -> 1 | Q8: =_xlfn.XLOOKUP($B$3,Bezetting_1!$A$2:$A$90,Bezetting_1!P$2:P$90,,0) -> 0 | S8: =D8 -> 2023-10-12 | T8: =E8 -> 09:00 - 16:00u | U8: =IF(F8=0,NA(),F8/$L8) -> 1 | V8: =IF(G8=0,NA(),G8/$L8) ->  | W8: =IF(H8=0,NA(),H8/$L8) -> 
B9: ="Nabij kruispunt: "&VLOOKUP(B3,Coordinaten!$A$2:$L$95,4,0) -> Nabij kruispunt: N46 / A10 | F9: =IF(F8=0,"-",F8/$L$8) -> 1 | G9: =IF(G8=0,"-",G8/$L$8) -> - | H9: - | I9: - | J9: - | K9: - | L9: 1 | Q9: =_xlfn.XLOOKUP($B$3,Bezetting_1!$A$2:$A$90,Bezetting_1!Q$2:Q$90,,0) -> 0 | S9: =D10 -> 2023-10-12 | T9: =E10 -> 19:00 - 02:00u | U9: =IF(F10=0,NA(),F10/$L10) -> 1 | V9: =IF(G10=0,NA(),G10/$L10) -> 
D10: =_xlfn.XLOOKUP($B$3,Bezetting_2!$A$2:$A$90,Bezetting_2!C$2:C$90,,0) -> 2023-10-12 | E10: =_xlfn.XLOOKUP($B$3,Bezetting_2!$A$2:$A$90,Bezetting_2!D$2:D$90,,0) -> 19:00 - 02:00u | F10: =_xlfn.XLOOKUP($B$3,Bezetting_2!$A$2:$A$90,Bezetting_2!E$2:E$90,,0) -> 36 | G10: =_xlfn.XLOOKUP($B$3,Bezetting_2!$A$2:$A$90,Bezetting_2!F$2:F$90,,0) -> 0 | H10: =_xlfn.XLOOKUP($B$3,Bezetting_2!$A$2:$A$90,Bezetting_2!G$2:G$90,,0) -> 0 | I10: =_xlfn.XLOOKUP($B$3,Bezetting_2!$A$2:$A$90,Bezetting_2!H$2:H$90,,0) -> 0 | J10: =_xlfn.XLOOKUP($B$3,Bezetting_2!$A$2:$A$90,Bezetting_2!I$2:I$90,,0) -> 0 | K10: =_xlfn.XLOOKUP($B$3,Bezetting_2!$A$2:$A$90,Bezetting_2!J$2:J$90,,0) -> 0 | L10: =_xlfn.XLOOKUP($B$3,Bezetting_2!$A$2:$A$90,Bezetting_2!K$2:K$90,,0) -> 36 | M10: =_xlfn.XLOOKUP($B$3,Bezetting_2!$A$2:$A$90,Bezetting_2!L$2:L$90,,0) -> 0 | N10: =_xlfn.XLOOKUP($B$3,Bezetting_2!$A$2:$A$90,Bezetting_2!M$2:M$90,,0) -> 0 | O10: =_xlfn.XLOOKUP($B$3,Bezetting_2!$A$2:$A$90,Bezetting_2!N$2:N$90,,0) -> 0 | P10: =_xlfn.XLOOKUP($B$3,Bezetting_2!$A$2:$A$90,Bezetting_2!O$2:O$90,,0) -> 0 | Q10: =_xlfn.XLOOKUP($B$3,Bezetting_2!$A$2:$A$90,Bezetting_2!P$2:P$90,,0) -> 0
B11: Meting | F11: =IF(F10=0,"-",F10/$L$10) -> 1 | G11: =IF(G10=0,"-",G10/$L$10) -> - | H11: - | I11: - | J11: - | K11: - | L11: 1 | Q11: =_xlfn.XLOOKUP($B$3,Bezetting_2!$A$2:$A$90,Bezetting_2!Q$2:Q$90,,0) -> 0
B12: ="Meetperiode: "&TEXT(VLOOKUP(B3,Coordinaten!$A:$G,7,0),"dddd dd mmmm jjjj") -> Meetperiode: di 10 & do 12 oktober 2023
B13: Methodiek: Parkeerdrukmeting met waarnemers
B14: In opdracht van: Vlaamse overheid
B15: Uitgevoerd door: Dufec
D16: VERDELING NAAR CATEGORIE
B17: Locatie
B18: =IF(B4="","",HYPERLINK("http://www.googlemaps.com/?q="&B4,"Lat/Long: "&B4)) -> Lat/Long: 50.927985, 3.958209
P20: Legenda
Q21: Personenwagen
Q22: Vracht
Q23: Motor
Q24: Obstakel / overig
Q25: Fout personenwagen
Q26: Fout Vracht
B39: Toelichting
B40: Pers = personenwagens op daarvoor bestemde
B41: openbare plaatsen
B42: Vracht = vrachtwagens op daarvoor bestemde
B43: parkeerplaatsen (middel- en zwaar vrachtverkeer)
B44: Motor = geparkeerde motoren op openbare plaatsen
B45: Obstakel / overig = obstakels of overige voertuigen
B46: geparkeerd op openbare plaatsen
B47: Fout pers = personenwagens die fout geparkeerd staan
B48: Fout vracht = vrachtwagens die fout geparkeerd staan
B49: E-wagen = geparkeerde elektrisch voertuig bij een
B50: elektrisch oplaadpunt
B51: Invalide = personenwagens en motoren op voor
B52: invalide personen bestemde parkeerplaats
B53: Gestalde fietsen = alle gestalde fietsen op de
B54: daarvoor bestemde parkeerplaatsen

Sheet 56.Geel-West
B2: PARKEERONDERZOEK | D2: CARPOOLPARKINGS EN P+R PARKINGS
B3: 56 | D3: =B8 & " - "& TEXT(VLOOKUP(B3,Coordinaten!$A$2:$G$95,7,0),"dddd dd mmmm jjjj") -> Carpool parking Geel-West, Westerlo - di 10 & do 12 oktober 2023
B4: =VLOOKUP(B3,Coordinaten!$A$2:$G$95,6,0) -> 51.133020, 4.940494
D5: BEZETTING | Q5: OPMERKINGEN
B7: Onderzoeksgebied | D7: Datum | E7: Geregistreerd tussen | F7: Pers | G7: Vracht | H7: Motor | I7: Obstakel / overig | J7: Fout pers | K7: Fout Vracht | L7: Totaal | M7: E-wagen plaats | N7: Invalidenplaats | O7: Gestalde fietsen | U7: =F7 -> Pers | V7: Vracht | W7: Motor | X7: Obstakel / overig | Y7: Fout pers | Z7: Fout Vracht
B8: =VLOOKUP(B3,Coordinaten!$A$2:$G$95,3,0)&", "&VLOOKUP(B3,Coordinaten!$A$2:$G$95,5,0) -> Carpool parking Geel-West, Westerlo | D8: =_xlfn.XLOOKUP($B$3,Bezetting_1!$A$2:$A$90,Bezetting_1!C$2:C$90,,0) -> 2023-10-12 | E8: =_xlfn.XLOOKUP($B$3,Bezetting_1!$A$2:$A$90,Bezetting_1!D$2:D$90,,0) -> 09:00 - 16:00u | F8: =_xlfn.XLOOKUP($B$3,Bezetting_1!$A$2:$A$90,Bezetting_1!E$2:E$90,,0) -> 77 | G8: =_xlfn.XLOOKUP($B$3,Bezetting_1!$A$2:$A$90,Bezetting_1!F$2:F$90,,0) -> 5 | H8: =_xlfn.XLOOKUP($B$3,Bezetting_1!$A$2:$A$90,Bezetting_1!G$2:G$90,,0) -> 0 | I8: =_xlfn.XLOOKUP($B$3,Bezetting_1!$A$2:$A$90,Bezetting_1!H$2:H$90,,0) -> 1 | J8: =_xlfn.XLOOKUP($B$3,Bezetting_1!$A$2:$A$90,Bezetting_1!I$2:I$90,,0) -> 3 | K8: =_xlfn.XLOOKUP($B$3,Bezetting_1!$A$2:$A$90,Bezetting_1!J$2:J$90,,0) -> 0 | L8: =_xlfn.XLOOKUP($B$3,Bezetting_1!$A$2:$A$90,Bezetting_1!K$2:K$90,,0) -> 86 | M8: =_xlfn.XLOOKUP($B$3,Bezetting_1!$A$2:$A$90,Bezetting_1!L$2:L$90,,0) -> 1 | N8: =_xlfn.XLOOKUP($B$3,Bezetting_1!$A$2:$A$90,Bezetting_1!M$2:M$90,,0) -> 0 | O8: =_xlfn.XLOOKUP($B$3,Bezetting_1!$A$2:$A$90,Bezetting_1!N$2:N$90,,0) -> 2 | Q8: =_xlfn.XLOOKUP($B$3,Bezetting_1!$A$2:$A$90,Bezetting_1!P$2:P$90,,0) -> Overig: aanhanger | S8: =D8 -> 2023-10-12 | T8: =E8 -> 09:00 - 16:00u | U8: =IF(F8=0,NA(),F8/$L8) -> 0.8953488372 | V8: =IF(G8=0,NA(),G8/$L8) -> 0.05813953488 | W8: =IF(H8=0,NA(),H8/$L8) ->  | X8: 0.01162790698 | Y8: 0.03488372093
B9: ="Nabij kruispunt: "&VLOOKUP(B3,Coordinaten!$A$2:$L$95,4,0) -> Nabij kruispunt: N19 / Bell-Telephonelaan | F9: =IF(F8=0,"-",F8/$L$8) -> 0.8953488372 | G9: =IF(G8=0,"-",G8/$L$8) -> 0.05813953488 | H9: - | I9: 0.01162790698 | J9: 0.03488372093 | K9: - | L9: 1 | Q9: =_xlfn.XLOOKUP($B$3,Bezetting_1!$A$2:$A$90,Bezetting_1!Q$2:Q$90,,0) -> 0 | S9: =D10 -> 2023-10-10 | T9: =E10 -> 19:00 - 02:00u | U9: =IF(F10=0,NA(),F10/$L10) -> 1 | V9: =IF(G10=0,NA(),G10/$L10) -> 
D10: =_xlfn.XLOOKUP($B$3,Bezetting_2!$A$2:$A$90,Bezetting_2!C$2:C$90,,0) -> 2023-10-10 | E10: =_xlfn.XLOOKUP($B$3,Bezetting_2!$A$2:$A$90,Bezetting_2!D$2:D$90,,0) -> 19:00 - 02:00u | F10: =_xlfn.XLOOKUP($B$3,Bezetting_2!$A$2:$A$90,Bezetting_2!E$2:E$90,,0) -> 27 | G10: =_xlfn.XLOOKUP($B$3,Bezetting_2!$A$2:$A$90,Bezetting_2!F$2:F$90,,0) -> 0 | H10: =_xlfn.XLOOKUP($B$3,Bezetting_2!$A$2:$A$90,Bezetting_2!G$2:G$90,,0) -> 0 | I10: =_xlfn.XLOOKUP($B$3,Bezetting_2!$A$2:$A$90,Bezetting_2!H$2:H$90,,0) -> 0 | J10: =_xlfn.XLOOKUP($B$3,Bezetting_2!$A$2:$A$90,Bezetting_2!I$2:I$90,,0) -> 0 | K10: =_xlfn.XLOOKUP($B$3,Bezetting_2!$A$2:$A$90,Bezetting_2!J$2:J$90,,0) -> 0 | L10: =_xlfn.XLOOKUP($B$3,Bezetting_2!$A$2:$A$90,Bezetting_2!K$2:K$90,,0) -> 27 | M10: =_xlfn.XLOOKUP($B$3,Bezetting_2!$A$2:$A$90,Bezetting_2!L$2:L$90,,0) -> 0 | N10: =_xlfn.XLOOKUP($B$3,Bezetting_2!$A$2:$A$90,Bezetting_2!M$2:M$90,,0) -> 0 | O10: =_xlfn.XLOOKUP($B$3,Bezetting_2!$A$2:$A$90,Bezetting_2!N$2:N$90,,0) -> 2 | P10: =_xlfn.XLOOKUP($B$3,Bezetting_2!$A$2:$A$90,Bezetting_2!O$2:O$90,,0) -> 0 | Q10: =_xlfn.XLOOKUP($B$3,Bezetting_2!$A$2:$A$90,Bezetting_2!P$2:P$90,,0) -> 0
B11: Meting | F11: =IF(F10=0,"-",F10/$L$10) -> 1 | G11: =IF(G10=0,"-",G10/$L$10) -> - | H11: - | I11: - | J11: - | K11: - | L11: 1 | Q11: =_xlfn.XLOOKUP($B$3,Bezetting_2!$A$2:$A$90,Bezetting_2!Q$2:Q$90,,0) -> 0
B12: ="Meetperiode: "&TEXT(VLOOKUP(B3,Coordinaten!$A:$G,7,0),"dddd dd mmmm jjjj") -> Meetperiode: di 10 & do 12 oktober 2023
B13: Methodiek: Parkeerdrukmeting met waarnemers
B14: In opdracht van: Vlaamse overheid
B15: Uitgevoerd door: Dufec
D16: VERDELING NAAR CATEGORIE
B17: Locatie
B18: =IF(B4="","",HYPERLINK("http://www.googlemaps.com/?q="&B4,"Lat/Long: "&B4)) -> Lat/Long: 51.133020, 4.940494
P20: Legenda
Q21: Personenwagen
Q22: Vracht
Q23: Motor
Q24: Obstakel / overig
Q25: Fout personenwagen
Q26: Fout Vracht
B39: Toelichting
B40: Pers = personenwagens op daarvoor bestemde
B41: openbare plaatsen
B42: Vracht = vrachtwagens op daarvoor bestemde
B43: parkeerplaatsen (middel- en zwaar vrachtverkeer)
B44: Motor = geparkeerde motoren op openbare plaatsen
B45: Obstakel / overig = obstakels of overige voertuigen
B46: geparkeerd op openbare plaatsen
B47: Fout pers = personenwagens die fout geparkeerd staan
B48: Fout vracht = vrachtwagens die fout geparkeerd staan
B49: E-wagen = geparkeerde elektrisch voertuig bij een
B50: elektrisch oplaadpunt
B51: Invalide = personenwagens en motoren op voor
B52: invalide personen bestemde parkeerplaats
B53: Gestalde fietsen = alle gestalde fietsen op de
B54: daarvoor bestemde parkeerplaatsen

Sheet 57.Veurne
B2: PARKEERONDERZOEK | D2: CARPOOLPARKINGS EN P+R PARKINGS
B3: 57 | D3: =B8 & " - "& TEXT(VLOOKUP(B3,Coordinaten!$A$2:$G$95,7,0),"dddd dd mmmm jjjj") -> Carpool parking Veurne, Veurne - di 10 & do 12 oktober 2023
B4: =VLOOKUP(B3,Coordinaten!$A$2:$G$95,6,0) -> 51.070372, 2.656499
D5: BEZETTING | Q5: OPMERKINGEN
B7: Onderzoeksgebied | D7: Datum | E7: Geregistreerd tussen | F7: Pers | G7: Vracht | H7: Motor | I7: Obstakel / overig | J7: Fout pers | K7: Fout Vracht | L7: Totaal | M7: E-wagen plaats | N7: Invalidenplaats | O7: Gestalde fietsen | U7: =F7 -> Pers | V7: Vracht | W7: Motor | X7: Obstakel / overig | Y7: Fout pers | Z7: Fout Vracht
B8: =VLOOKUP(B3,Coordinaten!$A$2:$G$95,3,0)&", "&VLOOKUP(B3,Coordinaten!$A$2:$G$95,5,0) -> Carpool parking Veurne, Veurne | D8: =_xlfn.XLOOKUP($B$3,Bezetting_1!$A$2:$A$90,Bezetting_1!C$2:C$90,,0) -> 2023-10-10 | E8: =_xlfn.XLOOKUP($B$3,Bezetting_1!$A$2:$A$90,Bezetting_1!D$2:D$90,,0) -> 09:00 - 16:00u | F8: =_xlfn.XLOOKUP($B$3,Bezetting_1!$A$2:$A$90,Bezetting_1!E$2:E$90,,0) -> 21 | G8: =_xlfn.XLOOKUP($B$3,Bezetting_1!$A$2:$A$90,Bezetting_1!F$2:F$90,,0) -> 0 | H8: =_xlfn.XLOOKUP($B$3,Bezetting_1!$A$2:$A$90,Bezetting_1!G$2:G$90,,0) -> 0 | I8: =_xlfn.XLOOKUP($B$3,Bezetting_1!$A$2:$A$90,Bezetting_1!H$2:H$90,,0) -> 0 | J8: =_xlfn.XLOOKUP($B$3,Bezetting_1!$A$2:$A$90,Bezetting_1!I$2:I$90,,0) -> 0 | K8: =_xlfn.XLOOKUP($B$3,Bezetting_1!$A$2:$A$90,Bezetting_1!J$2:J$90,,0) -> 0 | L8: =_xlfn.XLOOKUP($B$3,Bezetting_1!$A$2:$A$90,Bezetting_1!K$2:K$90,,0) -> 21 | M8: =_xlfn.XLOOKUP($B$3,Bezetting_1!$A$2:$A$90,Bezetting_1!L$2:L$90,,0) -> 0 | N8: =_xlfn.XLOOKUP($B$3,Bezetting_1!$A$2:$A$90,Bezetting_1!M$2:M$90,,0) -> 0 | O8: =_xlfn.XLOOKUP($B$3,Bezetting_1!$A$2:$A$90,Bezetting_1!N$2:N$90,,0) -> 0 | Q8: =_xlfn.XLOOKUP($B$3,Bezetting_1!$A$2:$A$90,Bezetting_1!P$2:P$90,,0) -> 0 | S8: =D8 -> 2023-10-10 | T8: =E8 -> 09:00 - 16:00u | U8: =IF(F8=0,NA(),F8/$L8) -> 1 | V8: =IF(G8=0,NA(),G8/$L8) ->  | W8: =IF(H8=0,NA(),H8/$L8) -> 
B9: ="Nabij kruispunt: "&VLOOKUP(B3,Coordinaten!$A$2:$L$95,4,0) -> Nabij kruispunt: N39 / N8 | F9: =IF(F8=0,"-",F8/$L$8) -> 1 | G9: =IF(G8=0,"-",G8/$L$8) -> - | H9: - | I9: - | J9: - | K9: - | L9: 1 | Q9: =_xlfn.XLOOKUP($B$3,Bezetting_1!$A$2:$A$90,Bezetting_1!Q$2:Q$90,,0) -> 0 | S9: =D10 -> 2023-10-10 | T9: =E10 -> 19:00 - 02:00u | U9: =IF(F10=0,NA(),F10/$L10) -> 0.3076923077 | V9: =IF(G10=0,NA(),G10/$L10) ->  | X9: 0.6923076923
D10: =_xlfn.XLOOKUP($B$3,Bezetting_2!$A$2:$A$90,Bezetting_2!C$2:C$90,,0) -> 2023-10-10 | E10: =_xlfn.XLOOKUP($B$3,Bezetting_2!$A$2:$A$90,Bezetting_2!D$2:D$90,,0) -> 19:00 - 02:00u | F10: =_xlfn.XLOOKUP($B$3,Bezetting_2!$A$2:$A$90,Bezetting_2!E$2:E$90,,0) -> 4 | G10: =_xlfn.XLOOKUP($B$3,Bezetting_2!$A$2:$A$90,Bezetting_2!F$2:F$90,,0) -> 0 | H10: =_xlfn.XLOOKUP($B$3,Bezetting_2!$A$2:$A$90,Bezetting_2!G$2:G$90,,0) -> 0 | I10: =_xlfn.XLOOKUP($B$3,Bezetting_2!$A$2:$A$90,Bezetting_2!H$2:H$90,,0) -> 9 | J10: =_xlfn.XLOOKUP($B$3,Bezetting_2!$A$2:$A$90,Bezetting_2!I$2:I$90,,0) -> 0 | K10: =_xlfn.XLOOKUP($B$3,Bezetting_2!$A$2:$A$90,Bezetting_2!J$2:J$90,,0) -> 0 | L10: =_xlfn.XLOOKUP($B$3,Bezetting_2!$A$2:$A$90,Bezetting_2!K$2:K$90,,0) -> 13 | M10: =_xlfn.XLOOKUP($B$3,Bezetting_2!$A$2:$A$90,Bezetting_2!L$2:L$90,,0) -> 0 | N10: =_xlfn.XLOOKUP($B$3,Bezetting_2!$A$2:$A$90,Bezetting_2!M$2:M$90,,0) -> 0 | O10: =_xlfn.XLOOKUP($B$3,Bezetting_2!$A$2:$A$90,Bezetting_2!N$2:N$90,,0) -> 0 | P10: =_xlfn.XLOOKUP($B$3,Bezetting_2!$A$2:$A$90,Bezetting_2!O$2:O$90,,0) -> 0 | Q10: =_xlfn.XLOOKUP($B$3,Bezetting_2!$A$2:$A$90,Bezetting_2!P$2:P$90,,0) -> Overig: verkeersborden 'verboden te parkeren'
B11: Meting | F11: =IF(F10=0,"-",F10/$L$10) -> 0.3076923077 | G11: =IF(G10=0,"-",G10/$L$10) -> - | H11: - | I11: 0.6923076923 | J11: - | K11: - | L11: 1 | Q11: =_xlfn.XLOOKUP($B$3,Bezetting_2!$A$2:$A$90,Bezetting_2!Q$2:Q$90,,0) -> Fout: 1 fiets
B12: ="Meetperiode: "&TEXT(VLOOKUP(B3,Coordinaten!$A:$G,7,0),"dddd dd mmmm jjjj") -> Meetperiode: di 10 & do 12 oktober 2023
B13: Methodiek: Parkeerdrukmeting met waarnemers
B14: In opdracht van: Vlaamse overheid
B15: Uitgevoerd door: Dufec
D16: VERDELING NAAR CATEGORIE
B17: Locatie
B18: =IF(B4="","",HYPERLINK("http://www.googlemaps.com/?q="&B4,"Lat/Long: "&B4)) -> Lat/Long: 51.070372, 2.656499
P20: Legenda
Q21: Personenwagen
Q22: Vracht
Q23: Motor
Q24: Obstakel / overig
Q25: Fout personenwagen
Q26: Fout Vracht
B39: Toelichting
B40: Pers = personenwagens op daarvoor bestemde
B41: openbare plaatsen
B42: Vracht = vrachtwagens op daarvoor bestemde
B43: parkeerplaatsen (middel- en zwaar vrachtverkeer)
B44: Motor = geparkeerde motoren op openbare plaatsen
B45: Obstakel / overig = obstakels of overige voertuigen
B46: geparkeerd op openbare plaatsen
B47: Fout pers = personenwagens die fout geparkeerd staan
B48: Fout vracht = vrachtwagens die fout geparkeerd staan
B49: E-wagen = geparkeerde elektrisch voertuig bij een
B50: elektrisch oplaadpunt
B51: Invalide = personenwagens en motoren op voor
B52: invalide personen bestemde parkeerplaats
B53: Gestalde fietsen = alle gestalde fietsen op de
B54: daarvoor bestemde parkeerplaatsen

Sheet 58.Oudenburg
B2: PARKEERONDERZOEK | D2: CARPOOLPARKINGS EN P+R PARKINGS
B3: 58 | D3: =B8 & " - "& TEXT(VLOOKUP(B3,Coordinaten!$A$2:$G$95,7,0),"dddd dd mmmm jjjj") -> Carpool parking Oudenburg, Oudenburg - di 10 & do 12 oktober 2023
B4: =VLOOKUP(B3,Coordinaten!$A$2:$G$95,6,0) -> 51.200906, 3.007635
D5: BEZETTING | Q5: OPMERKINGEN
B7: Onderzoeksgebied | D7: Datum | E7: Geregistreerd tussen | F7: Pers | G7: Vracht | H7: Motor | I7: Obstakel / overig | J7: Fout pers | K7: Fout Vracht | L7: Totaal | M7: E-wagen plaats | N7: Invalidenplaats | O7: Gestalde fietsen | U7: =F7 -> Pers | V7: Vracht | W7: Motor | X7: Obstakel / overig | Y7: Fout pers | Z7: Fout Vracht
B8: =VLOOKUP(B3,Coordinaten!$A$2:$G$95,3,0)&", "&VLOOKUP(B3,Coordinaten!$A$2:$G$95,5,0) -> Carpool parking Oudenburg, Oudenburg | D8: =_xlfn.XLOOKUP($B$3,Bezetting_1!$A$2:$A$90,Bezetting_1!C$2:C$90,,0) -> 2023-10-10 | E8: =_xlfn.XLOOKUP($B$3,Bezetting_1!$A$2:$A$90,Bezetting_1!D$2:D$90,,0) -> 09:00 - 16:00u | F8: =_xlfn.XLOOKUP($B$3,Bezetting_1!$A$2:$A$90,Bezetting_1!E$2:E$90,,0) -> 17 | G8: =_xlfn.XLOOKUP($B$3,Bezetting_1!$A$2:$A$90,Bezetting_1!F$2:F$90,,0) -> 0 | H8: =_xlfn.XLOOKUP($B$3,Bezetting_1!$A$2:$A$90,Bezetting_1!G$2:G$90,,0) -> 0 | I8: =_xlfn.XLOOKUP($B$3,Bezetting_1!$A$2:$A$90,Bezetting_1!H$2:H$90,,0) -> 0 | J8: =_xlfn.XLOOKUP($B$3,Bezetting_1!$A$2:$A$90,Bezetting_1!I$2:I$90,,0) -> 0 | K8: =_xlfn.XLOOKUP($B$3,Bezetting_1!$A$2:$A$90,Bezetting_1!J$2:J$90,,0) -> 0 | L8: =_xlfn.XLOOKUP($B$3,Bezetting_1!$A$2:$A$90,Bezetting_1!K$2:K$90,,0) -> 17 | M8: =_xlfn.XLOOKUP($B$3,Bezetting_1!$A$2:$A$90,Bezetting_1!L$2:L$90,,0) -> 0 | N8: =_xlfn.XLOOKUP($B$3,Bezetting_1!$A$2:$A$90,Bezetting_1!M$2:M$90,,0) -> 1 | O8: =_xlfn.XLOOKUP($B$3,Bezetting_1!$A$2:$A$90,Bezetting_1!N$2:N$90,,0) -> 0 | Q8: =_xlfn.XLOOKUP($B$3,Bezetting_1!$A$2:$A$90,Bezetting_1!P$2:P$90,,0) -> 0 | S8: =D8 -> 2023-10-10 | T8: =E8 -> 09:00 - 16:00u | U8: =IF(F8=0,NA(),F8/$L8) -> 1 | V8: =IF(G8=0,NA(),G8/$L8) ->  | W8: =IF(H8=0,NA(),H8/$L8) -> 
B9: ="Nabij kruispunt: "&VLOOKUP(B3,Coordinaten!$A$2:$L$95,4,0) -> Nabij kruispunt: N358 / A10 | F9: =IF(F8=0,"-",F8/$L$8) -> 1 | G9: =IF(G8=0,"-",G8/$L$8) -> - | H9: - | I9: - | J9: - | K9: - | L9: 1 | Q9: =_xlfn.XLOOKUP($B$3,Bezetting_1!$A$2:$A$90,Bezetting_1!Q$2:Q$90,,0) -> 0 | S9: =D10 -> 2023-10-10 | T9: =E10 -> 19:00 - 02:00u | U9: =IF(F10=0,NA(),F10/$L10) -> 1 | V9: =IF(G10=0,NA(),G10/$L10) -> 
D10: =_xlfn.XLOOKUP($B$3,Bezetting_2!$A$2:$A$90,Bezetting_2!C$2:C$90,,0) -> 2023-10-10 | E10: =_xlfn.XLOOKUP($B$3,Bezetting_2!$A$2:$A$90,Bezetting_2!D$2:D$90,,0) -> 19:00 - 02:00u | F10: =_xlfn.XLOOKUP($B$3,Bezetting_2!$A$2:$A$90,Bezetting_2!E$2:E$90,,0) -> 2 | G10: =_xlfn.XLOOKUP($B$3,Bezetting_2!$A$2:$A$90,Bezetting_2!F$2:F$90,,0) -> 0 | H10: =_xlfn.XLOOKUP($B$3,Bezetting_2!$A$2:$A$90,Bezetting_2!G$2:G$90,,0) -> 0 | I10: =_xlfn.XLOOKUP($B$3,Bezetting_2!$A$2:$A$90,Bezetting_2!H$2:H$90,,0) -> 0 | J10: =_xlfn.XLOOKUP($B$3,Bezetting_2!$A$2:$A$90,Bezetting_2!I$2:I$90,,0) -> 0 | K10: =_xlfn.XLOOKUP($B$3,Bezetting_2!$A$2:$A$90,Bezetting_2!J$2:J$90,,0) -> 0 | L10: =_xlfn.XLOOKUP($B$3,Bezetting_2!$A$2:$A$90,Bezetting_2!K$2:K$90,,0) -> 2 | M10: =_xlfn.XLOOKUP($B$3,Bezetting_2!$A$2:$A$90,Bezetting_2!L$2:L$90,,0) -> 0 | N10: =_xlfn.XLOOKUP($B$3,Bezetting_2!$A$2:$A$90,Bezetting_2!M$2:M$90,,0) -> 0 | O10: =_xlfn.XLOOKUP($B$3,Bezetting_2!$A$2:$A$90,Bezetting_2!N$2:N$90,,0) -> 0 | P10: =_xlfn.XLOOKUP($B$3,Bezetting_2!$A$2:$A$90,Bezetting_2!O$2:O$90,,0) -> 0 | Q10: =_xlfn.XLOOKUP($B$3,Bezetting_2!$A$2:$A$90,Bezetting_2!P$2:P$90,,0) -> 0
B11: Meting | F11: =IF(F10=0,"-",F10/$L$10) -> 1 | G11: =IF(G10=0,"-",G10/$L$10) -> - | H11: - | I11: - | J11: - | K11: - | L11: 1 | Q11: =_xlfn.XLOOKUP($B$3,Bezetting_2!$A$2:$A$90,Bezetting_2!Q$2:Q$90,,0) -> 0
B12: ="Meetperiode: "&TEXT(VLOOKUP(B3,Coordinaten!$A:$G,7,0),"dddd dd mmmm jjjj") -> Meetperiode: di 10 & do 12 oktober 2023
B13: Methodiek: Parkeerdrukmeting met waarnemers
B14: In opdracht van: Vlaamse overheid
B15: Uitgevoerd door: Dufec
D16: VERDELING NAAR CATEGORIE
B17: Locatie
B18: =IF(B4="","",HYPERLINK("http://www.googlemaps.com/?q="&B4,"Lat/Long: "&B4)) -> Lat/Long: 51.200906, 3.007635
P20: Legenda
Q21: Personenwagen
Q22: Vracht
Q23: Motor
Q24: Obstakel / overig
Q25: Fout personenwagen
Q26: Fout Vracht
B39: Toelichting
B40: Pers = personenwagens op daarvoor bestemde
B41: openbare plaatsen
B42: Vracht = vrachtwagens op daarvoor bestemde
B43: parkeerplaatsen (middel- en zwaar vrachtverkeer)
B44: Motor = geparkeerde motoren op openbare plaatsen
B45: Obstakel / overig = obstakels of overige voertuigen
B46: geparkeerd op openbare plaatsen
B47: Fout pers = personenwagens die fout geparkeerd staan
B48: Fout vracht = vrachtwagens die fout geparkeerd staan
B49: E-wagen = geparkeerde elektrisch voertuig bij een
B50: elektrisch oplaadpunt
B51: Invalide = personenwagens en motoren op voor
B52: invalide personen bestemde parkeerplaats
B53: Gestalde fietsen = alle gestalde fietsen op de
B54: daarvoor bestemde parkeerplaatsen

Sheet 59.Middelkerke
B2: PARKEERONDERZOEK | D2: CARPOOLPARKINGS EN P+R PARKINGS
B3: 59 | D3: =B8 & " - "& TEXT(VLOOKUP(B3,Coordinaten!$A$2:$G$95,7,0),"dddd dd mmmm jjjj") -> Carpool parking Middelkerke, Middelkerke - di 10 & do 12 oktober 2023
B4: =VLOOKUP(B3,Coordinaten!$A$2:$G$95,6,0) -> 51.139750, 2.862593
D5: BEZETTING | Q5: OPMERKINGEN
B7: Onderzoeksgebied | D7: Datum | E7: Geregistreerd tussen | F7: Pers | G7: Vracht | H7: Motor | I7: Obstakel / overig | J7: Fout pers | K7: Fout Vracht | L7: Totaal | M7: E-wagen plaats | N7: Invalidenplaats | O7: Gestalde fietsen | U7: =F7 -> Pers | V7: Vracht | W7: Motor | X7: Obstakel / overig | Y7: Fout pers | Z7: Fout Vracht
B8: =VLOOKUP(B3,Coordinaten!$A$2:$G$95,3,0)&", "&VLOOKUP(B3,Coordinaten!$A$2:$G$95,5,0) -> Carpool parking Middelkerke, Middelkerke | D8: =_xlfn.XLOOKUP($B$3,Bezetting_1!$A$2:$A$90,Bezetting_1!C$2:C$90,,0) -> 2023-10-10 | E8: =_xlfn.XLOOKUP($B$3,Bezetting_1!$A$2:$A$90,Bezetting_1!D$2:D$90,,0) -> 09:00 - 16:00u | F8: =_xlfn.XLOOKUP($B$3,Bezetting_1!$A$2:$A$90,Bezetting_1!E$2:E$90,,0) -> 11 | G8: =_xlfn.XLOOKUP($B$3,Bezetting_1!$A$2:$A$90,Bezetting_1!F$2:F$90,,0) -> 0 | H8: =_xlfn.XLOOKUP($B$3,Bezetting_1!$A$2:$A$90,Bezetting_1!G$2:G$90,,0) -> 0 | I8: =_xlfn.XLOOKUP($B$3,Bezetting_1!$A$2:$A$90,Bezetting_1!H$2:H$90,,0) -> 0 | J8: =_xlfn.XLOOKUP($B$3,Bezetting_1!$A$2:$A$90,Bezetting_1!I$2:I$90,,0) -> 0 | K8: =_xlfn.XLOOKUP($B$3,Bezetting_1!$A$2:$A$90,Bezetting_1!J$2:J$90,,0) -> 0 | L8: =_xlfn.XLOOKUP($B$3,Bezetting_1!$A$2:$A$90,Bezetting_1!K$2:K$90,,0) -> 11 | M8: =_xlfn.XLOOKUP($B$3,Bezetting_1!$A$2:$A$90,Bezetting_1!L$2:L$90,,0) -> 0 | N8: =_xlfn.XLOOKUP($B$3,Bezetting_1!$A$2:$A$90,Bezetting_1!M$2:M$90,,0) -> 0 | O8: =_xlfn.XLOOKUP($B$3,Bezetting_1!$A$2:$A$90,Bezetting_1!N$2:N$90,,0) -> 1 | Q8: =_xlfn.XLOOKUP($B$3,Bezetting_1!$A$2:$A$90,Bezetting_1!P$2:P$90,,0) -> 0 | S8: =D8 -> 2023-10-10 | T8: =E8 -> 09:00 - 16:00u | U8: =IF(F8=0,NA(),F8/$L8) -> 1 | V8: =IF(G8=0,NA(),G8/$L8) ->  | W8: =IF(H8=0,NA(),H8/$L8) -> 
B9: ="Nabij kruispunt: "&VLOOKUP(B3,Coordinaten!$A$2:$L$95,4,0) -> Nabij kruispunt: N369 / A18 | F9: =IF(F8=0,"-",F8/$L$8) -> 1 | G9: =IF(G8=0,"-",G8/$L$8) -> - | H9: - | I9: - | J9: - | K9: - | L9: 1 | Q9: =_xlfn.XLOOKUP($B$3,Bezetting_1!$A$2:$A$90,Bezetting_1!Q$2:Q$90,,0) -> 0 | S9: =D10 -> 2023-10-10 | T9: =E10 -> 19:00 - 02:00u | U9: =IF(F10=0,NA(),F10/$L10) -> 0.8333333333 | V9: =IF(G10=0,NA(),G10/$L10) ->  | Y9: 0.1666666667
D10: =_xlfn.XLOOKUP($B$3,Bezetting_2!$A$2:$A$90,Bezetting_2!C$2:C$90,,0) -> 2023-10-10 | E10: =_xlfn.XLOOKUP($B$3,Bezetting_2!$A$2:$A$90,Bezetting_2!D$2:D$90,,0) -> 19:00 - 02:00u | F10: =_xlfn.XLOOKUP($B$3,Bezetting_2!$A$2:$A$90,Bezetting_2!E$2:E$90,,0) -> 5 | G10: =_xlfn.XLOOKUP($B$3,Bezetting_2!$A$2:$A$90,Bezetting_2!F$2:F$90,,0) -> 0 | H10: =_xlfn.XLOOKUP($B$3,Bezetting_2!$A$2:$A$90,Bezetting_2!G$2:G$90,,0) -> 0 | I10: =_xlfn.XLOOKUP($B$3,Bezetting_2!$A$2:$A$90,Bezetting_2!H$2:H$90,,0) -> 0 | J10: =_xlfn.XLOOKUP($B$3,Bezetting_2!$A$2:$A$90,Bezetting_2!I$2:I$90,,0) -> 1 | K10: =_xlfn.XLOOKUP($B$3,Bezetting_2!$A$2:$A$90,Bezetting_2!J$2:J$90,,0) -> 0 | L10: =_xlfn.XLOOKUP($B$3,Bezetting_2!$A$2:$A$90,Bezetting_2!K$2:K$90,,0) -> 6 | M10: =_xlfn.XLOOKUP($B$3,Bezetting_2!$A$2:$A$90,Bezetting_2!L$2:L$90,,0) -> 0 | N10: =_xlfn.XLOOKUP($B$3,Bezetting_2!$A$2:$A$90,Bezetting_2!M$2:M$90,,0) -> 0 | O10: =_xlfn.XLOOKUP($B$3,Bezetting_2!$A$2:$A$90,Bezetting_2!N$2:N$90,,0) -> 1 | P10: =_xlfn.XLOOKUP($B$3,Bezetting_2!$A$2:$A$90,Bezetting_2!O$2:O$90,,0) -> 0 | Q10: =_xlfn.XLOOKUP($B$3,Bezetting_2!$A$2:$A$90,Bezetting_2!P$2:P$90,,0) -> 0
B11: Meting | F11: =IF(F10=0,"-",F10/$L$10) -> 0.8333333333 | G11: =IF(G10=0,"-",G10/$L$10) -> - | H11: - | I11: - | J11: 0.1666666667 | K11: - | L11: 1 | Q11: =_xlfn.XLOOKUP($B$3,Bezetting_2!$A$2:$A$90,Bezetting_2!Q$2:Q$90,,0) -> 0
B12: ="Meetperiode: "&TEXT(VLOOKUP(B3,Coordinaten!$A:$G,7,0),"dddd dd mmmm jjjj") -> Meetperiode: di 10 & do 12 oktober 2023
B13: Methodiek: Parkeerdrukmeting met waarnemers
B14: In opdracht van: Vlaamse overheid
B15: Uitgevoerd door: Dufec
D16: VERDELING NAAR CATEGORIE
B17: Locatie
B18: =IF(B4="","",HYPERLINK("http://www.googlemaps.com/?q="&B4,"Lat/Long: "&B4)) -> Lat/Long: 51.139750, 2.862593
P20: Legenda
Q21: Personenwagen
Q22: Vracht
Q23: Motor
Q24: Obstakel / overig
Q25: Fout personenwagen
Q26: Fout Vracht
B39: Toelichting
B40: Pers = personenwagens op daarvoor bestemde
B41: openbare plaatsen
B42: Vracht = vrachtwagens op daarvoor bestemde
B43: parkeerplaatsen (middel- en zwaar vrachtverkeer)
B44: Motor = geparkeerde motoren op openbare plaatsen
B45: Obstakel / overig = obstakels of overige voertuigen
B46: geparkeerd op openbare plaatsen
B47: Fout pers = personenwagens die fout geparkeerd staan
B48: Fout vracht = vrachtwagens die fout geparkeerd staan
B49: E-wagen = geparkeerde elektrisch voertuig bij een
B50: elektrisch oplaadpunt
B51: Invalide = personenwagens en motoren op voor
B52: invalide personen bestemde parkeerplaats
B53: Gestalde fietsen = alle gestalde fietsen op de
B54: daarvoor bestemde parkeerplaatsen

Sheet 60.Loenhout
B2: PARKEERONDERZOEK | D2: CARPOOLPARKINGS EN P+R PARKINGS
B3: 60 | D3: =B8 & " - "& TEXT(VLOOKUP(B3,Coordinaten!$A$2:$G$95,7,0),"dddd dd mmmm jjjj") -> P+R parking Loenhout, Wuustwezel - di 10 & do 12 oktober 2023
B4: =VLOOKUP(B3,Coordinaten!$A$2:$G$95,6,0) -> 51.397419, 4.689008
D5: BEZETTING | Q5: OPMERKINGEN
B7: Onderzoeksgebied | D7: Datum | E7: Geregistreerd tussen | F7: Pers | G7: Vracht | H7: Motor | I7: Obstakel / overig | J7: Fout pers | K7: Fout Vracht | L7: Totaal | M7: E-wagen plaats | N7: Invalidenplaats | O7: Gestalde fietsen | U7: =F7 -> Pers | V7: Vracht | W7: Motor | X7: Obstakel / overig | Y7: Fout pers | Z7: Fout Vracht
B8: =VLOOKUP(B3,Coordinaten!$A$2:$G$95,3,0)&", "&VLOOKUP(B3,Coordinaten!$A$2:$G$95,5,0) -> P+R parking Loenhout, Wuustwezel | D8: =_xlfn.XLOOKUP($B$3,Bezetting_1!$A$2:$A$90,Bezetting_1!C$2:C$90,,0) -> 2023-10-10 | E8: =_xlfn.XLOOKUP($B$3,Bezetting_1!$A$2:$A$90,Bezetting_1!D$2:D$90,,0) -> 09:00 - 16:00u | F8: =_xlfn.XLOOKUP($B$3,Bezetting_1!$A$2:$A$90,Bezetting_1!E$2:E$90,,0) -> 21 | G8: =_xlfn.XLOOKUP($B$3,Bezetting_1!$A$2:$A$90,Bezetting_1!F$2:F$90,,0) -> 0 | H8: =_xlfn.XLOOKUP($B$3,Bezetting_1!$A$2:$A$90,Bezetting_1!G$2:G$90,,0) -> 0 | I8: =_xlfn.XLOOKUP($B$3,Bezetting_1!$A$2:$A$90,Bezetting_1!H$2:H$90,,0) -> 0 | J8: =_xlfn.XLOOKUP($B$3,Bezetting_1!$A$2:$A$90,Bezetting_1!I$2:I$90,,0) -> 0 | K8: =_xlfn.XLOOKUP($B$3,Bezetting_1!$A$2:$A$90,Bezetting_1!J$2:J$90,,0) -> 0 | L8: =_xlfn.XLOOKUP($B$3,Bezetting_1!$A$2:$A$90,Bezetting_1!K$2:K$90,,0) -> 21 | M8: =_xlfn.XLOOKUP($B$3,Bezetting_1!$A$2:$A$90,Bezetting_1!L$2:L$90,,0) -> 1 | N8: =_xlfn.XLOOKUP($B$3,Bezetting_1!$A$2:$A$90,Bezetting_1!M$2:M$90,,0) -> 0 | O8: =_xlfn.XLOOKUP($B$3,Bezetting_1!$A$2:$A$90,Bezetting_1!N$2:N$90,,0) -> 0 | Q8: =_xlfn.XLOOKUP($B$3,Bezetting_1!$A$2:$A$90,Bezetting_1!P$2:P$90,,0) -> 0 | S8: =D8 -> 2023-10-10 | T8: =E8 -> 09:00 - 16:00u | U8: =IF(F8=0,NA(),F8/$L8) -> 1 | V8: =IF(G8=0,NA(),G8/$L8) ->  | W8: =IF(H8=0,NA(),H8/$L8) -> 
B9: ="Nabij kruispunt: "&VLOOKUP(B3,Coordinaten!$A$2:$L$95,4,0) -> Nabij kruispunt: N144 / Hollandseweg | F9: =IF(F8=0,"-",F8/$L$8) -> 1 | G9: =IF(G8=0,"-",G8/$L$8) -> - | H9: - | I9: - | J9: - | K9: - | L9: 1 | Q9: =_xlfn.XLOOKUP($B$3,Bezetting_1!$A$2:$A$90,Bezetting_1!Q$2:Q$90,,0) -> 0 | S9: =D10 -> 2023-10-10 | T9: =E10 -> 19:00 - 02:00u | U9: =IF(F10=0,NA(),F10/$L10) -> 1 | V9: =IF(G10=0,NA(),G10/$L10) -> 
D10: =_xlfn.XLOOKUP($B$3,Bezetting_2!$A$2:$A$90,Bezetting_2!C$2:C$90,,0) -> 2023-10-10 | E10: =_xlfn.XLOOKUP($B$3,Bezetting_2!$A$2:$A$90,Bezetting_2!D$2:D$90,,0) -> 19:00 - 02:00u | F10: =_xlfn.XLOOKUP($B$3,Bezetting_2!$A$2:$A$90,Bezetting_2!E$2:E$90,,0) -> 28 | G10: =_xlfn.XLOOKUP($B$3,Bezetting_2!$A$2:$A$90,Bezetting_2!F$2:F$90,,0) -> 0 | H10: =_xlfn.XLOOKUP($B$3,Bezetting_2!$A$2:$A$90,Bezetting_2!G$2:G$90,,0) -> 0 | I10: =_xlfn.XLOOKUP($B$3,Bezetting_2!$A$2:$A$90,Bezetting_2!H$2:H$90,,0) -> 0 | J10: =_xlfn.XLOOKUP($B$3,Bezetting_2!$A$2:$A$90,Bezetting_2!I$2:I$90,,0) -> 0 | K10: =_xlfn.XLOOKUP($B$3,Bezetting_2!$A$2:$A$90,Bezetting_2!J$2:J$90,,0) -> 0 | L10: =_xlfn.XLOOKUP($B$3,Bezetting_2!$A$2:$A$90,Bezetting_2!K$2:K$90,,0) -> 28 | M10: =_xlfn.XLOOKUP($B$3,Bezetting_2!$A$2:$A$90,Bezetting_2!L$2:L$90,,0) -> 0 | N10: =_xlfn.XLOOKUP($B$3,Bezetting_2!$A$2:$A$90,Bezetting_2!M$2:M$90,,0) -> 0 | O10: =_xlfn.XLOOKUP($B$3,Bezetting_2!$A$2:$A$90,Bezetting_2!N$2:N$90,,0) -> 0 | P10: =_xlfn.XLOOKUP($B$3,Bezetting_2!$A$2:$A$90,Bezetting_2!O$2:O$90,,0) -> 0 | Q10: =_xlfn.XLOOKUP($B$3,Bezetting_2!$A$2:$A$90,Bezetting_2!P$2:P$90,,0) -> 0
B11: Meting | F11: =IF(F10=0,"-",F10/$L$10) -> 1 | G11: =IF(G10=0,"-",G10/$L$10) -> - | H11: - | I11: - | J11: - | K11: - | L11: 1 | Q11: =_xlfn.XLOOKUP($B$3,Bezetting_2!$A$2:$A$90,Bezetting_2!Q$2:Q$90,,0) -> 0
B12: ="Meetperiode: "&TEXT(VLOOKUP(B3,Coordinaten!$A:$G,7,0),"dddd dd mmmm jjjj") -> Meetperiode: di 10 & do 12 oktober 2023
B13: Methodiek: Parkeerdrukmeting met waarnemers
B14: In opdracht van: Vlaamse overheid
B15: Uitgevoerd door: Dufec
D16: VERDELING NAAR CATEGORIE
B17: Locatie
B18: =IF(B4="","",HYPERLINK("http://www.googlemaps.com/?q="&B4,"Lat/Long: "&B4)) -> Lat/Long: 51.397419, 4.689008
P20: Legenda
Q21: Personenwagen
Q22: Vracht
Q23: Motor
Q24: Obstakel / overig
Q25: Fout personenwagen
Q26: Fout Vracht
B39: Toelichting
B40: Pers = personenwagens op daarvoor bestemde
B41: openbare plaatsen
B42: Vracht = vrachtwagens op daarvoor bestemde
B43: parkeerplaatsen (middel- en zwaar vrachtverkeer)
B44: Motor = geparkeerde motoren op openbare plaatsen
B45: Obstakel / overig = obstakels of overige voertuigen
B46: geparkeerd op openbare plaatsen
B47: Fout pers = personenwagens die fout geparkeerd staan
B48: Fout vracht = vrachtwagens die fout geparkeerd staan
B49: E-wagen = geparkeerde elektrisch voertuig bij een
B50: elektrisch oplaadpunt
B51: Invalide = personenwagens en motoren op voor
B52: invalide personen bestemde parkeerplaats
B53: Gestalde fietsen = alle gestalde fietsen op de
B54: daarvoor bestemde parkeerplaatsen

Sheet 61.Meise
B2: PARKEERONDERZOEK | D2: CARPOOLPARKINGS EN P+R PARKINGS
B3: 61 | D3: =B8 & " - "& TEXT(VLOOKUP(B3,Coordinaten!$A$2:$G$95,7,0),"dddd dd mmmm jjjj") -> P+R parking Meise, Meise - di 10 & do 12 oktober 2023
B4: =VLOOKUP(B3,Coordinaten!$A$2:$G$95,6,0) -> 50.934686, 4.330993
D5: BEZETTING | Q5: OPMERKINGEN
B7: Onderzoeksgebied | D7: Datum | E7: Geregistreerd tussen | F7: Pers | G7: Vracht | H7: Motor | I7: Obstakel / overig | J7: Fout pers | K7: Fout Vracht | L7: Totaal | M7: E-wagen plaats | N7: Invalidenplaats | O7: Gestalde fietsen | U7: =F7 -> Pers | V7: Vracht | W7: Motor | X7: Obstakel / overig | Y7: Fout pers | Z7: Fout Vracht
B8: =VLOOKUP(B3,Coordinaten!$A$2:$G$95,3,0)&", "&VLOOKUP(B3,Coordinaten!$A$2:$G$95,5,0) -> P+R parking Meise, Meise | D8: =_xlfn.XLOOKUP($B$3,Bezetting_1!$A$2:$A$90,Bezetting_1!C$2:C$90,,0) -> 2023-10-12 | E8: =_xlfn.XLOOKUP($B$3,Bezetting_1!$A$2:$A$90,Bezetting_1!D$2:D$90,,0) -> 09:00 - 16:00u | F8: =_xlfn.XLOOKUP($B$3,Bezetting_1!$A$2:$A$90,Bezetting_1!E$2:E$90,,0) -> 40 | G8: =_xlfn.XLOOKUP($B$3,Bezetting_1!$A$2:$A$90,Bezetting_1!F$2:F$90,,0) -> 0 | H8: =_xlfn.XLOOKUP($B$3,Bezetting_1!$A$2:$A$90,Bezetting_1!G$2:G$90,,0) -> 0 | I8: =_xlfn.XLOOKUP($B$3,Bezetting_1!$A$2:$A$90,Bezetting_1!H$2:H$90,,0) -> 12 | J8: =_xlfn.XLOOKUP($B$3,Bezetting_1!$A$2:$A$90,Bezetting_1!I$2:I$90,,0) -> 0 | K8: =_xlfn.XLOOKUP($B$3,Bezetting_1!$A$2:$A$90,Bezetting_1!J$2:J$90,,0) -> 0 | L8: =_xlfn.XLOOKUP($B$3,Bezetting_1!$A$2:$A$90,Bezetting_1!K$2:K$90,,0) -> 52 | M8: =_xlfn.XLOOKUP($B$3,Bezetting_1!$A$2:$A$90,Bezetting_1!L$2:L$90,,0) -> 0 | N8: =_xlfn.XLOOKUP($B$3,Bezetting_1!$A$2:$A$90,Bezetting_1!M$2:M$90,,0) -> 0 | O8: =_xlfn.XLOOKUP($B$3,Bezetting_1!$A$2:$A$90,Bezetting_1!N$2:N$90,,0) -> 0 | Q8: =_xlfn.XLOOKUP($B$3,Bezetting_1!$A$2:$A$90,Bezetting_1!P$2:P$90,,0) -> Overig: 1x aanhanger 9x bus, 2x touringcar | S8: =D8 -> 2023-10-12 | T8: =E8 -> 09:00 - 16:00u | U8: =IF(F8=0,NA(),F8/$L8) -> 0.7692307692 | V8: =IF(G8=0,NA(),G8/$L8) ->  | W8: =IF(H8=0,NA(),H8/$L8) ->  | X8: 0.2307692308
B9: ="Nabij kruispunt: "&VLOOKUP(B3,Coordinaten!$A$2:$L$95,4,0) -> Nabij kruispunt: N227 / A12 | F9: =IF(F8=0,"-",F8/$L$8) -> 0.7692307692 | G9: =IF(G8=0,"-",G8/$L$8) -> - | H9: - | I9: 0.2307692308 | J9: - | K9: - | L9: 1 | Q9: =_xlfn.XLOOKUP($B$3,Bezetting_1!$A$2:$A$90,Bezetting_1!Q$2:Q$90,,0) -> 0 | S9: =D10 -> 2023-10-12 | T9: =E10 -> 19:00 - 02:00u | U9: =IF(F10=0,NA(),F10/$L10) -> 0.3818181818 | V9: =IF(G10=0,NA(),G10/$L10) -> 0.1818181818 | X9: 0.01818181818 | Y9: 0.03636363636 | Z9: 0.3818181818
D10: =_xlfn.XLOOKUP($B$3,Bezetting_2!$A$2:$A$90,Bezetting_2!C$2:C$90,,0) -> 2023-10-12 | E10: =_xlfn.XLOOKUP($B$3,Bezetting_2!$A$2:$A$90,Bezetting_2!D$2:D$90,,0) -> 19:00 - 02:00u | F10: =_xlfn.XLOOKUP($B$3,Bezetting_2!$A$2:$A$90,Bezetting_2!E$2:E$90,,0) -> 21 | G10: =_xlfn.XLOOKUP($B$3,Bezetting_2!$A$2:$A$90,Bezetting_2!F$2:F$90,,0) -> 10 | H10: =_xlfn.XLOOKUP($B$3,Bezetting_2!$A$2:$A$90,Bezetting_2!G$2:G$90,,0) -> 0 | I10: =_xlfn.XLOOKUP($B$3,Bezetting_2!$A$2:$A$90,Bezetting_2!H$2:H$90,,0) -> 1 | J10: =_xlfn.XLOOKUP($B$3,Bezetting_2!$A$2:$A$90,Bezetting_2!I$2:I$90,,0) -> 2 | K10: =_xlfn.XLOOKUP($B$3,Bezetting_2!$A$2:$A$90,Bezetting_2!J$2:J$90,,0) -> 21 | L10: =_xlfn.XLOOKUP($B$3,Bezetting_2!$A$2:$A$90,Bezetting_2!K$2:K$90,,0) -> 55 | M10: =_xlfn.XLOOKUP($B$3,Bezetting_2!$A$2:$A$90,Bezetting_2!L$2:L$90,,0) -> 0 | N10: =_xlfn.XLOOKUP($B$3,Bezetting_2!$A$2:$A$90,Bezetting_2!M$2:M$90,,0) -> 0 | O10: =_xlfn.XLOOKUP($B$3,Bezetting_2!$A$2:$A$90,Bezetting_2!N$2:N$90,,0) -> 0 | P10: =_xlfn.XLOOKUP($B$3,Bezetting_2!$A$2:$A$90,Bezetting_2!O$2:O$90,,0) -> 0 | Q10: =_xlfn.XLOOKUP($B$3,Bezetting_2!$A$2:$A$90,Bezetting_2!P$2:P$90,,0) -> Overig: 1x aanhanger
B11: Meting | F11: =IF(F10=0,"-",F10/$L$10) -> 0.3818181818 | G11: =IF(G10=0,"-",G10/$L$10) -> 0.1818181818 | H11: - | I11: 0.01818181818 | J11: 0.03636363636 | K11: 0.3818181818 | L11: 1 | Q11: =_xlfn.XLOOKUP($B$3,Bezetting_2!$A$2:$A$90,Bezetting_2!Q$2:Q$90,,0) -> 0
B12: ="Meetperiode: "&TEXT(VLOOKUP(B3,Coordinaten!$A:$G,7,0),"dddd dd mmmm jjjj") -> Meetperiode: di 10 & do 12 oktober 2023
B13: Methodiek: Parkeerdrukmeting met waarnemers
B14: In opdracht van: Vlaamse overheid
B15: Uitgevoerd door: Dufec
D16: VERDELING NAAR CATEGORIE
B17: Locatie
B18: =IF(B4="","",HYPERLINK("http://www.googlemaps.com/?q="&B4,"Lat/Long: "&B4)) -> Lat/Long: 50.934686, 4.330993
P20: Legenda
Q21: Personenwagen
Q22: Vracht
Q23: Motor
Q24: Obstakel / overig
Q25: Fout personenwagen
Q26: Fout Vracht
B39: Toelichting
B40: Pers = personenwagens op daarvoor bestemde
B41: openbare plaatsen
B42: Vracht = vrachtwagens op daarvoor bestemde
B43: parkeerplaatsen (middel- en zwaar vrachtverkeer)
B44: Motor = geparkeerde motoren op openbare plaatsen
B45: Obstakel / overig = obstakels of overige voertuigen
B46: geparkeerd op openbare plaatsen
B47: Fout pers = personenwagens die fout geparkeerd staan
B48: Fout vracht = vrachtwagens die fout geparkeerd staan
B49: E-wagen = geparkeerde elektrisch voertuig bij een
B50: elektrisch oplaadpunt
B51: Invalide = personenwagens en motoren op voor
B52: invalide personen bestemde parkeerplaats
B53: Gestalde fietsen = alle gestalde fietsen op de
B54: daarvoor bestemde parkeerplaatsen

Sheet 62.Nieuwpoort
B2: PARKEERONDERZOEK | D2: CARPOOLPARKINGS EN P+R PARKINGS
B3: 62 | D3: =B8 & " - "& TEXT(VLOOKUP(B3,Coordinaten!$A$2:$G$95,7,0),"dddd dd mmmm jjjj") -> Carpool parking Nieuwpoort, Nieuwpoort - di 10 & do 12 oktober 2023
B4: =VLOOKUP(B3,Coordinaten!$A$2:$G$95,6,0) -> 51.109593, 2.757978
D5: BEZETTING | Q5: OPMERKINGEN
B7: Onderzoeksgebied | D7: Datum | E7: Geregistreerd tussen | F7: Pers | G7: Vracht | H7: Motor | I7: Obstakel / overig | J7: Fout pers | K7: Fout Vracht | L7: Totaal | M7: E-wagen plaats | N7: Invalidenplaats | O7: Gestalde fietsen | U7: =F7 -> Pers | V7: Vracht | W7: Motor | X7: Obstakel / overig | Y7: Fout pers | Z7: Fout Vracht
B8: =VLOOKUP(B3,Coordinaten!$A$2:$G$95,3,0)&", "&VLOOKUP(B3,Coordinaten!$A$2:$G$95,5,0) -> Carpool parking Nieuwpoort, Nieuwpoort | D8: =_xlfn.XLOOKUP($B$3,Bezetting_1!$A$2:$A$90,Bezetting_1!C$2:C$90,,0) -> 2023-10-10 | E8: =_xlfn.XLOOKUP($B$3,Bezetting_1!$A$2:$A$90,Bezetting_1!D$2:D$90,,0) -> 09:00 - 16:00u | F8: =_xlfn.XLOOKUP($B$3,Bezetting_1!$A$2:$A$90,Bezetting_1!E$2:E$90,,0) -> 19 | G8: =_xlfn.XLOOKUP($B$3,Bezetting_1!$A$2:$A$90,Bezetting_1!F$2:F$90,,0) -> 3 | H8: =_xlfn.XLOOKUP($B$3,Bezetting_1!$A$2:$A$90,Bezetting_1!G$2:G$90,,0) -> 0 | I8: =_xlfn.XLOOKUP($B$3,Bezetting_1!$A$2:$A$90,Bezetting_1!H$2:H$90,,0) -> 0 | J8: =_xlfn.XLOOKUP($B$3,Bezetting_1!$A$2:$A$90,Bezetting_1!I$2:I$90,,0) -> 1 | K8: =_xlfn.XLOOKUP($B$3,Bezetting_1!$A$2:$A$90,Bezetting_1!J$2:J$90,,0) -> 0 | L8: =_xlfn.XLOOKUP($B$3,Bezetting_1!$A$2:$A$90,Bezetting_1!K$2:K$90,,0) -> 23 | M8: =_xlfn.XLOOKUP($B$3,Bezetting_1!$A$2:$A$90,Bezetting_1!L$2:L$90,,0) -> 0 | N8: =_xlfn.XLOOKUP($B$3,Bezetting_1!$A$2:$A$90,Bezetting_1!M$2:M$90,,0) -> 0 | O8: =_xlfn.XLOOKUP($B$3,Bezetting_1!$A$2:$A$90,Bezetting_1!N$2:N$90,,0) -> 0 | Q8: =_xlfn.XLOOKUP($B$3,Bezetting_1!$A$2:$A$90,Bezetting_1!P$2:P$90,,0) -> 0 | S8: =D8 -> 2023-10-10 | T8: =E8 -> 09:00 - 16:00u | U8: =IF(F8=0,NA(),F8/$L8) -> 0.8260869565 | V8: =IF(G8=0,NA(),G8/$L8) -> 0.1304347826 | W8: =IF(H8=0,NA(),H8/$L8) ->  | Y8: 0.04347826087
B9: ="Nabij kruispunt: "&VLOOKUP(B3,Coordinaten!$A$2:$L$95,4,0) -> Nabij kruispunt: N355 / A18 | F9: =IF(F8=0,"-",F8/$L$8) -> 0.8260869565 | G9: =IF(G8=0,"-",G8/$L$8) -> 0.1304347826 | H9: - | I9: - | J9: 0.04347826087 | K9: - | L9: 1 | Q9: =_xlfn.XLOOKUP($B$3,Bezetting_1!$A$2:$A$90,Bezetting_1!Q$2:Q$90,,0) -> 0 | S9: =D10 -> 2023-10-10 | T9: =E10 -> 19:00 - 02:00u | U9: =IF(F10=0,NA(),F10/$L10) -> 0.6666666667 | V9: =IF(G10=0,NA(),G10/$L10) -> 0.1111111111 | X9: 0.2222222222
D10: =_xlfn.XLOOKUP($B$3,Bezetting_2!$A$2:$A$90,Bezetting_2!C$2:C$90,,0) -> 2023-10-10 | E10: =_xlfn.XLOOKUP($B$3,Bezetting_2!$A$2:$A$90,Bezetting_2!D$2:D$90,,0) -> 19:00 - 02:00u | F10: =_xlfn.XLOOKUP($B$3,Bezetting_2!$A$2:$A$90,Bezetting_2!E$2:E$90,,0) -> 6 | G10: =_xlfn.XLOOKUP($B$3,Bezetting_2!$A$2:$A$90,Bezetting_2!F$2:F$90,,0) -> 1 | H10: =_xlfn.XLOOKUP($B$3,Bezetting_2!$A$2:$A$90,Bezetting_2!G$2:G$90,,0) -> 0 | I10: =_xlfn.XLOOKUP($B$3,Bezetting_2!$A$2:$A$90,Bezetting_2!H$2:H$90,,0) -> 2 | J10: =_xlfn.XLOOKUP($B$3,Bezetting_2!$A$2:$A$90,Bezetting_2!I$2:I$90,,0) -> 0 | K10: =_xlfn.XLOOKUP($B$3,Bezetting_2!$A$2:$A$90,Bezetting_2!J$2:J$90,,0) -> 0 | L10: =_xlfn.XLOOKUP($B$3,Bezetting_2!$A$2:$A$90,Bezetting_2!K$2:K$90,,0) -> 9 | M10: =_xlfn.XLOOKUP($B$3,Bezetting_2!$A$2:$A$90,Bezetting_2!L$2:L$90,,0) -> 2 | N10: =_xlfn.XLOOKUP($B$3,Bezetting_2!$A$2:$A$90,Bezetting_2!M$2:M$90,,0) -> 0 | O10: =_xlfn.XLOOKUP($B$3,Bezetting_2!$A$2:$A$90,Bezetting_2!N$2:N$90,,0) -> 0 | P10: =_xlfn.XLOOKUP($B$3,Bezetting_2!$A$2:$A$90,Bezetting_2!O$2:O$90,,0) -> 0 | Q10: =_xlfn.XLOOKUP($B$3,Bezetting_2!$A$2:$A$90,Bezetting_2!P$2:P$90,,0) -> Overig: Vuilnisbakken
B11: Meting | F11: =IF(F10=0,"-",F10/$L$10) -> 0.6666666667 | G11: =IF(G10=0,"-",G10/$L$10) -> 0.1111111111 | H11: - | I11: 0.2222222222 | J11: - | K11: - | L11: 1 | Q11: =_xlfn.XLOOKUP($B$3,Bezetting_2!$A$2:$A$90,Bezetting_2!Q$2:Q$90,,0) -> 0
B12: ="Meetperiode: "&TEXT(VLOOKUP(B3,Coordinaten!$A:$G,7,0),"dddd dd mmmm jjjj") -> Meetperiode: di 10 & do 12 oktober 2023
B13: Methodiek: Parkeerdrukmeting met waarnemers
B14: In opdracht van: Vlaamse overheid
B15: Uitgevoerd door: Dufec
D16: VERDELING NAAR CATEGORIE
B17: Locatie
B18: =IF(B4="","",HYPERLINK("http://www.googlemaps.com/?q="&B4,"Lat/Long: "&B4)) -> Lat/Long: 51.109593, 2.757978
P20: Legenda
Q21: Personenwagen
Q22: Vracht
Q23: Motor
Q24: Obstakel / overig
Q25: Fout personenwagen
Q26: Fout Vracht
B39: Toelichting
B40: Pers = personenwagens op daarvoor bestemde
B41: openbare plaatsen
B42: Vracht = vrachtwagens op daarvoor bestemde
B43: parkeerplaatsen (middel- en zwaar vrachtverkeer)
B44: Motor = geparkeerde motoren op openbare plaatsen
B45: Obstakel / overig = obstakels of overige voertuigen
B46: geparkeerd op openbare plaatsen
B47: Fout pers = personenwagens die fout geparkeerd staan
B48: Fout vracht = vrachtwagens die fout geparkeerd staan
B49: E-wagen = geparkeerde elektrisch voertuig bij een
B50: elektrisch oplaadpunt
B51: Invalide = personenwagens en motoren op voor
B52: invalide personen bestemde parkeerplaats
B53: Gestalde fietsen = alle gestalde fietsen op de
B54: daarvoor bestemde parkeerplaatsen

Sheet 63.Lichtervelde
B2: PARKEERONDERZOEK | D2: CARPOOLPARKINGS EN P+R PARKINGS
B3: 63 | D3: =B8 & " - "& TEXT(VLOOKUP(B3,Coordinaten!$A$2:$G$95,7,0),"dddd dd mmmm jjjj") -> Carpool parking Lichtervelde, Lichtervelde - di 10 & do 12 oktober 2023
B4: =VLOOKUP(B3,Coordinaten!$A$2:$G$95,6,0) -> 51.011285, 3.167382
D5: BEZETTING | Q5: OPMERKINGEN
B7: Onderzoeksgebied | D7: Datum | E7: Geregistreerd tussen | F7: Pers | G7: Vracht | H7: Motor | I7: Obstakel / overig | J7: Fout pers | K7: Fout Vracht | L7: Totaal | M7: E-wagen plaats | N7: Invalidenplaats | O7: Gestalde fietsen | U7: =F7 -> Pers | V7: Vracht | W7: Motor | X7: Obstakel / overig | Y7: Fout pers | Z7: Fout Vracht
B8: =VLOOKUP(B3,Coordinaten!$A$2:$G$95,3,0)&", "&VLOOKUP(B3,Coordinaten!$A$2:$G$95,5,0) -> Carpool parking Lichtervelde, Lichtervelde | D8: =_xlfn.XLOOKUP($B$3,Bezetting_1!$A$2:$A$90,Bezetting_1!C$2:C$90,,0) -> 2023-10-12 | E8: =_xlfn.XLOOKUP($B$3,Bezetting_1!$A$2:$A$90,Bezetting_1!D$2:D$90,,0) -> 09:00 - 16:00u | F8: =_xlfn.XLOOKUP($B$3,Bezetting_1!$A$2:$A$90,Bezetting_1!E$2:E$90,,0) -> 65 | G8: =_xlfn.XLOOKUP($B$3,Bezetting_1!$A$2:$A$90,Bezetting_1!F$2:F$90,,0) -> 0 | H8: =_xlfn.XLOOKUP($B$3,Bezetting_1!$A$2:$A$90,Bezetting_1!G$2:G$90,,0) -> 0 | I8: =_xlfn.XLOOKUP($B$3,Bezetting_1!$A$2:$A$90,Bezetting_1!H$2:H$90,,0) -> 0 | J8: =_xlfn.XLOOKUP($B$3,Bezetting_1!$A$2:$A$90,Bezetting_1!I$2:I$90,,0) -> 2 | K8: =_xlfn.XLOOKUP($B$3,Bezetting_1!$A$2:$A$90,Bezetting_1!J$2:J$90,,0) -> 0 | L8: =_xlfn.XLOOKUP($B$3,Bezetting_1!$A$2:$A$90,Bezetting_1!K$2:K$90,,0) -> 67 | M8: =_xlfn.XLOOKUP($B$3,Bezetting_1!$A$2:$A$90,Bezetting_1!L$2:L$90,,0) -> 0 | N8: =_xlfn.XLOOKUP($B$3,Bezetting_1!$A$2:$A$90,Bezetting_1!M$2:M$90,,0) -> 0 | O8: =_xlfn.XLOOKUP($B$3,Bezetting_1!$A$2:$A$90,Bezetting_1!N$2:N$90,,0) -> 0 | Q8: =_xlfn.XLOOKUP($B$3,Bezetting_1!$A$2:$A$90,Bezetting_1!P$2:P$90,,0) -> Fout pers: in parkeerplaats voor vracht | S8: =D8 -> 2023-10-12 | T8: =E8 -> 09:00 - 16:00u | U8: =IF(F8=0,NA(),F8/$L8) -> 0.9701492537 | V8: =IF(G8=0,NA(),G8/$L8) ->  | W8: =IF(H8=0,NA(),H8/$L8) ->  | Y8: 0.02985074627
B9: ="Nabij kruispunt: "&VLOOKUP(B3,Coordinaten!$A$2:$L$95,4,0) -> Nabij kruispunt: N35 / A17 | F9: =IF(F8=0,"-",F8/$L$8) -> 0.9701492537 | G9: =IF(G8=0,"-",G8/$L$8) -> - | H9: - | I9: - | J9: 0.02985074627 | K9: - | L9: 1 | Q9: =_xlfn.XLOOKUP($B$3,Bezetting_1!$A$2:$A$90,Bezetting_1!Q$2:Q$90,,0) -> 0 | S9: =D10 -> 2023-10-12 | T9: =E10 -> 19:00 - 02:00u | U9: =IF(F10=0,NA(),F10/$L10) -> 0.8965517241 | V9: =IF(G10=0,NA(),G10/$L10) -> 0.1034482759
D10: =_xlfn.XLOOKUP($B$3,Bezetting_2!$A$2:$A$90,Bezetting_2!C$2:C$90,,0) -> 2023-10-12 | E10: =_xlfn.XLOOKUP($B$3,Bezetting_2!$A$2:$A$90,Bezetting_2!D$2:D$90,,0) -> 19:00 - 02:00u | F10: =_xlfn.XLOOKUP($B$3,Bezetting_2!$A$2:$A$90,Bezetting_2!E$2:E$90,,0) -> 26 | G10: =_xlfn.XLOOKUP($B$3,Bezetting_2!$A$2:$A$90,Bezetting_2!F$2:F$90,,0) -> 3 | H10: =_xlfn.XLOOKUP($B$3,Bezetting_2!$A$2:$A$90,Bezetting_2!G$2:G$90,,0) -> 0 | I10: =_xlfn.XLOOKUP($B$3,Bezetting_2!$A$2:$A$90,Bezetting_2!H$2:H$90,,0) -> 0 | J10: =_xlfn.XLOOKUP($B$3,Bezetting_2!$A$2:$A$90,Bezetting_2!I$2:I$90,,0) -> 0 | K10: =_xlfn.XLOOKUP($B$3,Bezetting_2!$A$2:$A$90,Bezetting_2!J$2:J$90,,0) -> 0 | L10: =_xlfn.XLOOKUP($B$3,Bezetting_2!$A$2:$A$90,Bezetting_2!K$2:K$90,,0) -> 29 | M10: =_xlfn.XLOOKUP($B$3,Bezetting_2!$A$2:$A$90,Bezetting_2!L$2:L$90,,0) -> 0 | N10: =_xlfn.XLOOKUP($B$3,Bezetting_2!$A$2:$A$90,Bezetting_2!M$2:M$90,,0) -> 0 | O10: =_xlfn.XLOOKUP($B$3,Bezetting_2!$A$2:$A$90,Bezetting_2!N$2:N$90,,0) -> 1 | P10: =_xlfn.XLOOKUP($B$3,Bezetting_2!$A$2:$A$90,Bezetting_2!O$2:O$90,,0) -> 0 | Q10: =_xlfn.XLOOKUP($B$3,Bezetting_2!$A$2:$A$90,Bezetting_2!P$2:P$90,,0) -> 0
B11: Meting | F11: =IF(F10=0,"-",F10/$L$10) -> 0.8965517241 | G11: =IF(G10=0,"-",G10/$L$10) -> 0.1034482759 | H11: - | I11: - | J11: - | K11: - | L11: 1 | Q11: =_xlfn.XLOOKUP($B$3,Bezetting_2!$A$2:$A$90,Bezetting_2!Q$2:Q$90,,0) -> 0
B12: ="Meetperiode: "&TEXT(VLOOKUP(B3,Coordinaten!$A:$G,7,0),"dddd dd mmmm jjjj") -> Meetperiode: di 10 & do 12 oktober 2023
B13: Methodiek: Parkeerdrukmeting met waarnemers
B14: In opdracht van: Vlaamse overheid
B15: Uitgevoerd door: Dufec
D16: VERDELING NAAR CATEGORIE
B17: Locatie
B18: =IF(B4="","",HYPERLINK("http://www.googlemaps.com/?q="&B4,"Lat/Long: "&B4)) -> Lat/Long: 51.011285, 3.167382
P20: Legenda
Q21: Personenwagen
Q22: Vracht
Q23: Motor
Q24: Obstakel / overig
Q25: Fout personenwagen
Q26: Fout Vracht
B39: Toelichting
B40: Pers = personenwagens op daarvoor bestemde
B41: openbare plaatsen
B42: Vracht = vrachtwagens op daarvoor bestemde
B43: parkeerplaatsen (middel- en zwaar vrachtverkeer)
B44: Motor = geparkeerde motoren op openbare plaatsen
B45: Obstakel / overig = obstakels of overige voertuigen
B46: geparkeerd op openbare plaatsen
B47: Fout pers = personenwagens die fout geparkeerd staan
B48: Fout vracht = vrachtwagens die fout geparkeerd staan
B49: E-wagen = geparkeerde elektrisch voertuig bij een
B50: elektrisch oplaadpunt
B51: Invalide = personenwagens en motoren op voor
B52: invalide personen bestemde parkeerplaats
B53: Gestalde fietsen = alle gestalde fietsen op de
B54: daarvoor bestemde parkeerplaatsen

Sheet 64.Kortrijk-Oost
B2: PARKEERONDERZOEK | D2: CARPOOLPARKINGS EN P+R PARKINGS
B3: 64 | D3: =B8 & " - "& TEXT(VLOOKUP(B3,Coordinaten!$A$2:$G$95,7,0),"dddd dd mmmm jjjj") -> Carpool parking Kortrijk-Oost, Kortrijk - di 10 & do 12 oktober 2023
B4: =VLOOKUP(B3,Coordinaten!$A$2:$G$95,6,0) -> 50.817455, 3.299312
D5: BEZETTING | Q5: OPMERKINGEN
